Workbook

Sheet 報表選項
H1: 2014-04-14
B2: 保險管理系統（元月份) | C2: 依德 | D2: 鎔德 | E2: 鉑德 | F2: 報表狀態 | H2: 問題及建議事項
A3: A | B3: 部門新保比率分析表 | C3: * | D3: * | G3: 相同 | H3: -
A4: B | B4: 部門續保比率分析表 | C4: * | D4: * | E4: * | G4: 相同 | H4: -
A5: C | B5: 業代新車承保月報表 | C5: * | D5: * | F5: 不同 | H5: 公式錯誤、需調整欄位
A6: D | B6: 業代續保承保月報表 | C6: * | D6: * | E6: * | F6: 不同 | H6: 到期單車售退保、單強制有誤，統計出現#DIV/0!（公式正確如列） '=IF(ISERROR(ROUND(($B6+$C6)/$N6,3)),"",ROUND(($B6+$C6)/$N6,3))
A7: E | B7: 保險承保同期比較表 | C7: * | D7: * | E7: * | G7: 相同 | H7: 檔名未更新，去年度資料由舊系統匯入無法比對
A8: F | B8: 新車及續保承保分析 | C8: * | D8: * | E8: * | F8: 不同 | H8: 檔名未更新、增列專案統計，報表參閱E&F正確版
A9: G | B9: 保險承保佔比分析表 | C9: * | D9: * | E9: * | F9: 不同 | H9: 強制、任意不同保險公司，造成件數重覆統計
A10: H | B10: 部門保險佔比分析表 | C10: * | D10: * | E10: * | F10: 不同 | H10: 總額部份須列保險公司件數及金額
A11: I | B11: 保險公司收付明細表 | C11: * | D11: * | E11: * | G11: 相同 | H11: -
A12: J | B12: 業代新保獎勵統計表 | C12: * | D12: * | F12: 不同 | H12: 強制、任意及保險公司不同造成統計錯誤、百分比表示%，另需調整欄位
A13: K | B13: 業代續保獎勵統計表 | C13: * | D13: * | E13: * | F13: 不同 | H13: 與D.報表問題相同
A14: L | B14: 新保承保率分析總表 | C14: * | D14: * | F14: 不同 | H14: 檔名未更新，內容須調整
A15: M | B15: 新保承保明細表 | C15: * | D15: * | F15: 不同 | H15: 強制金額及件數重覆統計
A16: N | B16: 續保到期明細表 | C16: * | D16: * | E16: * | F16: 不同 | H16: 報表名稱未更新，備註欄上退保是否應在車輛轉售表現
A17: O | B17: 新保未保電訪表 | C17: * | D17: * | G17: 相同 | H17: -
A18: P | B18: 續保未保電訪表 | C18: * | D18: * | E18: * | G18: 相同 | H18: 原到期單日期與次年度日期不相符
A19: Q | B19: 每日承保明細表 | C19: * | D19: * | E19: * | G19: 符合 | H19: -
A20: R | B20: 承保業務分析總表 | C20: * | D20: * | E20: * | G20: 相同 | H20: -
A21: S | B21: 業代佣金明細總表 | C21: * | D21: * | E21: * | G21: 符合 | H21: -
B23: 成交客戶表（車源系統） | F23: 不同 | H23: 4/11日發現成交客戶資料及付款方式變更造成保險統計不同
B24: 保險明細資料下載(續保) -承保率版 | H24: 增加保險類別 、欄位調整、刪除付款、更正檔名及增加統計
B25: 依德+鎔德總表 | H25: 能否增加當月及累計和同期之比較分析
A26: (*) | B26: 各事業體所需報表

Sheet A.YD-部門新保比率分析表
A1: 2014/01月各課新保比率分析表
B4: 台產 | G4: 富邦 | L4: 明台 | Q4: 華南 | V4: 合計
A5: 部門 | B5: 件數 | C5: 車體險 | D5: 其他險 | E5: 強制險 | F5: 總額 | G5: 件數 | H5: 車體險 | I5: 其他險 | J5: 強制險 | K5: 總額 | L5: 件數 | M5: 車體險 | N5: 其他險 | O5: 強制險 | P5: 總額 | Q5: 件數 | R5: 車體險 | S5: 其他險 | T5: 強制險 | U5: 總額 | V5: 件數 | W5: 車體險 | X5: 其他險 | Y5: 強制險 | Z5: 總額
A6: 營一課 | B6: 2 | C6: 20145 | D6: 36517 | E6: 2038 | F6: 58700 | G6: 6 | H6: 122767 | I6: 132842 | J6: 6813 | K6: 262422 | L6: 11 | M6: 278265 | N6: 210412 | O6: 12884 | P6: 501561 | Q6: 8 | R6: 373905 | S6: 215799 | T6: 10803 | U6: 600507 | V6: 27 | W6: 795082 | X6: 595570 | Y6: 32538 | Z6: 1423190
A7: 營二課 | B7: 1 | C7: 30561 | D7: 31122 | E7: 1138 | F7: 62821 | G7: 3 | H7: 119040 | I7: 105953 | J7: 3226 | K7: 228219 | L7: 8 | M7: 263717 | N7: 200885 | O7: 9018 | P7: 473620 | Q7: 18 | R7: 475075 | S7: 384617 | T7: 21783 | U7: 881475 | V7: 30 | W7: 888393 | X7: 722577 | Y7: 35165 | Z7: 1646135
A8: 營三課 | B8: 0 | C8: 0 | D8: 0 | E8: 0 | F8: 0 | G8: 7 | H8: 191764 | I8: 231626 | J8: 8230 | K8: 431620 | L8: 10 | M8: 342810 | N8: 269377 | O8: 14281 | P8: 626468 | Q8: 7 | R8: 203177 | S8: 187292 | T8: 6991 | U8: 397460 | V8: 24 | W8: 737751 | X8: 688295 | Y8: 29502 | Z8: 1455548
A9: 行銷業務部 | B9: 0 | C9: 0 | D9: 0 | E9: 0 | F9: 0 | G9: 0 | H9: 0 | I9: 0 | J9: 0 | K9: 0 | L9: 0 | M9: 0 | N9: 0 | O9: 0 | P9: 0 | Q9: 0 | R9: 0 | S9: 0 | T9: 0 | U9: 0 | V9: 0 | W9: 0 | X9: 0 | Y9: 0 | Z9: 0
A10: 營業部 | B10: 3 | C10: 62334 | D10: 83343 | E10: 1398 | F10: 147075 | G10: 0 | H10: 0 | I10: 0 | J10: 0 | K10: 0 | L10: 2 | M10: 91648 | N10: 54404 | O10: 5592 | P10: 151644 | Q10: 0 | R10: 0 | S10: 0 | T10: 0 | U10: 0 | V10: 5 | W10: 153982 | X10: 137747 | Y10: 6990 | Z10: 298719
A11: 總計 | B11: =SUM(B5:B10) -> 6 | C11: 113040 | D11: 150982 | E11: 4574 | F11: 268596 | G11: 16 | H11: 433571 | I11: 470421 | J11: 18269 | K11: 922261 | L11: 31 | M11: 976440 | N11: 735078 | O11: 41775 | P11: 1753293 | Q11: 33 | R11: 1052157 | S11: 787708 | T11: 39577 | U11: 1879442 | V11: 86 | W11: 2575208 | X11: 2144189 | Y11: 104195 | Z11: 4823592
A17: 人工統計
B19: 台產 | G19: 富邦 | L19: 明台 | Q19: 華南 | V19: 合計
A20: 表 部 門 | B20: 件數 | C20: 車體險 | D20: 其他險 | E20: 強制險 | F20: 總額 | G20: 件數 | H20: 車體險 | I20: 其他險 | J20: 強制險 | K20: 總額 | L20: 件數 | M20: 車體險 | N20: 其他險 | O20: 強制險 | P20: 總額 | Q20: 件數 | R20: 車體險 | S20: 其他險 | T20: 強制險 | U20: 總額 | V20: 件數 | W20: 車體險 | X20: 其他險 | Y20: 強制險 | Z20: 總額
A21: 營一課 | B21: 2 | C21: 20145 | D21: 36517 | E21: 2038 | F21: 58700 | G21: 6 | H21: 122767 | I21: 132842 | J21: 6813 | K21: 262422 | L21: 11 | M21: 278265 | N21: 210412 | O21: 12884 | P21: 501561 | Q21: 8 | R21: 373905 | S21: 215799 | T21: 10803 | U21: 600507 | V21: 27 | W21: 795082 | X21: 595570 | Y21: 32538 | Z21: 1423190
A22: 營二課 | B22: 1 | C22: 30561 | D22: 31122 | E22: 1138 | F22: 62821 | G22: 3 | H22: 119040 | I22: 105953 | J22: 3226 | K22: 228219 | L22: 8 | M22: 263717 | N22: 200885 | O22: 9018 | P22: 473620 | Q22: 18 | R22: 475075 | S22: 384617 | T22: 21783 | U22: 881475 | V22: 30 | W22: 888393 | X22: 722577 | Y22: 35165 | Z22: 1646135
A23: 營三課 | G23: 7 | H23: 191764 | I23: 231626 | J23: 8230 | K23: 431620 | L23: 10 | M23: 342810 | N23: 269377 | O23: 14281 | P23: 626468 | Q23: 7 | R23: 203177 | S23: 187292 | T23: 6991 | U23: 397460 | V23: 24 | W23: 737751 | X23: 688295 | Y23: 29502 | Z23: 1455548
A24: 營業部 | B24: 3 | C24: 62334 | D24: 83343 | E24: 1398 | F24: 147075 | L24: 2 | M24: 91648 | N24: 54404 | O24: 5592 | P24: 151644 | V24: 5 | W24: 153982 | X24: 137747 | Y24: 6990 | Z24: 298719
A25: 總計 | B25: 6 | C25: 113040 | D25: 150982 | E25: 4574 | F25: 268596 | G25: 18 | H25: 433571 | I25: 470421 | J25: 18269 | K25: 922261 | L25: 31 | M25: 976440 | N25: 735078 | O25: 41775 | P25: 1753293 | Q25: 33 | R25: 1052157 | S25: 787708 | T25: 39577 | U25: 1879442 | V25: 86 | W25: 2575208 | X25: 2144189 | Y25: 104195 | Z25: 4823592

Sheet B.YD-部門續保比率分析表
A1: 2014/01月各課續保比率分析表
B4: 台產 | G4: 富邦 | L4: 明台 | Q4: 華南 | V4: 合計
A5: 課別 | B5: 件數 | C5: 車體險 | D5: 其他險 | E5: 強制險 | F5: 總額 | G5: 件數 | H5: 車體險 | I5: 其他險 | J5: 強制險 | K5: 總額 | L5: 件數 | M5: 車體險 | N5: 其他險 | O5: 強制險 | P5: 總額 | Q5: 件數 | R5: 車體險 | S5: 其他險 | T5: 強制險 | U5: 總額 | V5: 件數 | W5: 車體險 | X5: 其他險 | Y5: 強制險 | Z5: 總額
A6: 營一課 | B6: 4 | C6: 79598 | D6: 69364 | E6: 4455 | F6: 153417 | G6: 7 | H6: 179184 | I6: 96518 | J6: 6274 | K6: 281976 | L6: 22 | M6: 363723 | N6: 315745 | O6: 21416 | P6: 700884 | Q6: 29 | R6: 478518 | S6: 464543 | T6: 31426 | U6: 974487 | V6: 62 | W6: 1101023 | X6: 946170 | Y6: 63571 | Z6: 2110764
A7: 營二課 | B7: 7 | C7: 182270 | D7: 156183 | E7: 7860 | F7: 346313 | G7: 7 | H7: 162902 | I7: 119827 | J7: 6512 | K7: 289241 | L7: 33 | M7: 790404 | N7: 618238 | O7: 36558 | P7: 1445200 | Q7: 22 | R7: 600729 | S7: 370213 | T7: 24965 | U7: 995907 | V7: 69 | W7: 1736305 | X7: 1264461 | Y7: 75895 | Z7: 3076661
A8: 營三課 | B8: 8 | C8: 238371 | D8: 166885 | E8: 9347 | F8: 414603 | G8: 1 | H8: 40356 | I8: 35087 | J8: 1138 | K8: 76581 | L8: 28 | M8: 761287 | N8: 492936 | O8: 30351 | P8: 1284574 | Q8: 11 | R8: 177509 | S8: 134520 | T8: 12167 | U8: 324196 | V8: 48 | W8: 1217523 | X8: 829428 | Y8: 53003 | Z8: 2099954
A9: 行銷業務部 | B9: 0 | C9: 0 | D9: 0 | E9: 0 | F9: 0 | G9: 0 | H9: 0 | I9: 0 | J9: 0 | K9: 0 | L9: 0 | M9: 0 | N9: 0 | O9: 0 | P9: 0 | Q9: 0 | R9: 0 | S9: 0 | T9: 0 | U9: 0 | V9: 0 | W9: 0 | X9: 0 | Y9: 0 | Z9: 0
A10: 營業部 | B10: 0 | C10: 0 | D10: 0 | E10: 0 | F10: 0 | G10: 1 | H10: 43044 | I10: 3179 | J10: 1398 | K10: 47621 | L10: 0 | M10: 0 | N10: 0 | O10: 0 | P10: 0 | Q10: 0 | R10: 0 | S10: 0 | T10: 0 | U10: 0 | V10: 1 | W10: 43044 | X10: 3179 | Y10: 1398 | Z10: 47621
A11: 服務部 | B11: 5 | C11: 56192 | D11: 35713 | E11: 5255 | F11: 97160 | G11: 0 | H11: 0 | I11: 0 | J11: 0 | K11: 0 | L11: 6 | M11: 173859 | N11: 72572 | O11: 6274 | P11: 252705 | Q11: 10 | R11: 129842 | S11: 80576 | T11: 11792 | U11: 222210 | V11: 21 | W11: 359893 | X11: 188861 | Y11: 23321 | Z11: 572075
A12: STF | B12: 3 | C12: 99945 | D12: 65501 | E12: 3086 | F12: 168532 | G12: 1 | H12: 11452 | I12: 7659 | J12: 1099 | K12: 20210 | L12: 5 | M12: 70127 | N12: 53880 | O12: 5753 | P12: 129760 | Q12: 13 | R12: 392870 | S12: 157659 | T12: 14073 | U12: 564602 | V12: 22 | W12: 574394 | X12: 284699 | Y12: 24011 | Z12: 883104
A13: 總計 | B13: =SUM(B6:B12) -> 27 | C13: 656376 | D13: 493646 | E13: 30003 | F13: 1180025 | G13: 17 | H13: 436938 | I13: 262270 | J13: 16421 | K13: 715629 | L13: 94 | M13: 2159400 | N13: 1553371 | O13: 100352 | P13: 3813123 | Q13: 85 | R13: 1779468 | S13: 1207511 | T13: 94423 | U13: 3081402 | V13: 223 | W13: 5032182 | X13: 3516798 | Y13: 241199 | Z13: 8790179

Sheet C.YD-業代新車承保月報表
A1: 2014/01月業代新車承保月報表
A3: 建議調整成C.正確版版面及程式內容
A5: 部門 | B5: 業務代表 | C5: 現金台數 | D5: 租賃台數 | E5: 車體件數 | F5: 其他件數 | G5: 單強制件數 | H5: 單強制金額 | I5: 總金額(含強制) | J5: 新車承保率 | K5: 專案保險 | L5: 含專案承保率
A6: 營一課 | B6: 凌大偉 | C6: 6 | D6: 0 | E6: 2 | F6: 0 | G6: 2 | H6: 2497 | I6: 123649 | J6: =ROUND((E6+F6)/(C6-K6),3) -> 0.5 | K6: 2 | L6: =ROUND((E6+F6+K6)/C6,3) -> 0.667
B7: 張健宏 | C7: 3 | D7: 0 | E7: 1 | F7: 1 | G7: 0 | I7: 128330 | J7: 1 | K7: 1 | L7: 1
B8: 梁大民 | C8: 1 | D8: 0 | E8: 0 | F8: 0 | G8: 1 | H8: 1398 | I8: 1398 | J8: 0 | K8: 0 | L8: 0
B9: 林柏霖 | C9: 2 | D9: 0 | E9: 2 | F9: 0 | G9: 0 | I9: 165719 | J9: 1 | K9: 0 | L9: 1
B10: 李昀融 | C10: 2 | D10: 1 | E10: 1 | F10: 0 | G10: 1 | H10: 1148 | I10: 78843 | J10: 0.5 | K10: 0 | L10: 0.5
B11: 王裕明 | C11: 3 | D11: 0 | E11: 2 | F11: 1 | G11: 0 | I11: 177944 | J11: 1 | K11: 0 | L11: 1
B12: 蘇士文 | C12: 6 | D12: 0 | E12: 3 | F12: 1 | G12: 1 | H12: 1099 | I12: 165593 | J12: 0.8 | K12: 1 | L12: 0.833
B13: 郭天南 | C13: 4 | D13: 0 | E13: 4 | F13: 0 | G13: 0 | I13: 328501 | J13: 1 | K13: 0 | L13: 1
B14: 花志明 | C14: 1 | D14: 2 | E14: 1 | F14: 0 | G14: 0 | I14: 48277 | J14: 1 | K14: 0 | L14: 1
B15: 陳龍雲 | C15: 3 | D15: 1 | E15: 3 | F15: 0 | G15: 0 | I15: 204936 | J15: 1 | K15: 0 | L15: 1
A16: 營一課 合計 | C16: =SUM(C6:C15) -> 31 | D16: 4 | E16: 19 | F16: 3 | G16: 5 | H16: 6142 | I16: 1423190 | J16: =ROUND((E16+F16)/C16,3) -> 0.71 | K16: =SUM(K6:K15) -> 4 | L16: 0.839
A17: 營二課 | B17: 張昇文 | C17: 1 | D17: 0 | E17: 1 | F17: 0 | G17: 0 | I17: 34125 | J17: =ROUND((E17+F17)/(C17-K17),3) -> 1 | K17: 0 | L17: 1
B18: 戴子貽 | C18: 1 | D18: 0 | E18: 1 | F18: 0 | G18: 0 | I18: 76846 | J18: 1 | K18: 0 | L18: 1
B19: 林宗慶 | C19: 2 | D19: 0 | E19: 1 | F19: 0 | G19: 0 | I19: 49056 | J19: 1 | K19: 1 | L19: 1
B20: 林政勳 | C20: 4 | D20: 0 | E20: 2 | F20: 0 | G20: 2 | H20: 2796 | I20: 164852 | J20: 0.5 | K20: 0 | L20: 0.5
B21: 林陳郎 | C21: 5 | D21: 0 | E21: 4 | F21: 0 | G21: 1 | H21: 889 | I21: 286264 | J21: 0.8 | K21: 0 | L21: 0.8
B22: 王冠賢 | C22: 2 | D22: 0 | E22: 1 | F22: 0 | G22: 0 | I22: 43618 | J22: 1 | K22: 1 | L22: 1
B23: 王慶儒 | C23: 2 | D23: 0 | E23: 2 | F23: 0 | G23: 0 | I23: 120152 | J23: 1 | K23: 0 | L23: 1
B24: 謝中堅 | C24: 5 | D24: 0 | E24: 5 | F24: 0 | G24: 0 | I24: 341935 | J24: 1 | K24: 0 | L24: 1
B25: 陳一鋐 | C25: 5 | D25: 1 | E25: 4 | F25: 0 | G25: 1 | H25: 1019 | I25: 341132 | J25: 0.8 | K25: 0 | L25: 0.8
B26: 陳維德 | C26: 5 | D26: 0 | E26: 2 | F26: 0 | G26: 1 | H26: 1099 | I26: 111268 | J26: 0.5 | K26: 1 | L26: 0.6
B27: 莊朝清 | C27: 3 | D27: 0 | E27: 1 | F27: 1 | G27: 0 | I27: 76887 | J27: 1 | K27: 1 | L27: 1
A28: 營二課 合計 | C28: =SUM(C17:C27) -> 35 | D28: 1 | E28: 24 | F28: 1 | G28: 5 | H28: 5803 | I28: 1646135 | J28: =ROUND((E28+F28)/C28,3) -> 0.714 | K28: =SUM(K17:K27) -> 4 | L28: 0.829
A29: 營三課 | B29: 孫茂耀 | C29: 3 | D29: 0 | E29: 3 | F29: 0 | G29: 0 | I29: 188168 | J29: =ROUND((E29+F29)/(C29-K29),3) -> 1 | K29: 0 | L29: 1
B30: 劉家任 | C30: 4 | D30: 0 | E30: 3 | F30: 0 | G30: 0 | I30: 238622 | J30: 0.75 | K30: 0 | L30: 0.75
B31: 林謙慶 | C31: 4 | D31: 1 | E31: 3 | F31: 0 | G31: 1 | H31: 1019 | I31: 210889 | J31: 0.75 | K31: 0 | L31: 0.75
B32: 李玄璸 | C32: 1 | D32: 0 | E32: 1 | F32: 0 | G32: 0 | I32: 114191 | J32: 1 | K32: 0 | L32: 1
B33: 簡志勳 | C33: 1 | D33: 1 | E33: 1 | F33: 0 | G33: 0 | I33: 61072 | J33: 1 | K33: 0 | L33: 1
B34: 鄭英彥 | C34: 4 | D34: 1 | E34: 2 | F34: 1 | G34: 1 | H34: 1398 | I34: 200293 | J34: 0.75 | K34: 0 | L34: 0.75
B35: 黃盛緯 | C35: 0 | D35: 1 | E35: 0 | F35: 0 | G35: 0 | I35: 0 | K35: 0
B36: 賈勇華 | C36: 5 | D36: 0 | E36: 3 | F36: 1 | G36: 1 | H36: 1138 | I36: 264171 | J36: 0.8 | K36: 0 | L36: 0.8
B37: 郭力嘉 | C37: 1 | D37: 0 | E37: 1 | F37: 0 | G37: 0 | I37: 85506 | J37: 1 | K37: 0 | L37: 1
B38: 陳禮建 | C38: 2 | D38: 0 | E38: 2 | F38: 0 | G38: 0 | I38: 92636 | J38: 1 | K38: 0 | L38: 1
A39: 營三課 合計 | C39: =SUM(C29:C38) -> 25 | D39: 4 | E39: 19 | F39: 2 | G39: 3 | H39: 3555 | I39: 1455548 | J39: =ROUND((E39+F39)/C39,3) -> 0.84 | K39: =SUM(K29:K38) -> 0 | L39: 0.84
A40: 行銷業務部 合計
A41: 營業部 | B41: 陳德益 | C41: 5 | D41: 0 | E41: 5 | F41: 0 | G41: 0 | I41: 298719 | J41: =ROUND((E41+F41)/(C41-K41),3) -> 1 | K41: 0 | L41: =ROUND((E41+F41+K41)/C41,3) -> 1
A42: 營業部 合計 | C42: =SUM(C41:C41) -> 5 | D42: 0 | E42: 5 | F42: 0 | G42: 0 | H42: 0 | I42: 298719 | J42: =ROUND((E42+F42)/C42,3) -> 1 | K42: =SUM(K41:K41) -> 0 | L42: =ROUND((E42+F42+K42)/C42,3) -> 1
A43: 其他 合計
A44: 總計 | C44: =SUM(C6:C43)/2 -> 96 | D44: 9 | E44: 67 | F44: 6 | G44: 13 | H44: 15500 | I44: 4823592 | J44: =ROUND((E44+F44)/C44,3) -> 0.76 | K44: =SUM(K6:K43)/2 -> 8 | L44: =ROUND((E44+F44+K44)/C44,3) -> 0.844

Sheet C.月承保率(正確版)
A2: 2014年1月新車承保率統計表（依德）
J3: 投保率<70% | N3: 2014-04-12
A4: 業務代業 | C4: 鋿售台數 | E4: 車體 | F4: 其他 | G4: 強制 | H4: 合計 | I4: 專案 | J4: 新車承保率 | K4: 新車承保率 | M4: 承保金額 | O4: 提撥率 | P4: 加權 提撥率 | Q4: 2013年 第四季 承保率未達 60%,八折計 | R4: 業代獎金 | V4: 程式保護
B5: 一般(A) | C5: 租賃(B) | D5: 合計(C) | E5: D | F5: E | G5: F | H5: G | I5: H | J5: 含專案((D+E+H)/A) | K5: 不含專案((D+E)/(A-H)) | L5: 單強制 | M5: (車體+其他) | N5: 總金額 | U5: 1 | V5: 上季達標準值
A6: 梁大民 | B6: 1 | C6: 0 | D6: =SUM(B6:C6) -> 1 | E6: 0 | F6: 0 | G6: 1 | H6: =SUM(E6:G6) -> 1 | I6: 0 | J6: =IF(ISERROR(ROUND(($E6+$F6+$I6)/$B6,3)),"",ROUND(($E6+$F6+$I6)/$B6,3)) -> 0 | K6: =IF(ISERROR(ROUND(($E6+$F6)/($B6-$I6),3)),"",ROUND(($E6+$F6)/($B6-$I6),3)) -> 0 | L6: 1398 | M6: =N6-L6 -> 0 | N6: 1398 | O6: =IF($J6<70%,"0",IF($J6<75%,"0.5%",IF($J6<80%,"1%",IF($J6<85%,"1.25%",IF($J6<90%,"1.5%",IF($J6<95%,"2%",IF($J6<101%,"2.5%","0"))))))) -> 0 | P6: =IF($M6=0,"0",IF($M6<300000,"0.75",IF($M6<500000,"1",IF($M6<750000,"1.25",IF($M6<1000000,"1.5",IF($M6>1000000,"1.75")))))) -> 0 | Q6: =$U$5 -> 1 | R6: =ROUND($M6*$O6*$P6*$Q6,0) -> 0
A7: 凌大偉 | B7: 6 | C7: 0 | D7: =SUM(B7:C7) -> 6 | E7: 2 | F7: 0 | G7: 2 | H7: =SUM(E7:G7) -> 4 | I7: 2 | J7: =IF(ISERROR(ROUND(($E7+$F7+$I7)/$B7,3)),"",ROUND(($E7+$F7+$I7)/$B7,3)) -> 0.667 | K7: =IF(ISERROR(ROUND(($E7+$F7)/($B7-$I7),3)),"",ROUND(($E7+$F7)/($B7-$I7),3)) -> 0.5 | L7: 2497 | M7: =N7-L7 -> 121152 | N7: 123649 | O7: =IF($J7<70%,"0",IF($J7<75%,"0.5%",IF($J7<80%,"1%",IF($J7<85%,"1.25%",IF($J7<90%,"1.5%",IF($J7<95%,"2%",IF($J7<101%,"2.5%","0"))))))) -> 0 | P7: =IF($M7=0,"0",IF($M7<300000,"0.75",IF($M7<500000,"1",IF($M7<750000,"1.25",IF($M7<1000000,"1.5",IF($M7>1000000,"1.75")))))) -> 0.75 | Q7: =$U$5 -> 1 | R7: =ROUND($M7*$O7*$P7*$Q7,0) -> 0
A8: 花志明 | B8: 1 | C8: 2 | D8: 3 | E8: 1 | F8: 0 | G8: 0 | H8: 1 | I8: 0 | J8: 1 | K8: 1 | L8: 0 | M8: 48277 | N8: 48277 | O8: 2.5% | P8: 0.75 | Q8: 1 | R8: 905
A9: 林柏霖 | B9: 2 | C9: 0 | D9: 2 | E9: 2 | F9: 0 | G9: 0 | H9: 2 | I9: 0 | J9: 1 | K9: 1 | L9: 0 | M9: 165719 | N9: 165719 | O9: 2.5% | P9: 0.75 | Q9: 1 | R9: 3107
A10: 郭天南 | B10: 4 | C10: 0 | D10: 4 | E10: 4 | F10: 0 | G10: 0 | H10: 4 | I10: 0 | J10: 1 | K10: 1 | L10: 0 | M10: 328501 | N10: 328501 | O10: 2.5% | P10: 1 | Q10: 1 | R10: 8213
A11: 陳龍雲 | B11: 3 | C11: 1 | D11: 4 | E11: 3 | F11: 0 | G11: 0 | H11: 3 | I11: 0 | J11: 1 | K11: 1 | L11: 0 | M11: 204936 | N11: 204936 | O11: 2.5% | P11: 0.75 | Q11: 1 | R11: 3843
A12: 張健宏 | B12: 3 | C12: 0 | D12: 3 | E12: 1 | F12: 1 | G12: 0 | H12: 2 | I12: 1 | J12: 1 | K12: 1 | L12: 0 | M12: 128330 | N12: 128330 | O12: 2.5% | P12: 0.75 | Q12: 1 | R12: 2406
A13: 王裕明 | B13: 3 | C13: 0 | D13: 3 | E13: 2 | F13: 1 | G13: 0 | H13: 3 | I13: 0 | J13: 1 | K13: 1 | L13: 0 | M13: 177944 | N13: 177944 | O13: 2.5% | P13: 0.75 | Q13: 1 | R13: 3336
A14: 蘇士文 | B14: 6 | C14: 0 | D14: 6 | E14: 3 | F14: 1 | G14: 1 | H14: 5 | I14: 1 | J14: 0.833 | K14: 0.8 | L14: 1099 | M14: 164494 | N14: 165593 | O14: 1.25% | P14: 0.75 | Q14: 1 | R14: 1542
A15: 李昀融 | B15: 2 | C15: 1 | D15: 3 | E15: 1 | F15: 0 | G15: 1 | H15: 2 | I15: 0 | J15: 0.5 | K15: 0.5 | L15: 1148 | M15: 77695 | N15: 78843 | O15: 0 | P15: 0.75 | Q15: 1 | R15: 0
A16: 盧培育 | D16: 0 | H16: 0 | M16: 0 | O16: 0 | P16: 0 | Q16: 1 | R16: 0
D17: =SUM(B17:C17) -> 0 | H17: 0 | L17: 0 | N17: =VLOOKUP($A17,[1]工作表2!$A$5:$L$37,12,0) ->  | R17: 0
D18: 0 | H18: 0 | L18: 0 | N18: =VLOOKUP($A18,[1]工作表2!$A$5:$L$37,12,0) ->  | R18: 0
D19: 0 | H19: 0 | L19: 0 | N19: =VLOOKUP($A19,[1]工作表2!$A$5:$L$37,12,0) ->  | R19: 0
A20: 營一課 | B20: =SUM(B6:B19) -> 31 | C20: =SUM(C6:C19) -> 4 | D20: =SUM(D6:D19) -> 35 | E20: =SUM(E6:E19) -> 19 | F20: =SUM(F6:F19) -> 3 | G20: =SUM(G6:G16) -> 5 | H20: =SUM(H6:H19) -> 27 | I20: =SUM(I6:I19) -> 4 | J20: =IF(ISERROR(ROUND(($E20+$F20+$I20)/$B20,3)),"",ROUND(($E20+$F20+$I20)/$B20,3)) -> 0.839 | K20: =IF(ISERROR(ROUND(($E20+$F20)/($B20-$I20),3)),"",ROUND(($E20+$F20)/($B20-$I20),3)) -> 0.815 | L20: =SUM(L6:L15) -> 6142 | M20: =N20-L20 -> 1417048 | N20: =SUM(N6:N15) -> 1423190 | R20: =SUM(R6:R15) -> 23352
A21: 莊朝清 | B21: 3 | C21: 0 | D21: =SUM(B21:C21) -> 3 | E21: 1 | F21: 1 | G21: 0 | H21: =SUM(E21:G21) -> 2 | I21: 1 | J21: =IF(ISERROR(ROUND(($E21+$F21+$I21)/$B21,3)),"",ROUND(($E21+$F21+$I21)/$B21,3)) -> 1 | K21: =IF(ISERROR(ROUND(($E21+$F21)/($B21-$I21),3)),"",ROUND(($E21+$F21)/($B21-$I21),3)) -> 1 | L21: 0 | M21: =N21-L21 -> 76887 | N21: 76887 | O21: =IF($J21<70%,"0",IF($J21<75%,"0.5%",IF($J21<80%,"1%",IF($J21<85%,"1.25%",IF($J21<90%,"1.5%",IF($J21<95%,"2%",IF($J21<101%,"2.5%","0"))))))) -> 2.5% | P21: =IF($M21=0,"0",IF($M21<300000,"0.75",IF($M21<500000,"1",IF($M21<750000,"1.25",IF($M21<1000000,"1.5",IF($M21>1000000,"1.75")))))) -> 0.75 | Q21: =$U$5 -> 1 | R21: =ROUND($M21*$O21*$P21*$Q21,0) -> 1442
A22: 林陳郎 | B22: 5 | C22: 0 | D22: =SUM(B22:C22) -> 5 | E22: 4 | F22: 0 | G22: 1 | H22: =SUM(E22:G22) -> 5 | I22: 0 | J22: =IF(ISERROR(ROUND(($E22+$F22+$I22)/$B22,3)),"",ROUND(($E22+$F22+$I22)/$B22,3)) -> 0.8 | K22: =IF(ISERROR(ROUND(($E22+$F22)/($B22-$I22),3)),"",ROUND(($E22+$F22)/($B22-$I22),3)) -> 0.8 | L22: 889 | M22: =N22-L22 -> 285375 | N22: 286264 | O22: =IF($J22<70%,"0",IF($J22<75%,"0.5%",IF($J22<80%,"1%",IF($J22<85%,"1.25%",IF($J22<90%,"1.5%",IF($J22<95%,"2%",IF($J22<101%,"2.5%","0"))))))) -> 1.25% | P22: =IF($M22=0,"0",IF($M22<300000,"0.75",IF($M22<500000,"1",IF($M22<750000,"1.25",IF($M22<1000000,"1.5",IF($M22>1000000,"1.75")))))) -> 0.75 | Q22: =$U$5 -> 1 | R22: =ROUND($M22*$O22*$P22*$Q22,0) -> 2675
A23: 謝中堅 | B23: 5 | C23: 0 | D23: 5 | E23: 5 | F23: 0 | G23: 0 | H23: 5 | I23: 0 | J23: 1 | K23: 1 | L23: 0 | M23: 341935 | N23: 341935 | O23: 2.5% | P23: 1 | Q23: 1 | R23: 8548
A24: 王慶儒 | B24: 2 | C24: 0 | D24: 2 | E24: 2 | F24: 0 | G24: 0 | H24: 2 | I24: 0 | J24: 1 | K24: 1 | L24: 0 | M24: 120152 | N24: 120152 | O24: 2.5% | P24: 0.75 | Q24: 1 | R24: 2253
A25: 張昇文 | B25: 1 | C25: 0 | D25: 1 | E25: 1 | F25: 0 | G25: 0 | H25: 1 | I25: 0 | J25: 1 | K25: 1 | L25: 0 | M25: 34125 | N25: 34125 | O25: 2.5% | P25: 0.75 | Q25: 1 | R25: 640
A26: 林政勳 | B26: 4 | C26: 0 | D26: 4 | E26: 2 | F26: 0 | G26: 2 | H26: 4 | I26: 0 | J26: 0.5 | K26: 0.5 | L26: 2796 | M26: 162056 | N26: 164852 | O26: 0 | P26: 0.75 | Q26: 1 | R26: 0
A27: 陳維德 | B27: 5 | C27: 0 | D27: 5 | E27: 2 | F27: 0 | G27: 1 | H27: 3 | I27: 1 | J27: 0.6 | K27: 0.5 | L27: 1099 | M27: 110169 | N27: 111268 | O27: 0 | P27: 0.75 | Q27: 1 | R27: 0
A28: 王冠賢 | B28: 2 | C28: 0 | D28: 2 | E28: 1 | F28: 0 | G28: 0 | H28: 1 | I28: 1 | J28: 1 | K28: 1 | L28: 0 | M28: 43618 | N28: 43618 | O28: 2.5% | P28: 0.75 | Q28: 1 | R28: 818
A29: 陳一鋐 | B29: 5 | C29: 1 | D29: 6 | E29: 4 | F29: 0 | G29: 1 | H29: 5 | I29: 0 | J29: 0.8 | K29: 0.8 | L29: 1019 | M29: 340113 | N29: 341132 | O29: 1.25% | P29: 1 | Q29: 1 | R29: 4251
A30: 戴子貽 | B30: 1 | C30: 0 | D30: 1 | E30: 1 | F30: 0 | G30: 0 | H30: 1 | I30: 0 | J30: 1 | K30: 1 | L30: 0 | M30: 76846 | N30: 76846 | O30: 2.5% | P30: 0.75 | Q30: 1 | R30: 1441
A31: 林宗慶 | B31: 2 | C31: 0 | D31: 2 | E31: 1 | F31: 0 | G31: 0 | H31: 1 | I31: 1 | J31: 1 | K31: 1 | L31: 0 | M31: 49056 | N31: 49056 | O31: 2.5% | P31: 0.75 | Q31: 1 | R31: 920
L32: 0 | N32: =SUM(L32:M32) -> 0 | R32: 0
L33: 0 | N33: 0 | R33: 0
L34: 0 | N34: 0 | R34: 0
A35: 營二課 | B35: =SUM(B21:B34) -> 35 | C35: =SUM(C21:C34) -> 1 | D35: =SUM(D21:D34) -> 36 | E35: =SUM(E21:E34) -> 24 | F35: =SUM(F21:F34) -> 1 | G35: =SUM(G21:G31) -> 5 | H35: =SUM(H21:H34) -> 30 | I35: =SUM(I21:I34) -> 4 | J35: =IF(ISERROR(ROUND(($E35+$F35+$I35)/$B35,3)),"",ROUND(($E35+$F35+$I35)/$B35,3)) -> 0.829 | K35: =IF(ISERROR(ROUND(($E35+$F35)/($B35-$I35),3)),"",ROUND(($E35+$F35)/($B35-$I35),3)) -> 0.806 | L35: =SUM(L21:L31) -> 5803 | M35: =N35-L35 -> 1640332 | N35: =SUM(N21:N31) -> 1646135 | R35: =SUM(R21:R31) -> 22988
A36: 陳禮建 | B36: 2 | C36: 0 | D36: =SUM(B36:C36) -> 2 | E36: 2 | F36: 0 | G36: 0 | H36: =SUM(E36:G36) -> 2 | I36: 0 | J36: =IF(ISERROR(ROUND(($E36+$F36+$I36)/$B36,3)),"",ROUND(($E36+$F36+$I36)/$B36,3)) -> 1 | K36: =IF(ISERROR(ROUND(($E36+$F36)/($B36-$I36),3)),"",ROUND(($E36+$F36)/($B36-$I36),3)) -> 1 | L36: 0 | M36: =N36-L36 -> 92636 | N36: 92636 | O36: =IF($J36<70%,"0",IF($J36<75%,"0.5%",IF($J36<80%,"1%",IF($J36<85%,"1.25%",IF($J36<90%,"1.5%",IF($J36<95%,"2%",IF($J36<101%,"2.5%","0"))))))) -> 2.5% | P36: =IF($M36=0,"0",IF($M36<300000,"0.75",IF($M36<500000,"1",IF($M36<750000,"1.25",IF($M36<1000000,"1.5",IF($M36>1000000,"1.75")))))) -> 0.75 | Q36: =$U$5 -> 1 | R36: =ROUND($M36*$O36*$P36*$Q36,0) -> 1737
A37: 黃盛緯 | B37: 0 | C37: 1 | D37: =SUM(B37:C37) -> 1 | E37: 0 | F37: 0 | G37: 0 | H37: =SUM(E37:G37) -> 0 | I37: 0 | J37: =IF(ISERROR(ROUND(($E37+$F37+$I37)/$B37,3)),"",ROUND(($E37+$F37+$I37)/$B37,3)) ->  | K37: =IF(ISERROR(ROUND(($E37+$F37)/($B37-$I37),3)),"",ROUND(($E37+$F37)/($B37-$I37),3)) ->  | L37: 0 | M37: =N37-L37 -> 0 | N37: 0 | O37: =IF($J37<70%,"0",IF($J37<75%,"0.5%",IF($J37<80%,"1%",IF($J37<85%,"1.25%",IF($J37<90%,"1.5%",IF($J37<95%,"2%",IF($J37<101%,"2.5%","0"))))))) -> 0 | P37: =IF($M37=0,"0",IF($M37<300000,"0.75",IF($M37<500000,"1",IF($M37<750000,"1.25",IF($M37<1000000,"1.5",IF($M37>1000000,"1.75")))))) -> 0 | Q37: =$U$5 -> 1 | R37: =ROUND($M37*$O37*$P37*$Q37,0) -> 0
A38: 簡志勳 | B38: 1 | C38: 1 | D38: 2 | E38: 1 | F38: 0 | G38: 0 | H38: 1 | I38: 0 | J38: 1 | K38: 1 | L38: 0 | M38: 61072 | N38: 61072 | O38: 2.5% | P38: 0.75 | Q38: 1 | R38: 1145
A39: 賈勇華 | B39: 5 | C39: 0 | D39: 5 | E39: 3 | F39: 1 | G39: 1 | H39: 5 | I39: 0 | J39: 0.8 | K39: 0.8 | L39: 1138 | M39: 263033 | N39: 264171 | O39: 1.25% | P39: 0.75 | Q39: 1 | R39: 2466
A40: 郭力嘉 | B40: 1 | C40: 0 | D40: 1 | E40: 1 | F40: 0 | G40: 0 | H40: 1 | I40: 0 | J40: 1 | K40: 1 | L40: 0 | M40: 85506 | N40: 85506 | O40: 2.5% | P40: 0.75 | Q40: 1 | R40: 1603
A41: 鄭英彥 | B41: 4 | C41: 1 | D41: 5 | E41: 2 | F41: 1 | G41: 1 | H41: 4 | I41: 0 | J41: 0.75 | K41: 0.75 | L41: 1398 | M41: 198895 | N41: 200293 | O41: 1% | P41: 0.75 | Q41: 1 | R41: 1492
A42: 林謙慶 | B42: 4 | C42: 1 | D42: 5 | E42: 3 | F42: 0 | G42: 1 | H42: 4 | I42: 0 | J42: 0.75 | K42: 0.75 | L42: 1019 | M42: 209870 | N42: 210889 | O42: 1% | P42: 0.75 | Q42: 1 | R42: 1574
A43: 劉家任 | B43: 4 | C43: 0 | D43: 4 | E43: 3 | F43: 0 | G43: 0 | H43: 3 | I43: 0 | J43: 0.75 | K43: 0.75 | L43: 0 | M43: 238622 | N43: 238622 | O43: 1% | P43: 0.75 | Q43: 1 | R43: 1790
A44: 孫茂耀 | B44: 3 | C44: 0 | D44: 3 | E44: 3 | F44: 0 | G44: 0 | H44: 3 | I44: 0 | J44: 1 | K44: 1 | L44: 0 | M44: 188168 | N44: 188168 | O44: 2.5% | P44: 0.75 | Q44: 1 | R44: 3528
A45: 林芳明 | D45: 0 | H45: 0 | M45: 0 | O45: 0 | P45: 0 | Q45: 1 | R45: 0
A46: 李玄璸 | B46: 1 | C46: 0 | D46: 1 | E46: 1 | F46: 0 | G46: 0 | H46: 1 | I46: 0 | J46: 1 | K46: 1 | L46: 0 | M46: 114191 | N46: 114191 | O46: 2.5% | P46: 0.75 | Q46: 1 | R46: 2141
L47: 0 | N47: =SUM(L47:M47) -> 0 | R47: 0
L48: 0 | N48: 0 | R48: 0
L49: 0 | N49: 0 | R49: 0
A50: 營三課 | B50: =SUM(B36:B49) -> 25 | C50: =SUM(C36:C49) -> 4 | D50: =SUM(D36:D49) -> 29 | E50: =SUM(E36:E49) -> 19 | F50: =SUM(F36:F49) -> 2 | G50: =SUM(G36:G46) -> 3 | H50: =SUM(H36:H49) -> 24 | I50: =SUM(I36:I49) -> 0 | J50: =IF(ISERROR(ROUND(($E50+$F50+$I50)/$B50,3)),"",ROUND(($E50+$F50+$I50)/$B50,3)) -> 0.84 | K50: =IF(ISERROR(ROUND(($E50+$F50)/($B50-$I50),3)),"",ROUND(($E50+$F50)/($B50-$I50),3)) -> 0.84 | L50: =SUM(L36:L46) -> 3555 | M50: =SUM(M36:M46) -> 1451993 | N50: =SUM(N36:N46) -> 1455548 | R50: =SUM(R36:R46) -> 17476
A51: 1+2+3課 | B51: =B20+B35+B50 -> 91 | C51: =C20+C35+C50 -> 9 | D51: =D20+D35+D50 -> 100 | E51: =E20+E35+E50 -> 62 | F51: =F20+F35+F50 -> 6 | G51: =G20+G35+G50 -> 13 | H51: 81 | I51: 8 | J51: =IF(ISERROR(ROUND(($E51+$F51+$I51)/$B51,3)),"",ROUND(($E51+$F51+$I51)/$B51,3)) -> 0.835 | K51: =IF(ISERROR(ROUND(($E51+$F51)/($B51-$I51),3)),"",ROUND(($E51+$F51)/($B51-$I51),3)) -> 0.819 | L51: =L20+L35+L50 -> 15500 | M51: =M20+M35+M50 -> 4509373 | N51: =N20+N35+N50 -> 4524873 | O51: =O20+O35+O50 -> 0 | P51: =P20+P35+P50 -> 0 | Q51: =Q20+Q35+Q50 -> 0 | R51: =R20+R35+R50 -> 63816
A52: 黃翠暖 | D52: =SUM(B52:C52) -> 0 | H52: =SUM(E52:G52) -> 0 | J52: =IF(ISERROR(ROUND(($E52+$F52+$I52)/$B52,3)),"",ROUND(($E52+$F52+$I52)/$B52,3)) ->  | K52: =IF(ISERROR(ROUND(($E52+$F52)/($B52-$I52),3)),"",ROUND(($E52+$F52)/($B52-$I52),3)) ->  | M52: =N52-L52 -> 0 | O52: =IF($J52<70%,"0",IF($J52<75%,"0.5%",IF($J52<80%,"1%",IF($J52<85%,"1.25%",IF($J52<90%,"1.5%",IF($J52<95%,"2%",IF($J52<101%,"2.5%","0"))))))) -> 0 | P52: =IF($M52=0,"0",IF($M52<300000,"0.75",IF($M52<500000,"1",IF($M52<750000,"1.25",IF($M52<1000000,"1.5",IF($M52>1000000,"1.75")))))) -> 0 | Q52: 1 | R52: =ROUND($M52*$O52*$P52*$Q52,0) -> 0
A53: 陳德益 | B53: =VLOOKUP($A53,[1]工作表2!$A$5:$J$37,2,0) -> 5 | C53: 0 | D53: =SUM(B53:C53) -> 5 | E53: =VLOOKUP($A53,[1]工作表2!$A$5:$J$37,5,0) -> 5 | F53: 0 | G53: 0 | H53: =SUM(E53:G53) -> 5 | I53: 0 | J53: 1 | K53: 1 | L53: 0 | M53: =N53-L53 -> 298719 | N53: 298719 | R53: =ROUND($M53*$O53*$P53*$Q53,0) -> 0
A54: 營業部 | B54: =SUM(B52:B53) -> 5 | C54: 0 | D54: 5 | E54: 5 | F54: 0 | G54: 0 | H54: 5 | I54: 0 | J54: 1 | K54: 1 | L54: =SUM(L52:L53) -> 0 | M54: =SUM(M52:M53) -> 298719 | N54: =SUM(N52:N53) -> 298719 | R54: =SUM(R52:R53) -> 0
A55: 總 計 | B55: =B20+B35+B50+B54 -> 96 | C55: =C20+C35+C50+C54 -> 9 | D55: 105 | E55: 67 | F55: 6 | G55: 13 | H55: 86 | I55: 8 | J55: 0.844 | K55: 0.83 | L55: =L20+L35+L50+L54 -> 15500 | M55: 4808092 | N55: =SUM(L55:M55) -> 4823592 | R55: =ROUND($M55*$O55*$P55*$Q55,0) -> 0
A56: 不含中央 | B56: =B55-B54 -> 91 | C56: =C55-C54 -> 9 | D56: 100 | E56: 62 | F56: 6 | G56: 13 | H56: 81 | I56: 8 | J56: =ROUND(($E56+$F56+$I56)/$B56,3) -> 0.835 | K56: =ROUND(($E56+$F56)/($B56-$I56),3) -> 0.819 | L56: =L55-L54 -> 15500 | M56: =M55-M54 -> 4509373 | N56: =N55-N54 -> 4524873 | Q56: =Q20+Q35+Q50 -> 0 | R56: =R20+R35+R50+R52 -> 63816

Sheet D.YD-業代續保承保月報表
A1: 2014/01月業代續保承保分析表
K4: 到期件數
A5: 課別 | B5: 業代 | C5: 車體件數 | D5: 其他件數 | E5: 強制件數 | F5: 總件數 | G5: 單強制金額 | H5: 總保費(含強制) | I5: 新續 | J5: 原續 | K5: 到期件數 | L5: 單強制 | M5: 車售 | N5: 有效件數 | O5: 續保承保率
A6: 營一課 | B6: 凌大偉 | C6: 8 | D6: 5 | E6: 0 | F6: 13 | H6: 380282 | I6: 0 | J6: =(F6-I6) -> 13 | K6: 15 | L6: 1 | M6: 0 | N6: =(K6-L6-M6) -> 14 | O6: =IF(AND(N6=0,(C6+D6)=0),0,((C6+D6)/N6)) -> 0.9285714286
B7: 張哲彰 | C7: 6 | D7: 4 | E7: 0 | F7: 10 | H7: 313356 | I7: 0 | J7: 10 | K7: 10 | L7: 0 | M7: 0 | N7: 10 | O7: 1
B8: 張健宏 | C8: 4 | D8: 1 | E8: 0 | F8: 5 | H8: 280970 | I8: 0 | J8: 5 | K8: 4 | L8: 0 | M8: 0 | N8: 4 | O8: 1.25
B9: 梁大民 | C9: 3 | D9: 2 | E9: 0 | F9: 5 | H9: 146215 | I9: 0 | J9: 5 | K9: 5 | L9: 0 | M9: 0 | N9: 5 | O9: 1
B10: 林柏霖 | C10: 2 | D10: 0 | E10: 0 | F10: 2 | H10: 143522 | I10: 0 | J10: 2 | K10: 5 | L10: 2 | M10: 0 | N10: 3 | O10: 0.6666666667
B11: 盧培育 | C11: 0 | D11: 0 | E11: 1 | F11: 1 | G11: 1148 | H11: 1148 | I11: 1 | J11: 0 | K11: 0 | L11: 0 | M11: 0 | N11: 0 | O11: 0
B12: 王裕明 | C12: 7 | D12: 1 | E12: 0 | F12: 8 | H12: 217198 | I12: 0 | J12: 8 | K12: 6 | L12: 0 | M12: 0 | N12: 6 | O12: 1.333333333
B13: 蘇士文 | C13: 0 | D13: 2 | E13: 0 | F13: 2 | H13: 10713 | I13: 0 | J13: 2 | K13: 0 | L13: 0 | M13: 0 | N13: 0
B14: 郭天南 | C14: 8 | D14: 0 | E14: 0 | F14: 8 | H14: 371938 | I14: 0 | J14: 8 | K14: 9 | L14: 0 | M14: 1 | N14: 8 | O14: 1
B15: 花志明 | C15: 4 | D15: 1 | E15: 0 | F15: 5 | H15: 111656 | I15: 1 | J15: 4 | K15: 7 | L15: 1 | M15: 0 | N15: 6 | O15: 0.8333333333
B16: 陳龍雲 | C16: 2 | D16: 1 | E16: 0 | F16: 3 | H16: 133766 | I16: 1 | J16: 2 | K16: 3 | L16: 0 | M16: 0 | N16: 3 | O16: 1
A17: 營一課 合計 | C17: =SUM(C6:C16) -> 44 | D17: 17 | E17: 1 | F17: 62 | G17: 1148 | H17: 2110764 | I17: 3 | J17: 59 | K17: 64 | L17: 4 | M17: 1 | N17: 59 | O17: 1.033898305
A18: 營二課 | B18: 張昇文 | C18: 9 | D18: 2 | E18: 0 | F18: 11 | H18: 395956 | I18: 1 | J18: =(F18-I18) -> 10 | K18: 15 | L18: 0 | M18: 0 | N18: =(K18-L18-M18) -> 15 | O18: 0.7333333333
B19: 戴子貽 | C19: 1 | D19: 0 | E19: 0 | F19: 1 | H19: 78230 | I19: 0 | J19: 1 | K19: 1 | L19: 0 | M19: 0 | N19: 1 | O19: 1
B20: 梁志龍 | C20: 8 | D20: 1 | E20: 0 | F20: 9 | H20: 617038 | I20: 3 | J20: 6 | K20: 10 | L20: 1 | M20: 1 | N20: 8 | O20: 1.125
B21: 林宗慶 | C21: 2 | D21: 0 | E21: 0 | F21: 2 | H21: 45370 | I21: 2 | J21: 0 | K21: 0 | L21: 0 | M21: 0 | N21: 0
B22: 林政勳 | C22: 3 | D22: 0 | E22: 1 | F22: 4 | G22: 1099 | H22: 198144 | I22: 0 | J22: 4 | K22: 4 | L22: 0 | M22: 0 | N22: 4 | O22: 0.75
B23: 林陳郎 | C23: 3 | D23: 3 | E23: 0 | F23: 6 | H23: 134511 | I23: 0 | J23: 6 | K23: 7 | L23: 1 | M23: 0 | N23: 6 | O23: 1
B24: 王冠賢 | C24: 2 | D24: 1 | E24: 0 | F24: 3 | H24: 83420 | I24: 0 | J24: 3 | K24: 5 | L24: 2 | M24: 0 | N24: 3 | O24: 1
B25: 王慶儒 | C25: 11 | D25: 1 | E25: 0 | F25: 12 | H25: 565225 | I25: 1 | J25: 11 | K25: 13 | L25: 1 | M25: 0 | N25: 12 | O25: 1
B26: 謝中堅 | C26: 5 | D26: 4 | E26: 0 | F26: 9 | H26: 338497 | I26: 0 | J26: 9 | K26: 11 | L26: 0 | M26: 0 | N26: 11 | O26: 0.8181818182
B27: 陳一鋐 | C27: 3 | D27: 1 | E27: 0 | F27: 4 | H27: 198881 | I27: 0 | J27: 4 | K27: 7 | L27: 0 | M27: 0 | N27: 7 | O27: 0.5714285714
B28: 陳維德 | C28: 5 | D28: 0 | E28: 0 | F28: 5 | H28: 239828 | I28: 0 | J28: 5 | K28: 9 | L28: 1 | M28: 1 | N28: 7 | O28: 0.7142857143
B29: 莊朝清 | C29: 3 | D29: 0 | E29: 0 | F29: 3 | H29: 181561 | I29: 0 | J29: 3 | K29: 3 | L29: 0 | M29: 0 | N29: 3 | O29: 1
A30: 營二課 合計 | C30: =SUM(C18:C29) -> 55 | D30: 13 | E30: 1 | F30: 69 | G30: 1099 | H30: 3076661 | I30: 7 | J30: 62 | K30: 85 | L30: 6 | M30: 2 | N30: 77 | O30: 0.8831168831
A31: 營三課 | B31: 劉家任 | C31: 3 | D31: 0 | E31: 0 | F31: 3 | H31: 131759 | I31: 1 | J31: =(F31-I31) -> 2 | K31: 1 | L31: 0 | M31: 0 | N31: =(K31-L31-M31) -> 1 | O31: 3
B32: 林謙慶 | C32: 3 | D32: 0 | E32: 0 | F32: 3 | H32: 159913 | I32: 0 | J32: 3 | K32: 3 | L32: 0 | M32: 0 | N32: 3 | O32: 1
B33: 簡志勳 | C33: 4 | D33: 1 | E33: 1 | F33: 6 | G33: 1099 | H33: 330368 | I33: 0 | J33: 6 | K33: 9 | L33: 3 | M33: 0 | N33: 6 | O33: 0.8333333333
B34: 鄭英彥 | C34: 1 | D34: 0 | E34: 0 | F34: 1 | H34: 81484 | I34: 0 | J34: 1 | K34: 2 | L34: 0 | M34: 1 | N34: 1 | O34: 1
B35: 黃盛緯 | C35: 10 | D35: 2 | E35: 1 | F35: 13 | G35: 1019 | H35: 471519 | I35: 0 | J35: 13 | K35: 16 | L35: 0 | M35: 0 | N35: 16 | O35: 0.75
B36: 蕭敏聰 | C36: 3 | D36: 0 | E36: 0 | F36: 3 | H36: 217633 | I36: 1 | J36: 2 | K36: 2 | L36: 0 | M36: 0 | N36: 2 | O36: 1.5
B37: 賈勇華 | C37: 4 | D37: 1 | E37: 1 | F37: 6 | G37: 1099 | H37: 224942 | I37: 0 | J37: 6 | K37: 7 | L37: 0 | M37: 0 | N37: 7 | O37: 0.7142857143
B38: 郭力嘉 | C38: 6 | D38: 0 | E38: 0 | F38: 6 | H38: 362481 | I38: 0 | J38: 6 | K38: 7 | L38: 1 | M38: 0 | N38: 6 | O38: 1
B39: 陳禮建 | C39: 4 | D39: 3 | E39: 0 | F39: 7 | H39: 119855 | I39: 0 | J39: 7 | K39: 7 | L39: 0 | M39: 0 | N39: 7 | O39: 1
A40: 營三課 合計 | C40: =SUM(C31:C39) -> 38 | D40: 7 | E40: 3 | F40: 48 | G40: 3217 | H40: 2099954 | I40: 2 | J40: 46 | K40: 54 | L40: 4 | M40: 1 | N40: 49 | O40: 0.9183673469
A41: 行銷業務部 合計
A42: 營業部 | B42: 陳德益 | C42: 1 | D42: 0 | E42: 0 | F42: 1 | H42: 47621 | I42: 1 | J42: =(F42-I42) -> 0 | K42: 7 | L42: 0 | M42: 6 | N42: =(K42-L42-M42) -> 1 | O42: =IF(AND(N42=0,(C42+D42)=0),0,((C42+D42)/N42)) -> 1
A43: 營業部 合計 | C43: =SUM(C42:C42) -> 1 | D43: 0 | E43: 0 | F43: 1 | G43: 0 | H43: 47621 | I43: 1 | J43: 0 | K43: 7 | L43: 0 | M43: 6 | N43: 1 | O43: 1
A44: 服務部 | B44: 周益弘 | C44: 1 | D44: 0 | E44: 0 | F44: 1 | H44: 34926 | I44: 0 | J44: =(F44-I44) -> 1 | K44: 1 | L44: 0 | M44: 0 | N44: =(K44-L44-M44) -> 1 | O44: 1
B45: 洪嘉榮 | C45: 1 | D45: 0 | E45: 0 | F45: 1 | H45: 66186 | I45: 0 | J45: 1 | K45: 0 | L45: 0 | M45: 0 | N45: 0
B46: 林至柔 | C46: 1 | D46: 0 | E46: 0 | F46: 1 | H46: 64118 | I46: 0 | J46: 1 | K46: 1 | L46: 0 | M46: 0 | N46: 1 | O46: 1
B47: 李技霖 | C47: 1 | D47: 0 | E47: 0 | F47: 1 | H47: 13657 | I47: 0 | J47: 1 | K47: 2 | L47: 1 | M47: 0 | N47: 1 | O47: 1
B48: 李百祥 | C48: 2 | D48: 0 | E48: 1 | F48: 3 | G48: 1099 | H48: 60445 | I48: 1 | J48: 2 | K48: 2 | L48: 0 | M48: 0 | N48: 2 | O48: 1
B49: 許慶麟 | C49: 2 | D49: 1 | E49: 0 | F49: 3 | H49: 76038 | I49: 1 | J49: 2 | K49: 2 | L49: 0 | M49: 1 | N49: 1 | O49: 3
B50: 黃榮源 | C50: 3 | D50: 0 | E50: 0 | F50: 3 | H50: 135148 | I50: 0 | J50: 3 | K50: 4 | L50: 0 | M50: 1 | N50: 3 | O50: 1
B51: 辜正武 | C51: 1 | D51: 0 | E51: 0 | F51: 1 | H51: 24557 | I51: 0 | J51: 1 | K51: 1 | L51: 0 | M51: 0 | N51: 1 | O51: 1
B52: 陳俊田 | C52: 1 | D52: 2 | E52: 0 | F52: 3 | H52: 18718 | I52: 1 | J52: 2 | K52: 2 | L52: 0 | M52: 0 | N52: 2 | O52: 1.5
B53: 陳勝雄 | C53: 2 | D53: 1 | E53: 0 | F53: 3 | H53: 61156 | I53: 0 | J53: 3 | K53: 4 | L53: 0 | M53: 0 | N53: 4 | O53: 0.75
B54: 陳欽榮 | C54: 1 | D54: 0 | E54: 0 | F54: 1 | H54: 17126 | I54: 0 | J54: 1 | K54: 0 | L54: 0 | M54: 0 | N54: 0
A55: 服務部 合計 | C55: =SUM(C44:C54) -> 16 | D55: 4 | E55: 1 | F55: 21 | G55: 1099 | H55: 572075 | I55: 3 | J55: 18 | K55: 19 | L55: 1 | M55: 2 | N55: 16 | O55: 1.25
A56: STF | B56: 張湘愉 | C56: 1 | D56: 0 | E56: 0 | F56: 1 | H56: 42927 | I56: 0 | J56: =(F56-I56) -> 1 | K56: 0 | L56: 0 | M56: 0 | N56: =(K56-L56-M56) -> 0
B57: 吳美玲 | C57: 1 | D57: 0 | E57: 0 | F57: 1 | H57: 25604 | I57: 1 | J57: 0 | K57: 0 | L57: 0 | M57: 0 | N57: 0
B58: 林信宗 | C58: 2 | D58: 0 | E58: 0 | F58: 2 | H58: 100097 | I58: 0 | J58: 2 | K58: 3 | L58: 0 | M58: 0 | N58: 3 | O58: 0.6666666667
B59: 許嘉航 | C59: 4 | D59: 1 | E59: 0 | F59: 5 | H59: 290287 | I59: 0 | J59: 5 | K59: 18 | L59: 2 | M59: 1 | N59: 15 | O59: 0.3333333333
B60: 蔡燕森 | C60: 2 | D60: 1 | E60: 0 | F60: 3 | H60: 135407 | I60: 0 | J60: 3 | K60: 3 | L60: 0 | M60: 0 | N60: 3 | O60: 1
B61: 蔡青勳 | C61: 1 | D61: 0 | E61: 0 | F61: 1 | H61: 60342 | I61: 0 | J61: 1 | K61: 0 | L61: 0 | M61: 0 | N61: 0
B62: 謝宛倫 | C62: 3 | D62: 0 | E62: 0 | F62: 3 | H62: 122129 | I62: 0 | J62: 3 | K62: 0 | L62: 0 | M62: 0 | N62: 0
B63: 陳碧瀛 | C63: 3 | D63: 1 | E63: 1 | F63: 5 | G63: 1099 | H63: 105173 | I63: 1 | J63: 4 | K63: 7 | L63: 3 | M63: 0 | N63: 4 | O63: 1
B64: 陳美杏 | C64: 0 | D64: 0 | E64: 1 | F64: 1 | G64: 1138 | H64: 1138 | I64: 0 | J64: 1 | K64: 1 | L64: 1 | M64: 0 | N64: 0 | O64: 0
A65: STF 合計 | C65: =SUM(C56:C64) -> 17 | D65: 3 | E65: 2 | F65: 22 | G65: 2237 | H65: 883104 | I65: 2 | J65: 20 | K65: 32 | L65: 6 | M65: 1 | N65: 25 | O65: 0.8
A66: 總計 | C66: =SUM(C6:C65)/2 -> 171 | D66: 44 | E66: 8 | F66: 223 | G66: 8800 | H66: 8790179 | I66: 18 | J66: 205 | K66: 261 | L66: 21 | M66: 13 | N66: 227 | O66: =((C66+D66)/N66) -> 0.9471365639

Sheet E.Sheet1(檔名未更新)
A1: 2014/01月保險承保同期比較分析表
A3: 台灣產物 | B3: 2013/01 | D3: 2014/01 | F3: 成長% | H3: 2013/(1-01) | J3: 2014/(1-01) | L3: 累積成長% | N3: 2014各保險公司累積佔比
B4: 件數 | C4: 金額 | D4: 件數 | E4: 金額 | F4: 件數 | G4: 金額 | H4: 件數 | I4: 金額 | J4: 件數 | K4: 金額 | L4: 件數 | M4: 金額 | N4: 件數 | O4: 金額
A5: 車體 | B5: 14 | C5: 1029502 | D5: 5 | E5: 254299 | F5: =(D5-B5)/B5 -> -0.6428571429 | G5: =(E5-C5)/C5 -> -0.7529883381 | H5: 14 | I5: 1029502 | J5: 5 | K5: 254299 | L5: =(J5-H5)/H5 -> -0.6428571429 | M5: =(K5-I5)/I5 -> -0.7529883381
A6: 其他 | B6: 0 | C6: 0 | D6: 1 | E6: 17093 | H6: 0 | I6: 0 | J6: 1 | K6: 17093
A7: 單強制 | B7: 3 | C7: 3336 | D7: 0 | E7: 0 | H7: 3 | I7: 3336 | J7: 0 | K7: 0
A8: 新保 | B8: =SUM(B5:B7) -> 17 | C8: =SUM(C5:C7) -> 1032838 | D8: =SUM(D5:D7) -> 6 | E8: =SUM(E5:E7) -> 271392 | F8: =(D8-B8)/B8 -> -0.6470588235 | G8: =(E8-C8)/C8 -> -0.7372366237 | H8: =SUM(H5:H7) -> 17 | I8: =SUM(I5:I7) -> 1032838 | J8: =SUM(J5:J7) -> 6 | K8: =SUM(K5:K7) -> 271392 | L8: =(J8-H8)/H8 -> -0.6470588235 | M8: =(K8-I8)/I8 -> -0.7372366237 | N8: =(J8/J72) -> 0.06976744186 | O8: =(K8/K72) -> 0.05626346507
A9: 車體 | B9: 21 | C9: 1187103 | D9: 24 | E9: 1166980 | F9: =(D9-B9)/B9 -> 0.1428571429 | G9: =(E9-C9)/C9 -> -0.01695135131 | H9: 21 | I9: 1187103 | J9: 24 | K9: 1166980 | L9: =(J9-H9)/H9 -> 0.1428571429 | M9: =(K9-I9)/I9 -> -0.01695135131
A10: 其他 | B10: 5 | C10: 46480 | D10: 3 | E10: 13045 | H10: 5 | I10: 46480 | J10: 3 | K10: 13045
A11: 單強制 | B11: 0 | C11: 0 | D11: 0 | E11: 0 | H11: 0 | I11: 0 | J11: 0 | K11: 0
A12: 續保 | B12: =SUM(B9:B11) -> 26 | C12: =SUM(C9:C11) -> 1233583 | D12: =SUM(D9:D11) -> 27 | E12: =SUM(E9:E11) -> 1180025 | F12: =(D12-B12)/B12 -> 0.03846153846 | G12: =(E12-C12)/C12 -> -0.04341661647 | H12: =SUM(H9:H11) -> 26 | I12: =SUM(I9:I11) -> 1233583 | J12: =SUM(J9:J11) -> 27 | K12: =SUM(K9:K11) -> 1180025 | L12: =(J12-H12)/H12 -> 0.03846153846 | M12: =(K12-I12)/I12 -> -0.04341661647 | N12: =(J12/J76) -> 0.1210762332 | O12: =(K12/K76) -> 0.1342435689
A13: 車體 | B13: =(B5+B9) -> 35 | C13: 2216605 | D13: 29 | E13: 1421279 | F13: =(D13-B13)/B13 -> -0.1714285714 | G13: =(E13-C13)/C13 -> -0.358803666 | H13: =(H5+H9) -> 35 | I13: 2216605 | J13: 29 | K13: 1421279 | L13: =(J13-H13)/H13 -> -0.1714285714 | M13: =(K13-I13)/I13 -> -0.358803666
A14: 其他 | B14: 5 | C14: 46480 | D14: 4 | E14: 30138 | H14: 5 | I14: 46480 | J14: 4 | K14: 30138
A15: 單強制 | B15: 3 | C15: 3336 | D15: 0 | E15: 0 | H15: 3 | I15: 3336 | J15: 0 | K15: 0
A16: 總計 | B16: =SUM(B13:B15) -> 43 | C16: =SUM(C13:C15) -> 2266421 | D16: =SUM(D13:D15) -> 33 | E16: =SUM(E13:E15) -> 1451417 | F16: =(D16-B16)/B16 -> -0.2325581395 | G16: =(E16-C16)/C16 -> -0.3595995625 | H16: =SUM(H13:H15) -> 43 | I16: =SUM(I13:I15) -> 2266421 | J16: =SUM(J13:J15) -> 33 | K16: =SUM(K13:K15) -> 1451417 | L16: =(J16-H16)/H16 -> -0.2325581395 | M16: =(K16-I16)/I16 -> -0.3595995625 | N16: =(J16/J80) -> 0.1067961165 | O16: =(K16/K80) -> 0.1066138838
A19: 明台產物 | B19: 2013/01 | D19: 2014/01 | F19: 成長% | H19: 2013/(1-01) | J19: 2014/(1-01) | L19: 累積成長% | N19: 2014各保險公司累積佔比
B20: 件數 | C20: 金額 | D20: 件數 | E20: 金額 | F20: 件數 | G20: 金額 | H20: 件數 | I20: 金額 | J20: 件數 | K20: 金額 | L20: 件數 | M20: 金額 | N20: 件數 | O20: 金額
A21: 車體 | B21: 31 | C21: 2571742 | D21: 24 | E21: 1704184 | F21: =(D21-B21)/B21 -> -0.2258064516 | G21: =(E21-C21)/C21 -> -0.3373425484 | H21: 31 | I21: 2571742 | J21: 24 | K21: 1704184 | L21: =(J21-H21)/H21 -> -0.2258064516 | M21: =(K21-I21)/I21 -> -0.3373425484
A22: 其他 | B22: 1 | C22: 6380 | D22: 3 | E22: 39872 | H22: 1 | I22: 6380 | J22: 3 | K22: 39872
A23: 單強制 | B23: 4 | C23: 5002 | D23: 4 | E23: 5043 | H23: 4 | I23: 5002 | J23: 4 | K23: 5043
A24: 新保 | B24: =SUM(B21:B23) -> 36 | C24: =SUM(C21:C23) -> 2583124 | D24: =SUM(D21:D23) -> 31 | E24: =SUM(E21:E23) -> 1749099 | F24: =(D24-B24)/B24 -> -0.1388888889 | G24: =(E24-C24)/C24 -> -0.3228745504 | H24: =SUM(H21:H23) -> 36 | I24: =SUM(I21:I23) -> 2583124 | J24: =SUM(J21:J23) -> 31 | K24: =SUM(K21:K23) -> 1749099 | L24: =(J24-H24)/H24 -> -0.1388888889 | M24: =(K24-I24)/I24 -> -0.3228745504 | N24: =(J24/J72) -> 0.3604651163 | O24: =(K24/K72) -> 0.3626133802
A25: 車體 | B25: 62 | C25: 3304563 | D25: 71 | E25: 3676986 | F25: =(D25-B25)/B25 -> 0.1451612903 | G25: =(E25-C25)/C25 -> 0.1126996217 | H25: 62 | I25: 3304563 | J25: 71 | K25: 3676986 | L25: =(J25-H25)/H25 -> 0.1451612903 | M25: =(K25-I25)/I25 -> 0.1126996217
A26: 其他 | B26: 22 | C26: 228772 | D26: 17 | E26: 129535 | H26: 22 | I26: 228772 | J26: 17 | K26: 129535
A27: 單強制 | B27: 6 | C27: 6592 | D27: 6 | E27: 6602 | H27: 6 | I27: 6592 | J27: 6 | K27: 6602
A28: 續保 | B28: =SUM(B25:B27) -> 90 | C28: =SUM(C25:C27) -> 3539927 | D28: =SUM(D25:D27) -> 94 | E28: =SUM(E25:E27) -> 3813123 | F28: =(D28-B28)/B28 -> 0.04444444444 | G28: =(E28-C28)/C28 -> 0.07717560277 | H28: =SUM(H25:H27) -> 90 | I28: =SUM(I25:I27) -> 3539927 | J28: =SUM(J25:J27) -> 94 | K28: =SUM(K25:K27) -> 3813123 | L28: =(J28-H28)/H28 -> 0.04444444444 | M28: =(K28-I28)/I28 -> 0.07717560277 | N28: =(J28/J76) -> 0.4215246637 | O28: =(K28/K76) -> 0.4337935553
A29: 車體 | B29: =(B21+B25) -> 93 | C29: 5876305 | D29: 95 | E29: 5381170 | F29: =(D29-B29)/B29 -> 0.02150537634 | G29: =(E29-C29)/C29 -> -0.08425958149 | H29: =(H21+H25) -> 93 | I29: 5876305 | J29: 95 | K29: 5381170 | L29: =(J29-H29)/H29 -> 0.02150537634 | M29: =(K29-I29)/I29 -> -0.08425958149
A30: 其他 | B30: 23 | C30: 235152 | D30: 20 | E30: 169407 | H30: 23 | I30: 235152 | J30: 20 | K30: 169407
A31: 單強制 | B31: 10 | C31: 11594 | D31: 10 | E31: 11645 | H31: 10 | I31: 11594 | J31: 10 | K31: 11645
A32: 總計 | B32: =SUM(B29:B31) -> 126 | C32: =SUM(C29:C31) -> 6123051 | D32: =SUM(D29:D31) -> 125 | E32: =SUM(E29:E31) -> 5562222 | F32: =(D32-B32)/B32 -> -0.007936507937 | G32: =(E32-C32)/C32 -> -0.09159306365 | H32: =SUM(H29:H31) -> 126 | I32: =SUM(I29:I31) -> 6123051 | J32: =SUM(J29:J31) -> 125 | K32: =SUM(K29:K31) -> 5562222 | L32: =(J32-H32)/H32 -> -0.007936507937 | M32: =(K32-I32)/I32 -> -0.09159306365 | N32: =(J32/J80) -> 0.4045307443 | O32: =(K32/K80) -> 0.4085732014
A35: 華南產物 | B35: 2013/01 | D35: 2014/01 | F35: 成長% | H35: 2013/(1-01) | J35: 2014/(1-01) | L35: 累積成長% | N35: 2014各保險公司累積佔比
B36: 件數 | C36: 金額 | D36: 件數 | E36: 金額 | F36: 件數 | G36: 金額 | H36: 件數 | I36: 金額 | J36: 件數 | K36: 金額 | L36: 件數 | M36: 金額 | N36: 件數 | O36: 金額
A37: 車體 | B37: 21 | C37: 1451876 | D37: 25 | E37: 1836038 | F37: =(D37-B37)/B37 -> 0.1904761905 | G37: =(E37-C37)/C37 -> 0.2645969766 | H37: 21 | I37: 1451876 | J37: 25 | K37: 1836038 | L37: =(J37-H37)/H37 -> 0.1904761905 | M37: =(K37-I37)/I37 -> 0.2645969766
A38: 其他 | B38: 2 | C38: 19383 | D38: 2 | E38: 37861 | H38: 2 | I38: 19383 | J38: 2 | K38: 37861
A39: 單強制 | B39: 5 | C39: 5474 | D39: 6 | E39: 6941 | H39: 5 | I39: 5474 | J39: 6 | K39: 6941
A40: 新保 | B40: =SUM(B37:B39) -> 28 | C40: =SUM(C37:C39) -> 1476733 | D40: =SUM(D37:D39) -> 33 | E40: =SUM(E37:E39) -> 1880840 | F40: =(D40-B40)/B40 -> 0.1785714286 | G40: =(E40-C40)/C40 -> 0.2736493327 | H40: =SUM(H37:H39) -> 28 | I40: =SUM(I37:I39) -> 1476733 | J40: =SUM(J37:J39) -> 33 | K40: =SUM(K37:K39) -> 1880840 | L40: =(J40-H40)/H40 -> 0.1785714286 | M40: =(K40-I40)/I40 -> 0.2736493327 | N40: =(J40/J72) -> 0.3837209302 | O40: =(K40/K72) -> 0.3899251844
A41: 車體 | B41: 44 | C41: 2249228 | D41: 59 | E41: 2957392 | F41: =(D41-B41)/B41 -> 0.3409090909 | G41: =(E41-C41)/C41 -> 0.3148475833 | H41: 44 | I41: 2249228 | J41: 59 | K41: 2957392 | L41: =(J41-H41)/H41 -> 0.3409090909 | M41: =(K41-I41)/I41 -> 0.3148475833
A42: 其他 | B42: 24 | C42: 134751 | D42: 24 | E42: 121812 | H42: 24 | I42: 134751 | J42: 24 | K42: 121812
A43: 單強制 | B43: 3 | C43: 3217 | D43: 2 | E43: 2198 | H43: 3 | I43: 3217 | J43: 2 | K43: 2198
A44: 續保 | B44: =SUM(B41:B43) -> 71 | C44: =SUM(C41:C43) -> 2387196 | D44: =SUM(D41:D43) -> 85 | E44: =SUM(E41:E43) -> 3081402 | F44: =(D44-B44)/B44 -> 0.1971830986 | G44: =(E44-C44)/C44 -> 0.290803939 | H44: =SUM(H41:H43) -> 71 | I44: =SUM(I41:I43) -> 2387196 | J44: =SUM(J41:J43) -> 85 | K44: =SUM(K41:K43) -> 3081402 | L44: =(J44-H44)/H44 -> 0.1971830986 | M44: =(K44-I44)/I44 -> 0.290803939 | N44: =(J44/J76) -> 0.3811659193 | O44: =(K44/K76) -> 0.3505505406
A45: 車體 | B45: =(B37+B41) -> 65 | C45: 3701104 | D45: 84 | E45: 4793430 | F45: =(D45-B45)/B45 -> 0.2923076923 | G45: =(E45-C45)/C45 -> 0.2951351813 | H45: =(H37+H41) -> 65 | I45: 3701104 | J45: 84 | K45: 4793430 | L45: =(J45-H45)/H45 -> 0.2923076923 | M45: =(K45-I45)/I45 -> 0.2951351813
A46: 其他 | B46: 26 | C46: 154134 | D46: 26 | E46: 159673 | H46: 26 | I46: 154134 | J46: 26 | K46: 159673
A47: 單強制 | B47: 8 | C47: 8691 | D47: 8 | E47: 9139 | H47: 8 | I47: 8691 | J47: 8 | K47: 9139
A48: 總計 | B48: =SUM(B45:B47) -> 99 | C48: =SUM(C45:C47) -> 3863929 | D48: =SUM(D45:D47) -> 118 | E48: =SUM(E45:E47) -> 4962242 | F48: =(D48-B48)/B48 -> 0.1919191919 | G48: =(E48-C48)/C48 -> 0.2842477178 | H48: =SUM(H45:H47) -> 99 | I48: =SUM(I45:I47) -> 3863929 | J48: =SUM(J45:J47) -> 118 | K48: =SUM(K45:K47) -> 4962242 | L48: =(J48-H48)/H48 -> 0.1919191919 | M48: =(K48-I48)/I48 -> 0.2842477178 | N48: =(J48/J80) -> 0.3818770227 | O48: =(K48/K80) -> 0.3645016506
A51: 富邦產物 | B51: 2013/01 | D51: 2014/01 | F51: 成長% | H51: 2013/(1-01) | J51: 2014/(1-01) | L51: 累積成長% | N51: 2014各保險公司累積佔比
B52: 件數 | C52: 金額 | D52: 件數 | E52: 金額 | F52: 件數 | G52: 金額 | H52: 件數 | I52: 金額 | J52: 件數 | K52: 金額 | L52: 件數 | M52: 金額 | N52: 件數 | O52: 金額
A53: 車體 | B53: 10 | C53: 787468 | D53: 13 | E53: 918745 | F53: =(D53-B53)/B53 -> 0.3 | G53: =(E53-C53)/C53 -> 0.1667077265 | H53: 10 | I53: 787468 | J53: 13 | K53: 918745 | L53: =(J53-H53)/H53 -> 0.3 | M53: =(K53-I53)/I53 -> 0.1667077265
A54: 其他 | B54: 0 | C54: 0 | D54: 0 | E54: 0 | H54: 0 | I54: 0 | J54: 0 | K54: 0
A55: 單強制 | B55: 1 | C55: 1148 | D55: 3 | E55: 3516 | H55: 1 | I55: 1148 | J55: 3 | K55: 3516
A56: 新保 | B56: =SUM(B53:B55) -> 11 | C56: =SUM(C53:C55) -> 788616 | D56: =SUM(D53:D55) -> 16 | E56: =SUM(E53:E55) -> 922261 | F56: =(D56-B56)/B56 -> 0.4545454545 | G56: =(E56-C56)/C56 -> 0.1694677765 | H56: =SUM(H53:H55) -> 11 | I56: =SUM(I53:I55) -> 788616 | J56: =SUM(J53:J55) -> 16 | K56: =SUM(K53:K55) -> 922261 | L56: =(J56-H56)/H56 -> 0.4545454545 | M56: =(K56-I56)/I56 -> 0.1694677765 | N56: =(J56/J72) -> 0.1860465116 | O56: =(K56/K72) -> 0.1911979703
A57: 車體 | B57: 6 | C57: 176509 | D57: 17 | E57: 715629 | F57: =(D57-B57)/B57 -> 1.833333333 | G57: =(E57-C57)/C57 -> 3.054348503 | H57: 6 | I57: 176509 | J57: 17 | K57: 715629 | L57: =(J57-H57)/H57 -> 1.833333333 | M57: =(K57-I57)/I57 -> 3.054348503
A58: 其他 | B58: 1 | C58: 4373 | D58: 0 | E58: 0 | H58: 1 | I58: 4373 | J58: 0 | K58: 0
A59: 單強制 | B59: 1 | C59: 1099 | D59: 0 | E59: 0 | H59: 1 | I59: 1099 | J59: 0 | K59: 0
A60: 續保 | B60: =SUM(B57:B59) -> 8 | C60: =SUM(C57:C59) -> 181981 | D60: =SUM(D57:D59) -> 17 | E60: =SUM(E57:E59) -> 715629 | F60: =(D60-B60)/B60 -> 1.125 | G60: =(E60-C60)/C60 -> 2.932438002 | H60: =SUM(H57:H59) -> 8 | I60: =SUM(I57:I59) -> 181981 | J60: =SUM(J57:J59) -> 17 | K60: =SUM(K57:K59) -> 715629 | L60: =(J60-H60)/H60 -> 1.125 | M60: =(K60-I60)/I60 -> 2.932438002 | N60: =(J60/J76) -> 0.07623318386 | O60: =(K60/K76) -> 0.08141233529
A61: 車體 | B61: =(B53+B57) -> 16 | C61: 963977 | D61: 30 | E61: 1634374 | F61: =(D61-B61)/B61 -> 0.875 | G61: =(E61-C61)/C61 -> 0.6954491653 | H61: =(H53+H57) -> 16 | I61: 963977 | J61: 30 | K61: 1634374 | L61: =(J61-H61)/H61 -> 0.875 | M61: =(K61-I61)/I61 -> 0.6954491653
A62: 其他 | B62: 1 | C62: 4373 | D62: 0 | E62: 0 | H62: 1 | I62: 4373 | J62: 0 | K62: 0
A63: 單強制 | B63: 2 | C63: 2247 | D63: 3 | E63: 3516 | H63: 2 | I63: 2247 | J63: 3 | K63: 3516
A64: 總計 | B64: =SUM(B61:B63) -> 19 | C64: =SUM(C61:C63) -> 970597 | D64: =SUM(D61:D63) -> 33 | E64: =SUM(E61:E63) -> 1637890 | F64: =(D64-B64)/B64 -> 0.7368421053 | G64: =(E64-C64)/C64 -> 0.6875077916 | H64: =SUM(H61:H63) -> 19 | I64: =SUM(I61:I63) -> 970597 | J64: =SUM(J61:J63) -> 33 | K64: =SUM(K61:K63) -> 1637890 | L64: =(J64-H64)/H64 -> 0.7368421053 | M64: =(K64-I64)/I64 -> 0.6875077916 | N64: =(J64/J80) -> 0.1067961165 | O64: =(K64/K80) -> 0.1203112642
A67: 總計 | B67: 2013/01 | D67: 2014/01 | F67: 成長% | H67: 2013/(1-01) | J67: 2014/(1-01) | L67: 累積成長% | N67: 2014各保險公司累積佔比
B68: 件數 | C68: 金額 | D68: 件數 | E68: 金額 | F68: 件數 | G68: 金額 | H68: 件數 | I68: 金額 | J68: 件數 | K68: 金額 | L68: 件數 | M68: 金額 | N68: 件數 | O68: 金額
A69: 車體 | B69: 76 | C69: 5840588 | D69: 67 | E69: 4713266 | F69: =(D69-B69)/B69 -> -0.1184210526 | G69: =(E69-C69)/C69 -> -0.1930151553 | H69: 76 | I69: 5840588 | J69: 67 | K69: 4713266 | L69: =(J69-H69)/H69 -> -0.1184210526 | M69: =(K69-I69)/I69 -> -0.1930151553
A70: 其他 | B70: 3 | C70: 25763 | D70: 6 | E70: 94826 | H70: 3 | I70: 25763 | J70: 6 | K70: 94826
A71: 單強制 | B71: 13 | C71: 14960 | D71: 13 | E71: 15500 | H71: 13 | I71: 14960 | J71: 13 | K71: 15500
A72: 新保 | B72: =SUM(B69:B71) -> 92 | C72: =SUM(C69:C71) -> 5881311 | D72: =SUM(D69:D71) -> 86 | E72: =SUM(E69:E71) -> 4823592 | F72: =(D72-B72)/B72 -> -0.0652173913 | G72: =(E72-C72)/C72 -> -0.1798440858 | H72: =SUM(H69:H71) -> 92 | I72: =SUM(I69:I71) -> 5881311 | J72: =SUM(J69:J71) -> 86 | K72: =SUM(K69:K71) -> 4823592 | L72: =(J72-H72)/H72 -> -0.0652173913 | M72: =(K72-I72)/I72 -> -0.1798440858 | N72: =(J72/J80) -> 0.2783171521 | O72: =(K72/K80) -> 0.3543171102
A73: 車體 | B73: 133 | C73: 6917403 | D73: 171 | E73: 8516987 | F73: =(D73-B73)/B73 -> 0.2857142857 | G73: =(E73-C73)/C73 -> 0.2312405393 | H73: 133 | I73: 6917403 | J73: 171 | K73: 8516987 | L73: =(J73-H73)/H73 -> 0.2857142857 | M73: =(K73-I73)/I73 -> 0.2312405393
A74: 其他 | B74: 52 | C74: 414376 | D74: 44 | E74: 264392 | H74: 52 | I74: 414376 | J74: 44 | K74: 264392
A75: 單強制 | B75: 10 | C75: 10908 | D75: 8 | E75: 8800 | H75: 10 | I75: 10908 | J75: 8 | K75: 8800
A76: 續保 | B76: =SUM(B73:B75) -> 195 | C76: =SUM(C73:C75) -> 7342687 | D76: =SUM(D73:D75) -> 223 | E76: =SUM(E73:E75) -> 8790179 | F76: =(D76-B76)/B76 -> 0.1435897436 | G76: =(E76-C76)/C76 -> 0.1971338285 | H76: =SUM(H73:H75) -> 195 | I76: =SUM(I73:I75) -> 7342687 | J76: =SUM(J73:J75) -> 223 | K76: =SUM(K73:K75) -> 8790179 | L76: =(J76-H76)/H76 -> 0.1435897436 | M76: =(K76-I76)/I76 -> 0.1971338285 | N76: =(J76/J80) -> 0.7216828479 | O76: =(K76/K80) -> 0.6456828898
A77: 車體 | B77: =(B69+B73) -> 209 | C77: 12757991 | D77: 238 | E77: 13230253 | F77: =(D77-B77)/B77 -> 0.1387559809 | G77: =(E77-C77)/C77 -> 0.03701695667 | H77: =(H69+H73) -> 209 | I77: 12757991 | J77: 238 | K77: 13230253 | L77: =(J77-H77)/H77 -> 0.1387559809 | M77: =(K77-I77)/I77 -> 0.03701695667
A78: 其他 | B78: 55 | C78: 440139 | D78: 50 | E78: 359218 | H78: 55 | I78: 440139 | J78: 50 | K78: 359218
A79: 單強制 | B79: 23 | C79: 25868 | D79: 21 | E79: 24300 | H79: 23 | I79: 25868 | J79: 21 | K79: 24300
A80: 總計 | B80: =SUM(B77:B79) -> 287 | C80: =SUM(C77:C79) -> 13223998 | D80: =SUM(D77:D79) -> 309 | E80: =SUM(E77:E79) -> 13613771 | F80: =(D80-B80)/B80 -> 0.07665505226 | G80: =(E80-C80)/C80 -> 0.02947467173 | H80: =SUM(H77:H79) -> 287 | I80: =SUM(I77:I79) -> 13223998 | J80: =SUM(J77:J79) -> 309 | K80: =SUM(K77:K79) -> 13613771 | L80: =(J80-H80)/H80 -> 0.07665505226 | M80: =(K80-I80)/I80 -> 0.02947467173 | N80: =(J80/J80) -> 1 | O80: =(K80/K80) -> 1

Sheet F.Sheet1(檔名未更新)
A1: 2014/01月新車銷售台數及新續保承保狀態分析
A3: 新車銷售 | B3: 2013/01 | D3: 2014/01 | H3: 2013/(1-01) | J3: 2014/(1-01) | L3: 累積成長%
A4: 掛牌數 | B4: 一般 | C4: 租賃 | D4: 一般 | E4: 租賃 | H4: 一般 | I4: 租賃 | J4: 一般 | K4: 租賃 | L4: 一般 | M4: 租賃
A5: 一課 | B5: 25 | C5: 10 | D5: 31 | E5: 4 | H5: 25 | I5: 10 | J5: 31 | K5: 4 | L5: =((J5-H5)/H5) -> 0.24 | M5: -0.6
A6: 二課 | B6: 33 | C6: 3 | D6: 35 | E6: 1 | H6: 33 | I6: 3 | J6: 35 | K6: 1 | L6: 0.06060606061 | M6: -0.6666666667
A7: 三課 | B7: 17 | C7: 4 | D7: 25 | E7: 4 | H7: 17 | I7: 4 | J7: 25 | K7: 4 | L7: 0.4705882353 | M7: 0
A8: 營中央/其他 | B8: 2 | C8: 0 | D8: 5 | E8: 0 | H8: 2 | I8: 0 | J8: 5 | K8: 0 | L8: 1.5
A9: 小計 | B9: =SUM(B5:B8) -> 77 | C9: =SUM(C5:C8) -> 17 | D9: =SUM(D5:D8) -> 96 | E9: =SUM(E5:E8) -> 9 | H9: =SUM(H5:H8) -> 77 | I9: =SUM(I5:I8) -> 17 | J9: =SUM(J5:J8) -> 96 | K9: =SUM(K5:K8) -> 9 | L9: 0.2467532468 | M9: -0.4705882353
A10: 合計 | B10: =(B9+C9) -> 94 | D10: =(D9+E9) -> 105 | H10: =(H9+I9) -> 94 | J10: =(J9+K9) -> 105 | L10: =((J10-H10)/H10) -> 0.1170212766
A13: 新保 | B13: 2013/01 | D13: 2014/01 | H13: 2013/(1-01) | J13: 2014/(1-01) | L13: 累積成長%
B14: 件數 | C14: 承保率 | D14: 件數 | E14: 承保率 | H14: 件數 | I14: 承保率 | J14: 件數 | K14: 承保率 | L14: 件數 | M14: 承保率
A15: 應保台數 | B15: =(B10-C9) -> 77 | D15: =(D10-E9) -> 96 | H15: =(H10-I9) -> 77 | J15: =(J10-K9) -> 96 | L15: =(J15-H15) -> 19
A16: 車體 | B16: 76 | C16: =(B16/B15) -> 0.987012987 | D16: 67 | E16: =(D16/D15) -> 0.6979166667 | H16: 76 | I16: =(H16/H15) -> 0.987012987 | J16: 67 | K16: =(J16/J15) -> 0.6979166667 | L16: =(J16-H16) -> -9 | M16: =((J16-H16)/H16) -> -0.1184210526
A17: 其他 | B17: 3 | C17: =(B17/B15) -> 0.03896103896 | D17: 6 | E17: =(D17/D15) -> 0.0625 | H17: 3 | I17: =(H17/H15) -> 0.03896103896 | J17: 6 | K17: =(J17/J15) -> 0.0625 | L17: =(J17-H17) -> 3 | M17: =((J17-H17)/H17) -> 1
A18: 單保強制 | B18: 13 | C18: =(B18/B15) -> 0.1688311688 | D18: 13 | E18: =(D18/D15) -> 0.1354166667 | H18: 13 | I18: =(H18/H15) -> 0.1688311688 | J18: 13 | K18: =(J18/J15) -> 0.1354166667 | L18: =(J18-H18) -> 0 | M18: =((J18-H18)/H18) -> 0
A19: 車體+其他
A20: 全部承保件 | B20: =SUM(B16:B18) -> 92 | C20: =(B20/B15) -> 1.194805195 | D20: =SUM(D16:D19) -> 86 | E20: =(D20/D15) -> 0.8958333333 | H20: =SUM(H16:H18) -> 92 | I20: =(H20/H15) -> 1.194805195 | J20: =SUM(J16:J18) -> 86 | K20: =(J20/J15) -> 0.8958333333 | L20: =(J20-H20) -> -6 | M20: =((J20-H20)/H20) -> -0.0652173913
A23: 續保 | B23: 2013/01 | D23: 2014/01 | H23: 2013/(1-01) | J23: 2014/(1-01) | L23: 累積成長%
B24: 件數 | C24: 承保率 | D24: 件數 | E24: 承保率 | H24: 件數 | I24: 承保率 | J24: 件數 | K24: 承保率 | L24: 件數 | M24: 承保率
A25: 原總續保單(不含單強) | B25: 204 | D25: 269 | H25: 204 | J25: 269 | L25: =(J25-H25) -> 65 | M25: =((J25-H25)/H25) -> 0.318627451
A26: 總承保件數(不含新續件) | B26: 195 | C26: =(B26/B25) -> 0.9558823529 | D26: 205 | E26: =(D26/D25) -> 0.7620817844 | H26: 195 | I26: =(H26/H25) -> 0.9558823529 | J26: 205 | K26: =(J26/J25) -> 0.7620817844 | L26: 10 | M26: 0.05128205128
A27: 原車體續保單 | B27: 211 | D27: 244 | H27: 211 | J27: 244 | L27: 33 | M27: 0.1563981043
A28: 原車體承保件 | B28: 133 | C28: =(B28/B27) -> 0.6303317536 | D28: 171 | E28: =(D28/D27) -> 0.7008196721 | H28: 133 | I28: =(H28/H27) -> 0.6303317536 | J28: 171 | K28: =(J28/J27) -> 0.7008196721 | L28: 38 | M28: 0.2857142857
A29: 車輛轉售 | B29: 13 | D29: 3 | H29: 13 | J29: 3 | L29: -10 | M29: -0.7692307692
A30: 不含車售續保率 | B30: =(B25-B29) -> 191 | C30: =(B26/B30) -> 1.020942408 | D30: =(D25-D29) -> 266 | E30: =(D26/D30) -> 0.7706766917 | H30: =(H25-H29) -> 191 | I30: =(H26/H30) -> 1.020942408 | J30: =(J25-J29) -> 266 | K30: =(J26/J30) -> 0.7706766917 | L30: 75 | M30: 0.3926701571
A31: 含新續件承保率 | B31: =(B26+B32) -> 195 | C31: =(B31/B25) -> 0.9558823529 | D31: =(D26+D32) -> 223 | E31: =(D31/D25) -> 0.8289962825 | H31: =(H26+H32) -> 195 | I31: =(H31/H25) -> 0.9558823529 | J31: =(J26+J32) -> 223 | K31: =(J31/J25) -> 0.8289962825 | L31: 28 | M31: 0.1435897436
A32: 新續件 | B32: 0 | D32: 18 | H32: 0 | J32: 18 | L32: 18
A33: (一般) | B33: =(B32-B34) -> -1 | D33: =(D32-D34) -> 16 | H33: =(H32-H34) -> -1 | J33: =(J32-J34) -> 16 | L33: 17 | M33: -17
A34: (租賃到期) | B34: 1 | D34: 2 | H34: 1 | J34: 2 | L34: 1 | M34: 1
A44: 2014/1新車銷售台數及新續保承保狀況分析
A46: 新車銷售 | C46: 2013-01-01 | F46: 2014-01-01 | J46: 2013-01-01 | M46: 2014-01-01 | P46: 累積成長%
A47: 掛牌數 | B47: 一般 | C47: 租賃 | D47: 專案 | E47: 一般 | F47: 租賃 | G47: 專案 | I47: 一般 | J47: 租賃 | K47: 專案 | L47: 一般 | M47: 租賃 | N47: 專案 | O47: 一般 | P47: 租賃 | Q47: 專案
A48: 一課 | B48: 27 | C48: 9 | D48: 0 | E48: 31 | F48: 4 | G48: 4 | I48: 27 | J48: 9 | L48: =E48 -> 31 | M48: =F48 -> 4 | N48: =G48 -> 4 | O48: =(L48-I48)/I48 -> 0.1481481481 | P48: =(M48-J48)/J48 -> -0.5555555556 | Q48: =(N48-K48)/K48 -> 
A49: 二課 | B49: 33 | C49: 2 | D49: 0 | E49: 35 | F49: 1 | G49: 4 | I49: 33 | J49: 2 | L49: =E49 -> 35 | M49: 1 | N49: =G49 -> 4 | O49: =(L49-I49)/I49 -> 0.06060606061 | P49: -0.5
A50: 三課 | B50: 18 | C50: 3 | D50: 0 | E50: 25 | F50: 4 | G50: 0 | I50: 18 | J50: 3 | L50: 25 | M50: 4 | N50: 0 | O50: 0.3888888889 | P50: 0.3333333333
A51: 營中央/其他 | B51: 2 | C51: 0 | D51: 0 | E51: 5 | G51: 0 | I51: 2 | J51: 0 | L51: 5 | M51: 0 | N51: =F51 -> 0 | O51: 1.5
A52: 小計 | B52: 80 | C52: 14 | D52: =SUM(D48:D51) -> 0 | E52: =SUM(E48:E51) -> 96 | F52: =SUM(F48:F51) -> 9 | G52: =SUM(G48:G51) -> 8 | I52: 80 | J52: 14 | L52: =SUM(L48:L51) -> 96 | M52: =SUM(M48:M51) -> 9 | N52: =SUM(N48:N51) -> 8 | O52: 0.2 | P52: -0.3571428571 | Q52: =(N52-K52)/K52 -> 
A53: 合計 | B53: 94 | D53: =D52 -> 0 | E53: =E52+F52 -> 105 | G53: =G52 -> 8 | I53: 94 | L53: =L52+M52 -> 105 | N53: =N52 -> 8 | O53: =(L53-I53)/I53 -> 0.1170212766
A56: 新保 | B56: 2013-01-01 | D56: 2014-01-01 | I56: 2013-01-01 | K56: 2014-01-01 | O56: 累積成長%
B57: 件數 | C57: 承保率 | D57: 件數(不含專案) | E57: 承保率 | F57: 件數(含專案) | G57: 承保率 | I57: 件數 | J57: 承保率 | K57: 件數(不含專案) | L57: 承保率 | M57: 件數(含專案) | N57: 承保率 | O57: 件數(不含) | P57: 承保率 | Q57: 件數(含) | R57: 承保率
A58: 應保台數 | B58: 80 | D58: =E53-F52 -> 96 | F58: =D58 -> 96 | I58: 80 | K58: =D58 -> 96 | M58: =F58 -> 96 | O58: =K58-I58 -> 16 | Q58: =M58-I58 -> 16
A59: 車體 | B59: 66 | C59: 0.825 | D59: =D31 -> 223 | E59: =D59/D58 -> 2.322916667 | F59: =D59+G53 -> 231 | I59: 66 | J59: 0.825 | K59: =D59 -> 223 | L59: =K59/K58 -> 2.322916667 | M59: 231 | O59: =K59-I59 -> 157 | P59: =(K59-I59)/I59 -> 2.378787879 | Q59: =M59-I59 -> 165 | R59: =(M59-K59)/K59 -> 0.03587443946
A60: 其他 | B60: 1 | C60: 0.0125 | D60: =D32 -> 18 | E60: =D60/D58 -> 0.1875 | F60: =D60+G54 -> 18 | I60: 1 | J60: 0.0125 | K60: =D60 -> 18 | L60: =K60/K58 -> 0.1875 | M60: 18 | O60: =K60-I60 -> 17 | P60: =(K60-I60)/I60 -> 17 | Q60: =M60-I60 -> 17 | R60: =(M60-K60)/K60 -> 0
A61: 單保強制 | B61: 12 | C61: 0.15 | D61: =D33 -> 16 | E61: =D61/D58 -> 0.1666666667 | F61: =D61+G55 -> 16 | I61: 12 | J61: 0.15 | K61: =J33 -> 16 | L61: =K61/K58 -> 0.1666666667 | M61: 16 | O61: =K61-I61 -> 4 | P61: =(K61-I61)/I61 -> 0.3333333333 | Q61: =M61-I61 -> 4 | R61: =(M61-K61)/K61 -> 0
A62: 車體+其他 | B62: =B59+B60 -> 67 | C62: =B62/B58 -> 0.8375 | D62: =D59+D60 -> 241 | E62: =D62/(D58-G53) -> 2.738636364 | F62: =F59+F60 -> 249 | G62: =F62/F58 -> 2.59375 | K62: =D62 -> 241 | M62: 249 | N62: =M62/M58 -> 2.59375
A63: 全部承保件 | B63: 79 | C63: 0.9875 | D63: =D34 -> 2 | E63: =D63/D58 -> 0.02083333333 | F63: =SUM(F59:F61) -> 265 | I63: 79 | J63: 0.9875 | K63: =D63 -> 2 | L63: =K63/K58 -> 0.02083333333 | M63: 265 | O63: =K63-I63 -> -77 | P63: =(K63-I63)/I63 -> -0.9746835443 | Q63: =M63-K63 -> 263 | R63: =(M63-K63)/K63 -> 131.5
A64: ◎應保台數 = 新車銷售台數 - 租賃車台數

Sheet E&F.正確版
A1: 2014/1保險承保同期比較分析表
M2: 2014-04-14
A3: 台灣產物 | B3: 2013-01-01 | D3: 2014-01-01 | F3: 成長% | H3: 2013-01-01 | J3: 2014-01-01 | L3: 累積成長% | N3: 2014各保險公司累積佔比
B4: 件數 | C4: 金額 | D4: 件數 | E4: 金額 | F4: 件數 | G4: 金額 | H4: 件數 | I4: 金額 | J4: 件數 | K4: 金額 | L4: 件數 | M4: 金額 | N4: 件數 | O4: 金額
A5: 車體 | B5: 11 | C5: 853857 | D5: 5 | E5: 254299 | F5: =(D5-B5)/B5 -> -0.5454545455 | G5: =(E5-C5)/C5 -> -0.7021761255 | H5: 11 | I5: 853857 | J5: =D5 -> 5 | K5: 254299 | L5: =(J5-H5)/H5 -> -0.5454545455 | M5: =(K5-I5)/I5 -> -0.7021761255
A6: 其他 | D6: 1 | E6: 17093 | H6: 0 | I6: 0 | J6: 1 | K6: 17093
A7: 單強制 | B7: 1 | C7: 1218 | H7: 1 | I7: 1218 | J7: 0 | K7: 0
A8: 新保 | B8: 12 | C8: 855075 | D8: =SUM(D5:D7) -> 6 | E8: =SUM(E5:E7) -> 271392 | F8: =(D8-B8)/B8 -> -0.5 | G8: =(E8-C8)/C8 -> -0.6826102973 | H8: 12 | I8: 855075 | J8: =SUM(J5:J7) -> 6 | K8: =SUM(K5:K7) -> 271392 | L8: =(J8-H8)/H8 -> -0.5 | M8: =(K8-I8)/I8 -> -0.6826102973 | N8: =J8/$J$72 -> 0.06976744186 | O8: =K8/$K$72 -> 0.05626346507
A9: 車體 | B9: 21 | C9: 1187103 | D9: 24 | E9: 1166980 | F9: =(D9-B9)/B9 -> 0.1428571429 | G9: =(E9-C9)/C9 -> -0.01695135131 | H9: 21 | I9: 1187103 | J9: =D9 -> 24 | K9: 1166980 | L9: =(J9-H9)/H9 -> 0.1428571429 | M9: =(K9-I9)/I9 -> -0.01695135131
A10: 其他 | B10: 5 | C10: 46480 | D10: 3 | E10: 13045 | H10: 5 | I10: 46480 | J10: 3 | K10: 13045
A11: 單強制 | H11: 0 | I11: 0 | J11: 0 | K11: 0
A12: 續保 | B12: 26 | C12: 1233583 | D12: =SUM(D9:D11) -> 27 | E12: =SUM(E9:E11) -> 1180025 | F12: =(D12-B12)/B12 -> 0.03846153846 | G12: =(E12-C12)/C12 -> -0.04341661647 | H12: 26 | I12: 1233583 | J12: =SUM(J9:J11) -> 27 | K12: =SUM(K9:K11) -> 1180025 | L12: =(J12-H12)/H12 -> 0.03846153846 | M12: =(K12-I12)/I12 -> -0.04341661647 | N12: =J12/$J$76 -> 0.1210762332 | O12: =K12/$K$76 -> 0.1342435689
A13: 車體 | B13: 32 | C13: 2040960 | D13: =D5+D9 -> 29 | E13: 1421279 | F13: =(D13-B13)/B13 -> -0.09375 | G13: =(E13-C13)/C13 -> -0.303622315 | H13: 32 | I13: 2040960 | J13: =J9+J5 -> 29 | K13: =K9+K5 -> 1421279 | L13: =(J13-H13)/H13 -> -0.09375 | M13: =(K13-I13)/I13 -> -0.303622315
A14: 其他 | B14: 5 | C14: 46480 | D14: 4 | E14: 30138 | H14: 5 | I14: 46480 | J14: =J6+J10 -> 4 | K14: 30138
A15: 單強制 | B15: 1 | C15: 1218 | D15: 0 | E15: 0 | H15: 1 | I15: 1218 | J15: 0 | K15: 0
A16: 總計 | B16: 38 | C16: 2088658 | D16: 33 | E16: 1451417 | F16: =(D16-B16)/B16 -> -0.1315789474 | G16: =(E16-C16)/C16 -> -0.3050959037 | H16: 38 | I16: 2088658 | J16: 33 | K16: 1451417 | L16: =(J16-H16)/H16 -> -0.1315789474 | M16: =(K16-I16)/I16 -> -0.3050959037 | N16: =J16/$J$80 -> 0.1067961165 | O16: =K16/$K$80 -> 0.1066138838
A19: 明台產物 | B19: 2013-01-01 | D19: 2014-01-01 | F19: 成長% | H19: 2013-01-01 | J19: 2014-01-01 | L19: 累積成長%
B20: 件數 | C20: 金額 | D20: 件數 | E20: 金額 | F20: 件數 | G20: 金額 | H20: 件數 | I20: 金額 | J20: 件數 | K20: 金額 | L20: 件數 | M20: 金額
A21: 車體 | B21: 27 | C21: 2196626 | D21: 24 | E21: 1704184 | F21: =(D21-B21)/B21 -> -0.1111111111 | G21: =(E21-C21)/C21 -> -0.224181085 | H21: 27 | I21: 2196626 | J21: =D21 -> 24 | K21: 1704184 | L21: =(J21-H21)/H21 -> -0.1111111111 | M21: =(K21-I21)/I21 -> -0.224181085
A22: 其他 | D22: 3 | E22: 39872 | H22: 0 | I22: 0 | J22: 3 | K22: 39872
A23: 單強制 | B23: 6 | C23: 7798 | D23: 4 | E23: 5043 | H23: 6 | I23: 7798 | J23: 4 | K23: 5043
A24: 新保 | B24: 33 | C24: 2204424 | D24: =SUM(D21:D23) -> 31 | E24: =SUM(E21:E23) -> 1749099 | F24: =(D24-B24)/B24 -> -0.06060606061 | G24: =(E24-C24)/C24 -> -0.2065505547 | H24: 33 | I24: 2204424 | J24: =SUM(J21:J23) -> 31 | K24: =SUM(K21:K23) -> 1749099 | L24: =(J24-H24)/H24 -> -0.06060606061 | M24: =(K24-I24)/I24 -> -0.2065505547 | N24: =J24/$J$72 -> 0.3604651163 | O24: =K24/$K$72 -> 0.3626133802
A25: 車體 | B25: 65 | C25: 3436728 | D25: 71 | E25: 3676986 | F25: =(D25-B25)/B25 -> 0.09230769231 | G25: =(E25-C25)/C25 -> 0.06990893664 | H25: 65 | I25: 3436728 | J25: =D25 -> 71 | K25: 3676986 | L25: =(J25-H25)/H25 -> 0.09230769231 | M25: =(K25-I25)/I25 -> 0.06990893664
A26: 其他 | B26: 22 | C26: 224126 | D26: 17 | E26: 129535 | H26: 22 | I26: 224126 | J26: 17 | K26: 129535
A27: 單強制 | B27: 6 | C27: 6592 | D27: 6 | E27: 6602 | H27: 6 | I27: 6592 | J27: 6 | K27: 6602
A28: 續保 | B28: 93 | C28: 3667446 | D28: =SUM(D25:D27) -> 94 | E28: =SUM(E25:E27) -> 3813123 | F28: =(D28-B28)/B28 -> 0.01075268817 | G28: =(E28-C28)/C28 -> 0.03972164825 | H28: 93 | I28: 3667446 | J28: =SUM(J25:J27) -> 94 | K28: =SUM(K25:K27) -> 3813123 | L28: =(J28-H28)/H28 -> 0.01075268817 | M28: =(K28-I28)/I28 -> 0.03972164825 | N28: =J28/$J$76 -> 0.4215246637 | O28: =K28/$K$76 -> 0.4337935553
A29: 車體 | B29: 92 | C29: 5633354 | D29: =D21+D25 -> 95 | E29: 5381170 | F29: =(D29-B29)/B29 -> 0.03260869565 | G29: =(E29-C29)/C29 -> -0.0447662263 | H29: 92 | I29: 5633354 | J29: =J25+J21 -> 95 | K29: =K25+K21 -> 5381170 | L29: =(J29-H29)/H29 -> 0.03260869565 | M29: =(K29-I29)/I29 -> -0.0447662263
A30: 其他 | B30: 22 | C30: 224126 | D30: 20 | E30: 169407 | H30: 22 | I30: 224126 | J30: =J22+J26 -> 20 | K30: 169407
A31: 單強制 | B31: 12 | C31: 14390 | D31: 10 | E31: 11645 | H31: 12 | I31: 14390 | J31: 10 | K31: 11645
A32: 總計 | B32: 126 | C32: 5871870 | D32: 125 | E32: 5562222 | F32: =(D32-B32)/B32 -> -0.007936507937 | G32: =(E32-C32)/C32 -> -0.05273413751 | H32: 126 | I32: 5871870 | J32: 125 | K32: 5562222 | L32: =(J32-H32)/H32 -> -0.007936507937 | M32: =(K32-I32)/I32 -> -0.05273413751 | N32: =J32/$J$80 -> 0.4045307443 | O32: =K32/$K$80 -> 0.4085732014
A35: 華南產物 | B35: 2013-01-01 | D35: 2014-01-01 | F35: 成長% | H35: 2013-01-01 | J35: 2014-01-01 | L35: 累積成長%
B36: 件數 | C36: 金額 | D36: 件數 | E36: 金額 | F36: 件數 | G36: 金額 | H36: 件數 | I36: 金額 | J36: 件數 | K36: 金額 | L36: 件數 | M36: 金額
A37: 車體 | B37: 19 | C37: 1387940 | D37: 25 | E37: 1836038 | F37: =(D37-B37)/B37 -> 0.3157894737 | G37: =(E37-C37)/C37 -> 0.3228511319 | H37: 19 | I37: 1387940 | J37: =D37 -> 25 | K37: 1836038 | L37: =(J37-H37)/H37 -> 0.3157894737 | M37: =(K37-I37)/I37 -> 0.3228511319
A38: 其他 | B38: 1 | C38: 13756 | D38: 2 | E38: 37861 | H38: 1 | I38: 13756 | J38: 2 | K38: 37861
A39: 單強制 | B39: 4 | C39: 4455 | D39: 6 | E39: 6941 | H39: 4 | I39: 4455 | J39: 6 | K39: 6941
A40: 新保 | B40: 24 | C40: 1406151 | D40: =SUM(D37:D39) -> 33 | E40: =SUM(E37:E39) -> 1880840 | F40: =(D40-B40)/B40 -> 0.375 | G40: =(E40-C40)/C40 -> 0.3375803879 | H40: 24 | I40: 1406151 | J40: =SUM(J37:J39) -> 33 | K40: =SUM(K37:K39) -> 1880840 | L40: =(J40-H40)/H40 -> 0.375 | M40: =(K40-I40)/I40 -> 0.3375803879 | N40: =J40/$J$72 -> 0.3837209302 | O40: =K40/$K$72 -> 0.3899251844
A41: 車體 | B41: 45 | C41: 2235191 | D41: 59 | E41: 2957392 | F41: =(D41-B41)/B41 -> 0.3111111111 | G41: =(E41-C41)/C41 -> 0.3231048264 | H41: 45 | I41: 2235191 | J41: =D41 -> 59 | K41: 2957392 | L41: =(J41-H41)/H41 -> 0.3111111111 | M41: =(K41-I41)/I41 -> 0.3231048264
A42: 其他 | B42: 24 | C42: 134751 | D42: 24 | E42: 121812 | H42: 24 | I42: 134751 | J42: 24 | K42: 121812
A43: 單強制 | B43: 3 | C43: 3217 | D43: 2 | E43: 2198 | H43: 3 | I43: 3217 | J43: 2 | K43: 2198
A44: 續保 | B44: 72 | C44: 2373159 | D44: =SUM(D41:D43) -> 85 | E44: =SUM(E41:E43) -> 3081402 | F44: =(D44-B44)/B44 -> 0.1805555556 | G44: =(E44-C44)/C44 -> 0.2984389162 | H44: 72 | I44: 2373159 | J44: =SUM(J41:J43) -> 85 | K44: =SUM(K41:K43) -> 3081402 | L44: =(J44-H44)/H44 -> 0.1805555556 | M44: =(K44-I44)/I44 -> 0.2984389162 | N44: =J44/$J$76 -> 0.3811659193 | O44: =K44/$K$76 -> 0.3505505406
A45: 車體 | B45: 64 | C45: 3623131 | D45: =D37+D41 -> 84 | E45: 4793430 | F45: =(D45-B45)/B45 -> 0.3125 | G45: =(E45-C45)/C45 -> 0.3230076417 | H45: 64 | I45: 3623131 | J45: =J41+J37 -> 84 | K45: =K41+K37 -> 4793430 | L45: =(J45-H45)/H45 -> 0.3125 | M45: =(K45-I45)/I45 -> 0.3230076417
A46: 其他 | B46: 25 | C46: 148507 | D46: 26 | E46: 159673 | H46: 25 | I46: 148507 | J46: =J38+J42 -> 26 | K46: 159673
A47: 單強制 | B47: 7 | C47: 7672 | D47: 8 | E47: 9139 | H47: 7 | I47: 7672 | J47: 8 | K47: 9139
A48: 總計 | B48: 96 | C48: 3779310 | D48: 118 | E48: 4962242 | F48: =(D48-B48)/B48 -> 0.2291666667 | G48: =(E48-C48)/C48 -> 0.3130021089 | H48: 96 | I48: 3779310 | J48: 118 | K48: 4962242 | L48: =(J48-H48)/H48 -> 0.2291666667 | M48: =(K48-I48)/I48 -> 0.3130021089 | N48: =J48/$J$80 -> 0.3818770227 | O48: =K48/$K$80 -> 0.3645016506
A51: 富邦產物 | B51: 2013-01-01 | D51: 2014-01-01 | F51: 成長% | H51: 2013-01-01 | J51: 2014-01-01 | L51: 累積成長%
B52: 件數 | C52: 金額 | D52: 件數 | E52: 金額 | F52: 件數 | G52: 金額 | H52: 件數 | I52: 金額 | J52: 件數 | K52: 金額 | L52: 件數 | M52: 金額
A53: 車體 | B53: 9 | C53: 732492 | D53: 13 | E53: 918745 | F53: =(D53-B53)/B53 -> 0.4444444444 | G53: =(E53-C53)/C53 -> 0.2542730842 | H53: 9 | I53: 732492 | J53: =D53 -> 13 | K53: 918745 | L53: =(J53-H53)/H53 -> 0.4444444444 | M53: =(K53-I53)/I53 -> 0.2542730842
A54: 其他 | H54: 0 | I54: 0 | J54: 0 | K54: 0
A55: 單強制 | B55: 1 | C55: 1148 | D55: 3 | E55: 3516 | H55: 1 | I55: 1148 | J55: 3 | K55: 3516
A56: 新保 | B56: 10 | C56: 733640 | D56: =SUM(D53:D55) -> 16 | E56: =SUM(E53:E55) -> 922261 | F56: =(D56-B56)/B56 -> 0.6 | G56: =(E56-C56)/C56 -> 0.2571029388 | H56: 10 | I56: 733640 | J56: =SUM(J53:J55) -> 16 | K56: =SUM(K53:K55) -> 922261 | L56: =(J56-H56)/H56 -> 0.6 | M56: =(K56-I56)/I56 -> 0.2571029388 | N56: =J56/$J$72 -> 0.1860465116 | O56: =K56/$K$72 -> 0.1911979703
A57: 車體 | B57: 7 | C57: 192814 | D57: 17 | E57: 715629 | F57: =(D57-B57)/B57 -> 1.428571429 | G57: =(E57-C57)/C57 -> 2.711499165 | H57: 7 | I57: 192814 | J57: =D57 -> 17 | K57: 715629 | L57: =(J57-H57)/H57 -> 1.428571429 | M57: =(K57-I57)/I57 -> 2.711499165
A58: 其他 | B58: 1 | C58: 4373 | H58: 1 | I58: 4373 | J58: 0 | K58: 0
A59: 單強制 | B59: 1 | C59: 1099 | H59: 1 | I59: 1099 | J59: 0 | K59: 0
A60: 續保 | B60: 9 | C60: 198286 | D60: =SUM(D57:D59) -> 17 | E60: =SUM(E57:E59) -> 715629 | F60: =(D60-B60)/B60 -> 0.8888888889 | G60: =(E60-C60)/C60 -> 2.609074771 | H60: 9 | I60: 198286 | J60: =SUM(J57:J59) -> 17 | K60: =SUM(K57:K59) -> 715629 | L60: =(J60-H60)/H60 -> 0.8888888889 | M60: =(K60-I60)/I60 -> 2.609074771 | N60: =J60/$J$76 -> 0.07623318386 | O60: =K60/$K$76 -> 0.08141233529
A61: 車體 | B61: 16 | C61: 925306 | D61: =D53+D57 -> 30 | E61: 1634374 | F61: =(D61-B61)/B61 -> 0.875 | G61: =(E61-C61)/C61 -> 0.7663064975 | H61: 16 | I61: 925306 | J61: =J57+J53 -> 30 | K61: =K57+K53 -> 1634374 | L61: =(J61-H61)/H61 -> 0.875 | M61: =(K61-I61)/I61 -> 0.7663064975
A62: 其他 | B62: 1 | C62: 4373 | D62: 0 | E62: 0 | H62: 1 | I62: 4373 | J62: =J54+J58 -> 0 | K62: 0
A63: 單強制 | B63: 2 | C63: 2247 | D63: 3 | E63: 3516 | H63: 2 | I63: 2247 | J63: 3 | K63: 3516
A64: 總計 | B64: 19 | C64: 931926 | D64: 33 | E64: 1637890 | F64: =(D64-B64)/B64 -> 0.7368421053 | G64: =(E64-C64)/C64 -> 0.7575322504 | H64: 19 | I64: 931926 | J64: 33 | K64: 1637890 | L64: =(J64-H64)/H64 -> 0.7368421053 | M64: =(K64-I64)/I64 -> 0.7575322504 | N64: =J64/$J$80 -> 0.1067961165 | O64: =K64/$K$80 -> 0.1203112642
A67: 總計 | B67: 2013-01-01 | D67: 2014-01-01 | F67: 成長% | H67: 2013-01-01 | J67: 2014-01-01 | L67: 累積成長%
B68: 件數 | C68: 金額 | D68: 件數 | E68: 金額 | F68: 件數 | G68: 金額 | H68: 件數 | I68: 金額 | J68: 件數 | K68: 金額 | L68: 件數 | M68: 金額
A69: 車體 | B69: 66 | C69: 5170915 | D69: =D5+D21+D37+D53 -> 67 | E69: 4713266 | F69: =(D69-B69)/B69 -> 0.01515151515 | G69: =(E69-C69)/C69 -> -0.08850445231 | H69: 66 | I69: 5170915 | J69: =J5+J21+J37+J53 -> 67 | K69: 4713266 | L69: =(J69-H69)/H69 -> 0.01515151515 | M69: =(K69-I69)/I69 -> -0.08850445231
A70: 其他 | B70: 1 | C70: 13756 | D70: 6 | E70: 94826 | H70: 1 | I70: 13756 | J70: 6 | K70: 94826
A71: 單強制 | B71: 12 | C71: 14619 | D71: 13 | E71: 15500 | H71: 12 | I71: 14619 | J71: 13 | K71: 15500
A72: 新保 | B72: 79 | C72: 5199290 | D72: 86 | E72: 4823592 | F72: =(D72-B72)/B72 -> 0.08860759494 | G72: =(E72-C72)/C72 -> -0.07225948158 | H72: 79 | I72: 5199290 | J72: 86 | K72: 4823592 | L72: =(J72-H72)/H72 -> 0.08860759494 | M72: =(K72-I72)/I72 -> -0.07225948158 | N72: =J72/J80 -> 0.2783171521 | O72: =K72/K80 -> 0.3543171102
A73: 車體 | B73: 138 | C73: 7051836 | D73: 171 | E73: 8516987 | F73: =(D73-B73)/B73 -> 0.2391304348 | G73: =(E73-C73)/C73 -> 0.2077687286 | H73: 138 | I73: 7051836 | J73: 171 | K73: 8516987 | L73: =(J73-H73)/H73 -> 0.2391304348 | M73: =(K73-I73)/I73 -> 0.2077687286
A74: 其他 | B74: 52 | C74: 409730 | D74: 44 | E74: 264392 | H74: 52 | I74: 409730 | J74: 44 | K74: 264392
A75: 單強制 | B75: 10 | C75: 10908 | D75: 8 | E75: 8800 | H75: 10 | I75: 10908 | J75: 8 | K75: 8800
A76: 續保 | B76: 200 | C76: 7472474 | D76: 223 | E76: 8790179 | F76: =(D76-B76)/B76 -> 0.115 | G76: =(E76-C76)/C76 -> 0.1763411957 | H76: 200 | I76: 7472474 | J76: 223 | K76: 8790179 | L76: =(J76-H76)/H76 -> 0.115 | M76: =(K76-I76)/I76 -> 0.1763411957 | N76: =J76/J80 -> 0.7216828479 | O76: =K76/K80 -> 0.6456828898
A77: 車體 | B77: 204 | C77: 12222751 | D77: =D69+D73 -> 238 | E77: 13230253 | F77: =(D77-B77)/B77 -> 0.1666666667 | G77: =(E77-C77)/C77 -> 0.08242841567 | H77: 204 | I77: 12222751 | J77: =J69+J73 -> 238 | K77: 13230253 | L77: =(J77-H77)/H77 -> 0.1666666667 | M77: =(K77-I77)/I77 -> 0.08242841567
A78: 其他 | B78: 53 | C78: 423486 | D78: 50 | E78: 359218 | H78: 53 | I78: 423486 | J78: 50 | K78: 359218
A79: 單強制 | B79: 22 | C79: 25527 | D79: 21 | E79: 24300 | H79: 22 | I79: 25527 | J79: 21 | K79: 24300
A80: 總計 | B80: 279 | C80: 12671764 | D80: 309 | E80: 13613771 | F80: =(D80-B80)/B80 -> 0.1075268817 | G80: =(E80-C80)/C80 -> 0.07433905808 | H80: 279 | I80: 12671764 | J80: 309 | K80: 13613771 | L80: =(J80-H80)/H80 -> 0.1075268817 | M80: =(K80-I80)/I80 -> 0.07433905808 | N80: =N72+N76 -> 1 | O80: =O72+O76 -> 1
A82: 2014/1新車銷售台數及新續保承保狀況分析
A84: 新車銷售 | C84: 2013-01-01 | F84: 2014-01-01 | J84: 2013-01-01 | M84: 2014-01-01 | P84: 累積成長%
A85: 掛牌數 | B85: 一般 | C85: 租賃 | D85: 專案 | E85: 一般 | F85: 租賃 | G85: 專案 | I85: 一般 | J85: 租賃 | K85: 專案 | L85: 一般 | M85: 租賃 | N85: 專案 | O85: 一般 | P85: 租賃 | Q85: 專案
A86: 一課 | B86: 27 | C86: 9 | D86: 0 | E86: 31 | F86: 4 | G86: 4 | I86: 27 | J86: 9 | L86: =E86 -> 31 | M86: =F86 -> 4 | N86: =G86 -> 4 | O86: =(L86-I86)/I86 -> 0.1481481481 | P86: =(M86-J86)/J86 -> -0.5555555556 | Q86: =(N86-K86)/K86 -> 
A87: 二課 | B87: 33 | C87: 2 | D87: 0 | E87: 35 | F87: 1 | G87: 4 | I87: 33 | J87: 2 | L87: =E87 -> 35 | M87: 1 | N87: 4 | O87: =(L87-I87)/I87 -> 0.06060606061 | P87: -0.5
A88: 三課 | B88: 18 | C88: 3 | D88: 0 | E88: 25 | F88: 4 | G88: 0 | I88: 18 | J88: 3 | L88: 25 | M88: 4 | N88: 0 | O88: 0.3888888889 | P88: 0.3333333333
A89: 營中央/其他 | B89: 2 | C89: 0 | D89: 0 | E89: 5 | G89: 0 | I89: 2 | J89: 0 | L89: 5 | M89: 0 | N89: =F89 -> 0 | O89: 1.5
A90: 小計 | B90: 80 | C90: 14 | D90: =SUM(D86:D89) -> 0 | E90: =SUM(E86:E89) -> 96 | F90: =SUM(F86:F89) -> 9 | G90: =SUM(G86:G89) -> 8 | I90: 80 | J90: 14 | L90: =SUM(L86:L89) -> 96 | M90: =SUM(M86:M89) -> 9 | N90: =SUM(N86:N89) -> 8 | O90: 0.2 | P90: -0.3571428571 | Q90: =(N90-K90)/K90 -> 
A91: 合計 | B91: 94 | D91: =D90 -> 0 | E91: =E90+F90 -> 105 | G91: =G90 -> 8 | I91: 94 | L91: =L90+M90 -> 105 | N91: =N90 -> 8 | O91: =(L91-I91)/I91 -> 0.1170212766
A94: 新保 | B94: 2013-01-01 | D94: 2014-01-01 | I94: 2013-01-01 | K94: 2014-01-01 | O94: 累積成長%
B95: 件數 | C95: 承保率 | D95: 件數(不含專案) | E95: 承保率 | F95: 件數(含專案) | G95: 承保率 | I95: 件數 | J95: 承保率 | K95: 件數(不含專案) | L95: 承保率 | M95: 件數(含專案) | N95: 承保率 | O95: 件數(不含) | P95: 承保率 | Q95: 件數(含) | R95: 承保率
A96: 應保台數 | B96: 80 | D96: =E91-F90 -> 96 | F96: =D96 -> 96 | I96: 80 | K96: =D96 -> 96 | M96: =F96 -> 96 | O96: =K96-I96 -> 16 | Q96: =M96-I96 -> 16
A97: 車體 | B97: 66 | C97: 0.825 | D97: =D69 -> 67 | E97: =D97/D96 -> 0.6979166667 | F97: =D97+G91 -> 75 | I97: 66 | J97: 0.825 | K97: =D97 -> 67 | L97: =K97/K96 -> 0.6979166667 | M97: 75 | O97: =K97-I97 -> 1 | P97: =(K97-I97)/I97 -> 0.01515151515 | Q97: =M97-I97 -> 9 | R97: =(M97-K97)/K97 -> 0.1194029851
A98: 其他 | B98: 1 | C98: 0.0125 | D98: =D70 -> 6 | E98: =D98/D96 -> 0.0625 | F98: =D98+G92 -> 6 | I98: 1 | J98: 0.0125 | K98: =D98 -> 6 | L98: =K98/K96 -> 0.0625 | M98: 6 | O98: =K98-I98 -> 5 | P98: =(K98-I98)/I98 -> 5 | Q98: =M98-I98 -> 5 | R98: =(M98-K98)/K98 -> 0
A99: 單保強制 | B99: 12 | C99: 0.15 | D99: =D71 -> 13 | E99: =D99/D96 -> 0.1354166667 | F99: 13 | I99: 12 | J99: 0.15 | K99: =J71 -> 13 | L99: =K99/K96 -> 0.1354166667 | M99: 13 | O99: =K99-I99 -> 1 | P99: =(K99-I99)/I99 -> 0.08333333333 | Q99: =M99-I99 -> 1 | R99: =(M99-K99)/K99 -> 0
A100: 車體+其他 | B100: =B97+B98 -> 67 | C100: =B100/B96 -> 0.8375 | D100: =D97+D98 -> 73 | E100: =D100/(D96-G91) -> 0.8295454545 | F100: =F97+F98 -> 81 | G100: =F100/F96 -> 0.84375 | K100: =D100 -> 73 | M100: 81 | N100: =M100/M96 -> 0.84375
A101: 全部承保件 | B101: 79 | C101: 0.9875 | D101: =D72 -> 86 | E101: =D101/D96 -> 0.8958333333 | F101: =SUM(F97:F99) -> 94 | I101: 79 | J101: 0.9875 | K101: =D101 -> 86 | L101: =K101/K96 -> 0.8958333333 | M101: 94 | O101: =K101-I101 -> 7 | P101: =(K101-I101)/I101 -> 0.08860759494 | Q101: =M101-K101 -> 8 | R101: =(M101-K101)/K101 -> 0.09302325581
A102: ◎應保台數 = 新車銷售台數 - 租賃車台數
A105: 續保 | B105: 2013-01-01 | D105: 2014-01-01 | I105: 2013-01-01 | K105: 2014-01-01 | M105: 累積成長%
B106: 件數 | C106: 承保率 | D106: 件數 | E106: 承保率 | I106: 件數 | J106: 承保率 | K106: 件數 | L106: 承保率 | M106: 件數 | N106: 承保率
A107: 原總續保單(不含單強) | B107: 195 | D107: 244 | I107: 195 | K107: =D107 -> 244 | M107: =K107-I107 -> 49
A108: 總承保件數(不含新續件) | B108: 174 | C108: 0.8923076923 | D108: 205 | E108: =D108/D107 -> 0.8401639344 | I108: 174 | J108: 0.8923076923 | K108: 205 | L108: =K108/K107 -> 0.8401639344 | M108: =K108-I108 -> 31 | N108: =(K108-I108)/I108 -> 0.1781609195
A109: 原車體續保單 | B109: 149 | D109: 189 | I109: 149 | K109: 189
A110: 原車體承保件 | B110: 138 | C110: 0.9261744966 | D110: =D73 -> 171 | E110: =D110/D109 -> 0.9047619048 | I110: 138 | J110: 0.9261744966 | K110: 171 | L110: =K110/K109 -> 0.9047619048 | M110: =K110-I110 -> 33 | N110: =(K110-I110)/I110 -> 0.2391304348
A111: 車輛轉售 | B111: 4 | D111: 9 | I111: 4 | K111: 9
A112: 不含車售續保率 | B112: 191 | C112: 0.9109947644 | D112: =D107-D111 -> 235 | E112: =D108/D112 -> 0.8723404255 | I112: 191 | J112: 0.9109947644 | K112: 235 | L112: =K108/K112 -> 0.8723404255 | M112: =K112-I112 -> 44 | N112: =(K112-I112)/I112 -> 0.2303664921
A113: 含新續件承保率 | B113: 200 | C113: 1.025641026 | D113: 242 | E113: =D113/D107 -> 0.9918032787 | I113: 200 | J113: 1.025641026 | K113: 242 | L113: =K113/K107 -> 0.9918032787 | M113: =K113-I113 -> 42 | N113: =(K113-I113)/I113 -> 0.21
A114: 新續件 | B114: 26 | D114: 18 | I114: 26 | K114: 18
A115: (一般) | B115: 24 | D115: 16 | I115: 24 | K115: 16
A116: (租賃到期) | B116: 2 | D116: 2 | I116: 2 | K116: 2

Sheet G.YD-部門保險佔比分析表
A1: 2014/01月 各單位保險公司佔比分析表
B3: 新保 | E3: 續保 | H3: 合計
B4: 件數 | C4: 金額 | D4: % | E4: 件數 | F4: 金額 | G4: % | H4: 件數 | I4: 金額 | J4: %
A5: 台產 | B5: 2 | C5: 58700 | D5: =IF(C9=0,0,(C5/C9)) -> 0.04124537131 | E5: 4 | F5: 153417 | G5: =IF(F9=0,0,(F5/F9)) -> 0.07268316117 | H5: =(B5+E5) -> 6 | I5: 212117 | J5: =IF(I9=0,0,(I5/I9)) -> 0.06002256962
A6: 富邦 | B6: 6 | C6: 262422 | D6: =IF(C9=0,0,(C6/C9)) -> 0.1843899971 | E6: 7 | F6: 281976 | G6: =IF(F9=0,0,(F6/F9)) -> 0.1335895439 | H6: 13 | I6: 544398 | J6: =IF(I9=0,0,(I6/I9)) -> 0.1540478456
A7: 明台 | B7: 11 | C7: 501561 | D7: =IF(C9=0,0,(C7/C9)) -> 0.3524202671 | E7: 22 | F7: 700884 | G7: =IF(F9=0,0,(F7/F9)) -> 0.3320522806 | H7: 33 | I7: 1202445 | J7: =IF(I9=0,0,(I7/I9)) -> 0.3402548533
A8: 華南 | B8: 8 | C8: 600507 | D8: =IF(C9=0,0,(C8/C9)) -> 0.4219443644 | E8: 29 | F8: 974487 | G8: =IF(F9=0,0,(F8/F9)) -> 0.4616750144 | H8: 37 | I8: 1574994 | J8: =IF(I9=0,0,(I8/I9)) -> 0.4456747315
A9: 營一課 | B9: =SUM(B5:B8) -> 27 | C9: =SUM(C5:C8) -> 1423190 | D9: =(C9/C34) -> 0.2950477569 | E9: =SUM(E5:E8) -> 62 | F9: =SUM(F5:F8) -> 2110764 | G9: =(F9/F34) -> 0.2877660532 | H9: =SUM(H5:H8) -> 89 | I9: =SUM(I5:I8) -> 3533954 | J9: =(I9/I34) -> 0.2906548719
A10: 台產 | B10: 1 | C10: 62821 | D10: =IF(C14=0,0,(C10/C14)) -> 0.03816272663 | E10: 7 | F10: 346313 | G10: =IF(F14=0,0,(F10/F14)) -> 0.1125613124 | H10: =(B10+E10) -> 8 | I10: 409134 | J10: =IF(I14=0,0,(I10/I14)) -> 0.08662961517
A11: 富邦 | B11: 3 | C11: 228219 | D11: =IF(C14=0,0,(C11/C14)) -> 0.1386392975 | E11: 7 | F11: 289241 | G11: =IF(F14=0,0,(F11/F14)) -> 0.09401133242 | H11: 10 | I11: 517460 | J11: =IF(I14=0,0,(I11/I14)) -> 0.1095664517
A12: 明台 | B12: 8 | C12: 473620 | D12: =IF(C14=0,0,(C12/C14)) -> 0.2877163781 | E12: 33 | F12: 1445200 | G12: =IF(F14=0,0,(F12/F14)) -> 0.4697300093 | H12: 41 | I12: 1918820 | J12: =IF(I14=0,0,(I12/I14)) -> 0.4062889864
A13: 華南 | B13: 18 | C13: 881475 | D13: =IF(C14=0,0,(C13/C14)) -> 0.5354815978 | E13: 22 | F13: 995907 | G13: =IF(F14=0,0,(F13/F14)) -> 0.3236973459 | H13: 40 | I13: 1877382 | J13: =IF(I14=0,0,(I13/I14)) -> 0.3975149467
A14: 營二課 | B14: =SUM(B10:B13) -> 30 | C14: =SUM(C10:C13) -> 1646135 | D14: =(C14/C34) -> 0.3412674621 | E14: =SUM(E10:E13) -> 69 | F14: =SUM(F10:F13) -> 3076661 | G14: =(F14/F34) -> 0.4194493524 | H14: =SUM(H10:H13) -> 99 | I14: =SUM(I10:I13) -> 4722796 | J14: =(I14/I34) -> 0.3884328054
A15: 台產 | B15: 0 | C15: 0 | D15: =IF(C19=0,0,(C15/C19)) -> 0 | E15: 8 | F15: 414603 | G15: =IF(F19=0,0,(F15/F19)) -> 0.1974343248 | H15: =(B15+E15) -> 8 | I15: 414603 | J15: =IF(I19=0,0,(I15/I19)) -> 0.1166088502
A16: 富邦 | B16: 7 | C16: 431620 | D16: =IF(C19=0,0,(C16/C19)) -> 0.2965343637 | E16: 1 | F16: 76581 | G16: =IF(F19=0,0,(F16/F19)) -> 0.03646794168 | H16: 8 | I16: 508201 | J16: =IF(I19=0,0,(I16/I19)) -> 0.1429336842
A17: 明台 | B17: 11 | C17: 626468 | D17: =IF(C19=0,0,(C17/C19)) -> 0.4304000967 | E17: 28 | F17: 1284574 | G17: =IF(F19=0,0,(F17/F19)) -> 0.6117153042 | H17: 39 | I17: 1911042 | J17: =IF(I19=0,0,(I17/I19)) -> 0.5374886584
A18: 華南 | B18: 7 | C18: 397460 | D18: =IF(C19=0,0,(C18/C19)) -> 0.2730655396 | E18: 11 | F18: 324196 | G18: =IF(F19=0,0,(F18/F19)) -> 0.1543824293 | H18: 18 | I18: 721656 | J18: =IF(I19=0,0,(I18/I19)) -> 0.2029688072
A19: 營三課 | B19: =SUM(B15:B18) -> 25 | C19: =SUM(C15:C18) -> 1455548 | D19: =(C19/C34) -> 0.3017560358 | E19: =SUM(E15:E18) -> 48 | F19: =SUM(F15:F18) -> 2099954 | G19: =(F19/F34) -> 0.2862922972 | H19: =SUM(H15:H18) -> 73 | I19: =SUM(I15:I18) -> 3555502 | J19: =(I19/I34) -> 0.2924271166
A20: 台產 | B20: 0 | C20: 0 | D20: =IF(C24=0,0,(C20/C24)) -> 0 | E20: 0 | F20: 0 | G20: =IF(F24=0,0,(F20/F24)) -> 0 | H20: =(B20+E20) -> 0 | I20: 0 | J20: =IF(I24=0,0,(I20/I24)) -> 0
A21: 富邦 | B21: 0 | C21: 0 | D21: =IF(C24=0,0,(C21/C24)) -> 0 | E21: 0 | F21: 0 | G21: =IF(F24=0,0,(F21/F24)) -> 0 | H21: 0 | I21: 0 | J21: =IF(I24=0,0,(I21/I24)) -> 0
A22: 明台 | B22: 0 | C22: 0 | D22: =IF(C24=0,0,(C22/C24)) -> 0 | E22: 0 | F22: 0 | G22: =IF(F24=0,0,(F22/F24)) -> 0 | H22: 0 | I22: 0 | J22: =IF(I24=0,0,(I22/I24)) -> 0
A23: 華南 | B23: 0 | C23: 0 | D23: =IF(C24=0,0,(C23/C24)) -> 0 | E23: 0 | F23: 0 | G23: =IF(F24=0,0,(F23/F24)) -> 0 | H23: 0 | I23: 0 | J23: =IF(I24=0,0,(I23/I24)) -> 0
A24: 行銷業務部 | B24: =SUM(B20:B23) -> 0 | C24: =SUM(C20:C23) -> 0 | D24: =(C24/C34) -> 0 | E24: =SUM(E20:E23) -> 0 | F24: =SUM(F20:F23) -> 0 | G24: =(F24/F34) -> 0 | H24: =SUM(H20:H23) -> 0 | I24: =SUM(I20:I23) -> 0 | J24: =(I24/I34) -> 0
A25: 台產 | B25: 3 | C25: 147075 | D25: =IF(C29=0,0,(C25/C29)) -> 0.4923523445 | E25: 0 | F25: 0 | G25: =IF(F29=0,0,(F25/F29)) -> 0 | H25: =(B25+E25) -> 3 | I25: 147075 | J25: =IF(I29=0,0,(I25/I29)) -> 0.4246549633
A26: 富邦 | B26: 0 | C26: 0 | D26: =IF(C29=0,0,(C26/C29)) -> 0 | E26: 1 | F26: 47621 | G26: =IF(F29=0,0,(F26/F29)) -> 1 | H26: 1 | I26: 47621 | J26: =IF(I29=0,0,(I26/I29)) -> 0.1374978345
A27: 明台 | B27: 4 | C27: 151644 | D27: =IF(C29=0,0,(C27/C29)) -> 0.5076476555 | E27: 0 | F27: 0 | G27: =IF(F29=0,0,(F27/F29)) -> 0 | H27: 4 | I27: 151644 | J27: =IF(I29=0,0,(I27/I29)) -> 0.4378472022
A28: 華南 | B28: 0 | C28: 0 | D28: =IF(C29=0,0,(C28/C29)) -> 0 | E28: 0 | F28: 0 | G28: =IF(F29=0,0,(F28/F29)) -> 0 | H28: 0 | I28: 0 | J28: =IF(I29=0,0,(I28/I29)) -> 0
A29: 營業部 | B29: =SUM(B25:B28) -> 7 | C29: =SUM(C25:C28) -> 298719 | D29: =(C29/C45) -> 0.06192874522 | E29: =SUM(E25:E28) -> 1 | F29: =SUM(F25:F28) -> 47621 | G29: =(F29/F45) -> 0.005417523352 | H29: =SUM(H25:H28) -> 8 | I29: =SUM(I25:I28) -> 346340 | J29: =(I29/I45) -> 0.02544041618
A30: 台產 | B30: 6 | C30: 268596 | D30: =IF(C34=0,0,(C30/C34)) -> 0.05568381405 | E30: 19 | F30: 914333 | G30: =IF(F34=0,0,(F30/F34)) -> 0.1246534424 | H30: =(B30+E30) -> 25 | I30: 1182929 | J30: =IF(I34=0,0,(I30/I34)) -> 0.09729161074
A31: 富邦 | B31: 16 | C31: 922261 | D31: =IF(C34=0,0,(C31/C34)) -> 0.1911979703 | E31: 16 | F31: 695419 | G31: =IF(F34=0,0,(F31/F34)) -> 0.09480831629 | H31: 32 | I31: 1617680 | J31: =IF(I34=0,0,(I31/I34)) -> 0.1330483003
A32: 明台 | B32: 34 | C32: 1753293 | D32: =IF(C34=0,0,(C32/C34)) -> 0.3634828568 | E32: 83 | F32: 3430658 | G32: =IF(F34=0,0,(F32/F34)) -> 0.4677107021 | H32: 117 | I32: 5183951 | J32: =IF(I34=0,0,(I32/I34)) -> 0.426361128
A33: 華南 | B33: 33 | C33: 1879442 | D33: =IF(C34=0,0,(C33/C34)) -> 0.3896353589 | E33: 62 | F33: 2294590 | G33: =IF(F34=0,0,(F33/F34)) -> 0.3128275392 | H33: 95 | I33: 4174032 | J33: =IF(I34=0,0,(I33/I34)) -> 0.3432989609
A34: 合計 | B34: =SUM(B30:B33) -> 89 | C34: =SUM(C30:C33) -> 4823592 | D34: =(C34/C45) -> 1 | E34: =SUM(E30:E33) -> 180 | F34: =SUM(F30:F33) -> 7335000 | G34: =(F34/F45) -> 0.8344539969 | H34: =SUM(H30:H33) -> 269 | I34: =SUM(I30:I33) -> 12158592 | J34: =(I34/I45) -> 0.8931097783
A35: 台產 | B35: 0 | C35: 0 | D35: =IF(C39=0,0,(C35/C39)) -> 0 | E35: 5 | F35: 97160 | G35: =IF(F39=0,0,(F35/F39)) -> 0.1698378709 | H35: =(B35+E35) -> 5 | I35: 97160 | J35: =IF(I39=0,0,(I35/I39)) -> 0.1698378709
A36: 富邦 | B36: 0 | C36: 0 | D36: =IF(C39=0,0,(C36/C39)) -> 0 | E36: 0 | F36: 0 | G36: =IF(F39=0,0,(F36/F39)) -> 0 | H36: 0 | I36: 0 | J36: =IF(I39=0,0,(I36/I39)) -> 0
A37: 明台 | B37: 0 | C37: 0 | D37: =IF(C39=0,0,(C37/C39)) -> 0 | E37: 6 | F37: 252705 | G37: =IF(F39=0,0,(F37/F39)) -> 0.4417340384 | H37: 6 | I37: 252705 | J37: =IF(I39=0,0,(I37/I39)) -> 0.4417340384
A38: 華南 | B38: 0 | C38: 0 | D38: =IF(C39=0,0,(C38/C39)) -> 0 | E38: 10 | F38: 222210 | G38: =IF(F39=0,0,(F38/F39)) -> 0.3884280907 | H38: 10 | I38: 222210 | J38: =IF(I39=0,0,(I38/I39)) -> 0.3884280907
A39: 服務部 | B39: =SUM(B35:B38) -> 0 | C39: =SUM(C35:C38) -> 0 | D39: =(C39/C45) -> 0 | E39: =SUM(E35:E38) -> 21 | F39: =SUM(F35:F38) -> 572075 | G39: =(F39/F45) -> 0.06508115478 | H39: =SUM(H35:H38) -> 21 | I39: =SUM(I35:I38) -> 572075 | J39: =(I39/I45) -> 0.04202178809
A40: 台產 | B40: 0 | C40: 0 | D40: =IF(C44=0,0,(C40/C44)) -> 0 | E40: 3 | F40: 168532 | G40: =IF(F44=0,0,(F40/F44)) -> 0.1908404899 | H40: =(B40+E40) -> 3 | I40: 168532 | J40: =IF(I44=0,0,(I40/I44)) -> 0.1908404899
A41: 富邦 | B41: 0 | C41: 0 | D41: =IF(C44=0,0,(C41/C44)) -> 0 | E41: 1 | F41: 20210 | G41: =IF(F44=0,0,(F41/F44)) -> 0.0228851868 | H41: 1 | I41: 20210 | J41: =IF(I44=0,0,(I41/I44)) -> 0.0228851868
A42: 明台 | B42: 0 | C42: 0 | D42: =IF(C44=0,0,(C42/C44)) -> 0 | E42: 5 | F42: 129760 | G42: =IF(F44=0,0,(F42/F44)) -> 0.1469362612 | H42: 5 | I42: 129760 | J42: =IF(I44=0,0,(I42/I44)) -> 0.1469362612
A43: 華南 | B43: 0 | C43: 0 | D43: =IF(C44=0,0,(C43/C44)) -> 0 | E43: 13 | F43: 564602 | G43: =IF(F44=0,0,(F43/F44)) -> 0.6393380621 | H43: 13 | I43: 564602 | J43: =IF(I44=0,0,(I43/I44)) -> 0.6393380621
A44: STF | B44: =SUM(B40:B43) -> 0 | C44: =SUM(C40:C43) -> 0 | D44: =(C44/C45) -> 0 | E44: =SUM(E40:E43) -> 22 | F44: =SUM(F40:F43) -> 883104 | G44: =(F44/F45) -> 0.1004648483 | H44: =SUM(H40:H43) -> 22 | I44: =SUM(I40:I43) -> 883104 | J44: =(I44/I45) -> 0.06486843359
A45: 總計 | B45: =(B34+B39+B44) -> 89 | C45: 4823592 | D45: 1 | E45: 223 | F45: 8790179 | G45: 1 | H45: 312 | I45: 13613771 | J45: 1

Sheet H.YD-部門保險佔比分析表
A1: 2014/01月 各單位保險公司佔比分析表
B3: 新保 | E3: 續保 | H3: 合計
B4: 件數 | C4: 金額 | D4: % | E4: 件數 | F4: 金額 | G4: % | H4: 件數 | I4: 金額 | J4: %
A5: 台產 | B5: 2 | C5: 58700 | D5: =IF(C9=0,0,(C5/C9)) -> 0.04124537131 | E5: 4 | F5: 153417 | G5: =IF(F9=0,0,(F5/F9)) -> 0.07268316117 | H5: =(B5+E5) -> 6 | I5: 212117 | J5: =IF(I9=0,0,(I5/I9)) -> 0.06002256962
A6: 富邦 | B6: 6 | C6: 262422 | D6: =IF(C9=0,0,(C6/C9)) -> 0.1843899971 | E6: 7 | F6: 281976 | G6: =IF(F9=0,0,(F6/F9)) -> 0.1335895439 | H6: 13 | I6: 544398 | J6: =IF(I9=0,0,(I6/I9)) -> 0.1540478456
A7: 明台 | B7: 11 | C7: 501561 | D7: =IF(C9=0,0,(C7/C9)) -> 0.3524202671 | E7: 22 | F7: 700884 | G7: =IF(F9=0,0,(F7/F9)) -> 0.3320522806 | H7: 33 | I7: 1202445 | J7: =IF(I9=0,0,(I7/I9)) -> 0.3402548533
A8: 華南 | B8: 8 | C8: 600507 | D8: =IF(C9=0,0,(C8/C9)) -> 0.4219443644 | E8: 29 | F8: 974487 | G8: =IF(F9=0,0,(F8/F9)) -> 0.4616750144 | H8: 37 | I8: 1574994 | J8: =IF(I9=0,0,(I8/I9)) -> 0.4456747315
A9: 營一課 | B9: =SUM(B5:B8) -> 27 | C9: =SUM(C5:C8) -> 1423190 | D9: =(C9/C34) -> 0.2950477569 | E9: =SUM(E5:E8) -> 62 | F9: =SUM(F5:F8) -> 2110764 | G9: =(F9/F34) -> 0.2877660532 | H9: =SUM(H5:H8) -> 89 | I9: =SUM(I5:I8) -> 3533954 | J9: =(I9/I34) -> 0.2906548719
A10: 台產 | B10: 1 | C10: 62821 | D10: =IF(C14=0,0,(C10/C14)) -> 0.03816272663 | E10: 7 | F10: 346313 | G10: =IF(F14=0,0,(F10/F14)) -> 0.1125613124 | H10: =(B10+E10) -> 8 | I10: 409134 | J10: =IF(I14=0,0,(I10/I14)) -> 0.08662961517
A11: 富邦 | B11: 3 | C11: 228219 | D11: =IF(C14=0,0,(C11/C14)) -> 0.1386392975 | E11: 7 | F11: 289241 | G11: =IF(F14=0,0,(F11/F14)) -> 0.09401133242 | H11: 10 | I11: 517460 | J11: =IF(I14=0,0,(I11/I14)) -> 0.1095664517
A12: 明台 | B12: 8 | C12: 473620 | D12: =IF(C14=0,0,(C12/C14)) -> 0.2877163781 | E12: 33 | F12: 1445200 | G12: =IF(F14=0,0,(F12/F14)) -> 0.4697300093 | H12: 41 | I12: 1918820 | J12: =IF(I14=0,0,(I12/I14)) -> 0.4062889864
A13: 華南 | B13: 18 | C13: 881475 | D13: =IF(C14=0,0,(C13/C14)) -> 0.5354815978 | E13: 22 | F13: 995907 | G13: =IF(F14=0,0,(F13/F14)) -> 0.3236973459 | H13: 40 | I13: 1877382 | J13: =IF(I14=0,0,(I13/I14)) -> 0.3975149467
A14: 營二課 | B14: =SUM(B10:B13) -> 30 | C14: =SUM(C10:C13) -> 1646135 | D14: =(C14/C34) -> 0.3412674621 | E14: =SUM(E10:E13) -> 69 | F14: =SUM(F10:F13) -> 3076661 | G14: =(F14/F34) -> 0.4194493524 | H14: =SUM(H10:H13) -> 99 | I14: =SUM(I10:I13) -> 4722796 | J14: =(I14/I34) -> 0.3884328054
A15: 台產 | B15: 0 | C15: 0 | D15: =IF(C19=0,0,(C15/C19)) -> 0 | E15: 8 | F15: 414603 | G15: =IF(F19=0,0,(F15/F19)) -> 0.1974343248 | H15: =(B15+E15) -> 8 | I15: 414603 | J15: =IF(I19=0,0,(I15/I19)) -> 0.1166088502
A16: 富邦 | B16: 7 | C16: 431620 | D16: =IF(C19=0,0,(C16/C19)) -> 0.2965343637 | E16: 1 | F16: 76581 | G16: =IF(F19=0,0,(F16/F19)) -> 0.03646794168 | H16: 8 | I16: 508201 | J16: =IF(I19=0,0,(I16/I19)) -> 0.1429336842
A17: 明台 | B17: 11 | C17: 626468 | D17: =IF(C19=0,0,(C17/C19)) -> 0.4304000967 | E17: 28 | F17: 1284574 | G17: =IF(F19=0,0,(F17/F19)) -> 0.6117153042 | H17: 39 | I17: 1911042 | J17: =IF(I19=0,0,(I17/I19)) -> 0.5374886584
A18: 華南 | B18: 7 | C18: 397460 | D18: =IF(C19=0,0,(C18/C19)) -> 0.2730655396 | E18: 11 | F18: 324196 | G18: =IF(F19=0,0,(F18/F19)) -> 0.1543824293 | H18: 18 | I18: 721656 | J18: =IF(I19=0,0,(I18/I19)) -> 0.2029688072
A19: 營三課 | B19: =SUM(B15:B18) -> 25 | C19: =SUM(C15:C18) -> 1455548 | D19: =(C19/C34) -> 0.3017560358 | E19: =SUM(E15:E18) -> 48 | F19: =SUM(F15:F18) -> 2099954 | G19: =(F19/F34) -> 0.2862922972 | H19: =SUM(H15:H18) -> 73 | I19: =SUM(I15:I18) -> 3555502 | J19: =(I19/I34) -> 0.2924271166
A20: 台產 | B20: 0 | C20: 0 | D20: =IF(C24=0,0,(C20/C24)) -> 0 | E20: 0 | F20: 0 | G20: =IF(F24=0,0,(F20/F24)) -> 0 | H20: =(B20+E20) -> 0 | I20: 0 | J20: =IF(I24=0,0,(I20/I24)) -> 0
A21: 富邦 | B21: 0 | C21: 0 | D21: =IF(C24=0,0,(C21/C24)) -> 0 | E21: 0 | F21: 0 | G21: =IF(F24=0,0,(F21/F24)) -> 0 | H21: 0 | I21: 0 | J21: =IF(I24=0,0,(I21/I24)) -> 0
A22: 明台 | B22: 0 | C22: 0 | D22: =IF(C24=0,0,(C22/C24)) -> 0 | E22: 0 | F22: 0 | G22: =IF(F24=0,0,(F22/F24)) -> 0 | H22: 0 | I22: 0 | J22: =IF(I24=0,0,(I22/I24)) -> 0
A23: 華南 | B23: 0 | C23: 0 | D23: =IF(C24=0,0,(C23/C24)) -> 0 | E23: 0 | F23: 0 | G23: =IF(F24=0,0,(F23/F24)) -> 0 | H23: 0 | I23: 0 | J23: =IF(I24=0,0,(I23/I24)) -> 0
A24: 行銷業務部 | B24: =SUM(B20:B23) -> 0 | C24: =SUM(C20:C23) -> 0 | D24: =(C24/C34) -> 0 | E24: =SUM(E20:E23) -> 0 | F24: =SUM(F20:F23) -> 0 | G24: =(F24/F34) -> 0 | H24: =SUM(H20:H23) -> 0 | I24: =SUM(I20:I23) -> 0 | J24: =(I24/I34) -> 0
A25: 台產 | B25: 3 | C25: 147075 | D25: =IF(C29=0,0,(C25/C29)) -> 0.4923523445 | E25: 0 | F25: 0 | G25: =IF(F29=0,0,(F25/F29)) -> 0 | H25: =(B25+E25) -> 3 | I25: 147075 | J25: =IF(I29=0,0,(I25/I29)) -> 0.4246549633
A26: 富邦 | B26: 0 | C26: 0 | D26: =IF(C29=0,0,(C26/C29)) -> 0 | E26: 1 | F26: 47621 | G26: =IF(F29=0,0,(F26/F29)) -> 1 | H26: 1 | I26: 47621 | J26: =IF(I29=0,0,(I26/I29)) -> 0.1374978345
A27: 明台 | B27: 4 | C27: 151644 | D27: =IF(C29=0,0,(C27/C29)) -> 0.5076476555 | E27: 0 | F27: 0 | G27: =IF(F29=0,0,(F27/F29)) -> 0 | H27: 4 | I27: 151644 | J27: =IF(I29=0,0,(I27/I29)) -> 0.4378472022
A28: 華南 | B28: 0 | C28: 0 | D28: =IF(C29=0,0,(C28/C29)) -> 0 | E28: 0 | F28: 0 | G28: =IF(F29=0,0,(F28/F29)) -> 0 | H28: 0 | I28: 0 | J28: =IF(I29=0,0,(I28/I29)) -> 0
A29: 營業部 | B29: =SUM(B25:B28) -> 7 | C29: =SUM(C25:C28) -> 298719 | D29: =(C29/C45) -> 0.06192874522 | E29: =SUM(E25:E28) -> 1 | F29: =SUM(F25:F28) -> 47621 | G29: =(F29/F45) -> 0.005417523352 | H29: =SUM(H25:H28) -> 8 | I29: =SUM(I25:I28) -> 346340 | J29: =(I29/I45) -> 0.02544041618
A30: 台產 | B30: 6 | C30: 268596 | D30: =IF(C34=0,0,(C30/C34)) -> 0.05568381405 | E30: 19 | F30: 914333 | G30: =IF(F34=0,0,(F30/F34)) -> 0.1246534424 | H30: =(B30+E30) -> 25 | I30: 1182929 | J30: =IF(I34=0,0,(I30/I34)) -> 0.09729161074
A31: 富邦 | B31: 16 | C31: 922261 | D31: =IF(C34=0,0,(C31/C34)) -> 0.1911979703 | E31: 16 | F31: 695419 | G31: =IF(F34=0,0,(F31/F34)) -> 0.09480831629 | H31: 32 | I31: 1617680 | J31: =IF(I34=0,0,(I31/I34)) -> 0.1330483003
A32: 明台 | B32: 34 | C32: 1753293 | D32: =IF(C34=0,0,(C32/C34)) -> 0.3634828568 | E32: 83 | F32: 3430658 | G32: =IF(F34=0,0,(F32/F34)) -> 0.4677107021 | H32: 117 | I32: 5183951 | J32: =IF(I34=0,0,(I32/I34)) -> 0.426361128
A33: 華南 | B33: 33 | C33: 1879442 | D33: =IF(C34=0,0,(C33/C34)) -> 0.3896353589 | E33: 62 | F33: 2294590 | G33: =IF(F34=0,0,(F33/F34)) -> 0.3128275392 | H33: 95 | I33: 4174032 | J33: =IF(I34=0,0,(I33/I34)) -> 0.3432989609
A34: 合計 | B34: =SUM(B30:B33) -> 89 | C34: =SUM(C30:C33) -> 4823592 | D34: =(C34/C45) -> 1 | E34: =SUM(E30:E33) -> 180 | F34: =SUM(F30:F33) -> 7335000 | G34: =(F34/F45) -> 0.8344539969 | H34: =SUM(H30:H33) -> 269 | I34: =SUM(I30:I33) -> 12158592 | J34: =(I34/I45) -> 0.8931097783
A35: 台產 | B35: 0 | C35: 0 | D35: =IF(C39=0,0,(C35/C39)) -> 0 | E35: 5 | F35: 97160 | G35: =IF(F39=0,0,(F35/F39)) -> 0.1698378709 | H35: =(B35+E35) -> 5 | I35: 97160 | J35: =IF(I39=0,0,(I35/I39)) -> 0.1698378709
A36: 富邦 | B36: 0 | C36: 0 | D36: =IF(C39=0,0,(C36/C39)) -> 0 | E36: 0 | F36: 0 | G36: =IF(F39=0,0,(F36/F39)) -> 0 | H36: 0 | I36: 0 | J36: =IF(I39=0,0,(I36/I39)) -> 0
A37: 明台 | B37: 0 | C37: 0 | D37: =IF(C39=0,0,(C37/C39)) -> 0 | E37: 6 | F37: 252705 | G37: =IF(F39=0,0,(F37/F39)) -> 0.4417340384 | H37: 6 | I37: 252705 | J37: =IF(I39=0,0,(I37/I39)) -> 0.4417340384
A38: 華南 | B38: 0 | C38: 0 | D38: =IF(C39=0,0,(C38/C39)) -> 0 | E38: 10 | F38: 222210 | G38: =IF(F39=0,0,(F38/F39)) -> 0.3884280907 | H38: 10 | I38: 222210 | J38: =IF(I39=0,0,(I38/I39)) -> 0.3884280907
A39: 服務部 | B39: =SUM(B35:B38) -> 0 | C39: =SUM(C35:C38) -> 0 | D39: =(C39/C45) -> 0 | E39: =SUM(E35:E38) -> 21 | F39: =SUM(F35:F38) -> 572075 | G39: =(F39/F45) -> 0.06508115478 | H39: =SUM(H35:H38) -> 21 | I39: =SUM(I35:I38) -> 572075 | J39: =(I39/I45) -> 0.04202178809
A40: 台產 | B40: 0 | C40: 0 | D40: =IF(C44=0,0,(C40/C44)) -> 0 | E40: 3 | F40: 168532 | G40: =IF(F44=0,0,(F40/F44)) -> 0.1908404899 | H40: =(B40+E40) -> 3 | I40: 168532 | J40: =IF(I44=0,0,(I40/I44)) -> 0.1908404899
A41: 富邦 | B41: 0 | C41: 0 | D41: =IF(C44=0,0,(C41/C44)) -> 0 | E41: 1 | F41: 20210 | G41: =IF(F44=0,0,(F41/F44)) -> 0.0228851868 | H41: 1 | I41: 20210 | J41: =IF(I44=0,0,(I41/I44)) -> 0.0228851868
A42: 明台 | B42: 0 | C42: 0 | D42: =IF(C44=0,0,(C42/C44)) -> 0 | E42: 5 | F42: 129760 | G42: =IF(F44=0,0,(F42/F44)) -> 0.1469362612 | H42: 5 | I42: 129760 | J42: =IF(I44=0,0,(I42/I44)) -> 0.1469362612
A43: 華南 | B43: 0 | C43: 0 | D43: =IF(C44=0,0,(C43/C44)) -> 0 | E43: 13 | F43: 564602 | G43: =IF(F44=0,0,(F43/F44)) -> 0.6393380621 | H43: 13 | I43: 564602 | J43: =IF(I44=0,0,(I43/I44)) -> 0.6393380621
A44: STF | B44: =SUM(B40:B43) -> 0 | C44: =SUM(C40:C43) -> 0 | D44: =(C44/C45) -> 0 | E44: =SUM(E40:E43) -> 22 | F44: =SUM(F40:F43) -> 883104 | G44: =(F44/F45) -> 0.1004648483 | H44: =SUM(H40:H43) -> 22 | I44: =SUM(I40:I43) -> 883104 | J44: =(I44/I45) -> 0.06486843359
A45: 總計 | B45: =(B34+B39+B44) -> 89 | C45: 4823592 | D45: 1 | E45: 223 | F45: 8790179 | G45: 1 | H45: 312 | I45: 13613771 | J45: 1

Sheet J.YD-業代新保獎勵統計表
E2: 2014年第1季業代新車保險獎勵統計
A4: 紅色部份不相符，欄位位置須調整
A5: 業務代業 | B5: 銷售台數 | J5: 承保金額
B6: 一般 | C6: 租賃 | D6: 車體件數 | E6: 其他件數 | F6: 單強制件數 | G6: 新車承保率(含專案) | H6: 單強制金額 | I6: 總金額(含強制) | J6: 意外險以上 | K6: 提撥率 | L6: 加權提撥率 | M6: 未達60%,八折 | N6: 業代獎金 | O6: 專案件數 | P6: 新車承保率(不含專案)
A7: 凌大偉 | B7: 13 | C7: 0 | D7: 4 | E7: 2 | F7: 3 | G7: =((D7+E7+O7)/B7) -> 0.7692307692 | H7: 3895 | I7: 226289 | J7: =(I7-H7) -> 222394 | K7: =IF(G7<0.7,"0",IF(G7<0.75,"0.5%",IF(G7<0.8,"1%",IF(G7<0.85,"1.25%",IF(G7<0.9,"1.5%",IF(G7<0.95,"2%",IF(G7<1.01,"2.5%","0"))))))) -> 1% | L7: =IF(J7=0,"0",IF(J7<300000,"0.75",IF(J7<500000,"1",IF(J7<750000,"1.25",IF(J7<1000000,"1.5",IF(J7>1000000,"1.75")))))) -> 0.75 | M7: 1 | N7: =ROUND(J7*K7*L7*M7,0) -> 1668 | O7: 4 | P7: =((D7+E7)/(B7-O7)) -> 0.6666666667
A8: 張健宏 | B8: 11 | C8: 0 | D8: 7 | E8: 1 | F8: 0 | G8: 1 | H8: 0 | I8: 567670 | J8: 567670 | K8: 2.5% | L8: 1.25 | M8: 1 | N8: 17740 | O8: 3 | P8: 1
A9: 梁大民 | B9: 2 | C9: 0 | D9: 0 | E9: 0 | F9: 1 | G9: 0.5 | H9: 1398 | I9: 1398 | J9: 0 | K9: 0 | L9: 0 | M9: 1 | N9: 0 | O9: 1 | P9: 0
A10: 林柏霖 | B10: 3 | C10: 0 | D10: 2 | E10: 0 | F10: 0 | G10: 1 | H10: 0 | I10: 165719 | J10: 165719 | K10: 2.5% | L10: 0.75 | M10: 1 | N10: 3107 | O10: 1 | P10: 1
A11: 李昀融 | B11: 5 | C11: 1 | D11: 3 | E11: 0 | F11: 2 | G11: 0.6 | H11: 2037 | I11: 187318 | J11: 185281 | K11: 0 | L11: 0.75 | M11: 1 | N11: 0 | O11: 0 | P11: 0.6
A12: 王裕明 | B12: 4 | C12: 0 | D12: 3 | E12: 1 | F12: 0 | G12: 1 | I12: 227518 | J12: 227518 | K12: 2.5% | L12: 0.75 | M12: 1 | N12: 4266 | O12: 0 | P12: 1
A13: 蘇士文 | B13: 8 | C13: 2 | D13: 4 | E13: 1 | F13: 1 | G13: 0.75 | H13: 1099 | I13: 201079 | J13: 199980 | K13: 1% | L13: 0.75 | M13: 1 | N13: 1500 | O13: 1 | P13: 0.7142857143
A14: 郭天南 | B14: 7 | C14: 0 | D14: 5 | E14: 0 | F14: 1 | G14: 0.8571428571 | H14: 1398 | I14: 386791 | J14: 385393 | K14: 1.5% | L14: 1 | M14: 1 | N14: 5781 | O14: 1 | P14: 0.8333333333
A15: 花志明 | B15: 3 | C15: 3 | D15: 2 | E15: 0 | F15: 0 | G15: 0.6666666667 | I15: 94233 | J15: 94233 | K15: 0 | L15: 0.75 | M15: 1 | N15: 0 | O15: 0 | P15: 0.6666666667
A16: 陳龍雲 | B16: 10 | C16: 2 | D16: 10 | E16: 0 | F16: 0 | G16: 1 | I16: 642829 | J16: 642829 | K16: 2.5% | L16: 1.25 | M16: 1 | N16: 20088 | O16: 0 | P16: 1
A17: 營一課合計 | B17: =SUM(B7:B16) -> 66 | C17: =SUM(C7:C16) -> 8 | D17: =SUM(D7:D16) -> 40 | E17: =SUM(E7:E16) -> 5 | F17: =SUM(F7:F16) -> 8 | G17: 0.8484848485 | H17: =SUM(H7:H16) -> 9827 | I17: =SUM(I7:I16) -> 2700844 | J17: =SUM(J7:J16) -> 2691017 | N17: =SUM(N7:N16) -> 54150 | O17: =SUM(O7:O16) -> 11 | P17: 0.8181818182
A18: 張昇文 | B18: 1 | C18: 1 | D18: 1 | E18: 0 | F18: 0 | G18: 1 | I18: 34125 | J18: =(I18-H18) -> 34125 | K18: =IF(G18<0.7,"0",IF(G18<0.75,"0.5%",IF(G18<0.8,"1%",IF(G18<0.85,"1.25%",IF(G18<0.9,"1.5%",IF(G18<0.95,"2%",IF(G18<1.01,"2.5%","0"))))))) -> 2.5% | L18: =IF(J18=0,"0",IF(J18<300000,"0.75",IF(J18<500000,"1",IF(J18<750000,"1.25",IF(J18<1000000,"1.5",IF(J18>1000000,"1.75")))))) -> 0.75 | M18: 1 | N18: =ROUND(J18*K18*L18*M18,0) -> 640 | O18: 0 | P18: 1
A19: 戴子貽 | B19: 5 | C19: 1 | D19: 3 | E19: 0 | F19: 0 | G19: 1 | H19: 0 | I19: 228167 | J19: 228167 | K19: 2.5% | L19: 0.75 | M19: 1 | N19: 4278 | O19: 2 | P19: 1
A20: 林宗慶 | B20: 4 | C20: 0 | D20: 3 | E20: 0 | F20: 0 | G20: 1 | H20: 0 | I20: 186787 | J20: 186787 | K20: 2.5% | L20: 0.75 | M20: 1 | N20: 3502 | O20: 1 | P20: 1
A21: 林政勳 | B21: 8 | C21: 1 | D21: 6 | E21: 0 | F21: 2 | G21: 0.75 | H21: 2796 | I21: 457391 | J21: 454595 | K21: 1% | L21: 1 | M21: 1 | N21: 4546 | O21: 0 | P21: 0.75
A22: 林陳郎 | B22: 6 | C22: 0 | D22: 5 | E22: 0 | F22: 1 | G22: 0.8333333333 | H22: 889 | I22: 364029 | J22: 363140 | K22: 1.25% | L22: 1 | M22: 1 | N22: 4539 | O22: 0 | P22: 0.8333333333
A23: 王冠賢 | B23: 6 | C23: 1 | D23: 4 | E23: 0 | F23: 0 | G23: 1 | H23: 0 | I23: 214493 | J23: 214493 | K23: 2.5% | L23: 0.75 | M23: 1 | N23: 4022 | O23: 2 | P23: 1
A24: 王慶儒 | B24: 7 | C24: 1 | D24: 6 | E24: 0 | F24: 0 | G24: 1 | H24: 0 | I24: 433436 | J24: 433436 | K24: 2.5% | L24: 1 | M24: 1 | N24: 10836 | O24: 1 | P24: 1
A25: 謝中堅 | B25: 8 | C25: 1 | D25: 6 | E25: 0 | F25: 1 | G25: 0.75 | H25: 1099 | I25: 389872 | J25: 388773 | K25: 1% | L25: 1 | M25: 1 | N25: 3888 | O25: 0 | P25: 0.75
A26: 陳一鋐 | B26: 8 | C26: 1 | D26: 6 | E26: 0 | F26: 2 | G26: 0.75 | H26: 2118 | I26: 500203 | J26: 498085 | K26: 1% | L26: 1 | M26: 1 | N26: 4981 | O26: 0 | P26: 0.75
A27: 陳維德 | B27: 5 | C27: 1 | D27: 2 | E27: 0 | F27: 1 | G27: 0.6 | H27: 1099 | I27: 111268 | J27: 110169 | K27: 0 | L27: 0.75 | M27: 1 | N27: 0 | O27: 1 | P27: 0.5
A28: 莊朝清 | B28: 8 | C28: 0 | D28: 3 | E28: 1 | F28: 3 | G28: 0.625 | H28: 3685 | I28: 212436 | J28: 208751 | K28: 0 | L28: 0.75 | M28: 1 | N28: 0 | O28: 1 | P28: 0.5714285714
A29: 營二課合計 | B29: =SUM(B18:B28) -> 66 | C29: =SUM(C18:C28) -> 8 | D29: =SUM(D18:D28) -> 45 | E29: =SUM(E18:E28) -> 1 | F29: =SUM(F18:F28) -> 10 | G29: 0.8181818182 | H29: =SUM(H18:H28) -> 11686 | I29: =SUM(I18:I28) -> 3132207 | J29: =SUM(J18:J28) -> 3120521 | N29: =SUM(N18:N28) -> 41232 | O29: =SUM(O18:O28) -> 8 | P29: 0.7931034483
A30: 孫茂耀 | B30: 3 | C30: 1 | D30: 3 | E30: 0 | F30: 0 | G30: 1 | I30: 188168 | J30: =(I30-H30) -> 188168 | K30: =IF(G30<0.7,"0",IF(G30<0.75,"0.5%",IF(G30<0.8,"1%",IF(G30<0.85,"1.25%",IF(G30<0.9,"1.5%",IF(G30<0.95,"2%",IF(G30<1.01,"2.5%","0"))))))) -> 2.5% | L30: =IF(J30=0,"0",IF(J30<300000,"0.75",IF(J30<500000,"1",IF(J30<750000,"1.25",IF(J30<1000000,"1.5",IF(J30>1000000,"1.75")))))) -> 0.75 | M30: 1 | N30: =ROUND(J30*K30*L30*M30,0) -> 3528 | O30: 0 | P30: 1
A31: 劉家任 | B31: 6 | C31: 0 | D31: 4 | E31: 0 | F31: 0 | G31: 0.8333333333 | H31: 0 | I31: 256174 | J31: 256174 | K31: 1.25% | L31: 0.75 | M31: 1 | N31: 2402 | O31: 1 | P31: 0.8
A32: 林謙慶 | B32: 7 | C32: 1 | D32: 5 | E32: 0 | F32: 1 | G32: 0.8571428571 | H32: 1019 | I32: 318131 | J32: 317112 | K32: 1.5% | L32: 1 | M32: 1 | N32: 4757 | O32: 1 | P32: 0.8333333333
A33: 林芳明 | B33: 7 | C33: 1 | D33: 6 | E33: 0 | F33: 1 | G33: 0.8571428571 | H33: 1099 | I33: 395695 | J33: 394596 | K33: 1.5% | L33: 1 | M33: 1 | N33: 5919 | O33: 0 | P33: 0.8571428571
A34: 李玄璸 | B34: 3 | C34: 0 | D34: 1 | E34: 0 | F34: 1 | G34: 0.6666666667 | H34: 1148 | I34: 115339 | J34: 114191 | K34: 0 | L34: 0.75 | M34: 1 | N34: 0 | O34: 1 | P34: 0.5
A35: 簡志勳 | B35: 12 | C35: 1 | D35: 10 | E35: 0 | F35: 1 | G35: 0.9166666667 | H35: 1457 | I35: 695157 | J35: 693700 | K35: 2% | L35: 1.25 | M35: 1 | N35: 17343 | O35: 1 | P35: 0.9090909091
A36: 鄭英彥 | B36: 5 | C36: 1 | D36: 3 | E36: 1 | F36: 1 | G36: 0.8 | H36: 1398 | I36: 244004 | J36: 242606 | K36: 1.25% | L36: 0.75 | M36: 1 | N36: 2274 | O36: 0 | P36: 0.8
A37: 黃盛緯 | B37: 3 | C37: 5 | D37: 2 | E37: 0 | F37: 0 | G37: 1 | H37: 0 | I37: 137596 | J37: 137596 | K37: 2.5% | L37: 0.75 | M37: 1 | N37: 2580 | O37: 1 | P37: 1
A38: 賈勇華 | B38: 8 | C38: 0 | D38: 6 | E38: 1 | F38: 1 | G38: 0.875 | H38: 1138 | I38: 593702 | J38: 592564 | K38: 1.5% | L38: 1.25 | M38: 1 | N38: 11111 | O38: 0 | P38: 0.875
A39: 郭力嘉 | B39: 2 | C39: 0 | D39: 2 | E39: 0 | F39: 0 | G39: 1 | I39: 133123 | J39: 133123 | K39: 2.5% | L39: 0.75 | M39: 1 | N39: 2496 | O39: 0 | P39: 1
A40: 陳禮建 | B40: 4 | C40: 0 | D40: 4 | E40: 0 | F40: 0 | G40: 1 | I40: 259105 | J40: 259105 | K40: 2.5% | L40: 0.75 | M40: 1 | N40: 4858 | O40: 0 | P40: 1
A41: 營三課合計 | B41: =SUM(B30:B40) -> 60 | C41: =SUM(C30:C40) -> 10 | D41: =SUM(D30:D40) -> 46 | E41: =SUM(E30:E40) -> 2 | F41: =SUM(F30:F40) -> 6 | G41: 0.8833333333 | H41: =SUM(H30:H40) -> 7259 | I41: =SUM(I30:I40) -> 3336194 | J41: =SUM(J30:J40) -> 3328935 | N41: =SUM(N30:N40) -> 57268 | O41: =SUM(O30:O40) -> 5 | P41: 0.8727272727
A42: 行銷業務部合計
A43: 陳德益 | B43: 25 | C43: 0 | D43: 8 | E43: 0 | F43: 18 | G43: =((D43+E43+O43)/B43) -> 0.32 | H43: 25164 | I43: 475755 | J43: =(I43-H43) -> 450591 | K43: =IF(G43<0.7,"0",IF(G43<0.75,"0.5%",IF(G43<0.8,"1%",IF(G43<0.85,"1.25%",IF(G43<0.9,"1.5%",IF(G43<0.95,"2%",IF(G43<1.01,"2.5%","0"))))))) -> 0 | L43: =IF(J43=0,"0",IF(J43<300000,"0.75",IF(J43<500000,"1",IF(J43<750000,"1.25",IF(J43<1000000,"1.5",IF(J43>1000000,"1.75")))))) -> 1 | M43: 1 | N43: =ROUND(J43*K43*L43*M43,0) -> 0 | O43: 0 | P43: =((D43+E43)/(B43-O43)) -> 0.32
A44: 營業部合計 | B44: =SUM(B43:B43) -> 25 | C44: =SUM(C43:C43) -> 0 | D44: =SUM(D43:D43) -> 8 | E44: =SUM(E43:E43) -> 0 | F44: =SUM(F43:F43) -> 18 | G44: =((D44+E44+O44)/B44) -> 0.32 | H44: =SUM(H43:H43) -> 25164 | I44: =SUM(I43:I43) -> 475755 | J44: =SUM(J43:J43) -> 450591 | N44: =SUM(N43:N43) -> 0 | O44: =SUM(O43:O43) -> 0 | P44: =((D44+E44)/(B44-O44)) -> 0.32
A45: 總計 | B45: =SUM(B7:B44)/2 -> 217 | C45: =SUM(C7:C44)/2 -> 26 | D45: =SUM(D7:D44)/2 -> 139 | E45: =SUM(E7:E44)/2 -> 8 | F45: =SUM(F7:F44)/2 -> 42 | G45: =((D45+E45)/B45) -> 0.6774193548 | H45: =SUM(H7:H44)/2 -> 53936 | I45: =SUM(I7:I44)/2 -> 9645000 | J45: =SUM(J7:J44)/2 -> 9591064 | N45: =SUM(N7:N44)/2 -> 152650 | O45: =((C45+D45)/(A45-N45)) -> 
A46: 總計(不含營業部) | B46: =(B45-B44) -> 192 | C46: =(C45-C44) -> 26 | D46: =(D45-D44) -> 131 | E46: =(E45-E44) -> 8 | F46: =(F45-F44) -> 24 | G46: =((D46+E46)/B46) -> 0.7239583333 | H46: =(H45-H44) -> 28772 | I46: =(I45-I44) -> 9169245 | J46: =(J45-J44) -> 9140473 | N46: =(N45-N44) -> 152650 | O46: =((C46+D46)/(A46-N46)) -> 

Sheet J.獎勵金(正確版)
A1: 內部文件嚴禁外流
A2: 2014年第一季業代新車承保獎勵統計表（依德）
J3: 投保率<70% | R3: 2014-04-02
A4: 業務代業 | C4: 鋿售台數 | E4: 車體 | F4: 其他 | G4: 強制 | H4: 合計 | I4: 專案 | J4: 新車承保率 | K4: 新車承保率 | M4: 承保金額 | O4: 提撥率 | P4: 加權 提撥率 | Q4: 2013年 第四季 承保率未達 60%,八折計 | R4: 業代獎金 | V4: 程式保護
B5: 一般(A) | C5: 租賃(B) | D5: 合計(C) | E5: D | F5: E | G5: F | H5: G | I5: H | J5: 含專案((D+E+H)/A) | K5: 不含專案((D+E)/(A-H)) | L5: 單強制 | M5: (車體+其他) | N5: 總金額 | U5: 1 | V5: 上季達標準值
A6: 梁大民 | B6: 2 | C6: 0 | D6: 2 | E6: 0 | F6: 0 | G6: 1 | H6: 1 | I6: 1 | J6: =IF(ISERROR(ROUND(($E6+$F6+$I6)/$B6,3)),"",ROUND(($E6+$F6+$I6)/$B6,3)) -> 0.5 | K6: =IF(ISERROR(ROUND(($E6+$F6)/($B6-$I6),3)),"",ROUND(($E6+$F6)/($B6-$I6),3)) -> 0 | L6: 1398 | M6: 0 | N6: 1398 | O6: =IF($J6<70%,"0",IF($J6<75%,"0.5%",IF($J6<80%,"1%",IF($J6<85%,"1.25%",IF($J6<90%,"1.5%",IF($J6<95%,"2%",IF($J6<101%,"2.5%","0"))))))) -> 0 | P6: =IF($M6=0,"0",IF($M6<300000,"0.75",IF($M6<500000,"1",IF($M6<750000,"1.25",IF($M6<1000000,"1.5",IF($M6>1000000,"1.75")))))) -> 0 | Q6: =$U$5 -> 1 | R6: =ROUND($M6*$O6*$P6*$Q6,0) -> 0
A7: 凌大偉 | B7: 13 | C7: 0 | D7: 13 | E7: 4 | F7: 2 | G7: 3 | H7: 9 | I7: 4 | J7: =IF(ISERROR(ROUND(($E7+$F7+$I7)/$B7,3)),"",ROUND(($E7+$F7+$I7)/$B7,3)) -> 0.769 | K7: =IF(ISERROR(ROUND(($E7+$F7)/($B7-$I7),3)),"",ROUND(($E7+$F7)/($B7-$I7),3)) -> 0.667 | L7: 3895 | M7: 222394 | N7: 226289 | O7: =IF($J7<70%,"0",IF($J7<75%,"0.5%",IF($J7<80%,"1%",IF($J7<85%,"1.25%",IF($J7<90%,"1.5%",IF($J7<95%,"2%",IF($J7<101%,"2.5%","0"))))))) -> 1% | P7: =IF($M7=0,"0",IF($M7<300000,"0.75",IF($M7<500000,"1",IF($M7<750000,"1.25",IF($M7<1000000,"1.5",IF($M7>1000000,"1.75")))))) -> 0.75 | Q7: =$U$5 -> 1 | R7: =ROUND($M7*$O7*$P7*$Q7,0) -> 1668
A8: 花志明 | B8: 3 | C8: 3 | D8: 6 | E8: 2 | F8: 0 | G8: 0 | H8: 2 | I8: 0 | J8: 0.667 | K8: 0.667 | L8: 0 | M8: 94233 | N8: 94233 | O8: 0 | P8: 0.75 | Q8: 1 | R8: 0
A9: 林柏霖 | B9: 3 | C9: 0 | D9: 3 | E9: 2 | F9: 0 | G9: 0 | H9: 2 | I9: 1 | J9: 1 | K9: 1 | L9: 0 | M9: 165719 | N9: 165719 | O9: 2.5% | P9: 0.75 | Q9: 1 | R9: 3107
A10: 郭天南 | B10: 7 | C10: 0 | D10: 7 | E10: 5 | F10: 0 | G10: 1 | H10: 6 | I10: 1 | J10: 0.857 | K10: 0.833 | L10: 1398 | M10: 385393 | N10: 386791 | O10: 1.5% | P10: 1 | Q10: 1 | R10: 5781
A11: 陳龍雲 | B11: 10 | C11: 2 | D11: 12 | E11: 10 | F11: 0 | G11: 0 | H11: 10 | I11: 0 | J11: 1 | K11: 1 | L11: 0 | M11: 642829 | N11: 642829 | O11: 2.5% | P11: 1.25 | Q11: 1 | R11: 20088
A12: 張健宏 | B12: 11 | C12: 0 | D12: 11 | E12: 7 | F12: 1 | G12: 0 | H12: 8 | I12: 3 | J12: 1 | K12: 1 | L12: 0 | M12: 567670 | N12: 567670 | O12: 2.5% | P12: 1.25 | Q12: 1 | R12: 17740
A13: 王裕明 | B13: 4 | C13: 0 | D13: 4 | E13: 3 | F13: 1 | G13: 0 | H13: 4 | I13: 0 | J13: 1 | K13: 1 | L13: 0 | M13: 227518 | N13: 227518 | O13: 2.5% | P13: 0.75 | Q13: 1 | R13: 4266
A14: 蘇士文 | B14: 8 | C14: 2 | D14: 10 | E14: 4 | F14: 1 | G14: 1 | H14: 6 | I14: 1 | J14: 0.75 | K14: 0.714 | L14: 1099 | M14: 199980 | N14: 201079 | O14: 1% | P14: 0.75 | Q14: 1 | R14: 1500
A15: 李昀融 | B15: 5 | C15: 1 | D15: 6 | E15: 3 | F15: 0 | G15: 2 | H15: 5 | I15: 0 | J15: 0.6 | K15: 0.6 | L15: 2037 | M15: 186679 | N15: 188716 | O15: 0 | P15: 0.75 | Q15: 1 | R15: 0
A16: 盧培育 | B16: 0 | C16: 0 | D16: 0 | E16: 0 | F16: 0 | G16: 0 | H16: 0 | I16: 0 | L16: 0 | M16: 0 | N16: 0 | O16: 0 | P16: 0 | Q16: 1 | R16: 0
D17: 0 | H17: 0 | L17: 0 | R17: 0
D18: 0 | H18: 0 | L18: 0 | R18: 0
D19: 0 | H19: 0 | L19: 0 | R19: 0
A20: 營一課 | B20: 66 | C20: 8 | D20: 74 | E20: 40 | F20: 5 | G20: 8 | H20: 53 | I20: 11 | J20: =IF(ISERROR(ROUND(($E20+$F20+$I20)/$B20,3)),"",ROUND(($E20+$F20+$I20)/$B20,3)) -> 0.848 | K20: =IF(ISERROR(ROUND(($E20+$F20)/($B20-$I20),3)),"",ROUND(($E20+$F20)/($B20-$I20),3)) -> 0.818 | L20: 9827 | M20: 2692415 | N20: 2702242 | R20: =SUM(R6:R15) -> 54150
A21: 莊朝清 | B21: 8 | C21: 0 | D21: 8 | E21: 3 | F21: 1 | G21: 3 | H21: 7 | I21: 1 | J21: =IF(ISERROR(ROUND(($E21+$F21+$I21)/$B21,3)),"",ROUND(($E21+$F21+$I21)/$B21,3)) -> 0.625 | K21: =IF(ISERROR(ROUND(($E21+$F21)/($B21-$I21),3)),"",ROUND(($E21+$F21)/($B21-$I21),3)) -> 0.571 | L21: 3685 | M21: 208751 | N21: 212436 | O21: =IF($J21<70%,"0",IF($J21<75%,"0.5%",IF($J21<80%,"1%",IF($J21<85%,"1.25%",IF($J21<90%,"1.5%",IF($J21<95%,"2%",IF($J21<101%,"2.5%","0"))))))) -> 0 | P21: =IF($M21=0,"0",IF($M21<300000,"0.75",IF($M21<500000,"1",IF($M21<750000,"1.25",IF($M21<1000000,"1.5",IF($M21>1000000,"1.75")))))) -> 0.75 | Q21: =$U$5 -> 1 | R21: =ROUND($M21*$O21*$P21*$Q21,0) -> 0
A22: 林陳郎 | B22: 6 | C22: 0 | D22: 6 | E22: 5 | F22: 0 | G22: 1 | H22: 6 | I22: 0 | J22: =IF(ISERROR(ROUND(($E22+$F22+$I22)/$B22,3)),"",ROUND(($E22+$F22+$I22)/$B22,3)) -> 0.833 | K22: =IF(ISERROR(ROUND(($E22+$F22)/($B22-$I22),3)),"",ROUND(($E22+$F22)/($B22-$I22),3)) -> 0.833 | L22: 889 | M22: 363140 | N22: 364029 | O22: =IF($J22<70%,"0",IF($J22<75%,"0.5%",IF($J22<80%,"1%",IF($J22<85%,"1.25%",IF($J22<90%,"1.5%",IF($J22<95%,"2%",IF($J22<101%,"2.5%","0"))))))) -> 1.25% | P22: =IF($M22=0,"0",IF($M22<300000,"0.75",IF($M22<500000,"1",IF($M22<750000,"1.25",IF($M22<1000000,"1.5",IF($M22>1000000,"1.75")))))) -> 1 | Q22: =$U$5 -> 1 | R22: =ROUND($M22*$O22*$P22*$Q22,0) -> 4539
A23: 謝中堅 | B23: 8 | C23: 0 | D23: 8 | E23: 6 | F23: 0 | G23: 1 | H23: 7 | I23: 0 | J23: 0.75 | K23: 0.75 | L23: 1099 | M23: 388773 | N23: 389872 | O23: 1% | P23: 1 | Q23: 1 | R23: 3888
A24: 王慶儒 | B24: 7 | C24: 1 | D24: 8 | E24: 6 | F24: 0 | G24: 0 | H24: 6 | I24: 1 | J24: 1 | K24: 1 | L24: 0 | M24: 433436 | N24: 433436 | O24: 2.5% | P24: 1 | Q24: 1 | R24: 10836
A25: 張昇文 | B25: 1 | C25: 1 | D25: 2 | E25: 1 | F25: 0 | G25: 0 | H25: 1 | I25: 0 | J25: 1 | K25: 1 | L25: 0 | M25: 34125 | N25: 34125 | O25: 2.5% | P25: 0.75 | Q25: 1 | R25: 640
A26: 林政勳 | B26: 8 | C26: 1 | D26: 9 | E26: 6 | F26: 0 | G26: 2 | H26: 8 | I26: 0 | J26: 0.75 | K26: 0.75 | L26: 2796 | M26: 454595 | N26: 457391 | O26: 1% | P26: 1 | Q26: 1 | R26: 4546
A27: 陳維德 | B27: 5 | C27: 1 | D27: 6 | E27: 2 | F27: 0 | G27: 1 | H27: 3 | I27: 1 | J27: 0.6 | K27: 0.5 | L27: 1099 | M27: 110169 | N27: 111268 | O27: 0 | P27: 0.75 | Q27: 1 | R27: 0
A28: 王冠賢 | B28: 6 | C28: 1 | D28: 7 | E28: 4 | F28: 0 | G28: 0 | H28: 4 | I28: 2 | J28: 1 | K28: 1 | L28: 0 | M28: 214493 | N28: 214493 | O28: 2.5% | P28: 0.75 | Q28: 1 | R28: 4022
A29: 陳一鋐 | B29: 8 | C29: 1 | D29: 9 | E29: 6 | F29: 0 | G29: 2 | H29: 8 | I29: 0 | J29: 0.75 | K29: 0.75 | L29: 2118 | M29: 498085 | N29: 500203 | O29: 1% | P29: 1 | Q29: 1 | R29: 4981
A30: 戴子貽 | B30: 5 | C30: 1 | D30: 6 | E30: 3 | F30: 0 | G30: 0 | H30: 3 | I30: 2 | J30: 1 | K30: 1 | L30: 0 | M30: 228167 | N30: 228167 | O30: 2.5% | P30: 0.75 | Q30: 1 | R30: 4278
A31: 林宗慶 | B31: 4 | C31: 0 | D31: 4 | E31: 3 | F31: 0 | G31: 0 | H31: 3 | I31: 1 | J31: 1 | K31: 1 | L31: 0 | M31: 186787 | N31: 186787 | O31: 2.5% | P31: 0.75 | Q31: 1 | R31: 3502
L32: 0 | N32: 0 | R32: 0
L33: 0 | N33: 0 | R33: 0
L34: 0 | N34: 0 | R34: 0
A35: 營二課 | B35: 66 | C35: 7 | D35: 73 | E35: 45 | F35: 1 | G35: 10 | H35: 56 | I35: 8 | J35: =IF(ISERROR(ROUND(($E35+$F35+$I35)/$B35,3)),"",ROUND(($E35+$F35+$I35)/$B35,3)) -> 0.818 | K35: =IF(ISERROR(ROUND(($E35+$F35)/($B35-$I35),3)),"",ROUND(($E35+$F35)/($B35-$I35),3)) -> 0.793 | L35: 11686 | M35: 3120521 | N35: 3132207 | R35: =SUM(R21:R31) -> 41232
A36: 陳禮建 | B36: 4 | C36: 0 | D36: 4 | E36: 4 | F36: 0 | G36: 0 | H36: 4 | I36: 0 | J36: =IF(ISERROR(ROUND(($E36+$F36+$I36)/$B36,3)),"",ROUND(($E36+$F36+$I36)/$B36,3)) -> 1 | K36: =IF(ISERROR(ROUND(($E36+$F36)/($B36-$I36),3)),"",ROUND(($E36+$F36)/($B36-$I36),3)) -> 1 | L36: 0 | M36: 259105 | N36: 259105 | O36: =IF($J36<70%,"0",IF($J36<75%,"0.5%",IF($J36<80%,"1%",IF($J36<85%,"1.25%",IF($J36<90%,"1.5%",IF($J36<95%,"2%",IF($J36<101%,"2.5%","0"))))))) -> 2.5% | P36: =IF($M36=0,"0",IF($M36<300000,"0.75",IF($M36<500000,"1",IF($M36<750000,"1.25",IF($M36<1000000,"1.5",IF($M36>1000000,"1.75")))))) -> 0.75 | Q36: =$U$5 -> 1 | R36: =ROUND($M36*$O36*$P36*$Q36,0) -> 4858
A37: 黃盛緯 | B37: 3 | C37: 5 | D37: 8 | E37: 2 | F37: 0 | G37: 0 | H37: 2 | I37: 1 | J37: =IF(ISERROR(ROUND(($E37+$F37+$I37)/$B37,3)),"",ROUND(($E37+$F37+$I37)/$B37,3)) -> 1 | K37: =IF(ISERROR(ROUND(($E37+$F37)/($B37-$I37),3)),"",ROUND(($E37+$F37)/($B37-$I37),3)) -> 1 | L37: 0 | M37: 137596 | N37: 137596 | O37: =IF($J37<70%,"0",IF($J37<75%,"0.5%",IF($J37<80%,"1%",IF($J37<85%,"1.25%",IF($J37<90%,"1.5%",IF($J37<95%,"2%",IF($J37<101%,"2.5%","0"))))))) -> 2.5% | P37: =IF($M37=0,"0",IF($M37<300000,"0.75",IF($M37<500000,"1",IF($M37<750000,"1.25",IF($M37<1000000,"1.5",IF($M37>1000000,"1.75")))))) -> 0.75 | Q37: =$U$5 -> 1 | R37: =ROUND($M37*$O37*$P37*$Q37,0) -> 2580
A38: 簡志勳 | B38: 12 | C38: 1 | D38: 13 | E38: 10 | F38: 0 | G38: 1 | H38: 11 | I38: 1 | J38: 0.917 | K38: 0.909 | L38: 1457 | M38: 693700 | N38: 695157 | O38: 2% | P38: 1.25 | Q38: 1 | R38: 17343
A39: 賈勇華 | B39: 8 | C39: 0 | D39: 8 | E39: 6 | F39: 1 | G39: 1 | H39: 8 | I39: 0 | J39: 0.875 | K39: 0.875 | L39: 1138 | M39: 592564 | N39: 593702 | O39: 1.5% | P39: 1.25 | Q39: 1 | R39: 11111
A40: 郭力嘉 | B40: 2 | C40: 0 | D40: 2 | E40: 2 | F40: 0 | G40: 0 | H40: 2 | I40: 0 | J40: 1 | K40: 1 | L40: 0 | M40: 133123 | N40: 133123 | O40: 2.5% | P40: 0.75 | Q40: 1 | R40: 2496
A41: 鄭英彥 | B41: 5 | C41: 1 | D41: 6 | E41: 3 | F41: 1 | G41: 1 | H41: 5 | I41: 0 | J41: 0.8 | K41: 0.8 | L41: 1398 | M41: 242606 | N41: 244004 | O41: 1.25% | P41: 0.75 | Q41: 1 | R41: 2274
A42: 林謙慶 | B42: 7 | C42: 1 | D42: 8 | E42: 5 | F42: 0 | G42: 1 | H42: 6 | I42: 1 | J42: 0.857 | K42: 0.833 | L42: 1019 | M42: 317112 | N42: 318131 | O42: 1.5% | P42: 1 | Q42: 1 | R42: 4757
A43: 劉家任 | B43: 6 | C43: 0 | D43: 6 | E43: 4 | F43: 0 | G43: 0 | H43: 4 | I43: 1 | J43: 0.833 | K43: 0.8 | L43: 0 | M43: 256174 | N43: 256174 | O43: 1.25% | P43: 0.75 | Q43: 1 | R43: 2402
A44: 孫茂耀 | B44: 3 | C44: 1 | D44: 4 | E44: 3 | F44: 0 | G44: 0 | H44: 3 | I44: 0 | J44: 1 | K44: 1 | L44: 0 | M44: 188168 | N44: 188168 | O44: 2.5% | P44: 0.75 | Q44: 1 | R44: 3528
A45: 林芳明 | B45: 7 | C45: 1 | D45: 8 | E45: 6 | F45: 0 | G45: 1 | H45: 7 | I45: 0 | J45: 0.857 | K45: 0.857 | L45: 1099 | M45: 394596 | N45: 395695 | O45: 1.5% | P45: 1 | Q45: 1 | R45: 5919
A46: 李玄璸 | B46: 3 | C46: 0 | D46: 3 | E46: 1 | F46: 0 | G46: 1 | H46: 2 | I46: 1 | J46: 0.667 | K46: 0.5 | L46: 1148 | M46: 114191 | N46: 115339 | O46: 0 | P46: 0.75 | Q46: 1 | R46: 0
L47: 0 | N47: 0 | R47: 0
L48: 0 | N48: 0 | R48: 0
L49: 0 | N49: 0 | R49: 0
A50: 營三課 | B50: 60 | C50: 10 | D50: 70 | E50: 46 | F50: 2 | G50: 6 | H50: 54 | I50: 5 | J50: =IF(ISERROR(ROUND(($E50+$F50+$I50)/$B50,3)),"",ROUND(($E50+$F50+$I50)/$B50,3)) -> 0.883 | K50: =IF(ISERROR(ROUND(($E50+$F50)/($B50-$I50),3)),"",ROUND(($E50+$F50)/($B50-$I50),3)) -> 0.873 | L50: 7259 | M50: 3328935 | N50: 3336194 | R50: =SUM(R36:R46) -> 57268
A51: 1+2+3課 | B51: 192 | C51: 25 | D51: 217 | E51: 131 | F51: 8 | G51: 24 | H51: 163 | I51: 24 | J51: =IF(ISERROR(ROUND(($E51+$F51+$I51)/$B51,3)),"",ROUND(($E51+$F51+$I51)/$B51,3)) -> 0.849 | K51: =IF(ISERROR(ROUND(($E51+$F51)/($B51-$I51),3)),"",ROUND(($E51+$F51)/($B51-$I51),3)) -> 0.827 | L51: 28772 | M51: 9141871 | N51: 9170643 | O51: =O20+O35+O50 -> 0 | P51: =P20+P35+P50 -> 0 | Q51: =Q20+Q35+Q50 -> 0 | R51: =R20+R35+R50 -> 152650
A52: 黃翠暖 | B52: 0 | C52: 0 | D52: 0 | E52: 0 | F52: 0 | G52: 0 | H52: 0 | I52: 0 | J52: =IF(ISERROR(ROUND(($E52+$F52+$I52)/$B52,3)),"",ROUND(($E52+$F52+$I52)/$B52,3)) ->  | K52: =IF(ISERROR(ROUND(($E52+$F52)/($B52-$I52),3)),"",ROUND(($E52+$F52)/($B52-$I52),3)) ->  | L52: 0 | M52: 0 | N52: 0 | O52: =IF($J52<70%,"0",IF($J52<75%,"0.5%",IF($J52<80%,"1%",IF($J52<85%,"1.25%",IF($J52<90%,"1.5%",IF($J52<95%,"2%",IF($J52<101%,"2.5%","0"))))))) -> 0 | P52: =IF($M52=0,"0",IF($M52<300000,"0.75",IF($M52<500000,"1",IF($M52<750000,"1.25",IF($M52<1000000,"1.5",IF($M52>1000000,"1.75")))))) -> 0 | Q52: 1 | R52: =ROUND($M52*$O52*$P52*$Q52,0) -> 0
A53: 陳德益 | B53: 26 | C53: 0 | D53: 26 | E53: 5 | F53: 0 | G53: 21 | H53: 26 | I53: 0 | J53: 0.192 | K53: 0.192 | L53: 29358 | M53: 298719 | N53: 328077 | R53: =ROUND($M53*$O53*$P53*$Q53,0) -> 0
A54: 營業部 | B54: 26 | C54: 0 | D54: 26 | E54: 5 | F54: 0 | G54: 21 | H54: 26 | I54: 0 | J54: 0.192 | K54: 0.192 | L54: 29358 | M54: 298719 | N54: 328077 | R54: =SUM(R52:R53) -> 0
A55: 總 計 | B55: 218 | C55: 25 | D55: 243 | E55: 136 | F55: 8 | G55: 45 | H55: 189 | I55: 24 | J55: 0.771 | K55: 0.742 | L55: 58130 | M55: 9440590 | N55: 9498720 | R55: =ROUND($M55*$O55*$P55*$Q55,0) -> 0
A56: 不含中央 | B56: 192 | C56: 25 | D56: 217 | E56: 131 | F56: 8 | G56: 24 | H56: 163 | I56: 24 | J56: =ROUND(($E56+$F56+$I56)/$B56,3) -> 0.849 | K56: =ROUND(($E56+$F56)/($B56-$I56),3) -> 0.827 | L56: 28772 | M56: 9141871 | N56: 9170643 | Q56: =Q20+Q35+Q50 -> 0 | R56: =R20+R35+R50+R52 -> 152650

Sheet K.YD-業代續保獎勵統計表
E2: 2014年第1季業代續保保險獎勵統計
A4: 業代 | B4: 承保件數 | H4: 承保金額
B5: 車體 | C5: 其他 | D5: 單強制 | E5: 合計 | F5: 單強制金額 | G5: 總保費(含強制) | H5: 意外險以上 | I5: 新續件 | J5: 原續件 | K5: 到期件數 | L5: 單強制 | M5: 車售 | N5: 有效件數 | O5: 續保承保率 | P5: 提撥率 | Q5: 加權提撥率 | R5: 未達70%,八折 | S5: 業代獎金
A6: 凌大偉 | B6: 17 | C6: 6 | D6: 0 | E6: 23 | G6: 778070 | H6: =(G6-F6) -> 778070 | I6: 1 | J6: =(E6-I6) -> 22 | K6: 26 | L6: 1 | M6: 0 | N6: =(K6-L6-M6) -> 25 | O6: =((B6+C6)/N6) -> 0.92 | P6: =IF(O6<0.8,"0",IF(O6<0.85,"0.5%",IF(O6<0.9,"0.75%",IF(O6<0.95,"1%",IF(O6<1,"1.25%",IF(O6<1.1,"1.5%",IF(O6<1.2,"1.75%",IF(O6>1.2,"2%","0")))))))) -> 1% | Q6: =IF(H6=0,"0",IF(H6<300000,"0.75",IF(H6<500000,"1",IF(H6<750000,"1.25",IF(H6<1000000,"1.5",IF(H6>1000000,"1.75")))))) -> 1.5 | S6: =ROUND(H6*P6*Q6,0) -> 11671
A7: 張哲彰 | B7: 20 | C7: 7 | D7: 1 | E7: 28 | F7: 1099 | G7: 1139881 | H7: 1138782 | I7: 2 | J7: 26 | K7: 26 | L7: 0 | M7: 0 | N7: 26 | O7: 1.038461538 | P7: 1.5% | Q7: 1.75 | S7: 29893
A8: 張健宏 | B8: 10 | C8: 1 | D8: 0 | E8: 11 | G8: 551220 | H8: 551220 | I8: 1 | J8: 10 | K8: 9 | L8: 1 | M8: 0 | N8: 8 | O8: 1.375 | P8: 2% | Q8: 1.25 | S8: 13781
A9: 梁大民 | B9: 11 | C9: 5 | D9: 1 | E9: 17 | F9: 1099 | G9: 549144 | H9: 548045 | I9: 0 | J9: 17 | K9: 22 | L9: 1 | M9: 0 | N9: 21 | O9: 0.7619047619 | P9: 0 | Q9: 1.25 | S9: 0
A10: 林柏霖 | B10: 3 | C10: 1 | D10: 0 | E10: 4 | G10: 195213 | H10: 195213 | I10: 0 | J10: 4 | K10: 12 | L10: 3 | M10: 1 | N10: 8 | O10: 0.5 | P10: 0 | Q10: 0.75 | S10: 0
A11: 盧培育 | B11: 6 | C11: 1 | D11: 1 | E11: 8 | F11: 1148 | G11: 192079 | H11: 190931 | I11: 7 | J11: 1 | K11: 0 | L11: 0 | M11: 0 | N11: 0 | Q11: 0.75
A12: 王裕明 | B12: 9 | C12: 2 | D12: 0 | E12: 11 | G12: 297965 | H12: 297965 | I12: 0 | J12: 11 | K12: 11 | L12: 2 | M12: 0 | N12: 9 | O12: 1.222222222 | P12: 2% | Q12: 0.75 | S12: 4469
A13: 蘇士文 | B13: 4 | C13: 3 | D13: 0 | E13: 7 | G13: 233554 | H13: 233554 | I13: 2 | J13: 5 | K13: 0 | L13: 0 | M13: 0 | N13: 0 | Q13: 0.75
A14: 郭天南 | B14: 18 | C14: 2 | D14: 0 | E14: 20 | G14: 879555 | H14: 879555 | I14: 1 | J14: 19 | K14: 20 | L14: 0 | M14: 1 | N14: 19 | O14: 1.052631579 | P14: 1.5% | Q14: 1.5 | S14: 19790
A15: 花志明 | B15: 10 | C15: 4 | D15: 1 | E15: 15 | F15: 1019 | G15: 545973 | H15: 544954 | I15: 5 | J15: 10 | K15: 16 | L15: 2 | M15: 0 | N15: 14 | O15: 1 | P15: 1.5% | Q15: 1.25 | S15: 10218
A16: 陳龍雲 | B16: 5 | C16: 2 | D16: 0 | E16: 7 | G16: 302276 | H16: 302276 | I16: 1 | J16: 6 | K16: 9 | L16: 1 | M16: 1 | N16: 7 | O16: 1 | P16: 1.5% | Q16: 1 | S16: 4534
A17: 營一課 合計 | B17: =SUM(B6:B16) -> 113 | C17: 34 | D17: 4 | E17: 151 | F17: 4365 | G17: 5664930 | H17: 5660565 | I17: 20 | J17: 131 | K17: 151 | L17: 11 | M17: 3 | N17: 137 | O17: 1.072992701 | S17: =SUM(S6:S16) -> 
A18: 張昇文 | B18: 22 | C18: 4 | D18: 0 | E18: 26 | G18: 907159 | H18: =(G18-F18) -> 907159 | I18: 2 | J18: =(E18-I18) -> 24 | K18: 33 | L18: 3 | M18: 1 | N18: =(K18-L18-M18) -> 29 | O18: 0.8965517241 | P18: =IF(O18<0.8,"0",IF(O18<0.85,"0.5%",IF(O18<0.9,"0.75%",IF(O18<0.95,"1%",IF(O18<1,"1.25%",IF(O18<1.1,"1.5%",IF(O18<1.2,"1.75%",IF(O18>1.2,"2%","0")))))))) -> 0.75% | Q18: =IF(H18=0,"0",IF(H18<300000,"0.75",IF(H18<500000,"1",IF(H18<750000,"1.25",IF(H18<1000000,"1.5",IF(H18>1000000,"1.75")))))) -> 1.5 | S18: =ROUND(H18*P18*Q18,0) -> 10206
A19: 戴子貽 | B19: 2 | C19: 0 | D19: 0 | E19: 2 | G19: 151609 | H19: 151609 | I19: 0 | J19: 2 | K19: 2 | L19: 0 | M19: 0 | N19: 2 | O19: 1 | P19: 1.5% | Q19: 0.75 | S19: 1706
A20: 梁志龍 | B20: 11 | C20: 3 | D20: 0 | E20: 14 | G20: 784939 | H20: 784939 | I20: 3 | J20: 11 | K20: 15 | L20: 1 | M20: 1 | N20: 13 | O20: 1.076923077 | P20: 1.5% | Q20: 1.5 | S20: 17661
A21: 林宗慶 | B21: 4 | C21: 2 | D21: 1 | E21: 7 | F21: 1019 | G21: 134851 | H21: 133832 | I21: 7 | J21: 0 | K21: 0 | L21: 0 | M21: 0 | N21: 0 | Q21: 0.75
A22: 林政勳 | B22: 13 | C22: 1 | D22: 1 | E22: 15 | F22: 1099 | G22: 669641 | H22: 668542 | I22: 0 | J22: 15 | K22: 12 | L22: 0 | M22: 0 | N22: 12 | O22: 1.166666667 | P22: 1.75% | Q22: 1.25 | S22: 14624
A23: 林陳郎 | B23: 13 | C23: 5 | D23: 0 | E23: 18 | G23: 688448 | H23: 688448 | I23: 2 | J23: 16 | K23: 17 | L23: 1 | M23: 0 | N23: 16 | O23: 1.125 | P23: 1.75% | Q23: 1.25 | S23: 15060
A24: 王冠賢 | B24: 6 | C24: 5 | D24: 1 | E24: 12 | F24: 1138 | G24: 268388 | H24: 267250 | I24: 3 | J24: 9 | K24: 14 | L24: 6 | M24: 0 | N24: 8 | O24: 1.375 | P24: 2% | Q24: 0.75 | S24: 4009
A25: 王慶儒 | B25: 22 | C25: 6 | D25: 1 | E25: 29 | F25: 1138 | G25: 1112621 | H25: 1111483 | I25: 2 | J25: 27 | K25: 37 | L25: 4 | M25: 1 | N25: 32 | O25: 0.875 | P25: 0.75% | Q25: 1.75 | S25: 14588
A26: 謝中堅 | B26: 20 | C26: 6 | D26: 0 | E26: 26 | G26: 939998 | H26: 939998 | I26: 2 | J26: 24 | K26: 32 | L26: 0 | M26: 0 | N26: 32 | O26: 0.8125 | P26: 0.5% | Q26: 1.5 | S26: 7050
A27: 陳一鋐 | B27: 3 | C27: 1 | D27: 0 | E27: 4 | G27: 198881 | H27: 198881 | I27: 0 | J27: 4 | K27: 8 | L27: 0 | M27: 0 | N27: 8 | O27: 0.5 | P27: 0 | Q27: 0.75 | S27: 0
A28: 陳維德 | B28: 9 | C28: 1 | D28: 0 | E28: 10 | G28: 437788 | H28: 437788 | I28: 1 | J28: 9 | K28: 12 | L28: 1 | M28: 1 | N28: 10 | O28: 1 | P28: 1.5% | Q28: 1 | S28: 6567
A29: 莊朝清 | B29: 10 | C29: 4 | D29: 0 | E29: 14 | G29: 681915 | H29: 681915 | I29: 0 | J29: 14 | K29: 14 | L29: 0 | M29: 0 | N29: 14 | O29: 1 | P29: 1.5% | Q29: 1.25 | S29: 12786
A30: 營二課 合計 | B30: =SUM(B18:B29) -> 135 | C30: 38 | D30: 4 | E30: 177 | F30: 4394 | G30: 6976238 | H30: 6971844 | I30: 22 | J30: 155 | K30: 196 | L30: 16 | M30: 4 | N30: 176 | O30: 0.9829545455 | S30: =SUM(S18:S29) -> 
A31: 孫茂耀 | B31: 0 | C31: 1 | D31: 0 | E31: 1 | G31: 3939 | H31: =(G31-F31) -> 3939 | I31: 1 | J31: =(E31-I31) -> 0 | K31: 0 | L31: 0 | M31: 0 | N31: =(K31-L31-M31) -> 0 | P31: =IF(O31<0.8,"0",IF(O31<0.85,"0.5%",IF(O31<0.9,"0.75%",IF(O31<0.95,"1%",IF(O31<1,"1.25%",IF(O31<1.1,"1.5%",IF(O31<1.2,"1.75%",IF(O31>1.2,"2%","0")))))))) ->  | Q31: =IF(H31=0,"0",IF(H31<300000,"0.75",IF(H31<500000,"1",IF(H31<750000,"1.25",IF(H31<1000000,"1.5",IF(H31>1000000,"1.75")))))) -> 0.75 | S31: =ROUND(H31*P31*Q31,0) -> 
A32: 劉家任 | B32: 3 | C32: 0 | D32: 0 | E32: 3 | G32: 131759 | H32: 131759 | I32: 1 | J32: 2 | K32: 2 | L32: 0 | M32: 0 | N32: 2 | O32: 1.5 | P32: 2% | Q32: 0.75 | S32: 1976
A33: 林謙慶 | B33: 3 | C33: 0 | D33: 2 | E33: 5 | F33: 2237 | G33: 162150 | H33: 159913 | I33: 1 | J33: 4 | K33: 4 | L33: 0 | M33: 0 | N33: 4 | O33: 0.75 | P33: 0 | Q33: 0.75 | S33: 0
A34: 林芳明 | B34: 0 | C34: 1 | D34: 0 | E34: 1 | G34: 5558 | H34: 5558 | I34: 0 | J34: 1 | K34: 0 | L34: 0 | M34: 0 | N34: 0 | Q34: 0.75
A35: 簡志勳 | B35: 10 | C35: 6 | D35: 1 | E35: 17 | F35: 1099 | G35: 710642 | H35: 709543 | I35: 1 | J35: 16 | K35: 22 | L35: 3 | M35: 0 | N35: 19 | O35: 0.8421052632 | P35: 0.5% | Q35: 1.25 | S35: 4435
A36: 鄭英彥 | B36: 1 | C36: 0 | D36: 0 | E36: 1 | G36: 81484 | H36: 81484 | I36: 0 | J36: 1 | K36: 5 | L36: 0 | M36: 1 | N36: 4 | O36: 0.25 | P36: 0 | Q36: 0.75 | S36: 0
A37: 黃盛緯 | B37: 27 | C37: 5 | D37: 1 | E37: 33 | F37: 1019 | G37: 1300735 | H37: 1299716 | I37: 1 | J37: 32 | K37: 42 | L37: 2 | M37: 1 | N37: 39 | O37: 0.8205128205 | P37: 0.5% | Q37: 1.75 | S37: 11373
A38: 蕭敏聰 | B38: 9 | C38: 5 | D38: 0 | E38: 14 | G38: 707576 | H38: 707576 | I38: 1 | J38: 13 | K38: 13 | L38: 0 | M38: 0 | N38: 13 | O38: 1.076923077 | P38: 1.5% | Q38: 1.25 | S38: 13267
A39: 賈勇華 | B39: 11 | C39: 2 | D39: 2 | E39: 15 | F39: 2198 | G39: 652222 | H39: 650024 | I39: 0 | J39: 15 | K39: 17 | L39: 1 | M39: 0 | N39: 16 | O39: 0.8125 | P39: 0.5% | Q39: 1.25 | S39: 4063
A40: 郭力嘉 | B40: 14 | C40: 2 | D40: 1 | E40: 17 | F40: 1099 | G40: 789102 | H40: 788003 | I40: 1 | J40: 16 | K40: 18 | L40: 1 | M40: 0 | N40: 17 | O40: 0.9411764706 | P40: 1% | Q40: 1.5 | S40: 11820
A41: 陳禮建 | B41: 11 | C41: 4 | D41: 0 | E41: 15 | G41: 443132 | H41: 443132 | I41: 1 | J41: 14 | K41: 16 | L41: 1 | M41: 0 | N41: 15 | O41: 1 | P41: 1.5% | Q41: 1 | S41: 6647
A42: 營三課 合計 | B42: =SUM(B31:B41) -> 89 | C42: 26 | D42: 7 | E42: 122 | F42: 7652 | G42: 4988299 | H42: 4980647 | I42: 8 | J42: 114 | K42: 139 | L42: 8 | M42: 2 | N42: 129 | O42: 0.8914728682 | S42: =SUM(S31:S41) -> 
A43: 黃翠暖 | B43: 6 | C43: 0 | D43: 0 | E43: 6 | G43: 281326 | H43: =(G43-F43) -> 281326 | I43: 1 | J43: =(E43-I43) -> 5 | K43: 6 | L43: 1 | M43: 0 | N43: =(K43-L43-M43) -> 5 | O43: 1.2 | P43: =IF(O43<0.8,"0",IF(O43<0.85,"0.5%",IF(O43<0.9,"0.75%",IF(O43<0.95,"1%",IF(O43<1,"1.25%",IF(O43<1.1,"1.5%",IF(O43<1.2,"1.75%",IF(O43>1.2,"2%","0")))))))) -> 0 | Q43: =IF(H43=0,"0",IF(H43<300000,"0.75",IF(H43<500000,"1",IF(H43<750000,"1.25",IF(H43<1000000,"1.5",IF(H43>1000000,"1.75")))))) -> 0.75 | S43: =ROUND(H43*P43*Q43,0) -> 0
A44: 陳德益 | B44: 1 | C44: 0 | D44: 0 | E44: 1 | G44: 47621 | H44: =(G44-F44) -> 47621 | I44: 1 | J44: =(E44-I44) -> 0 | K44: 8 | L44: 0 | M44: 7 | N44: =(K44-L44-M44) -> 1 | O44: 1 | P44: =IF(O44<0.8,"0",IF(O44<0.85,"0.5%",IF(O44<0.9,"0.75%",IF(O44<0.95,"1%",IF(O44<1,"1.25%",IF(O44<1.1,"1.5%",IF(O44<1.2,"1.75%",IF(O44>1.2,"2%","0")))))))) -> 1.5% | Q44: =IF(H44=0,"0",IF(H44<300000,"0.75",IF(H44<500000,"1",IF(H44<750000,"1.25",IF(H44<1000000,"1.5",IF(H44>1000000,"1.75")))))) -> 0.75 | S44: =ROUND(H44*P44*Q44,0) -> 536
A45: 營業部 合計 | B45: =SUM(B43:B44) -> 7 | C45: 0 | D45: 0 | E45: 7 | F45: 0 | G45: 328947 | H45: 328947 | I45: 2 | J45: 5 | K45: 14 | L45: 1 | M45: 7 | N45: 6 | O45: 1.166666667 | S45: =SUM(S43:S44) -> 536
A46: 周益弘 | B46: 2 | C46: 0 | D46: 0 | E46: 2 | G46: 139941 | H46: =(G46-F46) -> 139941 | I46: 0 | J46: =(E46-I46) -> 2 | K46: 2 | L46: 0 | M46: 0 | N46: =(K46-L46-M46) -> 2 | O46: 1 | P46: =IF(O46<0.8,"0",IF(O46<0.85,"0.5%",IF(O46<0.9,"0.75%",IF(O46<0.95,"1%",IF(O46<1,"1.25%",IF(O46<1.1,"1.5%",IF(O46<1.2,"1.75%",IF(O46>1.2,"2%","0")))))))) -> 1.5% | Q46: =IF(H46=0,"0",IF(H46<300000,"0.75",IF(H46<500000,"1",IF(H46<750000,"1.25",IF(H46<1000000,"1.5",IF(H46>1000000,"1.75")))))) -> 0.75 | S46: =ROUND(H46*P46*Q46,0) -> 1574
A47: 洪嘉榮 | B47: 1 | C47: 0 | D47: 0 | E47: 1 | G47: 66186 | H47: 66186 | I47: 0 | J47: 1 | K47: 0 | L47: 0 | M47: 0 | N47: 0 | Q47: 0.75
A48: 林至柔 | B48: 1 | C48: 0 | D48: 0 | E48: 1 | G48: 64118 | H48: 64118 | I48: 0 | J48: 1 | K48: 1 | L48: 0 | M48: 0 | N48: 1 | O48: 1 | P48: 1.5% | Q48: 0.75 | S48: 721
A49: 李旭騰 | B49: 1 | C49: 0 | D49: 0 | E49: 1 | G49: 65476 | H49: 65476 | I49: 0 | J49: 1 | K49: 1 | L49: 0 | M49: 0 | N49: 1 | O49: 1 | P49: 1.5% | Q49: 0.75 | S49: 737
A50: 李技霖 | B50: 2 | C50: 0 | D50: 0 | E50: 2 | G50: 52064 | H50: 52064 | I50: 0 | J50: 2 | K50: 3 | L50: 1 | M50: 0 | N50: 2 | O50: 1 | P50: 1.5% | Q50: 0.75 | S50: 586
A51: 李百祥 | B51: 11 | C51: 1 | D51: 1 | E51: 13 | F51: 1099 | G51: 539037 | H51: 537938 | I51: 2 | J51: 11 | K51: 13 | L51: 0 | M51: 0 | N51: 13 | O51: 0.9230769231 | P51: 1% | Q51: 1.25 | S51: 6724
A52: 許慶麟 | B52: 4 | C52: 1 | D52: 0 | E52: 5 | G52: 187278 | H52: 187278 | I52: 1 | J52: 4 | K52: 5 | L52: 0 | M52: 2 | N52: 3 | O52: 1.666666667 | P52: 2% | Q52: 0.75 | S52: 2809
A53: 黃榮源 | B53: 8 | C53: 1 | D53: 0 | E53: 9 | G53: 399194 | H53: 399194 | I53: 1 | J53: 8 | K53: 9 | L53: 0 | M53: 1 | N53: 8 | O53: 1.125 | P53: 1.75% | Q53: 1 | S53: 6986
A54: 趙令凱 | B54: 0 | C54: 1 | D54: 0 | E54: 1 | G54: 5105 | H54: 5105 | I54: 0 | J54: 1 | K54: 1 | L54: 0 | M54: 0 | N54: 1 | O54: 1 | P54: 1.5% | Q54: 0.75 | S54: 57
A55: 賴來成 | B55: 0 | C55: 0 | D55: 1 | E55: 1 | F55: 1099 | G55: 1099 | H55: 0 | I55: 1 | J55: 0 | K55: 1 | L55: 1 | M55: 0 | N55: 0 | Q55: 0
A56: 賴育佐 | B56: 0 | C56: 1 | D56: 0 | E56: 1 | G56: 5881 | H56: 5881 | I56: 0 | J56: 1 | K56: 1 | L56: 0 | M56: 0 | N56: 1 | O56: 1 | P56: 1.5% | Q56: 0.75 | S56: 66
A57: 辜正武 | B57: 1 | C57: 0 | D57: 0 | E57: 1 | G57: 24557 | H57: 24557 | I57: 0 | J57: 1 | K57: 1 | L57: 0 | M57: 0 | N57: 1 | O57: 1 | P57: 1.5% | Q57: 0.75 | S57: 276
A58: 陳俊田 | B58: 1 | C58: 5 | D58: 0 | E58: 6 | G58: 38900 | H58: 38900 | I58: 2 | J58: 4 | K58: 4 | L58: 0 | M58: 0 | N58: 4 | O58: 1.5 | P58: 2% | Q58: 0.75 | S58: 584
A59: 陳勝雄 | B59: 7 | C59: 2 | D59: 1 | E59: 10 | F59: 1099 | G59: 217359 | H59: 216260 | I59: 1 | J59: 9 | K59: 10 | L59: 1 | M59: 0 | N59: 9 | O59: 1 | P59: 1.5% | Q59: 0.75 | S59: 2433
A60: 陳欽榮 | B60: 3 | C60: 0 | D60: 0 | E60: 3 | G60: 116952 | H60: 116952 | I60: 0 | J60: 3 | K60: 2 | L60: 0 | M60: 0 | N60: 2 | O60: 1.5 | P60: 2% | Q60: 0.75 | S60: 1754
A61: 服務部 合計 | B61: =SUM(B46:B60) -> 42 | C61: 12 | D61: 3 | E61: 57 | F61: 3297 | G61: 1923147 | H61: 1919850 | I61: 8 | J61: 49 | K61: 54 | L61: 3 | M61: 3 | N61: 48 | O61: 1.125 | S61: =SUM(S46:S60) -> 
A62: 張湘愉 | B62: 1 | C62: 0 | D62: 0 | E62: 1 | G62: 42927 | H62: =(G62-F62) -> 42927 | I62: 0 | J62: =(E62-I62) -> 1 | K62: 0 | L62: 0 | M62: 0 | N62: =(K62-L62-M62) -> 0 | P62: =IF(O62<0.8,"0",IF(O62<0.85,"0.5%",IF(O62<0.9,"0.75%",IF(O62<0.95,"1%",IF(O62<1,"1.25%",IF(O62<1.1,"1.5%",IF(O62<1.2,"1.75%",IF(O62>1.2,"2%","0")))))))) ->  | Q62: =IF(H62=0,"0",IF(H62<300000,"0.75",IF(H62<500000,"1",IF(H62<750000,"1.25",IF(H62<1000000,"1.5",IF(H62>1000000,"1.75")))))) -> 0.75 | S62: =ROUND(H62*P62*Q62,0) -> 
A63: 吳美玲 | B63: 1 | C63: 0 | D63: 0 | E63: 1 | G63: 25604 | H63: 25604 | I63: 1 | J63: 0 | K63: 1 | L63: 0 | M63: 0 | N63: 1 | O63: 1 | P63: 1.5% | Q63: 0.75 | S63: 288
A64: 林信宗 | B64: 4 | C64: 1 | D64: 0 | E64: 5 | G64: 192182 | H64: 192182 | I64: 0 | J64: 5 | K64: 8 | L64: 1 | M64: 0 | N64: 7 | O64: 0.7142857143 | P64: 0 | Q64: 0.75 | S64: 0
A65: 許嘉航 | B65: 9 | C65: 3 | D65: 0 | E65: 12 | G65: 533578 | H65: 533578 | I65: 0 | J65: 12 | K65: 35 | L65: 3 | M65: 1 | N65: 31 | O65: 0.3870967742 | P65: 0 | Q65: 1.25 | S65: 0
A66: 蔡燕森 | B66: 3 | C66: 1 | D66: 0 | E66: 4 | G66: 214826 | H66: 214826 | I66: 0 | J66: 4 | K66: 4 | L66: 0 | M66: 0 | N66: 4 | O66: 1 | P66: 1.5% | Q66: 0.75 | S66: 2417
A67: 蔡青勳 | B67: 1 | C67: 0 | D67: 0 | E67: 1 | G67: 60342 | H67: 60342 | I67: 0 | J67: 1 | K67: 0 | L67: 0 | M67: 0 | N67: 0 | Q67: 0.75
A68: 謝宛倫 | B68: 3 | C68: 1 | D68: 0 | E68: 4 | G68: 127292 | H68: 127292 | I68: 0 | J68: 4 | K68: 0 | L68: 0 | M68: 0 | N68: 0 | Q68: 0.75
A69: 陳碧瀛 | B69: 10 | C69: 4 | D69: 1 | E69: 15 | F69: 1099 | G69: 371190 | H69: 370091 | I69: 1 | J69: 14 | K69: 16 | L69: 4 | M69: 2 | N69: 10 | O69: 1.4 | P69: 2% | Q69: 1 | S69: 7402
A70: 陳美杏 | B70: 1 | C70: 0 | D70: 1 | E70: 2 | F70: 1138 | G70: 23983 | H70: 22845 | I70: 0 | J70: 2 | K70: 3 | L70: 2 | M70: 0 | N70: 1 | O70: =((B70+C70)/N70) -> 1 | P70: 1.5% | Q70: 0.75 | S70: 257
A71: STF 合計 | B71: =SUM(B62:B70) -> 33 | C71: 10 | D71: 2 | E71: 45 | F71: 2237 | G71: 1591924 | H71: 1589687 | I71: 2 | J71: 43 | K71: 67 | L71: 10 | M71: 3 | N71: 54 | O71: 0.7962962963 | S71: =SUM(S62:S70) -> 
A72: 總計 | B72: =SUM(B6:B71)/2 -> 419 | C72: 120 | D72: 20 | E72: 559 | F72: 21945 | G72: 21473485 | H72: 21451540 | I72: 62 | J72: 497 | K72: 621 | L72: 49 | M72: 22 | N72: 550 | O72: 0.98 | S72: =SUM(S6:S71)/2 -> 

Sheet L.Sheet1(檔名未更新)
A1: 2014/01月新保承保率分析總表
A2: 未保 | C2: 投保 | E2: $佔比率 | F2: 單強險
A3: 租賃 | B3: 9 | C3: TW | D3: 6 | E3: 0.05626346507 | F3: 0
A4: 一般 | B4: 2 | C4: MT | D4: 31 | E4: 0.3626133802 | F4: 4
C5: SC | D5: 33 | E5: 0.3899251844 | F5: 6
C6: FB | D6: 16 | E6: 0.1911979703 | F6: 3
A7: 合計 | B7: =(B3+B4) -> 11 | C7: 合計 | D7: =SUM(D3:D6) -> 86 | E7: =SUM(E3:E6) -> 1 | F7: =SUM(F3:F6) -> 13 | G7: 掛牌數 | H7: =(B7+D7+B8+B9) -> 105
A8: 專案保險 | B8: 8 | C8: (一般)
B9: 0 | C9: (租賃)
B10: =(B8+B9) -> 8 | C10: (小計)
A17: 2014年新車每月銷售台數（依德）
O18: 2014-04-01
A19: 月份 | B19: Jan | C19: Feb | D19: Mar | E19: Apr | F19: May | G19: Jun | H19: Jul | I19: Aug | J19: Sep | K19: Oct | L19: Nov | M19: Dec | N19: 總計 | O19: %
N20: Total
A21: 銷售台數 | B21: 105 | C21: 29 | D21: 109 | E21: 0 | F21: 0 | G21: 0 | H21: 0 | I21: 0 | J21: 0 | K21: 0 | L21: 0 | M21: 0 | N21: 243
A22: 一般 | B22: 96 | C22: 26 | D22: 96 | E22: 0 | F22: 0 | G22: 0 | H22: 0 | I22: 0 | J22: 0 | K22: 0 | L22: 0 | M22: 0 | N22: 218
A23: 租賃 | B23: 9 | C23: 3 | D23: 13 | N23: 25 | O23: 0.1029
A24: 不含單強制 | B24: 73 | C24: 10 | D24: 61 | N24: 144 | O24: 0.6606
A25: 單強制 | B25: 13 | C25: 9 | D25: 23 | N25: 45 | O25: 0.2064
A26: 已投保 | B26: 86 | C26: 19 | D26: 84 | E26: 0 | F26: 0 | G26: 0 | H26: 0 | I26: 0 | J26: 0 | K26: 0 | L26: 0 | M26: 0 | N26: 189 | O26: 0.867
A27: 未保 | B27: 2 | C27: 3 | D27: 0 | E27: 0 | F27: 0 | G27: 0 | H27: 0 | I27: 0 | J27: 0 | K27: 0 | L27: 0 | M27: 0 | N27: 5 | O27: 0.0229
A28: 專案件（不含租賃） | B28: 8 | C28: 4 | D28: 12 | N28: 24 | O28: 0.1101

Sheet M.2014-01-YD-新保承保明細表
A1: 客戶名稱 | B1: 租賃公司 | C1: 領牌日 | D1: 部門 | E1: 現金 | F1: 租賃 | G1: 保險 | H1: 保險卡號 | I1: 車號 | J1: 業務代表 | K1: 車體 | L1: 其他 | M1: 強制險 | N1: 總計 | O1: 單強制 | P1: 車體數 | Q1: 其他數 | R1: 強制數 | S1: 專案 | T1: 合約備註 | U1: 保險備註 | V1: 新保
A2: 依德(股)公司 | C2: 103.01.07 | D2: 營業部 | E2: 現金 | G2: 明台 | H2: 080P18747445 | I2: AGD-9387 | J2: 陳德益 | K2: 45824 | L2: 27202 | M2: 1398 | N2: 74424 | O2: =IF(AND($K2=0,$L2=0),$M2,"") ->  | P2: =IF($K2>0,1,"") -> 1 | Q2: =IF(AND($K2=0,$L2>0),1,"") ->  | R2: =IF(AND($K2=0,$L2=0,$M2>0),1,"") ->  | U2: 退佣5842 欽榮協理座車(公司付全額) | V2: 新保
A3: 依德(股)公司 | C3: 103.01.15 | D3: 營業部 | E3: 現金 | G3: 明台 | H3: 080P18747452 | I3: AFJ-7217 | J3: 陳德益 | K3: 45824 | L3: 27202 | M3: 1398 | N3: 74424 | P3: 1 | U3: 退佣5842 陳副總座車(公司付全額) | V3: 新保
A4: 徐嘉鎂 | C4: 103.01.20 | D4: 營三課 | E4: 現金 | G4: 富邦 | H4: 05GEA01320 | I4: AAU-8168 | J4: 劉家任 | K4: 43480 | L4: 30547 | M4: 1059 | N4: 75086 | P4: 1 | U4: 優惠 約2 | V4: 新保
A5: 劉照妏 | C5: 103.01.20 | D5: 營二課 | E5: 現金 | G5: 台產 | H5: 011F2B0002238 | I5: AGU-1888 | J5: 陳維德 | K5: 30561 | L5: 31122 | M5: 1138 | N5: 62821 | P5: 1 | U5: 優惠 | V5: 新保
A6: 正隆(股)公司 | C6: 103.01.28 | D6: 營一課 | E6: 現金 | G6: 富邦 | H6: 05GEA01327 | I6: AAR-9788 | J6: 梁大民 | K6: 0 | L6: 0 | M6: 1398 | N6: 1398 | O6: 1398 | R6: 1 | U6: 任意待議 | V6: 新保
A7: 王雨涵 | C7: 103.01.15 | D7: 營一課 | E7: 現金 | G7: 華南 | H7: 03AG604634 | I7: AGE-6189 | J7: 郭天南 | K7: 52718 | L7: 29445 | M7: 1457 | N7: 83620 | P7: 1 | U7: 優惠 | V7: 新保
A8: 許爾佳 | C8: 103.01.17 | D8: 營二課 | E8: 現金 | G8: 富邦 | H8: 05GEA01318 | I8: AGU-1698 | J8: 林宗慶 | K8: 15618 | L8: 32379 | M8: 1059 | N8: 49056 | P8: 1 | U8: 優惠 郵寄 | V8: 新保
A9: 湯秉康 | C9: 103.01.17 | D9: 營二課 | E9: 現金 | G9: 華南 | H9: 03AG604640 | I9: AGU-0788 | J9: 林政勳 | K9: 51569 | L9: 34271 | M9: 1398 | N9: 87238 | P9: 1 | U9: 優惠 | V9: 新保
A10: 柯瑞月 | C10: 103.01.23 | D10: 營一課 | E10: 現金 | G10: 台產 | H10: 011F2B0002241 | I10: AGU-3339 | J10: 蘇士文 | K10: 0 | L10: 16074 | M10: 1019 | N10: 17093 | Q10: 1 | V10: 新保
A11: 依德(股)公司 | C11: 103.01.07 | D11: 營業部 | E11: 現金 | G11: 台產 | H11: 011F2B0002237 | I11: AFJ-5661 | J11: 陳德益 | K11: 20877 | L11: 27741 | M11: 1398 | N11: 50016 | P11: 1 | U11: 退佣3889 林柏霖獎勵車 (公司付五萬) | V11: 新保
A12: 依德(股)公司 | C12: 103.01.08 | D12: 營業部 | E12: 現金 | G12: 台產 | H12: +080P18747444 | I12: AFJ-5697 | J12: 陳德益 | K12: 20580 | L12: 28071 | M12: 1398 | N12: 50049 | P12: 1 | U12: 退佣3892 強制明台1/7 王慶儒獎勵車(公司付五萬) | V12: 新保
A13: 依德(股)公司 | C13: 103.01.08 | D13: 營業部 | E13: 現金 | G13: 明台 | H13: 080P18747444 | I13: AFJ-5697 | J13: 陳德益 | K13: 0 | L13: 0 | M13: 1398 | N13: 1398 | O13: 1398 | R13: 1 | U13: 任意台產1/16 慶儒獎勵車 (公司付五萬) | V13: 新保
A14: 依德(股)公司 | C14: 103.01.07 | D14: 營業部 | E14: 現金 | G14: 台產 | H14: +080P18747446 | I14: AFJ-5727 | J14: 陳德益 | K14: 20877 | L14: 27531 | M14: 1398 | N14: 49806 | P14: 1 | U14: 退佣3873 強制明台1/7 花志明獎勵車(公司付五萬) | V14: 新保
A15: 依德(股)公司 | C15: 103.01.07 | D15: 營業部 | E15: 現金 | G15: 明台 | H15: 080P18747446 | I15: AFJ-5727 | J15: 陳德益 | K15: 0 | L15: 0 | M15: 1398 | N15: 1398 | O15: 1398 | R15: 1 | U15: 任意台產1/9 花志明獎勵車 (公司付五萬) | V15: 新保
A16: 長霖寰宇企業有限公司 | C16: 103.01.21 | D16: 營二課 | E16: 現金 | G16: 華南 | H16: 03AG604650 | I16: AGU-2377 | J16: 莊朝清 | K16: 0 | L16: 0 | M16: 0 | N16: 0 | O16: 0 | S16: 汎德專案 | T16: 汎德贈乙式全險 | U16: 汎德專案 | V16: 新保
A17: 陳柏年 | C17: 103.01.28 | D17: 營一課 | E17: 現金 | G17: 富邦 | H17: 05DEA00720 | I17: AGU-5358 | J17: 凌大偉 | K17: 0 | L17: 0 | M17: 0 | N17: 0 | O17: 0 | S17: 汎德專案 | T17: 汎德贈乙式全險 | U17: 汎德專案 2/6郵寄 | V17: 新保
A18: 施惠文 | C18: 103.01.21 | D18: 營一課 | E18: 現金 | G18: 明台 | H18: 080P18747462 | I18: AGE-6822 | J18: 張健宏 | K18: 0 | L18: 0 | M18: 0 | N18: 0 | O18: 0 | S18: 汎德專案 | T18: 汎德贈乙式全險 | U18: 汎德專案 | V18: 新保
A19: 李仁傑 | C19: 103.01.20 | D19: 營二課 | E19: 現金 | G19: 華南 | H19: 03AG604646 | I19: AGU-0629 | J19: 陳維德 | K19: 0 | L19: 0 | M19: 1099 | N19: 1099 | O19: 1099 | R19: 1 | U19: 單強制 | V19: 新保
A20: 蔡曜懌 | C20: 103.01.23 | D20: 營二課 | E20: 現金 | G20: 明台 | H20: 080P18747469 | I20: AGU-0118 | J20: 王慶儒 | K20: 14332 | L20: 24592 | M20: 1138 | N20: 40062 | P20: 1 | U20: 優惠 | V20: 新保
A21: 萬事達嘉友旅店有限公司 | C21: 103.01.28 | D21: 營二課 | E21: 現金 | G21: 華南 | H21: 03AG619330 | I21: AGU-5567 | J21: 謝中堅 | K21: 13682 | L21: 31904 | M21: 1398 | N21: 46984 | P21: 1 | U21: 優惠 | V21: 新保
A22: 張玉蓮 | C22: 103.01.27 | D22: 營一課 | E22: 現金 | G22: 華南 | H22: 03AG619325 | I22: 1620-AC | J22: 張健宏 | K22: 0 | L22: 6248 | M22: 889 | N22: 7137 | Q22: 1 | V22: 新保
A23: 葉長青 | C23: 103.01.10 | D23: 營三課 | E23: 現金 | G23: 明台 | H23: 080P18747450 | I23: AGD-9683 | J23: 陳禮建 | K23: 14853 | L23: 27204 | M23: 1398 | N23: 43455 | P23: 1 | U23: 優惠 | V23: 新保
A24: 邵惠美 | C24: 103.01.17 | D24: 營一課 | E24: 現金 | G24: 明台 | H24: 080P18747456 | I24: AGU-0188 | J24: 蘇士文 | K24: 39782 | L24: 19064 | M24: 1019 | N24: 59865 | P24: 1 | U24: 優惠 | V24: 新保
A25: 蘇宗焜 | C25: 103.01.07 | D25: 營三課 | E25: 現金 | G25: 華南 | H25: 03AG604628 | I25: AFJ-9189 | J25: 賈勇華 | K25: 0 | L25: 0 | M25: 1138 | N25: 1138 | O25: 1138 | R25: 1 | U25: 單強制 | V25: 新保
A26: 莊琪如 | C26: 103.01.16 | D26: 營二課 | E26: 現金 | G26: 富邦 | H26: 05GEA01315 | I26: AGE-6626 | J26: 謝中堅 | K26: 52282 | L26: 40350 | M26: 1019 | N26: 93651 | P26: 1 | U26: 優惠 | V26: 新保
A27: 黃耀興 | C27: 103.01.13 | D27: 營二課 | E27: 現金 | G27: 華南 | H27: 03AG604635 | I27: AFJ-7618 | J27: 戴子貽 | K27: 46660 | L27: 29087 | M27: 1099 | N27: 76846 | P27: 1 | U27: 優惠 | V27: 新保
A28: 吳美容 | C28: 103.01.13 | D28: 營二課 | E28: 現金 | G28: 華南 | H28: 03AG604632 | I28: AGE-2323 | J28: 林陳郎 | K28: 0 | L28: 0 | M28: 889 | N28: 889 | O28: 889 | R28: 1 | U28: 任意待議 | V28: 新保
A29: 黃治喬 | C29: 103.01.13 | D29: 營一課 | E29: 現金 | G29: 華南 | H29: 03AG604630 | I29: AHA-2756 | J29: 陳龍雲 | K29: 43383 | L29: 22343 | M29: 1099 | N29: 66825 | P29: 1 | U29: 優惠 | V29: 新保
A30: 陳淑貞 | C30: 103.01.21 | D30: 營二課 | E30: 現金 | G30: 明台 | H30: 080P18747461 | I30: AGU-2159 | J30: 林政勳 | K30: 47924 | L30: 25706 | M30: 1188 | N30: 74818 | P30: 1 | U30: 優惠 | V30: 新保
A31: 津禾教育科技有限公司 | C31: 103.01.28 | D31: 營二課 | E31: 現金 | G31: 華南 | H31: 03AG619327 | I31: AGU-2121 | J31: 莊朝清 | K31: 45019 | L31: 25361 | M31: 1398 | N31: 71778 | P31: 1 | U31: 優惠 | V31: 新保
A32: 林維楨 | C32: 103.01.29 | D32: 營三課 | E32: 現金 | G32: 富邦 | H32: 05GEA01330 | I32: AGE-8933 | J32: 孫茂耀 | K32: 36112 | L32: 26273 | M32: 1318 | N32: 63703 | P32: 1 | U32: 強制1/29 優惠約4 | V32: 新保
A33: 林春英 | C33: 103.01.28 | D33: 營二課 | E33: 現金 | G33: 明台 | H33: 080P18747861 | I33: AHA-1068 | J33: 王冠賢 | K33: 0 | L33: 0 | M33: 0 | N33: 0 | O33: 0 | S33: 汎德專案 | T33: 汎德贈乙式全險 | U33: 汎德專案 | V33: 新保
A34: 方文 | C34: 103.01.28 | D34: 營三課 | E34: 現金 | G34: 明台 | H34: 080P18747857 | I34: AGU-1035 | J34: 林謙慶 | K34: 40080 | L34: 24415 | M34: 1398 | N34: 65893 | P34: 1 | U34: 優惠 | V34: 新保
A35: 陳沛宜 | C35: 103.01.24 | D35: 營二課 | E35: 現金 | G35: 明台 | H35: 080P18747854 | I35: AGU-3698 | J35: 林陳郎 | K35: 30943 | L35: 24764 | M35: 1019 | N35: 56726 | P35: 1 | V35: 新保
A36: 張玉芊 | C36: 103.01.24 | D36: 營三課 | E36: 現金 | G36: 富邦 | H36: 05GEA01322 | I36: AGU-3658 | J36: 林謙慶 | K36: 0 | L36: 0 | M36: 1019 | N36: 1019 | O36: 1019 | R36: 1 | U36: 1/27任意註銷 | V36: 新保
A37: 蕭思慈 | C37: 103.01.24 | D37: 營一課 | E37: 現金 | G37: 台產 | H37: 011F2B0002240 | I37: AGF-5758 | J37: 蘇士文 | K37: 20145 | L37: 20443 | M37: 1019 | N37: 41607 | P37: 1 | U37: 優惠 | V37: 新保
A38: 程凱得 | C38: 103.01.09 | D38: 營二課 | E38: 現金 | G38: 明台 | H38: 080P18747447 | I38: AGE-0678 | J38: 莊朝清 | K38: 0 | L38: 3971 | M38: 1138 | N38: 5109 | Q38: 1 | V38: 新保
A39: 莊睿文 | C39: 103.01.29 | D39: 營一課 | E39: 現金 | G39: 明台 | H39: 080P18747863 | I39: AGU-6008 | J39: 凌大偉 | K39: 0 | L39: 0 | M39: 1099 | N39: 1099 | O39: 1099 | R39: 1 | U39: 單強制 | V39: 新保
A40: 常榮通信有限公司 | C40: 103.01.02 | D40: 營一課 | E40: 現金 | G40: 明台 | H40: 080P18737497 | I40: AFJ-8528 | J40: 陳龍雲 | K40: 16418 | L40: 32176 | M40: 1398 | N40: 49992 | P40: 1 | U40: 優惠 | V40: 新保
A41: 賴玉美 | C41: 103.01.17 | D41: 營一課 | E41: 現金 | G41: 華南 | H41: 03AG604642 | I41: AGU-1366 | J41: 郭天南 | K41: 44938 | L41: 30904 | M41: 1019 | N41: 76861 | P41: 1 | U41: 優惠 | V41: 新保
A42: 黃世光 | C42: 103.01.23 | D42: 營二課 | E42: 現金 | G42: 華南 | H42: 03AG619324 | I42: AGD-5899 | J42: 陳一鋐 | K42: 50315 | L42: 26136 | M42: 1099 | N42: 77550 | P42: 1 | U42: 優惠7 | V42: 新保
A43: 王國樑 | C43: 103.01.29 | D43: 營三課 | E43: 現金 | G43: 明台 | H43: 080P18747864 | I43: AGF-2399 | J43: 鄭英彥 | K43: 0 | L43: 0 | M43: 1398 | N43: 1398 | O43: 1398 | R43: 1 | U43: 單強制 | V43: 新保
A44: 林逸豪 | C44: 103.01.03 | D44: 營一課 | E44: 現金 | G44: 明台 | H44: 080P18747443 | I44: AFJ-3937 | J44: 王裕明 | K44: 0 | L44: 3971 | M44: 1099 | N44: 5070 | Q44: 1 | V44: 新保
A45: 呂學俊 | C45: 103.01.10 | D45: 營一課 | E45: 現金 | G45: 明台 | H45: 080P18747449 | I45: AGE-0311 | J45: 王裕明 | K45: 55455 | L45: 39469 | M45: 1099 | N45: 96023 | P45: 1 | U45: 優惠 | V45: 新保
A46: 林燕玲 | C46: 103.01.28 | D46: 營一課 | E46: 現金 | G46: 明台 | H46: 080P18747862 | I46: AGU-5708 | J46: 蘇士文 | K46: 0 | L46: 0 | M46: 0 | N46: 0 | O46: 0 | S46: 汎德專案 | T46: 汎德贈乙式全險 | U46: 汎德專案 | V46: 新保
A47: 李佳麗 | C47: 103.01.27 | D47: 營一課 | E47: 現金 | G47: 明台 | H47: 080P18747856 | I47: AGU-5369 | J47: 凌大偉 | K47: 14776 | L47: 31113 | M47: 1318 | N47: 47207 | P47: 1 | U47: 優惠 | V47: 新保
A48: 陳碧珠 | C48: 103.01.02 | D48: 營三課 | E48: 現金 | G48: 華南 | H48: 03AG604623 | I48: AFJ-7358 | J48: 賈勇華 | K48: 46413 | L48: 30365 | M48: 1019 | N48: 77797 | P48: 1 | U48: 優惠 1/7 郵寄 | V48: 新保
A49: 廖哲賢 | C49: 103.01.28 | D49: 營一課 | E49: 現金 | G49: 華南 | H49: 03AG619329 | I49: AGF-8666 | J49: 張健宏 | K49: 84034 | L49: 34465 | M49: 2694 | N49: 121193 | P49: 1 | U49: 優惠 | V49: 新保
A50: 倪至寬 | C50: 103.01.22 | D50: 營一課 | E50: 現金 | G50: 華南 | H50: 03AG619322 | I50: AGE-3305 | J50: 王裕明 | K50: 49073 | L50: 26630 | M50: 1148 | N50: 76851 | P50: 1 | U50: 優惠 | V50: 新保
A51: 陳志松 | C51: 103.01.02 | D51: 營三課 | E51: 現金 | G51: 富邦 | H51: 05GEA01312 | I51: AFJ-7887 | J51: 林謙慶 | K51: 20299 | L51: 35663 | M51: 1099 | N51: 57061 | P51: 1 | U51: 1/3註銷重出 | V51: 新保
A52: 邱創立 | C52: 103.01.13 | D52: 營一課 | E52: 現金 | G52: 明台 | H52: 080P18747451 | I52: AGE-8889 | J52: 凌大偉 | K52: 0 | L52: 0 | M52: 1398 | N52: 1398 | O52: 1398 | R52: 1 | U52: 任意待議 | V52: 新保
A53: 黃石彥 | C53: 103.01.20 | D53: 營三課 | E53: 現金 | G53: 明台 | H53: 080P18747460 | I53: AGU-0106 | J53: 鄭英彥 | K53: 0 | L53: 28594 | M53: 1099 | N53: 29693 | Q53: 1 | V53: 新保
A54: 海寶實業有限公司 | C54: 103.01.21 | D54: 營一課 | E54: 現金 | G54: 華南 | H54: 03AG604648 | I54: AFJ-9110 | J54: 郭天南 | K54: 48190 | L54: 34874 | M54: 1398 | N54: 84462 | P54: 1 | U54: 優惠 | V54: 新保
A55: 劉聯璋 | C55: 103.01.21 | D55: 營三課 | E55: 現金 | G55: 明台 | H55: 080P18747463 | I55: AGU-1798 | J55: 鄭英彥 | K55: 50004 | L55: 32461 | M55: 1398 | N55: 83863 | P55: 1 | U55: 優惠 | V55: 新保
A56: 劉昇昌 | C56: 103.01.16 | D56: 營二課 | E56: 現金 | G56: 明台 | H56: 080P18747454 | I56: AFJ-8078 | J56: 林陳郎 | K56: 51579 | L56: 35349 | M56: 1099 | N56: 88027 | P56: 1 | U56: 優惠 | V56: 新保
A57: 百慶纖維股份有限公司 | C57: 103.01.28 | D57: 營三課 | E57: 現金 | G57: 富邦 | H57: 05GEA01328 | I57: AGU-5585 | J57: 劉家任 | K57: 17353 | L57: 42439 | M57: 1398 | N57: 61190 | P57: 1 | U57: 優惠 約2 | V57: 新保
A58: 林妙玲 | C58: 103.01.22 | D58: 營二課 | E58: 現金 | G58: 華南 | H58: 03AG619323 | I58: AGU-3198 | J58: 林陳郎 | K58: 39048 | L58: 29705 | M58: 1019 | N58: 69772 | P58: 1 | U58: 優惠 | V58: 新保
A59: 楊金福 | C59: 103.01.16 | D59: 營一課 | E59: 現金 | G59: 富邦 | H59: 05GEA01314 | I59: AFJ-9718 | J59: 林柏霖 | K59: 35602 | L59: 39541 | M59: 1099 | N59: 76242 | P59: 1 | U59: 優惠 1/22郵寄 | V59: 新保
A60: 林淑惠 | C60: 103.01.13 | D60: 營二課 | E60: 現金 | G60: 華南 | H60: 03AG604631 | I60: AFJ-6691 | J60: 王冠賢 | K60: 10938 | L60: 31362 | M60: 1318 | N60: 43618 | P60: 1 | U60: 優惠7 | V60: 新保
A61: 蘇雪麗 | C61: 103.01.16 | D61: 營三課 | E61: 現金 | G61: 華南 | H61: 03AG604633 | I61: AGU-1129 | J61: 賈勇華 | K61: 0 | L61: 29705 | M61: 1019 | N61: 30724 | Q61: 1 | U61: 1/29郵寄 | V61: 新保
A62: 王美華 | C62: 103.01.17 | D62: 營二課 | E62: 現金 | G62: 華南 | H62: 03AG604639 | I62: AGU-0868 | J62: 林陳郎 | K62: 39048 | L62: 30783 | M62: 1019 | N62: 70850 | P62: 1 | U62: 優惠65 | V62: 新保
A63: 昌漢開發工程有限公司 | C63: 103.01.21 | D63: 營二課 | E63: 現金 | G63: 華南 | H63: 03AG604647 | I63: AGC-3155 | J63: 林政勳 | K63: 0 | L63: 0 | M63: 1398 | N63: 1398 | O63: 1398 | R63: 1 | U63: 單強制 | V63: 新保
A64: 陳榮美 | C64: 103.01.16 | D64: 營三課 | E64: 現金 | G64: 富邦 | H64: 05GEA01316 | I64: AHA-5818 | J64: 劉家任 | K64: 52632 | L64: 48396 | M64: 1318 | N64: 102346 | P64: 1 | U64: 優惠 約2 | V64: 新保
A65: 吳世榮 | C65: 103.01.15 | D65: 營三課 | E65: 現金 | G65: 明台 | H65: 080P18747455 | I65: AGE-1176 | J65: 李玄璸 | K65: 74911 | L65: 38181 | M65: 1099 | N65: 114191 | P65: 1 | V65: 新保
A66: 高子琄 | C66: 103.01.28 | D66: 營三課 | E66: 現金 | G66: 富邦 | H66: 05GEA01325 | I66: AGF-0515 | J66: 孫茂耀 | K66: 21888 | L66: 48308 | M66: 1019 | N66: 71215 | O66: =IF(AND($K66=0,$L66=0),$M66,"") ->  | P66: =IF($K66>0,1,"") -> 1 | Q66: =IF(AND($K66=0,$L66>0),1,"") ->  | R66: =IF(AND($K66=0,$L66=0,$M66>0),1,"") ->  | V66: 新保
A67: 名軒開發股份有限公司 | C67: 103.01.03 | D67: 營二課 | E67: 現金 | G67: 華南 | H67: 03AG604625 | I67: AGD-7986 | J67: 陳一鋐 | K67: 51249 | L67: 36443 | M67: 1398 | N67: 89090 | P67: 1 | U67: 優惠7 | V67: 新保
A68: 梁瓊文 | C68: 103.01.27 | D68: 營二課 | E68: 現金 | G68: 華南 | H68: 03AG619326 | I68: AGE-6281 | J68: 張昇文 | K68: 11720 | L68: 21087 | M68: 1318 | N68: 34125 | P68: 1 | U68: 優惠 | V68: 新保
A69: 威技電器股份有限公司 | C69: 103.01.17 | D69: 營三課 | E69: 現金 | G69: 華南 | H69: 03AG604636 | I69: AGU-1088 | J69: 郭力嘉 | K69: 51569 | L69: 32539 | M69: 1398 | N69: 85506 | P69: 1 | U69: 優惠 | V69: 新保
A70: 張鳳英 | C70: 103.01.21 | D70: 營三課 | E70: 現金 | G70: 華南 | H70: 03AG604649 | I70: AGU-2668 | J70: 賈勇華 | K70: 44938 | L70: 28638 | M70: 1019 | N70: 74595 | P70: 1 | T70: 大宗客戶-葡眾 | U70: 優惠 | V70: 新保
A71: 黃光武 | C71: 103.01.20 | D71: 營二課 | E71: 現金 | G71: 富邦 | H71: 05GEA01319 | I71: AGX-3699 | J71: 謝中堅 | K71: 51140 | L71: 33224 | M71: 1148 | N71: 85512 | P71: 1 | V71: 新保
A72: 劉慧萍 | C72: 103.01.17 | D72: 營二課 | E72: 現金 | G72: 明台 | H72: 080P18747457 | I72: AGE-2335 | J72: 謝中堅 | K72: 12430 | L72: 23301 | M72: 1318 | N72: 37049 | P72: 1 | U72: 優惠 | V72: 新保
A73: 梁忠賢 | C73: 103.01.29 | D73: 營一課 | E73: 現金 | G73: 富邦 | H73: 05GEA01329 | I73: AGF-1066 | J73: 蘇士文 | K73: 0 | L73: 0 | M73: 1099 | N73: 1099 | O73: 1099 | R73: 1 | U73: 任意待議 | V73: 新保
A74: 許進平 | C74: 103.01.17 | D74: 營一課 | E74: 現金 | G74: 富邦 | H74: 05GEA01317 | I74: AGU-5138 | J74: 花志明 | K74: 15799 | L74: 31379 | M74: 1099 | N74: 48277 | P74: 1 | U74: 優惠約2 | V74: 新保
A75: 張瓊方 | C75: 103.01.20 | D75: 營二課 | E75: 現金 | G75: 華南 | H75: 03AG604641 | I75: AGU-0522 | J75: 陳一鋐 | K75: 0 | L75: 0 | M75: 1019 | N75: 1019 | O75: 1019 | R75: 1 | U75: 單強制 | V75: 新保
A76: 周展旭 | C76: 103.01.20 | D76: 營二課 | E76: 現金 | G76: 華南 | H76: 03AG604644 | I76: AGU-0585 | J76: 謝中堅 | K76: 46659 | L76: 30682 | M76: 1398 | N76: 78739 | P76: 1 | U76: 優惠7 | V76: 新保
A77: 陳泳雯 | C77: 103.01.22 | D77: 營三課 | E77: 現金 | G77: 明台 | H77: 080P18747468 | I77: AGE-3955 | J77: 孫茂耀 | K77: 24651 | L77: 27540 | M77: 1059 | N77: 53250 | P77: 1 | T77: 1311大宗客戶-宏達電 | U77: 優惠 | V77: 新保
A78: 李秀玫 | C78: 103.01.23 | D78: 營一課 | E78: 現金 | G78: 明台 | H78: 080P18747470 | I78: AGU-3268 | J78: 李昀融 | K78: 49734 | L78: 26942 | M78: 1019 | N78: 77695 | P78: 1 | U78: 優惠 郵寄 | V78: 新保
A79: 華增活業有限公司 | C79: 103.01.28 | D79: 營一課 | E79: 現金 | G79: 明台 | H79: 080P18747858 | I79: AHF-5158 | J79: 陳龍雲 | K79: 59168 | L79: 27553 | M79: 1398 | N79: 88119 | P79: 1 | U79: 優惠 1/27註銷重出 | V79: 新保
A80: 鄭朝強 | C80: 103.01.28 | D80: 營一課 | E80: 現金 | G80: 富邦 | H80: 05GEA01326 | I80: AGU-9693 | J80: 林柏霖 | K80: 53398 | L80: 34980 | M80: 1099 | N80: 89477 | P80: 1 | U80: 優惠 約2 2/12 郵寄 | V80: 新保
A81: 曹桂榮 | C81: 103.01.16 | D81: 營一課 | E81: 現金 | G81: 華南 | H81: 03AG604638 | I81: AGX-5858 | J81: 郭天南 | K81: 51569 | L81: 30890 | M81: 1099 | N81: 83558 | P81: 1 | U81: 優惠 | V81: 新保
A82: 珀榮貿易股份有限公司 | C82: 103.01.15 | D82: 營三課 | E82: 現金 | G82: 明台 | H82: 080P18747453 | I82: AFJ-9936 | J82: 陳禮建 | K82: 0 | L82: 0 | M82: 1398 | N82: 1398 | O82: 1398 | R82: 1 | T82: 1311 | U82: 任意華南 | V82: 新保
A83: 珀榮貿易股份有限公司 | C83: 103.01.15 | D83: 營三課 | E83: 現金 | G83: 華南 | H83: +080P18747453 | I83: AFJ-9936 | J83: 陳禮建 | K83: 13597 | L83: 34186 | M83: 1398 | N83: 49181 | P83: 1 | T83: 1311 | U83: 優惠 | V83: 新保
A84: 呂依琪 | C84: 103.01.21 | D84: 營三課 | E84: 現金 | G84: 明台 | H84: 080P18747464 | I84: AGU-2678 | J84: 鄭英彥 | K84: 48947 | L84: 35074 | M84: 1318 | N84: 85339 | P84: 1 | U84: 優惠 | V84: 新保
A85: 王水珍 | C85: 103.01.24 | D85: 營一課 | E85: 現金 | G85: 明台 | H85: 080P18747852 | I85: AGU-6588 | J85: 凌大偉 | K85: 42932 | L85: 30124 | M85: 889 | N85: 73945 | P85: 1 | U85: 優惠 | V85: 新保
A86: 李莎莉 | C86: 103.01.17 | D86: 營二課 | E86: 現金 | G86: 明台 | H86: 080P18747458 | I86: AGU-0599 | J86: 王慶儒 | K86: 51673 | L86: 27398 | M86: 1019 | N86: 80090 | P86: 1 | U86: 優惠 | V86: 新保
A87: 博創印藝文化事業有限公司 | C87: 103.01.27 | D87: 營二課 | E87: 現金 | G87: 華南 | H87: 03AG619328 | I87: AGU-0810 | J87: 林政勳 | K87: 0 | L87: 0 | M87: 1398 | N87: 1398 | O87: 1398 | R87: 1 | U87: 單強制 | V87: 新保
A88: 威盾實業(股)公司 | C88: 103.01.20 | D88: 營三課 | E88: 現金 | G88: 華南 | H88: 03AG604645 | I88: AGU-2188 | J88: 賈勇華 | K88: 46660 | L88: 31859 | M88: 1398 | N88: 79917 | P88: 1 | U88: 優惠7 | V88: 新保
A89: 世輔冷凍空調有限公司 | C89: 103.01.23 | D89: 營一課 | E89: 現金 | G89: 華南 | H89: 03AG619332 | I89: AGF-5198 | J89: 凌大偉 | K89: 0 | L89: 0 | M89: 0 | N89: 0 | O89: 0 | S89: 汎德專案 | T89: 汎德贈乙式全險 | U89: 汎德專案 1/28改華南(原1/23明台) | V89: 新保
A90: 呂坤木 | C90: 103.01.17 | D90: 營一課 | E90: 現金 | G90: 明台 | H90: 080P18747459 | I90: AGU-0268 | J90: 李昀融 | K90: 0 | L90: 0 | M90: 1148 | N90: 1148 | O90: 1148 | R90: 1 | U90: 任意待議 | V90: 新保
A91: 陳詩萍 | C91: 103.01.08 | D91: 營二課 | E91: 現金 | G91: 華南 | H91: 03AG604629 | I91: AFJ-6835 | J91: 陳維德 | K91: 19236 | L91: 27093 | M91: 1019 | N91: 47348 | P91: 1 | V91: 新保
A92: 郭國勝 | C92: 103.01.24 | D92: 營二課 | E92: 現金 | G92: 明台 | H92: 080P18747853 | I92: AGU-3298 | J92: 陳一鋐 | K92: 54836 | L92: 35804 | M92: 1099 | N92: 91739 | P92: 1 | U92: 優惠 | V92: 新保
A93: 莊樹銘 | C93: 103.01.15 | D93: 營二課 | E93: 現金 | G93: 華南 | H93: 03AG604637 | I93: AFJ-7572 | J93: 陳一鋐 | K93: 49932 | L93: 30703 | M93: 1099 | N93: 81734 | P93: 1 | U93: 優惠 | V93: 新保
A94: 阮秀美 | C94: 103.01.20 | D94: 營二課 | E94: 現金 | G94: 富邦 | H94: 05DEA00719 | I94: AFJ-8893 | J94: 林宗慶 | K94: 0 | L94: 0 | M94: 0 | N94: 0 | O94: 0 | S94: 汎德專案 | T94: 汎德贈乙式全險 | U94: 汎德專案 | V94: 新保
A95: 楊淑娟 | C95: 103.01.20 | D95: 營二課 | E95: 現金 | G95: 華南 | H95: 03AG604643 | I95: AGE-3161 | J95: 陳維德 | K95: 0 | L95: 0 | M95: 0 | N95: 0 | O95: 0 | S95: 汎德專案 | T95: 汎德贈乙式全險 | U95: 汎德專案 | V95: 新保
A96: 呂淑梅 | C96: 103.01.28 | D96: 營三課 | E96: 現金 | G96: 明台 | H96: 080P18747859 | I96: AGE-7169 | J96: 簡志勳 | K96: 37030 | L96: 22724 | M96: 1318 | N96: 61072 | P96: 1 | U96: 優惠 | V96: 新保
A97: 賴玉珍 | C97: 103.01.28 | D97: 營一課 | E97: 現金 | G97: 富邦 | H97: 05GEA01324 | I97: AGU-1102 | J97: 蘇士文 | K97: 17968 | L97: 26942 | M97: 1019 | N97: 45929 | P97: 1 | V97: 新保
A98: 宏合建設開發股份有限公司 | C98: 103.01.21 | D98: 營三課 | E98: 現金 | G98: 明台 | H98: 080P18747465 | I98: AGU-0958 | J98: 林謙慶 | K98: 52334 | L98: 33184 | M98: 1398 | N98: 86916 | P98: 1 | U98: 優惠 | V98: 新保
A99: 總計 | K99: =SUM(K2:K98) -> 2575208 | L99: 2144189 | M99: 108389 | N99: 4827786 | O99: 19694 | P99: 67 | Q99: 6 | R99: 16 | S99: =COUNTA(S2:S98) -> 8

Sheet N.2014-01(檔名未更新)
A1: 起保日 | B1: 車號 | C1: 車主名稱 | D1: 車身號碼 | E1: 業代 | F1: 課別 | G1: 公司 | H1: 強制險 | I1: 任意險 | J1: 總保費 | K1: 出卡日 | L1: 自保 | M1: 車售 | N1: 其他 | O1: 備註
A2: 103.06.30 | B2: 6895-YK | C2: 新光鋼鐵(股)公司 | D2: NN44473 | E2: 吳侑親 | F2: 營三課 | G2: 富邦 | O2: 強制102.07.10~103.07.10 任意短期
A3: 103.01.02 | B3: 5589J6 | C3: 林世協 | D3: L817667 | E3: 林信宗 | F3: 營三課 | G3: 明台
A4: 103.01.02 | B4: 7966L9 | C4: 陳中春 | D4: Y462960 | E4: 陳一鋐 | F4: 營二課 | G4: 華南
A5: 103.01.02 | B5: 8989P9 | C5: 來譽企業有限公司 | D5: C616333 | E5: 黃盛緯 | F5: 營二課 | G5: 台產
A6: 103.01.02 | B6: 7K3357 | C6: 黃振傑 | D6: ND31510 | E6: 蔡燕森 | F6: 營一課 | G6: 華南
A7: 103.01.02 | B7: 8858-V8 | C7: 陳清芳 | D7: L930345 | E7: 王冠賢 | F7: 營二課 | G7: 台產
A8: 103.01.02 | B8: AAT1637 | C8: 王淑娟 | D8: J153333 | E8: 葉子政 | F8: 營一課 | G8: 華南 | O8: 強制12/26
A9: 103.01.02 | B9: AAT-6369 | C9: 黃笠凱 | D9: DW87091 | E9: 張昇文 | F9: 營二課 | G9: 明台
A10: 103.01.02 | B10: AAT-6565 | C10: 周志遠 | D10: DW40223 | E10: 梁志龍 | F10: 營二課 | G10: 明台
A11: 103.01.02 | B11: AAT2961 | C11: 陳鳳梅 | D11: J173484 | E11: 林柏霖 | F11: 營一課 | G11: 華南
A12: 103.01.02 | B12: 1319L2 | C12: 余政達 | D12: C859555 | E12: 凌大偉 | F12: 營一課 | G12: 明台
A13: 103.01.02 | B13: AAB-1589 | C13: 林麗雲 | D13: DY48524 | E13: 許嘉航 | F13: 營一課 | G13: 華南
A14: 103.01.02 | B14: AAT-3336 | C14: 賴春美 | D14: DY83522 | E14: 梁大民 | F14: 營一課 | G14: 華南
A15: 103.01.02 | B15: 8288TJ | C15: 許進東 | D15: LZ85050 | E15: 張昇文 | F15: 營二課 | G15: 明台
A16: 103.01.03 | B16: 8F1557 | C16: 陳膺中 | D16: GL08381 | E16: 許嘉航 | F16: 營一課 | G16: 華南
A17: 103.01.03 | B17: 8998R3 | C17: 皓協有限公司 | D17: C859545 | E17: 郭力嘉 | F17: 營三課 | G17: 明台
A18: 103.01.03 | B18: 3699Q9 | C18: 楊昆發 | D18: L514901 | E18: 梁志龍 | F18: 營二課 | G18: 台產
A19: 103.01.03 | B19: 5957QX | C19: 林哲龍 | D19: ND07444 | E19: 王慶儒 | F19: 營二課 | G19: 明台
A20: 103.01.03 | B20: 8229A7 | C20: 沈夢雄 | D20: C620883 | E20: 吳侑親 | F20: 營三課 | G20: 明台
A21: 103.01.03 | B21: 5708QX | C21: 林燕玲 | D21: ND07515 | E21: 張哲彰 | F21: 營一課 | G21: 明台
A22: 103.01.03 | B22: RAA-1503 | C22: 財盟小客車租賃股份有限公司 | D22: DD85071 | E22: 陳德益 | F22: 營業部 | G22: 台產
A23: 103.01.03 | B23: 5008QX | C23: 張佩宜 | D23: LZ84798 | E23: 黃盛緯 | F23: 營二課 | G23: 明台
A24: 103.01.03 | B24: 3268YN | C24: 蔡巧玲 | D24: L255179 | E24: 黃英杰 | F24: 營三課 | G24: 明台
A25: 103.01.03 | B25: 1980J6 | C25: 何柏凱 | D25: E927673 | E25: 陳維德 | F25: 營二課 | G25: 台產
A26: 103.01.04 | B26: AK8685 | C26: 利峻企業(有) | D26: DD55527 | E26: 黃榮源 | F26: 服務部 | G26: 明台 | O26: 3/28退
A27: 103.01.04 | B27: 5500L2 | C27: 許高榮 | D27: C591624 | E27: 梁志龍 | F27: 營二課 | G27: 明台
A28: 103.01.04 | B28: 3369J6 | C28: 頂準投資有限公司 | D28: C905039 | E28: 謝中堅 | F28: 營二課 | G28: 華南
A29: 103.01.04 | B29: AAT-2282 | C29: 依德股份有限公司 | D29: J191537 | E29: 陳德益 | F29: 營業部 | G29: 台產 | O29: 8/1退
A30: 103.01.04 | B30: 9655A6 | C30: 天驪企業有限公司 | D30: L432158 | E30: 郭力嘉 | F30: 營三課 | G30: 明台
A31: 103.01.04 | B31: RAA0078 | C31: 財盟小客車租賃股份有限公司 | D31: DW42053 | E31: 陳德益 | F31: 營業部 | G31: 明台
A32: 103.01.04 | B32: RAA0079 | C32: 財盟小客車租賃股份有限公司 | D32: L928972 | E32: 陳德益 | F32: 營業部 | G32: 明台
A33: 103.01.04 | B33: AAA-8363 | C33: 依德股份有限公司 | D33: DY50880 | E33: 陳德益 | F33: 營業部 | G33: 明台 | O33: 哲彰經理座車8/1退16514
A34: 103.01.04 | B34: 8898A7 | C34: 永紘投資股份有限公司 | D34: L434942 | E34: 花志明 | F34: 營一課 | G34: 台產
A35: 103.01.04 | B35: AAT6821 | C35: 陳穎聰 | D35: NN94328 | E35: 張健宏 | F35: 營一課 | G35: 華南
A36: 103.01.05 | B36: 5855L2 | C36: 昶誼工程有限公司 | D36: DU21846 | E36: 郭天南 | F36: 營一課 | G36: 台產
A37: 103.01.05 | B37: 6077L2 | C37: 張榮城 | D37: C616487 | E37: 凌大偉 | F37: 營一課 | G37: 明台
A38: 103.01.05 | B38: 9119YA | C38: 趙凌仙 | D38: PW96999 | E38: 張哲彰 | F38: 營一課 | G38: 華南
A39: 103.01.05 | B39: AAA-6922 | C39: 劉家笙 | D39: C999050 | E39: 郭天南 | F39: 營一課 | G39: 華南
A40: 103.01.05 | B40: 7918H6 | C40: 劉紋妃 | D40: DU24156 | E40: 張昇文 | F40: 營二課 | G40: 華南
A41: 103.01.05 | B41: 1995J6 | C41: 簡梅蘭 | D41: NN45232 | E41: 陳維德 | F41: 營二課 | G41: 台產
A42: 103.01.06 | B42: 5957DS | C42: 城林都市更新股份有限公司 | D42: 0123287 | E42: 陳美杏 | F42: 管理部 | G42: 明台
A43: 103.01.06 | B43: JD4322 | C43: 黃福財 | D43: FE67464 | E43: 蔡燕森 | F43: 營一課 | G43: 華南
A44: 103.01.06 | B44: 5957L2 | C44: 洪定 | D44: DW36870 | E44: 謝中堅 | F44: 營二課 | G44: 華南
A45: 103.01.06 | B45: 3399N3 | C45: 潘秀蓮 | D45: L587672 | E45: 王慶儒 | F45: 營二課 | G45: 明台
A46: 103.01.06 | B46: 0725DP | C46: 薛林金雀 | D46: A053596 | E46: 張昇文 | F46: 營二課 | G46: 富邦
A47: 103.01.06 | B47: 1299M8 | C47: 哈伯實業有限公司 | D47: C859547 | E47: 郭天南 | F47: 營一課 | G47: 華南
A48: 103.01.06 | B48: 6899M8 | C48: 楊元銑 | D48: L852908 | E48: 陳德益 | F48: 營業部 | G48: 明台
A49: 103.01.06 | B49: 0307YB | C49: 賴淑貞 | D49: L346251 | E49: 許嘉航 | F49: 營一課 | G49: 華南
A50: 103.01.07 | B50: 0839A7 | C50: 陳儷珠 | D50: X057185 | E50: 陳一鋐 | F50: 營二課 | G50: 華南
A51: 103.01.07 | B51: 3210K8 | C51: 王芬鐘 | D51: GL08155 | E51: 王慶儒 | F51: 營二課 | G51: 華南
A52: 103.01.07 | B52: 8389ZS | C52: 劉天龍 | D52: NL99382 | E52: 凌大偉 | F52: 營一課 | G52: 明台
A53: 103.01.07 | B53: 3258VM | C53: 眾圓科技有限公司 | D53: L152596 | E53: 許嘉航 | F53: 營一課 | G53: 華南
A54: 103.01.07 | B54: 0508A7 | C54: 吳偉鈴 | D54: E582819 | E54: 簡志勳 | F54: 營一課 | G54: 明台
A55: 103.01.08 | B55: 8718HJ | C55: 陳曉萍 | D55: 3160253 | E55: 黃盛緯 | F55: 營二課 | G55: 台產
A56: 103.01.08 | B56: AAT7566 | C56: 呂威穎 | D56: 0A65326 | E56: 花志明 | F56: 營一課 | G56: 明台
A57: 103.01.08 | B57: AAT7789 | C57: 王建林 | D57: VS28323 | E57: 田錦興 | F57: 營三課 | G57: 富邦
A58: 103.01.08 | B58: 5588YB | C58: 奕達運通有限公司 | D58: L148908 | E58: 程柏盛 | F58: STF | G58: 明台
A59: 103.01.08 | B59: AAY5670 | C59: 邱政瑋 | D59: WD90151 | E59: 陳碧瀛 | F59: STF | G59: 台產
A60: 103.01.08 | B60: AAT3693 | C60: 許淑真 | D60: DY52225 | E60: 郭天南 | F60: 營一課 | G60: 台產
A61: 103.01.08 | B61: AAB3328 | C61: 葉佳莉 | D61: NN75256 | E61: 吳豐譽 | F61: 營三課 | G61: 華南
A62: 103.01.08 | B62: 2738VM | C62: 蔡乙誠-台新銀行 | D62: DU05249 | E62: 張昇文 | F62: 營二課 | G62: 明台
A63: 103.01.09 | B63: 3268RJ | C63: 田君華 | D63: LT65942 | E63: 周益弘 | F63: 服務部 | G63: 明台
A64: 103.01.09 | B64: 1111QX | C64: 謝元 | D64: PW96170 | E64: 陳碧瀛 | F64: STF | G64: 明台
A65: 103.01.09 | B65: 0918A7 | C65: 蕭惠文 | D65: T018838 | E65: 李技霖 | F65: 服務部 | G65: 台產
A66: 103.01.09 | B66: AAB0399 | C66: 曾超琦 | D66: DY66153 | E66: 王慶儒 | F66: 營二課 | G66: 明台
A67: 103.01.09 | B67: AAQ0228 | C67: 黃筠茜 | D67: F298818 | E67: 林柏霖 | F67: 營一課 | G67: 富邦
A68: 103.01.09 | B68: AAB0667 | C68: 陳威達 | D68: DY50781 | E68: 林謙慶 | F68: 營三課 | G68: 明台
A69: 103.01.10 | B69: 5056L2 | C69: 黃玉玲 | D69: E891323 | E69: 林信宗 | F69: 營三課 | G69: 華南
A70: 103.01.10 | B70: 6818L2 | C70: 王秀萍 | D70: C591501 | E70: 林政勳 | F70: 營二課 | G70: 明台
A71: 103.01.10 | B71: 6878ER | C71: 許新章 | D71: DF60505 | E71: 辜正武 | F71: 服務部 | G71: 華南
A72: 103.01.10 | B72: 5729MR | C72: 張秀綺 | D72: 411037D | E72: 陳一鋐 | F72: 營二課 | G72: 明台
A73: 103.01.10 | B73: 5123J6 | C73: 禾翔興業有限公司 | D73: NN45234 | E73: 黃英杰 | F73: 營三課 | G73: 明台
A74: 103.01.10 | B74: 7068L2 | C74: 吳德權 | D74: DU26147 | E74: 張哲彰 | F74: 營一課 | G74: 台產
A75: 103.01.10 | B75: 9999RJ | C75: 林順雄 | D75: B958289 | E75: 張哲彰 | F75: 營一課 | G75: 明台
A76: 103.01.10 | B76: 1926J6 | C76: 黃婷芳 | D76: C591500 | E76: 張昇文 | F76: 營二課 | G76: 華南
A77: 103.01.10 | B77: AAT8080 | C77: 李淑芬 | D77: DW42598 | E77: 林柏霖 | F77: 營一課 | G77: 華南
A78: 103.01.10 | B78: AAT7966 | C78: 碾鑫股份有限公司 | D78: DW41067 | E78: 王慶儒 | F78: 營二課 | G78: 明台
A79: 103.01.10 | B79: AAA-8107 | C79: 依德股份有限公司 | D79: NN94298 | E79: 陳德益 | F79: 營業部 | G79: 台產
A80: 103.01.10 | B80: 9958A6 | C80: 達立科技股份有限公司 | D80: PA63918 | E80: 陳維德 | F80: 營二課 | G80: 明台
A81: 103.01.10 | B81: AAT7258 | C81: 陳慧玉 | D81: DY23981 | E81: 梁志龍 | F81: 營二課 | G81: 富邦
A82: 103.01.11 | B82: 0388TK | C82: 馬玉娟 | D82: P166870 | E82: 黃榮源 | F82: 服務部 | G82: 台產
A83: 103.01.11 | B83: 1689RJ | C83: 羅麗玉 | D83: B958290 | E83: 黃榮源 | F83: 服務部 | G83: 明台
A84: 103.01.11 | B84: 9869QT | C84: 鄭俊明 | D84: 2040894 | E84: 王裕明 | F84: 營一課 | G84: 富邦
A85: 103.01.11 | B85: 6600YN | C85: 許文襦 | D85: C420628 | E85: 梁志龍 | F85: 營二課 | G85: 明台
A86: 103.01.11 | B86: 0007TK | C86: 張清木 | D86: WF57154 | E86: 凌大偉 | F86: 營一課 | G86: 華南
A87: 103.01.11 | B87: 2772RJ | C87: 林憲璋 | D87: B956352 | E87: 賈勇華 | F87: 營三課 | G87: 明台
A88: 103.01.11 | B88: 0319ZS | C88: 張韻華 | D88: L502399 | E88: 郭力嘉 | F88: 營三課 | G88: 明台
A89: 103.01.11 | B89: AAT7667 | C89: 財團法人羅許基金會羅東博愛醫院 | D89: l906587 | E89: 簡志勳 | F89: 營一課 | G89: 富邦
A90: 103.01.11 | B90: 6518YN | C90: 張志鵬 | D90: E353976 | E90: 花志明 | F90: 營一課 | G90: 華南
A91: 103.01.11 | B91: AAT5181 | C91: 華創車電技術中心股份有限公司 | D91: NR22115 | E91: 黃盛緯 | F91: 營二課 | G91: 台產
A92: 103.01.11 | B92: 1318VE | C92: 鄭小豫 | D92: CW41257 | E92: 許慶麟 | F92: 服務部 | G92: 華南 | O92: 6/29退
A93: 103.01.11 | B93: AAT6018 | C93: 林倩如 | D93: VW96928 | E93: 張健宏 | F93: 營一課 | G93: 明台
A94: 103.01.12 | B94: 3996RJ | C94: 千凡實業有限公司 | D94: CX25436 | E94: 許嘉航 | F94: 營一課 | G94: 明台
A95: 103.01.12 | B95: 7K3768 | C95: 吳珠速 | D95: DN21023 | E95: 吳侑親 | F95: 營三課 | G95: 明台
A96: 103.01.12 | B96: 5601MR | C96: 林玉霞 | D96: A125360 | E96: 陳一鋐 | F96: 營二課 | G96: 明台
A97: 103.01.12 | B97: DG5577 | C97: 洪孟涵 | D97: EF95630 | E97: 郭力嘉 | F97: 營三課 | G97: 明台
A98: 103.01.12 | B98: 6688A7 | C98: 甯珍珠 | D98: L392503 | E98: 許嘉航 | F98: 營一課 | G98: 華南
A99: 103.01.12 | B99: 6728L2 | C99: 陳烱明 | D99: NN45236 | E99: 許嘉航 | F99: 營一課 | G99: 華南
A100: 103.01.12 | B100: 2255A7 | C100: 榮大貿易股份有限公司 | D100: C336489 | E100: 梁大民 | F100: 營一課 | G100: 明台
A101: 103.01.12 | B101: 3993A7 | C101: 簡銘賜地政士事務所 | D101: E518134 | E101: 花志明 | F101: 營一課 | G101: 明台
A102: 103.01.12 | B102: 3688DP | C102: 林子傑 | D102: B159790 | E102: 陳碧瀛 | F102: STF | G102: 華南
A103: 103.01.12 | B103: 7367L2 | C103: 吳仁豪 | D103: VS07514 | E103: 林陳郎 | F103: 營二課 | G103: 華南
A104: 103.01.12 | B104: 1288TK | C104: 俞國昌 | D104: DM62383 | E104: 簡志勳 | F104: 營一課 | G104: 明台
A105: 103.01.13 | B105: 3358F9 | C105: 趙璽 | D105: E629578 | E105: 黃盛緯 | F105: 營二課 | G105: 明台
A106: 103.01.13 | B106: 5668M9 | C106: 祁亞文 | D106: DU43575 | E106: 吳侑親 | F106: 營三課 | G106: 明台
A107: 103.01.13 | B107: 7667L2 | C107: 黃庚佳 | D107: L819720 | E107: 許嘉航 | F107: 營一課 | G107: 華南
A108: 103.01.13 | B108: 7397L2 | C108: 黃明蘭 | D108: L819342 | E108: 許嘉航 | F108: 營一課 | G108: 華南
A109: 103.01.13 | B109: 8399F9 | C109: 徐瑞菁 | D109: A908511 | E109: 黃盛緯 | F109: 營二課 | G109: 台產
A110: 103.01.13 | B110: 0596ZS | C110: 陳建民 | D110: L431390 | E110: 黃盛緯 | F110: 營二課 | G110: 華南
A111: 103.01.14 | B111: 1971VM | C111: 秦誼縈 | D111: TT76017 | E111: 陳碧瀛 | F111: STF | G111: 華南
A112: 103.01.14 | B112: 5838YJ | C112: 江之馼 | D112: L561761 | E112: 陳禮建 | F112: 營三課 | G112: 明台
A113: 103.01.14 | B113: HE5769 | C113: 陳劉淑娟 | D113: GJ80368 | E113: 張哲彰 | F113: 營一課 | G113: 明台
A114: 103.01.14 | B114: AAT5263 | C114: 蔡秀梅 | D114: NN94217 | E114: 陳一鋐 | F114: 營二課 | G114: 華南
A115: 103.01.14 | B115: AAB5877 | C115: 廖雨珍 | D115: DY84003 | E115: 陳禮建 | F115: 營三課 | G115: 明台
A116: 103.01.14 | B116: 9688F5 | C116: 林建宇 | D116: 1080C30 | E116: 張昇文 | F116: 營二課 | G116: 明台
A117: 103.01.14 | B117: 6316YK | C117: 顏秋玲 | D117: C399989 | E117: 張哲彰 | F117: 營一課 | G117: 華南
A118: 103.01.14 | B118: AAB5979 | C118: 陳曉華 | D118: D124592 | E118: 林謙慶 | F118: 營三課 | G118: 明台
A119: 103.01.14 | B119: ABV5556 | C119: 沈綺紅 | D119: J674121 | E119: 王冠賢 | F119: 營二課 | G119: 富邦
A120: 103.01.15 | B120: 8889YX | C120: 聚興科技股份有限公司 | D120: L322528 | E120: 黃英杰 | F120: 營三課 | G120: 華南
A121: 103.01.15 | B121: 3331QG | C121: 郭昆昌 | D121: 2618058 | E121: 鄭英彥 | F121: 營三課 | G121: 富邦 | O121: 11/11退
A122: 103.01.15 | B122: 7887YN | C122: 台灣偉登精密工業(股)公司 | D122: L346153 | E122: 簡志勳 | F122: 營一課 | G122: 明台
A123: 103.01.15 | B123: AAT-2733 | C123: 依德股份有限公司 | D123: F391500 | E123: 許嘉航 | F123: 營一課 | G123: 華南 | O123: 7/8退
A124: 103.01.15 | B124: 7N9631 | C124: 陳靜儀 | D124: PK91455 | E124: 張昇文 | F124: 營二課 | G124: 明台
A125: 103.01.15 | B125: 5128YB | C125: 呂玉美 | D125: L346318 | E125: 田錦興 | F125: 營三課 | G125: 明台
A126: 103.01.15 | B126: AAT5781 | C126: 嚴文遠 | D126: DX72397 | E126: 鄭英彥 | F126: 營三課 | G126: 明台
A127: 103.01.15 | B127: AAP8877 | C127: 林陳雯 | D127: 0A62426 | E127: 陳一鋐 | F127: 營二課 | G127: 華南
A128: 103.01.15 | B128: AAT9158 | C128: 吳美專 | D128: NR09740 | E128: 陳一鋐 | F128: 營二課 | G128: 明台
A129: 103.01.15 | B129: 6817L2 | C129: 楊秋鈴 | D129: DW29304 | E129: 謝中堅 | F129: 營二課 | G129: 華南
A130: 103.01.16 | B130: 6288XR | C130: 陳碧華 | D130: PW97122 | E130: 黃榮源 | F130: 服務部 | G130: 明台
A131: 103.01.16 | B131: 5209L2 | C131: 蕭漢武 | D131: L775361 | E131: 黃英杰 | F131: 營三課 | G131: 華南
A132: 103.01.16 | B132: 2835ES | C132: 利明週邊有限公司 | D132: LT61248 | E132: 王慶儒 | F132: 營二課 | G132: 明台
A133: 103.01.16 | B133: AAB6998 | C133: 畢家綠 | D133: DY54594 | E133: 陳維德 | F133: 營二課 | G133: 華南
A134: 103.01.16 | B134: 3158MS | C134: 陳奇正 | D134: B044145 | E134: 陳碧瀛 | F134: STF | G134: 明台
A135: 103.01.16 | B135: 7718J6 | C135: 陳湘茵 | D135: C906777 | E135: 張昇文 | F135: 營二課 | G135: 明台
A136: 103.01.16 | B136: 5388VF | C136: 顏錫亮 | D136: DU04881 | E136: 張昇文 | F136: 營二課 | G136: 明台
A137: 103.01.16 | B137: 8333R3 | C137: 賴怡倩 | D137: DU44798 | E137: 王慶儒 | F137: 營二課 | G137: 明台
A138: 103.01.17 | B138: 7999J6 | C138: 富思特開發股份有限公司 | D138: L817749 | E138: 張健宏 | F138: 營一課 | G138: 明台
A139: 103.01.17 | B139: 8006L2 | C139: 李澄池 | D139: L879432 | E139: 王冠賢 | F139: 營二課 | G139: 台產
A140: 103.01.17 | B140: 2979MS | C140: 吳宙耕 | D140: B975432 | E140: 凌大偉 | F140: 營一課 | G140: 明台
A141: 103.01.17 | B141: 6539YJ | C141: 鄧三貴 | D141: C258070 | E141: 簡志勳 | F141: 營一課 | G141: 華南
A142: 103.01.17 | B142: 1919UZ | C142: 上官鈺 | D142: L155144 | E142: 謝中堅 | F142: 營二課 | G142: 華南
A143: 103.01.17 | B143: P77868 | C143: 王財旺 | D143: BH64389 | E143: 賈勇華 | F143: 營三課 | G143: 華南
A144: 103.01.17 | B144: 3700ES | C144: 呂文琴 | D144: B951099 | E144: 陳勝雄 | F144: 服務部 | G144: 華南
A145: 103.01.17 | B145: 7658L2 | C145: 賴玉玲 | D145: F041252 | E145: 郭天南 | F145: 營一課 | G145: 台產
A146: 103.01.17 | B146: 1958L8 | C146: 吳枷妮 | D146: DU46155 | E146: 王裕明 | F146: 營一課 | G146: 華南
A147: 103.01.17 | B147: AAP7756 | C147: 詹益乾 | D147: E896567 | E147: 許嘉航 | F147: 營一課 | G147: 華南
A148: 103.01.17 | B148: AAQ-9988 | C148: 吳宛明 | D148: DY84228 | E148: 林政勳 | F148: 營二課 | G148: 華南
A149: 103.01.17 | B149: AAT9366 | C149: 鄧皓晏 | D149: NR09933 | E149: 林陳郎 | F149: 營二課 | G149: 華南
A150: 103.01.17 | B150: 3098RJ | C150: 羅雅惠 | D150: B562997 | E150: 程柏盛 | F150: STF | G150: 明台
A151: 103.01.17 | B151: AAQ-6168 | C151: 張朝旺 | D151: L841812 | E151: 林政勳 | F151: 營二課 | G151: 明台
A152: 103.01.17 | B152: 3138R8 | C152: 凌大偉 | D152: U780299 | E152: 凌大偉 | F152: 營一課 | G152: 明台
A153: 103.01.17 | B153: 3300YK | C153: 杜政宏 | D153: NM08039 | E153: 陳維德 | F153: 營二課 | G153: 明台
A154: 103.01.17 | B154: AAT9139 | C154: 葡瑛企業社 | D154: VT46425 | E154: 賈勇華 | F154: 營三課 | G154: 華南
A155: 103.01.17 | B155: AAQ1989 | C155: 林淑慧 | D155: VT77069 | E155: 梁志龍 | F155: 營二課 | G155: 華南
A156: 103.01.17 | B156: AAB2830 | C156: 林國森 | D156: NN94349 | E156: 劉家任 | F156: 營三課 | G156: 富邦
A157: 103.01.17 | B157: AAQ-0589 | C157: 張晉豪 | D157: DY47195 | E157: 陳金昇 | F157: 營業部 | G157: 明台
A158: 103.01.18 | B158: 6018YJ | C158: 黃弟實 | D158: C304252 | E158: 凌大偉 | F158: 營一課 | G158: 華南
A159: 103.01.18 | B159: 5325ER | C159: 施淑滿 | D159: ND05667 | E159: 陳勝雄 | F159: 服務部 | G159: 華南
A160: 103.01.18 | B160: 4455L2 | C160: 張瓊蓉 | D160: NN45239 | E160: 謝中堅 | F160: 營二課 | G160: 華南
A161: 103.01.18 | B161: AAT7756 | C161: 黃秀娟 | D161: NN94320 | E161: 許嘉航 | F161: 營一課 | G161: 華南
A162: 103.01.18 | B162: 5338A7 | C162: 華登建設有限公司 | D162: C336679 | E162: 林陳郎 | F162: 營二課 | G162: 明台
A163: 103.01.18 | B163: 4726-T3 | C163: 依德股份有限公司 | D163: F389889 | E163: 陳龍雲 | F163: 營一課 | G163: 明台
A164: 103.01.18 | B164: 8378J6 | C164: 林威志 | D164: DU05463 | E164: 郭天南 | F164: 營一課 | G164: 台產
A165: 103.01.18 | B165: AAT-9585 | C165: 曾淑華 | D165: DY66109 | E165: 戴子貽 | F165: 營一課 | G165: 華南
A166: 103.01.18 | B166: 8238L2 | C166: 祐丞營造有限公司 | D166: NL99618 | E166: 張昇文 | F166: 營二課 | G166: 華南
A167: 103.01.18 | B167: AAT9868 | C167: 蔡雪 | D167: NN94346 | E167: 張昇文 | F167: 營二課 | G167: 華南
A168: 103.01.19 | B168: 3000UZ | C168: 台灣斯巴克環保工程有限公司 | D168: DT48279 | E168: 李百祥 | F168: 服務部 | G168: 台產
A169: 103.01.19 | B169: 8099UX | C169: 朱誠中 | D169: DU16440 | E169: 吳豐譽 | F169: 營三課 | G169: 華南
A170: 103.01.19 | B170: 8999L8 | C170: 黃煥燿 | D170: L515936 | E170: 許嘉航 | F170: 營一課 | G170: 華南
A171: 103.01.19 | B171: 0430M8 | C171: 張春隆 | D171: L888351 | E171: 梁志龍 | F171: 營二課 | G171: 華南 | O171: 7/11退
A172: 103.01.19 | B172: 6996ZT | C172: 青峰裝璜工程有限公司 | D172: A908507 | E172: 王慶儒 | F172: 營二課 | G172: 明台
A173: 103.01.19 | B173: 7K7588 | C173: 林淑媛 | D173: NC81124 | E173: 陳俊田 | F173: 服務部 | G173: 華南
A174: 103.01.19 | B174: 6958YN | C174: 潘芳中 | D174: C342345 | E174: 蕭敏聰 | F174: 營三課 | G174: 台產
A175: 103.01.19 | B175: 8955J6 | C175: 黃秀蘭 | D175: DU24150 | E175: 郭力嘉 | F175: 營三課 | G175: 華南
A176: 103.01.19 | B176: 2089QM | C176: 張珠宜 | D176: LT66264 | E176: 王慶儒 | F176: 營二課 | G176: 明台
A177: 103.01.19 | B177: 0689ZT | C177: 林文章 | D177: L454211 | E177: 陳碧瀛 | F177: STF | G177: 台產
A178: 103.01.19 | B178: DH9900 | C178: 梁妙金 | D178: BT55134 | E178: 簡志勳 | F178: 營一課 | G178: 華南
A179: 103.01.19 | B179: 0199ZT | C179: 陳衍樺 | D179: E582846 | E179: 李技霖 | F179: 服務部 | G179: 明台
A180: 103.01.19 | B180: 8055L8 | C180: 鐳瑪科技有限公司 | D180: DU42509 | E180: 蕭敏聰 | F180: 營三課 | G180: 明台
A181: 103.01.20 | B181: 5879VM | C181: 憬德營造有限公司 | D181: DF62294 | E181: 林信宗 | F181: 營三課 | G181: 華南
A182: 103.01.20 | B182: 6598KD | C182: 良盟塑膠股份有限公司 | D182: CM61647 | E182: 許嘉航 | F182: 營一課 | G182: 華南
A183: 103.01.20 | B183: 7888MS | C183: 楊裕全 | D183: CM03682 | E183: 黃英杰 | F183: 營三課 | G183: 明台
A184: 103.01.20 | B184: 9799J6 | C184: 蕭彩鳳 | D184: DU26933 | E184: 李百祥 | F184: 服務部 | G184: 台產
A185: 103.01.20 | B185: 0253L3 | C185: 世隆興業有限公司 | D185: LZ44359 | E185: 張昇文 | F185: 營二課 | G185: 華南
A186: 103.01.20 | B186: 0653L2 | C186: 呂緯盛 | D186: VS63509 | E186: 黃盛緯 | F186: 營二課 | G186: 華南
A187: 103.01.20 | B187: 6257A7 | C187: 陳秀蓮 | D187: C621147 | E187: 吳侑親 | F187: 營三課 | G187: 華南
A188: 103.01.20 | B188: 8F7686 | C188: 陳君寧 | D188: GM13753 | E188: 林陳郎 | F188: 營二課 | G188: 華南
A189: 103.01.21 | B189: 5922VM | C189: 劉壽懷 | D189: C170514 | E189: 陳禮建 | F189: 營三課 | G189: 明台
A190: 103.01.21 | B190: 7079YN | C190: 精信精密工業(股)公司 | D190: C386323 | E190: 凌大偉 | F190: 營一課 | G190: 明台
A191: 103.01.21 | B191: P79558 | C191: 儒林印刷品(有) | D191: AS93753 | E191: 謝中堅 | F191: 營二課 | G191: 華南
A192: 103.01.21 | B192: 8268VR | C192: 陶汶 | D192: 1U12020 | E192: 王裕明 | F192: 營一課 | G192: 明台
A193: 103.01.21 | B193: 7727QX | C193: 劉有福 | D193: NE70273 | E193: 王慶儒 | F193: 營二課 | G193: 明台
A194: 103.01.21 | B194: 5189QY | C194: 萬成紙品有限公司 | D194: CW41086 | E194: 凌大偉 | F194: 營一課 | G194: 華南
A195: 103.01.21 | B195: 0696ZT | C195: 李香雲 | D195: VN85131 | E195: 梁志龍 | F195: 營二課 | G195: 華南
A196: 103.01.21 | B196: AAT-5118 | C196: 范綉清 | D196: 0A65305 | E196: 陳龍雲 | F196: 營一課 | G196: 華南
A197: 103.01.21 | B197: AAY2588 | C197: 林美家 | D197: VU18542 | E197: 林陳郎 | F197: 營二課 | G197: 明台
A198: 103.01.21 | B198: AAT7153 | C198: 張月香 | D198: DY49086 | E198: 賈勇華 | F198: 營三課 | G198: 華南
A199: 103.01.21 | B199: 8899D8 | C199: 毛喬德 | D199: C336097 | E199: 黃盛緯 | F199: 營二課 | G199: 明台
A200: 103.01.22 | B200: 7066YN | C200: 林育秀 | D200: C240694 | E200: 凌大偉 | F200: 營一課 | G200: 華南
... 93 more rows

Sheet O.2014-01新保未投保電訪記錄表
A1: 2014-01新保未投保電訪記錄表
G2: 自保保險公司 | P2: 未保考量因素 | X2: 客戶說明 | Y2: 關貿查詢資料 | AA2: 確認書說明
A3: NO. | B3: 車 號 | C3: 車主名稱 | D3: 業 代 | E3: 單強制 | F3: 未保 | G3: 台產 | H3: 富邦 | I3: 明台 | J3: 華南 | K3: 國泰 | L3: 新安東京 | M3: 新光 | N3: 其他 | O3: 無記錄 | P3: 親友 | Q3: 企業客戶 | R3: 便利性 | S3: 保險費用 | T3: 服務態度 | U3: 同行調車 | V3: 其他 | W3: 無法聯絡 | Y3: 保險公司 | Z3: 保險內容 | AB3: 合約備註 | AC3: 保險備註 | AD3: ID/統一編號 | AE3: 出生年月日
A4: 1 | B4: AFW-7569 | C4: 陳美燕 | D4: 陳維德 | F4: V
A5: 2 | B5: AAR-9788 | C5: 正隆(股)公司 | D5: 梁大民 | E5: 富邦 | AC5: 任意待議 | AD5: 33085508
A6: 3 | B6: AGU-0629 | C6: 李仁傑 | D6: 陳維德 | E6: 華南 | AC6: 單強制 | AD6: F124679290 | AE6: 68.09.28
A7: 4 | B7: AFJ-9189 | C7: 蘇宗焜 | D7: 賈勇華 | E7: 華南 | AC7: 單強制 | AD7: F122910930 | AE7: 50.10.19
A8: 5 | B8: AGE-2323 | C8: 吳美容 | D8: 林陳郎 | E8: 華南 | AC8: 任意待議 | AD8: F203287132 | AE8: 42.11.03
A9: 6 | B9: AGE-3168 | C9: 賴逸虹 | D9: 劉家任 | F9: V
A10: 7 | B10: AGU-3658 | C10: 張玉芊 | D10: 林謙慶 | E10: 富邦 | AC10: 1/27任意註銷 | AD10: F220652633 | AE10: 58.08.29
A11: 8 | B11: AGU-6008 | C11: 莊睿文 | D11: 凌大偉 | E11: 明台 | AC11: 單強制 | AD11: A120812776 | AE11: 60.04.17
A12: 9 | B12: AGF-2399 | C12: 王國樑 | D12: 鄭英彥 | E12: 明台 | AC12: 單強制 | AD12: G120835702 | AE12: 49.07.15
A13: 10 | B13: AGE-8889 | C13: 邱創立 | D13: 凌大偉 | E13: 明台 | AC13: 任意待議 | AD13: F125153035 | AE13: 69.12.18
A14: 11 | B14: AGC-3155 | C14: 昌漢開發工程有限公司 | D14: 林政勳 | E14: 華南 | AC14: 單強制 | AD14: 86806461
A15: 12 | B15: AGF-1066 | C15: 梁忠賢 | D15: 蘇士文 | E15: 富邦 | AC15: 任意待議 | AD15: L120533242 | AE15: 63.03.06
A16: 13 | B16: AGU-0522 | C16: 張瓊方 | D16: 陳一鋐 | E16: 華南 | AC16: 單強制 | AD16: A225166182 | AE16: 68.05.22
A17: 14 | B17: AGU-0810 | C17: 博創印藝文化事業有限公司 | D17: 林政勳 | E17: 華南 | AC17: 單強制 | AD17: 84860974
A18: 15 | B18: AGU-0268 | C18: 呂坤木 | D18: 李昀融 | E18: 明台 | AC18: 任意待議 | AD18: F102686595 | AE18: 36.11.28

Sheet P.2014-01續保未投保電訪記錄表
A1: 2014-01續保未保電訪記錄表
J2: 自保保險公司 | S2: 未保考量因素 | AB2: 關貿查詢資料
A3: NO | B3: 車 號 | C3: 車主名稱 | D3: 業 代 | E3: 承保公司 | F3: 單強制 | G3: 任意 | H3: 總保費 | I3: 車售 | J3: 台產 | K3: 富邦 | L3: 明台 | M3: 華南 | N3: 國泰 | O3: 新安東京 | P3: 新光 | Q3: 其他 | R3: 無記錄 | S3: 親友 | T3: 企業客戶 | U3: 便利性 | V3: 保險費用 | W3: 服務態度 | X3: 同行調車 | Y3: 其他 | Z3: 無法聯絡 | AA3: 備註 | AB3: 保險公司 | AC3: 保險內容 | AD3: 投保日期 | AE3: 是否已過戶 | AF3: ID/統一編號 | AG3: 出生年月日
A4: 4 | B4: AAT2961 | C4: 陳鳳梅 | D4: 林柏霖 | E4: 華南 | H4: 1019 | AF4: F229205989 | AG4: 49.12.16
A5: 9 | B5: 0307YB | C5: 賴淑貞 | D5: 許嘉航 | E5: 華南 | H5: 1019 | AF5: F222535322 | AG5: 64.03.07
A6: 11 | B6: 0508A7 | C6: 吳偉鈴 | D6: 簡志勳 | E6: 明台 | H6: 1019 | AF6: P222182248 | AG6: 64.08.03
A7: 19 | B7: AAT8080 | C7: 李淑芬 | D7: 林柏霖 | E7: 華南 | H7: 1019 | AF7: H221948087 | AG7: 65.07.15
A8: 34 | B8: AAB6998 | C8: 畢家綠 | D8: 陳維德 | E8: 華南 | H8: 1019 | AF8: E220461257 | AG8: 58.01.05
A9: 43 | B9: 0199ZT | C9: 陳衍樺 | D9: 李技霖 | E9: 明台 | H9: 1019 | AF9: F223346383 | AG9: 63.09.15
A10: 5 | B10: AAB1589 | C10: 林麗雲 | D10: 許嘉航 | E10: 華南 | H10: 1019 | AF10: P221357634 | AG10: 49.04.22
A11: 70 | B11: AAY3139 | C11: 郭力菲 | D11: 郭力嘉 | E11: 台產 | H11: 1019 | AF11: A223548462 | AG11: 56.09.24
A12: 12 | B12: AAT7566 | C12: 呂威穎 | D12: 花志明 | E12: 明台 | H12: 1099 | AF12: B121185706 | AG12: 64.09.06
A13: 26 | B13: 3688DP | C13: 林子傑 | D13: 陳碧瀛 | E13: 華南 | H13: 1099 | AF13: F123231081 | AG13: 61.10.24
A14: 38 | B14: 3300YK | C14: 杜政宏 | D14: 陳維德 | E14: 明台 | H14: 1099 | AF14: F120482193 | AG14: 59.11.25
A15: 3 | B15: 8858V8 | C15: 陳清芳 | D15: 王冠賢 | E15: 台產 | H15: 1099 | AF15: F120990163 | AG15: 45.01.08
A16: 47 | B16: AAY2588 | C16: 林美家 | D16: 林陳郎 | E16: 明台 | H16: 1138 | AF16: L220340632 | AG16: 53.01.29
A17: 75 | B17: AAA9968 | C17: 方睿杰 | D17: 黃翠暖 | E17: 台產 | H17: 1138 | AF17: G120050521 | AG17: 55.04.03
A18: 13 | B18: AAT7789 | C18: 王建林 | D18: 田錦興 | E18: 富邦 | H18: 1148 | AF18: G100143221 | AG18: 38.11.15
A19: 72 | B19: AAY2191 | C19: 汪維瓏 | D19: 簡志勳 | E19: 明台 | H19: 1148 | AF19: J100329090 | AG19: 33.11.11
A20: 20 | B20: AAT7966 | C20: 碾鑫股份有限公司 | D20: 王慶儒 | E20: 明台 | H20: 1218 | AF20: 70599373
A21: 74 | B21: AAY5958 | C21: 惠而邦衡器控制有限公司 | D21: 王冠賢 | E21: 華南 | H21: 1218 | AF21: 27889697
A22: 29 | B22: 9688F5 | C22: 林建宇 | D22: 張昇文 | E22: 明台 | H22: 1318 | AF22: F121711273 | AG22: 61.12.07
A23: 17 | B23: 5729MR | C23: 張秀綺 | D23: 陳一鋐 | E23: 明台 | H23: 2694 | AF23: S221511613 | AG23: 46.05.10
A24: 10 | B24: 0839A7 | C24: 陳儷珠 | D24: 陳一鋐 | E24: 華南 | H24: 3737 | AF24: P200602812 | AG24: 47.01.08
A25: 8 | B25: 0725DP | C25: 薛林金雀 | D25: 張昇文 | E25: 富邦 | H25: 4492 | AF25: P200607102 | AG25: 43.09.26
A26: 49 | B26: 3799TK | C26: 林黃美英 | D26: 許嘉航 | E26: 華南 | H26: 5542 | AF26: F202635054 | AG26: 39.06.04
A27: 25 | B27: 7K3768 | C27: 吳珠速 | D27: 吳侑親 | E27: 明台 | H27: 10603 | AF27: P221792026 | AG27: 52.11.30
A28: 40 | B28: AAT9868 | C28: 蔡雪 | D28: 張昇文 | E28: 華南 | H28: 10910 | AF28: N203196883 | AG28: 34.05.01
A29: 53 | B29: 8588ZV | C29: 蔡嘉汝 | D29: 黃盛緯 | E29: 明台 | H29: 16805 | AF29: F223753673 | AG29: 65.06.21
A30: 27 | B30: 5668M9 | C30: 祁亞文 | D30: 吳侑親 | E30: 明台 | H30: 27464 | AF30: F121904009 | AG30: 54.12.09
A31: 42 | B31: 6996ZT | C31: 青峰裝璜工程有限公司 | D31: 王慶儒 | E31: 明台 | H31: 28171 | AF31: 20803858
A32: 35 | B32: 7718J6 | C32: 陳湘茵 | D32: 張昇文 | E32: 明台 | H32: 28210 | AF32: C220455006 | AG32: 64.07.04
A33: 2 | B33: 7966L9 | C33: 陳中春 | D33: 陳一鋐 | E33: 華南 | H33: 31330 | AF33: G120399578 | AG33: 55.02.15
A34: 45 | B34: 6257A7 | C34: 陳秀蓮 | D34: 吳侑親 | E34: 華南 | H34: 32575 | AF34: U220230255 | AG34: 49.03.04
A35: 77 | B35: AAY3310 | C35: 鄭明芳 | D35: 謝中堅 | E35: 華南 | H35: 36202 | AF35: K221480582 | AG35: 71.02.21
A36: 6 | B36: 8229A7 | C36: 沈夢雄 | D36: 吳侑親 | E36: 明台 | H36: 37320 | AF36: P120221786 | AG36: 59.05.24
A37: 28 | B37: 7397L2 | C37: 黃明蘭 | D37: 許嘉航 | E37: 華南 | H37: 37507 | AF37: Q222133184 | AG37: 59.01.03
A38: 79 | B38: ACA0008 | C38: 黃敏 | D38: 梁志龍 | E38: 明台 | H38: 40694 | AF38: G221428098 | AG38: 70.08.02
A39: 67 | B39: 6259K9 | C39: 吳清貞 | D39: 黃盛緯 | E39: 明台 | H39: 43125 | AF39: Y220250811 | AG39: 61.06.04
A40: 73 | B40: AAY5757 | C40: 曾三原 | D40: 花志明 | E40: 明台 | H40: 44296 | AF40: P121493213 | AG40: 57.10.12
A41: 52 | B41: AAL8868 | C41: 吳永裕 | D41: 花志明 | E41: 華南 | H41: 44475 | AF41: L121438522 | AG41: 53.04.10
A42: 51 | B42: AAL1177 | C42: 梁家蓁 | D42: 黃盛緯 | E42: 台產 | H42: 46210 | AF42: B221186161 | AG42: 64.06.25
A43: 1 | B43: 6895YK | C43: 新光鋼鐵(股)公司 | D43: 吳侑親 | E43: 富邦 | H43: 48394 | AF43: 35836625
A44: 56 | B44: AAY5155 | C44: 高珮珊 | D44: 凌大偉 | E44: 明台 | H44: 50655 | AF44: F227543191 | AG44: 79.09.25
A45: 61 | B45: 2781WW | C45: 陳瑞瑩 | D45: 陳勝雄 | E45: 台產 | H45: 53071 | AF45: J220988097 | AG45: 52.12.07
A46: 60 | B46: 5450QX | C46: 湯秋香 | D46: 張昇文 | E46: 明台 | H46: 54981 | AF46: F220381853 | AG46: 49.08.14
A47: 21 | B47: AAT7258 | C47: 陳慧玉 | D47: 梁志龍 | E47: 富邦 | H47: 59289 | AF47: N220653583 | AG47: 61.10.31
A48: 41 | B48: 8099UX | C48: 朱誠中 | D48: 吳豐譽 | E48: 華南 | H48: 63285 | AF48: Y120251290 | AG48: 55.02.13
A49: 24 | B49: AAT5181 | C49: 華創車電技術中心股份有限公司 | D49: 黃盛緯 | E49: 台產 | H49: 71903 | AF49: 27932239
A50: 23 | B50: AAT7667 | C50: 財團法人羅許基金會羅東博愛醫院 | D50: 簡志勳 | E50: 富邦 | H50: 75874 | AF50: 42005610
A51: 59 | B51: 8398YN | C51: 陳玉雪 | D51: 許嘉航 | E51: 明台 | H51: 80599 | AF51: A200165090 | AG51: 42.03.02
A52: 78 | B52: AAM2686 | C52: 盈旺交通有限公司 | D52: 張健宏 | E52: 明台 | H52: 83812 | AF52: 89698727
A53: 71 | B53: AAY3189 | C53: 陳美玲 | D53: 賈勇華 | E53: 華南 | H53: 87113 | AF53: L220913528 | AG53: 54.08.31
A54: 66 | B54: AAY2369 | C54: 喬貿投資股份有限公司 | D54: 林柏霖 | E54: 明台 | H54: 89768 | AF54: 24394356
A55: 16 | B55: AAB3328 | C55: 葉佳莉 | D55: 吳豐譽 | E55: 華南 | H55: 90011 | AF55: F224318703 | AG55: 67.05.22
A56: 62 | B56: AAY2199 | C56: 獵傑管理顧問有限公司 | D56: 吳豐譽 | E56: 富邦 | H56: 102347 | AF56: 12691845
A57: 76 | B57: AAY6161 | C57: 林佑親 | D57: 王裕明 | E57: 台產 | H57: 105760 | AF57: A228435611 | AG57: 73.10.12
A58: 80 | B58: AAY6336 | C58: 富域建設股份有限公司 | D58: 吳侑親 | E58: 明台 | H58: 138206 | AF58: 28915504
A59: 22 | B59: 2772RJ | C59: 林憲璋 | D59: 賈勇華 | E59: 明台 | H59: ? | I59: 退保 | AF59: P121355638 | AG59: 59.04.26
A60: 54 | B60: 3258ZT | C60: 龔淑梅 | D60: 簡志勳 | E60: 華南 | H60: ? | I60: 080P18747448 | AF60: F221637729 | AG60: 63.03.25
A61: 32 | B61: 6817L2 | C61: 楊秋鈴 | D61: 謝中堅 | E61: 華南 | H61: ? | I61: 到期單無 | AF61: J220316537 | AG61: 51.11.09
A62: 31 | B62: 5128YB | C62: 呂玉美 | D62: 田錦興 | E62: 明台 | H62: ? | I62: 到期單無 | AF62: F222919828 | AG62: 55.07.04
A63: 37 | B63: 3138R8 | C63: 凌大偉 | D63: 凌大偉 | E63: 明台 | H63: ? | I63: 到期單無 | AF63: P122172455 | AG63: 62.06.03
A64: 50 | B64: 1659T3 | C64: 吳岳憲 | D64: 梁志龍 | E64: 富邦 | H64: ? | I64: 到期單無 | AF64: F124137395 | AG64: 65.11.30
A65: 46 | B65: AAT5118 | C65: 范綉清 | D65: 陳龍雲 | E65: 華南 | H65: ? | I65: 到期單無 | AF65: J221700622 | AG65: 67.10.03
A66: 15 | B66: AAY5670 | C66: 邱政瑋 | D66: 陳碧瀛 | E66: 台產 | H66: ? | I66: 原1/8改12/24 | AF66: F125533640 | AG66: 72.07.22
A67: 14 | B67: 5588YB | C67: 奕達運通有限公司 | D67: 程柏盛 | E67: 明台 | H67: 鎔德 | AF67: 21213916
A68: 36 | B68: 3098RJ | C68: 羅雅惠 | D68: 程柏盛 | E68: 明台 | H68: 鎔德 | AF68: F222066019 | AG68: 61.11.03
A69: 68 | B69: 5D6756 | C69: 劉興聖 | D69: 程柏盛 | E69: 華南 | H69: 鎔德 | AF69: J120566679 | AG69: 52.04.28
A70: 69 | B70: 5839TK | C70: 宇田控制科技股份有限公司 | D70: 程柏盛 | E70: 明台 | H70: 鎔德 | AF70: 84218930
A71: 7 | B71: 3268YN | C71: 蔡巧玲 | D71: 黃英杰 | E71: 明台 | H71: 鎔德 | AF71: A223217613 | AG71: 53.12.05
A72: 18 | B72: 5123J6 | C72: 禾翔興業有限公司 | D72: 黃英杰 | E72: 明台 | H72: 鎔德 | AF72: 16035167
A73: 30 | B73: 8889YX | C73: 聚興科技股份有限公司 | D73: 黃英杰 | E73: 華南 | H73: 鎔德 | AF73: 97282244
A74: 33 | B74: 5209L2 | C74: 蕭漢武 | D74: 黃英杰 | E74: 華南 | H74: 鎔德 | AF74: R121969634 | AG74: 52.09.12
A75: 44 | B75: 7888MS | C75: 楊裕全 | D75: 黃英杰 | E75: 明台 | H75: 鎔德 | AF75: A121884641 | AG75: 61.03.10
A76: 48 | B76: AAQ1312 | C76: 梁仲賢 | D76: 黃英杰 | E76: 明台 | H76: 鎔德 | AF76: EA90001696 | AG76: 66.01.06
A77: 55 | B77: AAD5621 | C77: 戎錫芬 | D77: 黃英杰 | E77: 台產 | H77: 鎔德 | AF77: J220139503 | AG77: 53.06.21
A78: 57 | B78: 3328YS | C78: 周伯勳 | D78: 黃英杰 | E78: 明台 | H78: 鎔德 | AF78: A120332228 | AG78: 63.05.28
A79: 58 | B79: 2139VR | C79: 永量工業有限公司 | D79: 黃英杰 | E79: 明台 | H79: 鎔德 | AF79: 86269835
A80: 39 | B80: AAQ0589 | C80: 張晉豪 | D80: 陳金昇 | E80: 明台 | H80: 鎔德 | AF80: N120265572 | AG80: 52.07.18
A81: 63 | B81: RAA3726 | C81: 鎔德-財盟租賃股份有限公司 | D81: 劉恆升 | E81: 富邦 | H81: 鎔德 | AF81: 89947319
A82: 64 | B82: RAA3731 | C82: 鎔德-財盟小客車租賃股份有限公司 | D82: 劉恆升 | E82: 台產 | H82: 鎔德 | AF82: 70438075
A83: 65 | B83: RAA3732 | C83: 鎔德-財盟小客車租賃股份有限公司 | D83: 劉恆升 | E83: 台產 | H83: 鎔德 | AF83: 70438075

Sheet R.YD-承保業務分析總表
A1: 2014年承保業務分析總表
A3: 德鎔(新保+續保) | C3: 一月 | E3: 二月 | G3: 三月 | I3: 四月 | K3: 五月 | M3: 六月 | O3: 七月 | Q3: 八月 | S3: 九月 | U3: 十月 | W3: 十一月 | Y3: 十二月 | AA3: 總計 | AC3: %
C4: 車體險 | D4: 總保額 | E4: 車體險 | F4: 總保額 | G4: 車體險 | H4: 總保額 | I4: 車體險 | J4: 總保額 | K4: 車體險 | L4: 總保額 | M4: 車體險 | N4: 總保額 | O4: 車體險 | P4: 總保額 | Q4: 車體險 | R4: 總保額 | S4: 車體險 | T4: 總保額 | U4: 車體險 | V4: 總保額 | W4: 車體險 | X4: 總保額 | Y4: 車體險 | Z4: 總保額 | AA4: 車體險 | AB4: 總保額 | AC4: 車體/總保額
A5: 台產 | B5: 依 德 | C5: 769416 | D5: 1448621 | E5: 400818 | F5: 734459 | G5: 1147413 | H5: 2066793 | I5: 261380 | J5: 450001 | K5: 0 | L5: 0 | M5: 0 | N5: 0 | O5: 0 | P5: 0 | Q5: 0 | R5: 0 | S5: 0 | T5: 0 | U5: 0 | V5: 0 | W5: 0 | X5: 0 | Y5: 0 | Z5: 0 | AA5: =C5+E5+G5+I5+K5+M5+O5+Q5+S5+U5+W5+Y5 -> 2579027 | AB5: =D5+F5+H5+J5+L5+N5+P5+R5+T5+V5+X5+Z5 -> 4699874 | AC5: =AA5/AB5 -> 0.5487438599
B6: 鎔 德
B7: 鉑 德
B8: 合 計 | C8: =SUM(C5:C7) -> 769416 | D8: 1448621 | E8: 400818 | F8: 734459 | G8: 1147413 | H8: 2066793 | I8: 261380 | J8: 450001 | K8: 0 | L8: 0 | M8: 0 | N8: 0 | O8: 0 | P8: 0 | Q8: 0 | R8: 0 | S8: 0 | T8: 0 | U8: 0 | V8: 0 | W8: 0 | X8: 0 | Y8: 0 | Z8: 0 | AA8: 2579027 | AB8: 4699874 | AC8: =AA8/AB8 -> 0.5487438599
A9: 明台 | B9: 依 德 | C9: 3135840 | D9: 5566416 | E9: 1516672 | F9: 2519534 | G9: 2532100 | H9: 4640666 | I9: 1384290 | J9: 2363283 | K9: 113888 | L9: 198568 | M9: 0 | N9: 0 | O9: 0 | P9: 0 | Q9: 0 | R9: 0 | S9: 0 | T9: 0 | U9: 0 | V9: 0 | W9: 0 | X9: 0 | Y9: 0 | Z9: 0 | AA9: =C9+E9+G9+I9+K9+M9+O9+Q9+S9+U9+W9+Y9 -> 8682790 | AB9: =D9+F9+H9+J9+L9+N9+P9+R9+T9+V9+X9+Z9 -> 15288467 | AC9: =AA9/AB9 -> 0.5679307154
B10: 鎔 德
B11: 鉑 德
B12: 合 計 | C12: =SUM(C9:C11) -> 3135840 | D12: 5566416 | E12: 1516672 | F12: 2519534 | G12: 2532100 | H12: 4640666 | I12: 1384290 | J12: 2363283 | K12: 113888 | L12: 198568 | M12: 0 | N12: 0 | O12: 0 | P12: 0 | Q12: 0 | R12: 0 | S12: 0 | T12: 0 | U12: 0 | V12: 0 | W12: 0 | X12: 0 | Y12: 0 | Z12: 0 | AA12: 8682790 | AB12: 15288467 | AC12: =AA12/AB12 -> 0.5679307154
A13: 華南 | B13: 依 德 | C13: 2831625 | D13: 4960844 | E13: 1055555 | F13: 1836610 | G13: 1998310 | H13: 3830027 | I13: 1505337 | J13: 2654891 | K13: 327389 | L13: 514680 | M13: 0 | N13: 0 | O13: 0 | P13: 0 | Q13: 0 | R13: 0 | S13: 0 | T13: 0 | U13: 0 | V13: 0 | W13: 0 | X13: 0 | Y13: 0 | Z13: 0 | AA13: =C13+E13+G13+I13+K13+M13+O13+Q13+S13+U13+W13+Y13 -> 7718216 | AB13: =D13+F13+H13+J13+L13+N13+P13+R13+T13+V13+X13+Z13 -> 13797052 | AC13: =AA13/AB13 -> 0.5594105176
B14: 鎔 德
B15: 鉑 德
B16: 合 計 | C16: =SUM(C13:C15) -> 2831625 | D16: 4960844 | E16: 1055555 | F16: 1836610 | G16: 1998310 | H16: 3830027 | I16: 1505337 | J16: 2654891 | K16: 327389 | L16: 514680 | M16: 0 | N16: 0 | O16: 0 | P16: 0 | Q16: 0 | R16: 0 | S16: 0 | T16: 0 | U16: 0 | V16: 0 | W16: 0 | X16: 0 | Y16: 0 | Z16: 0 | AA16: 7718216 | AB16: 13797052 | AC16: =AA16/AB16 -> 0.5594105176
A17: 富邦 | B17: 依 德 | C17: 870509 | D17: 1637890 | E17: 188922 | F17: 375262 | G17: 829092 | H17: 1542799 | I17: 33947 | J17: 69610 | K17: 175314 | L17: 266354 | M17: 0 | N17: 0 | O17: 0 | P17: 0 | Q17: 0 | R17: 0 | S17: 0 | T17: 0 | U17: 0 | V17: 0 | W17: 0 | X17: 0 | Y17: 0 | Z17: 0 | AA17: =C17+E17+G17+I17+K17+M17+O17+Q17+S17+U17+W17+Y17 -> 2097784 | AB17: =D17+F17+H17+J17+L17+N17+P17+R17+T17+V17+X17+Z17 -> 3891915 | AC17: =AA17/AB17 -> 0.5390107441
B18: 鎔 德
B19: 鉑 德
B20: 合 計 | C20: =SUM(C17:C19) -> 870509 | D20: 1637890 | E20: 188922 | F20: 375262 | G20: 829092 | H20: 1542799 | I20: 33947 | J20: 69610 | K20: 175314 | L20: 266354 | M20: 0 | N20: 0 | O20: 0 | P20: 0 | Q20: 0 | R20: 0 | S20: 0 | T20: 0 | U20: 0 | V20: 0 | W20: 0 | X20: 0 | Y20: 0 | Z20: 0 | AA20: 2097784 | AB20: 3891915 | AC20: =AA20/AB20 -> 0.5390107441
A21: 總計 | B21: 依 德 | C21: =C5+C9+C13+C17 -> 7607390 | D21: 13613771 | E21: 3161967 | F21: 5465865 | G21: 6506915 | H21: 12080285 | I21: 3184954 | J21: 5537785 | K21: 616591 | L21: 979602 | M21: 0 | N21: 0 | O21: 0 | P21: 0 | Q21: 0 | R21: 0 | S21: 0 | T21: 0 | U21: 0 | V21: 0 | W21: 0 | X21: 0 | Y21: 0 | Z21: 0 | AA21: 21077817 | AB21: 37677308 | AC21: =AA21/AB21 -> 0.5594300155
B22: 鎔 德 | C22: 0 | D22: 0 | E22: 0 | F22: 0 | G22: 0 | H22: 0 | I22: 0 | J22: 0 | K22: 0 | L22: 0 | M22: 0 | N22: 0 | O22: 0 | P22: 0 | Q22: 0 | R22: 0 | S22: 0 | T22: 0 | U22: 0 | V22: 0 | W22: 0 | X22: 0 | Y22: 0 | Z22: 0 | AA22: 0 | AB22: 0 | AC22: =AA22/AB22 -> 
B23: 鉑 德 | C23: 0 | D23: 0 | E23: 0 | F23: 0 | G23: 0 | H23: 0 | I23: 0 | J23: 0 | K23: 0 | L23: 0 | M23: 0 | N23: 0 | O23: 0 | P23: 0 | Q23: 0 | R23: 0 | S23: 0 | T23: 0 | U23: 0 | V23: 0 | W23: 0 | X23: 0 | Y23: 0 | Z23: 0 | AA23: 0 | AB23: 0 | AC23: =AA23/AB23 -> 
B24: 合 計 | C24: 7607390 | D24: 13613771 | E24: 3161967 | F24: 5465865 | G24: 6506915 | H24: 12080285 | I24: 3184954 | J24: 5537785 | K24: 616591 | L24: 979602 | M24: 0 | N24: 0 | O24: 0 | P24: 0 | Q24: 0 | R24: 0 | S24: 0 | T24: 0 | U24: 0 | V24: 0 | W24: 0 | X24: 0 | Y24: 0 | Z24: 0 | AA24: 21077817 | AB24: 37677308 | AC24: =AA24/AB24 -> 0.5594300155

Sheet 成交客戶表
A1: 序號 | B1: 訂車日 | C1: 車身號碼 | D1: 訂單號碼 | E1: 合約/調出單號 | F1: 客戶名稱 | G1: 出生年月日 | H1: 身份證字號 | I1: 統一編號 | J1: 郵遞區號 | K1: 地址 | L1: 電話 | M1: 行動電話 | N1: 車型 | O1: 引擎號碼 | P1: 生產年月 | Q1: 車源車色 | R1: 車源內裝 | S1: 租賃公司 | T1: 付款方式 | U1: 貸款公司 | V1: 領牌日 | W1: 車號 | X1: 課別 | Y1: 業務代表 | Z1: 備註 | AA1: 車輛狀態 | AB1: 投保狀態 | AC1: 車體 | AD1: 其它 | AE1: 強制險 | AF1: 總 計 | AG1: 保險
A2: 20 | B2: 102.11.20 | C2: NR24566 | D2: 8061556 | E2: 13583 | F2: 林春英 | G2: 51.08.03 | H2: A221145516 | J2: 235 | K2: 新北市中和區連城路127巷19之13號 | N2: 316i Sedan ZA | O2: B692J560 | P2: 1309 | Q2: B39 | R2: KCSW | T2: 現金 | V2: 103.01.28 | W2: AHA-1068 | X2: 營二課 | Y2: 王冠賢 | Z2: 汎德贈乙式全險 | AA2: 己交車 | AB2: 已投保 | AC2: 0 | AD2: 0 | AE2: 0 | AF2: 0 | AG2: 明台
A3: 35 | B3: 103.01.07 | C3: NR24517 | D3: 8061517 | E3: 13835 | F3: 楊淑娟 | G3: 72.09.11 | H3: F225578356 | J3: 330 | K3: 桃園縣桃園市大仁路40巷3弄16號 | M3: 0988-606-468 | N3: 316i Sedan ZA | O3: B555J547 | P3: 1309 | Q3: 475 | R3: KCL3 | T3: 現金 | U3: 星展銀行 | V3: 103.01.20 | W3: AGE-3161 | X3: 營二課 | Y3: 陳維德 | Z3: 汎德贈乙式全險 | AA3: 己交車-調入車 | AB3: 已投保 | AC3: 0 | AD3: 0 | AE3: 0 | AF3: 0 | AG3: 華南
A4: 45 | B4: 103.01.13 | C4: VY81200 | D4: 8058148 | E4: 13873 | F4: 施惠文 | G4: 59.01.02 | H4: E220825402 | J4: 231 | K4: 新北市新店區二十張路42-10號9樓 | M4: 0988-213-871 | N4: X1 sDrive20d | O4: 92818579 | P4: 1307 | Q4: 475 | R4: KCSW | T4: 現金 | V4: 103.01.21 | W4: AGE-6822 | X4: 營一課 | Y4: 張健宏 | Z4: 汎德贈乙式全險 | AA4: 己交車 | AB4: 已投保 | AC4: 0 | AD4: 0 | AE4: 0 | AF4: 0 | AG4: 明台
A5: 51 | B5: 103.01.07 | C5: DY68682 | D5: 8059065 | E5: 13900 | F5: 阮秀美 | G5: 45.11.12 | H5: F201919220 | J5: 116 | K5: 台北市文山區木柵路四段159巷16弄51號 | M5: 0932-918-872 | N5: 640i Gran Coupe | O5: 06098587 | P5: 1307 | Q5: 475 | R5: LCSW | T5: 現金 | V5: 103.01.20 | W5: AFJ-8893 | X5: 營二課 | Y5: 林宗慶 | Z5: 汎德贈乙式全險 | AA5: 己交車-調入車 | AB5: 已投保 | AC5: 0 | AD5: 0 | AE5: 0 | AF5: 0 | AG5: 富邦
A6: 72 | B6: 103.01.04 | C6: VS41016 | D6: 8059469 | E6: 13934 | F6: 長霖寰宇企業有限公司 | I6: 53778824 | J6: 110 | K6: 台北市信義區忠孝東路四段169號12樓之1 | M6: 0953-849-809 | N6: X1 sDrive18i | O6: B438J544 | P6: 1307 | Q6: B39 | R6: KCSW | T6: 現金 | U6: 陽信銀行 | V6: 103.01.21 | W6: AGU-2377 | X6: 營二課 | Y6: 莊朝清 | Z6: 汎德贈乙式全險 | AA6: 己交車 | AB6: 已投保 | AC6: 0 | AD6: 0 | AE6: 0 | AF6: 0 | AG6: 華南
A7: 75 | B7: 103.01.15 | C7: VT79767 | D7: 8058102 | E7: 13940 | F7: 陳柏年 | G7: 62.06.20 | H7: Y120295881 | J7: 111 | K7: 台北市士林區忠誠路48號6樓 | M7: 0932-354-387 | N7: X1 sDrive20i | O7: B4680567 | P7: 1307 | Q7: 300 | R7: KCSW | T7: 現金 | V7: 103.01.28 | W7: AGU-5358 | X7: 營一課 | Y7: 凌大偉 | Z7: 汎德贈乙式全險 | AA7: 己交車 | AB7: 已投保 | AC7: 0 | AD7: 0 | AE7: 0 | AF7: 0 | AG7: 富邦
A8: 94 | B8: 103.01.20 | C8: D283084 | D8: 8064105 | E8: 13996 | F8: 世輔冷凍空調有限公司 | H8: 84203205 | J8: 406 | K8: 台中市北屯區松竹路二段306巷46弄32號 | M8: 0937-277-399 | N8: 730d Sedan | O8: 34498699 | P8: 1311 | Q8: 475 | R8: LCSW | T8: 現金 | V8: 103.01.23 | W8: AGF-5198 | X8: 營一課 | Y8: 凌大偉 | Z8: 汎德贈乙式全險 | AA8: 己交車 | AB8: 已投保 | AC8: 0 | AD8: 0 | AE8: 0 | AF8: 0 | AG8: 華南
A9: 105 | B9: 103.01.28 | C9: VS44795 | D9: 8061460 | E9: 14049 | F9: 林燕玲 | G9: 58.11.11 | H9: A222604452 | J9: 108 | K9: 台北市萬華區東園街196號4樓之1 | M9: 0952-588-198 | N9: X1 sDrive18i | O9: B480J579 | P9: 1309 | Q9: A96 | R9: KCSW | T9: 現金 | V9: 103.01.28 | W9: AGU-5708 | X9: 營一課 | Y9: 蘇士文 | Z9: 汎德贈乙式全險 | AA9: 己交車 | AB9: 已投保 | AC9: 0 | AD9: 0 | AE9: 0 | AF9: 0 | AG9: 明台
A10: 6 | B10: 102.06.17 | C10: 0C81052 | D10: 8060361 | E10: 13052 | F10: 吳美容 | G10: 42.11.03 | H10: F203287132 | J10: 235 | K10: 新北市中和區民生街23巷7號 | M10: 0910-226-224 | N10: X3 xDrive28i | O10: B1830571 | P10: 1308 | Q10: 475 | R10: LUSW | T10: 現金 | V10: 103.01.13 | W10: AGE-2323 | X10: 營二課 | Y10: 林陳郎 | AA10: 己交車 | AB10: 已投保 | AC10: 0 | AD10: 0 | AE10: 889 | AF10: 889 | AG10: 華南
A11: 62 | B11: 103.01.04 | C11: D700651 | D11: 8063840 | E11: 13914 | F11: 張瓊方 | G11: 68.05.22 | H11: A225166182 | J11: 231 | K11: 新北市新店區青山路211巷2弄10號 | M11: 0928-233-712 | N11: 320i Gran Turismo | O11: B3830672 | P11: 1311 | Q11: 300 | R11: KCL3 | T11: 現金 | V11: 103.01.20 | W11: AGU-0522 | X11: 營二課 | Y11: 陳一鋐 | AA11: 己交車 | AB11: 已投保 | AC11: 0 | AD11: 0 | AE11: 1019 | AF11: 1019 | AG11: 華南
A12: 79 | B12: 103.01.23 | C12: NR15755 | D12: 8061600 | E12: 13959 | F12: 張玉芊 | G12: 58.08.29 | H12: F220652633 | J12: 242 | K12: 新北市新莊區中榮街56巷1之2號11樓 | M12: 0937-029-458 | N12: 320i Sedan ZA | O12: B8610580 | P12: 1309 | Q12: 300 | R12: HAAT | T12: 現金 | V12: 103.01.24 | W12: AGU-3658 | X12: 營三課 | Y12: 林謙慶 | AA12: 己交車 | AB12: 已投保 | AC12: 0 | AD12: 0 | AE12: 1019 | AF12: 1019 | AG12: 富邦
A13: 65 | B13: 103.01.08 | C13: VY01195 | D13: 8059734 | E13: 13918 | F13: 李仁傑 | G13: 68.09.28 | H13: F124679290 | J13: 251 | K13: 新北市淡水區民權路187巷52號6樓 | M13: 0933-075-794 | N13: 118i 5-doors | O13: A840J563 | P13: 1308 | Q13: 300 | R13: BEL2 | T13: 現金 | V13: 103.01.20 | W13: AGU-0629 | X13: 營二課 | Y13: 陳維德 | AA13: 己交車 | AB13: 已投保 | AC13: 0 | AD13: 0 | AE13: 1099 | AF13: 1099 | AG13: 華南
A14: 91 | B14: 103.01.21 | C14: NR16517 | D14: 8063836 | E14: 13978 | F14: 梁忠賢 | G14: 63.03.06 | H14: L120533242 | J14: 110 | K14: 台北市信義區永吉路180巷70弄28號 | M14: 0932-320-199 | N14: 320i Sedan ZA | O14: B5060648 | P14: 1311 | Q14: B45 | R14: HAAT | T14: 現金 | V14: 103.01.29 | W14: AGF-1066 | X14: 營一課 | Y14: 蘇士文 | AA14: 己交車 | AB14: 已投保 | AC14: 0 | AD14: 0 | AE14: 1099 | AF14: 1099 | AG14: 富邦
A15: 98 | B15: 103.01.28 | C15: NR16153 | D15: 8061720 | E15: 14015 | F15: 莊睿文 | G15: 60.04.17 | H15: A120812776 | J15: 241 | K15: 新北市三重區集賢路117號7樓 | M15: 0921-086-853 | N15: 320i Sedan ZA | O15: B0670588 | P15: 1309 | Q15: B39 | R15: HAAT | T15: 現金 | V15: 103.01.29 | W15: AGU-6008 | X15: 營一課 | Y15: 凌大偉 | AA15: 己交車 | AB15: 已投保 | AC15: 0 | AD15: 0 | AE15: 1099 | AF15: 1099 | AG15: 明台
A16: 42 | B16: 103.01.02 | C16: L969238 | D16: 8060877 | E16: 13856 | F16: 蘇宗焜 | G16: 50.10.19 | H16: F122910930 | J16: 260 | K16: 宜蘭縣宜蘭市中山路五段577巷32號 | M16: 0932-395-382 | N16: X6 xDrive35i | O16: 02218561 | P16: 1308 | Q16: 300 | R16: LUSW | T16: 現金 | V16: 103.01.07 | W16: AFJ-9189 | X16: 營三課 | Y16: 賈勇華 | AA16: 己交車 | AB16: 已投保 | AC16: 0 | AD16: 0 | AE16: 1138 | AF16: 1138 | AG16: 華南
A17: 38 | B17: 103.01.04 | C17: 0G21499 | D17: 8061965 | E17: 13842 | F17: 呂坤木 | G17: 36.11.28 | H17: F102686595 | J17: 235 | K17: 新北市中和區興南路一段185號 | N17: X3 xDrive20i | O17: A1570597 | P17: 1309 | Q17: 475 | R17: FHAT | T17: 現金 | V17: 103.01.17 | W17: AGU-0268 | X17: 營一課 | Y17: 李昀融 | AA17: 己交車-調入車 | AB17: 已投保 | AC17: 0 | AD17: 0 | AE17: 1148 | AF17: 1148 | AG17: 明台
A18: 40 | B18: 103.01.04 | C18: D046705 | D18: 8063443 | E18: 13851 | F18: 昌漢開發工程有限公司 | I18: 86806461 | J18: 248 | K18: 新北市五股區成泰路二段11巷22號4樓 | M18: 0922-535-177 | N18: 520d LCI | O18: 92428686 | P18: 1310 | Q18: 475 | R18: K8SW | T18: 現金 | U18: 星展銀行 | V18: 103.01.21 | W18: AGC-3155 | X18: 營二課 | Y18: 林政勳 | AA18: 己交車 | AB18: 已投保 | AC18: 0 | AD18: 0 | AE18: 1398 | AF18: 1398 | AG18: 華南
A19: 59 | B19: 103.01.03 | C19: D009309 | D19: 8063261 | E19: 13910 | F19: 邱創立 | G19: 69.12.18 | H19: F125153035 | J19: 237 | K19: 新北市三峽區光明路49號6樓 | M19: 0913-333-839 | N19: 520i LCI | O19: B8000648 | P19: 1310 | Q19: 300 | R19: LCLZ | T19: 現金 | V19: 103.01.13 | W19: AGE-8889 | X19: 營一課 | Y19: 凌大偉 | AA19: 己交車 | AB19: 已投保 | AC19: 0 | AD19: 0 | AE19: 1398 | AF19: 1398 | AG19: 明台
A20: 74 | B20: 103.01.13 | C20: F299167 | D20: 8058316 | E20: 13937 | F20: 正隆(股)公司 | I20: 33085508 | J20: 220 | K20: 新北市板橋區民生路一段1號 | L20: 2222-5131#285 | N20: Active Hybrid 3 | O20: 04098572 | P20: 1307 | Q20: 300 | R20: LCLZ | T20: 現金 | V20: 103.01.28 | W20: AAR-9788 | X20: 營一課 | Y20: 梁大民 | AA20: 己交車 | AB20: 已投保 | AC20: 0 | AD20: 0 | AE20: 1398 | AF20: 1398 | AG20: 富邦
A21: 97 | B21: 103.01.27 | C21: D047054 | D21: 8064007 | E21: 14007 | F21: 博創印藝文化事業有限公司 | I21: 84860974 | J21: 235 | K21: 新北市中和區中山路三段110號9樓之3之4 | M21: 0928-254-544 | N21: 520d LCI | O21: 89088707 | P21: 1311 | Q21: 475 | R21: K8SW | T21: 現金 | V21: 103.01.27 | W21: AGU-0810 | X21: 營二課 | Y21: 林政勳 | AA21: 己交車 | AB21: 已投保 | AC21: 0 | AD21: 0 | AE21: 1398 | AF21: 1398 | AG21: 華南
A22: 104 | B22: 103.01.29 | C22: D046124 | D22: 8062239 | E22: 14037 | F22: 王國樑 | G22: 49.07.15 | H22: G120835702 | J22: 111 | K22: 台北市士林區中山北路五段829巷47號6樓 | N22: 520d LCI | O22: 88718650 | P22: 1309 | Q22: 300 | R22: K8SW | T22: 現金 | V22: 103.01.29 | W22: AGF-2399 | X22: 營三課 | Y22: 鄭英彥 | AA22: 己交車 | AB22: 已投保 | AC22: 0 | AD22: 0 | AE22: 1398 | AF22: 1398 | AG22: 明台
A23: 15 | B23: 102.10.29 | C23: D494696 | D23: 8062061 | E23: 13532 | F23: 林逸豪 | G23: 56.10.01 | H23: H121680408 | J23: 236 | K23: 新北市土城區慶祥街1巷1號1樓 | M23: 0932312858 | N23: 520d GT LCI | O23: 90458656 | P23: 1309 | Q23: 475 | R23: LCSW | T23: 現金 | V23: 103.01.03 | W23: AFJ-3937 | X23: 營一課 | Y23: 王裕明 | AA23: 己交車 | AB23: 已投保 | AC23: 0 | AD23: 3971 | AE23: 1099 | AF23: 5070 | AG23: 明台
A24: 30 | B24: 103.01.04 | C24: NR15964 | D24: 8061706 | E24: 13813 | F24: 程凱得 | G24: 68.07.12 | H24: A124756260 | J24: 220 | K24: 新北市板橋區吳鳳路17巷3-3號 | M24: 0925-682-678 | N24: 320i Sedan ZA | O24: B6970606 | P24: 1309 | Q24: 300 | R24: HAAT | T24: 現金 | V24: 103.01.09 | W24: AGE-0678 | X24: 營二課 | Y24: 莊朝清 | AA24: 己交車 | AB24: 已投保 | AC24: 0 | AD24: 3971 | AE24: 1138 | AF24: 5109 | AG24: 明台
A25: 103 | B25: 103.01.24 | C25: NR15670 | D25: 8060051 | E25: 14033 | F25: 張玉蓮 | G25: 33.08.30 | H25: H200539355 | J25: 116 | K25: 台北市文山區辛亥路四段101巷140弄68-3號 | M25: 0910-147-433 | N25: 320i Sedan ZA | O25: A0900508 | P25: 1308 | Q25: A83 | R25: KCL3 | T25: 現金 | V25: 103.01.27 | W25: 1620-AC | X25: 營一課 | Y25: 張健宏 | AA25: 己交車 | AB25: 已投保 | AC25: 0 | AD25: 6248 | AE25: 889 | AF25: 7137 | AG25: 華南
A26: 100 | B26: 103.01.21 | C26: VS39662 | D26: 8058028 | E26: 14021 | F26: 柯瑞月 | G26: 60.07.13 | H26: P221746408 | J26: 238 | K26: 新北市樹林區中山路二段156號12樓之3 | M26: 0935-787-366 | N26: X1 sDrive18i | O26: A817J529 | P26: 1307 | Q26: 300 | R26: KCSW | T26: 現金 | V26: 103.01.23 | W26: AGU-3339 | X26: 營一課 | Y26: 蘇士文 | AA26: 己交車 | AB26: 已投保 | AC26: 0 | AD26: 16074 | AE26: 1019 | AF26: 17093 | AG26: 台產
A27: 86 | B27: 103.01.13 | C27: D009376 | D27: 8063301 | E27: 13970 | F27: 黃石彥 | G27: 53.01.28 | H27: H120123440 | J27: 236 | K27: 新北市土城區順風路45號3樓 | M27: 0928-528-908 | N27: 520i LCI | O27: A5220660 | P27: 1310 | Q27: 475 | R27: LCLZ | T27: 現金 | U27: 陽信銀行 | V27: 103.01.20 | W27: AGU-0106 | X27: 營三課 | Y27: 鄭英彥 | AA27: 己交車 | AB27: 已投保 | AC27: 0 | AD27: 28594 | AE27: 1099 | AF27: 29693 | AG27: 明台
A28: 57 | B28: 103.01.07 | C28: D046701 | D28: 8063439 | E28: 13908 | F28: 蘇雪麗 | G28: 56.11.29 | H28: A223275428 | J28: 116 | K28: 台北市文山區景華街176巷7號2樓 | M28: 0930-040-555 | N28: 520d LCI | O28: 91598687 | P28: 1310 | Q28: 475 | R28: K8SW | T28: 現金 | V28: 103.01.16 | W28: AGU-1129 | X28: 營三課 | Y28: 賈勇華 | AA28: 己交車 | AB28: 已投保 | AC28: 0 | AD28: 29705 | AE28: 1019 | AF28: 30724 | AG28: 華南
A29: 48 | B29: 103.01.08 | C29: 0G24738 | D29: 8063140 | E29: 13892 | F29: 梁瓊文 | G29: 53.12.06 | H29: F222714627 | J29: 236 | K29: 新北市土城區仁愛路8-1號7樓 | M29: 0922-938-494 | N29: X3 xDrive20i | O29: A5780634 | P29: 1310 | Q29: A52 | R29: FHAT | T29: 現金 | V29: 103.01.27 | W29: AGE-6281 | X29: 營二課 | Y29: 張昇文 | AA29: 己交車 | AB29: 已投保 | AC29: 11720 | AD29: 21087 | AE29: 1318 | AF29: 34125 | AG29: 華南
A30: 43 | B30: 103.01.04 | C30: J661167 | D30: 8063708 | E30: 13858 | F30: 劉慧萍 | G30: 72.05.06 | H30: T223248141 | J30: 711 | K30: 台南市歸仁區和平南街89巷6號 | M30: 0931-336-198 | N30: 116i 5-doors | O30: B248J618 | P30: 1311 | Q30: 300 | R30: BEL2 | T30: 現金 | U30: 星展銀行 | V30: 103.01.17 | W30: AGE-2335 | X30: 營二課 | Y30: 謝中堅 | AA30: 己交車 | AB30: 已投保 | AC30: 12430 | AD30: 23301 | AE30: 1318 | AF30: 37049 | AG30: 明台
A31: 68 | B31: 103.01.20 | C31: J680821 | D31: 8059746 | E31: 13929 | F31: 蔡曜懌 | G31: 70.06.09 | H31: A126220674 | J31: 221 | K31: 新北市汐止區忠三街39巷41弄1號 | M31: 0932-901-920 | N31: 118i 5-doors | O31: A541J560 | P31: 1308 | Q31: A76 | R31: BEL2 | T31: 現金 | U31: 台新銀行 | V31: 103.01.23 | W31: AGU-0118 | X31: 營二課 | Y31: 王慶儒 | AA31: 己交車 | AB31: 已投保 | AC31: 14332 | AD31: 24592 | AE31: 1138 | AF31: 40062 | AG31: 明台
A32: 90 | B32: 103.01.20 | C32: NR15991 | D32: 8061653 | E32: 13977 | F32: 蕭思慈 | G32: 65.05.01 | H32: F223704358 | J32: 235 | K32: 新北市中和區圓通路299巷12號13樓 | M32: 0911-846-968 | N32: 320i Sedan ZA | O32: A2030587 | P32: 1309 | Q32: 475 | R32: HAAT | T32: 現金 | U32: 星展銀行 | V32: 103.01.24 | W32: AGF-5758 | X32: 營一課 | Y32: 蘇士文 | AA32: 己交車 | AB32: 已投保 | AC32: 20145 | AD32: 20443 | AE32: 1019 | AF32: 41607 | AG32: 台產
A33: 36 | B33: 103.01.09 | C33: NR15883 | D33: 8060068 | E33: 13839 | F33: 葉長青 | G33: 66.06.16 | H33: A124422401 | J33: 105 | K33: 台北市松山區健康路31號 | M33: 0910-385-892 | N33: 320i Sedan ZA | O33: B7770613 | P33: 1308 | Q33: A96 | R33: KCSW | T33: 現金 | V33: 103.01.10 | W33: AGD-9683 | X33: 營三課 | Y33: 陳禮建 | AA33: 己交車 | AB33: 已投保 | AC33: 14853 | AD33: 27204 | AE33: 1398 | AF33: 43455 | AG33: 明台
A34: 63 | B34: 103.01.04 | C34: D046699 | D34: 8063438 | E34: 13916 | F34: 林淑惠 | G34: 52.08.13 | H34: A221838454 | J34: 110 | K34: 台北市信義區永吉路180巷66弄29號 | M34: 0933-200-655 | N34: 520d LCI | O34: 91018687 | P34: 1310 | Q34: 475 | R34: K8SW | T34: 現金 | V34: 103.01.13 | W34: AFJ-6691 | X34: 營二課 | Y34: 王冠賢 | AA34: 己交車 | AB34: 已投保 | AC34: 10938 | AD34: 31362 | AE34: 1318 | AF34: 43618 | AG34: 華南
A35: 44 | B35: 103.01.13 | C35: NR24590 | D35: 8062829 | E35: 13871 | F35: 賴玉珍 | G35: 64.12.20 | H35: U220809616 | J35: 235 | K35: 新北市中和區員山路327巷41號2樓 | M35: 0952-623-360 | N35: 316i Sedan ZA | O35: A393J572 | P35: 1310 | Q35: 475 | R35: KCSW | T35: 現金 | V35: 103.01.28 | W35: AGU-1102 | X35: 營一課 | Y35: 蘇士文 | AA35: 己交車-調入車 | AB35: 已投保 | AC35: 17968 | AD35: 26942 | AE35: 1019 | AF35: 45929 | AG35: 富邦
A36: 96 | B36: 103.01.27 | C36: NR22217 | D36: 8059982 | E36: 14001 | F36: 萬事達嘉友旅店有限公司 | I36: 27571050 | J36: 108 | K36: 台北市萬華區中華路一段82號1-9樓 | M36: 0926-882-011 | N36: 328i Sedan ZA | O36: B8450540 | P36: 1308 | Q36: 300 | R36: LCLZ | T36: 現金 | V36: 103.01.28 | W36: AGU-5567 | X36: 營二課 | Y36: 謝中堅 | AA36: 己交車 | AB36: 已投保 | AC36: 13682 | AD36: 31904 | AE36: 1398 | AF36: 46984 | AG36: 華南
A37: 93 | B37: 103.01.16 | C37: 0C81353 | D37: 8061981 | E37: 13995 | F37: 李佳麗 | G37: 68.03.15 | H37: F224342941 | J37: 330 | K37: 桃園縣桃園市大興西路二段139巷97號2樓之2 | N37: X3 xDrive28i | O37: B9370582 | P37: 1309 | Q37: 300 | R37: LUSW | T37: 現金 | V37: 103.01.27 | W37: AGU-5369 | X37: 營一課 | Y37: 凌大偉 | AA37: 己交車 | AB37: 已投保 | AC37: 14776 | AD37: 31113 | AE37: 1318 | AF37: 47207 | AG37: 明台
A38: 53 | B38: 103.01.03 | C38: F853572 | D38: 8058438 | E38: 13903 | F38: 陳詩萍 | G38: 68.03.05 | H38: H222936385 | J38: 330 | K38: 桃園縣桃園市天祥二街8巷13號 | M38: 0929-822-494 | N38: 318d Touring | O38: 80668574 | P38: 1307 | Q38: 300 | R38: KCL3 | T38: 現金 | V38: 103.01.08 | W38: AFJ-6835 | X38: 營二課 | Y38: 陳維德 | AA38: 己交車-調入車 | AB38: 已投保 | AC38: 19236 | AD38: 27093 | AE38: 1019 | AF38: 47348 | AG38: 華南
A39: 80 | B39: 103.01.08 | C39: D700650 | D39: 8063839 | E39: 13961 | F39: 許進平 | G39: 64.12.31 | H39: T121769127 | J39: 247 | K39: 新北市蘆洲區民權路97號7樓之1 | M39: 0983-856-177 | N39: 320i Gran Turismo | O39: A1760673 | P39: 1311 | Q39: 300 | R39: KCL3 | T39: 現金 | U39: 星展銀行 | V39: 103.01.17 | W39: AGU-5138 | X39: 營一課 | Y39: 花志明 | AA39: 己交車 | AB39: 已投保 | AC39: 15799 | AD39: 31379 | AE39: 1099 | AF39: 48277 | AG39: 富邦
A40: 52 | B40: 103.01.04 | C40: D014328 | D40: 8058756 | E40: 13901 | F40: 許爾佳 | G40: 63.12.20 | H40: F290009473 | J40: 231 | K40: 新北市新店區中央六街86號5樓 | M40: 0921-436-897 | N40: 528i LCI | O40: A3770578 | P40: 1307 | Q40: 475 | R40: LCLZ | T40: 現金 | V40: 103.01.17 | W40: AGU-1698 | X40: 營二課 | Y40: 林宗慶 | AA40: 己交車 | AB40: 已投保 | AC40: 15618 | AD40: 32379 | AE40: 1059 | AF40: 49056 | AG40: 富邦
A41: 9 | B41: 102.08.08 | C41: DX98773 | D41: 8063899 | E41: 13220 | F41: 珀榮貿易股份有限公司 | I41: 14024257 | J41: 231 | K41: 新北市新店區青山路88巷21弄13號1樓 | M41: 0933-064-949 | N41: 335i Gran Turismo | O41: 02068519 | P41: 1311 | Q41: A96 | R41: LCL5 | T41: 現金 | V41: 103.01.15 | W41: AFJ-9936 | X41: 營三課 | Y41: 陳禮建 | Z41: 1311 | AA41: 己交車 | AB41: 已投保 | AC41: 13597 | AD41: 34186 | AE41: 1398 | AF41: 49181 | AG41: 華南/明台
A42: 3 | B42: 102.12.30 | C42: VS40715 | D42: 8058082 | E42: 試獎302 | F42: 依德(股)公司 | I42: 07656431 | J42: 235 | K42: 新北市中和區建一路68號 | L42: 2223-5053 | N42: X1 sDrive18i | O42: B637J539 | P42: 1307 | Q42: B39 | R42: KCSW | T42: 現金 | V42: 103.01.07 | W42: AFJ-5727 | X42: 營業部 | Y42: 陳德益 | AA42: 己交車 | AB42: 已投保 | AC42: 20877 | AD42: 27531 | AE42: 1398 | AF42: 49806 | AG42: 台產/明台
A43: 19 | B43: 102.11.20 | C43: D358198 | D43: 8061867 | E43: 13581 | F43: 常榮通信有限公司 | I43: 28927797 | J43: 236 | K43: 新北市土城區裕民路29號 | M43: 0988-828-886 | N43: 328i Gran Turismo | O43: A9700636 | P43: 1309 | Q43: 300 | R43: LCL3 | T43: 現金 | U43: 永豐銀行 | V43: 103.01.02 | W43: AFJ-8528 | X43: 營一課 | Y43: 陳龍雲 | AA43: 己交車 | AB43: 已投保 | AC43: 16418 | AD43: 32176 | AE43: 1398 | AF43: 49992 | AG43: 明台
A44: 5 | B44: 102.12.30 | C44: VS40653 | D44: 8058079 | E44: 試獎301 | F44: 依德(股)公司 | I44: 07656431 | J44: 235 | K44: 新北市中和區建一路68號 | L44: 2223-5053 | N44: X1 sDrive18i | O44: A619J539 | P44: 1307 | Q44: B38 | R44: KCSW | T44: 現金 | V44: 103.01.07 | W44: AFJ-5661 | X44: 營業部 | Y44: 陳德益 | AA44: 己交車 | AB44: 已投保 | AC44: 20877 | AD44: 27741 | AE44: 1398 | AF44: 50016 | AG44: 台產
A45: 1 | B45: 102.12.30 | C45: VS40714 | D45: 8058081 | E45: 試獎303 | F45: 依德(股)公司 | I45: 07656431 | J45: 235 | K45: 新北市中和區建一路68號 | L45: 2223-5053 | N45: X1 sDrive18i | O45: B201J539 | P45: 1307 | Q45: B39 | R45: KCSW | T45: 現金 | V45: 103.01.08 | W45: AFJ-5697 | X45: 營業部 | Y45: 陳德益 | AA45: 己交車 | AB45: 已投保 | AC45: 20580 | AD45: 28071 | AE45: 1398 | AF45: 50049 | AG45: 台產/明台
A46: 13 | B46: 102.10.02 | C46: D700729 | D46: 8063857 | E46: 13385 | F46: 陳泳雯 | H46: N222964525 | J46: 500 | K46: 彰化縣彰化市中山路三段562號 | M46: 0931-138-311 | N46: 320i Gran Turismo | O46: B2660678 | P46: 1311 | Q46: 475 | R46: KCL3 | T46: 現金 | U46: 台新銀行 | V46: 103.01.22 | W46: AGE-3955 | X46: 營三課 | Y46: 孫茂耀 | Z46: 1311大宗客戶-宏達電 | AA46: 己交車 | AB46: 已投保 | AC46: 24651 | AD46: 27540 | AE46: 1059 | AF46: 53250 | AG46: 明台
A47: 101 | B47: 103.01.22 | C47: NR15715 | D47: 8061589 | E47: 14026 | F47: 陳沛宜 | G47: 49.07.10 | H47: A222851648 | J47: 653 | K47: 雲林縣口湖鄉福安路95巷6之2號 | M47: 0963-366-491 | N47: 320i Sedan ZA | O47: A1220547 | P47: 1309 | Q47: 300 | R47: HAAT | T47: 現金 | V47: 103.01.24 | W47: AGU-3698 | X47: 營二課 | Y47: 林陳郎 | AA47: 己交車 | AB47: 已投保 | AC47: 30943 | AD47: 24764 | AE47: 1019 | AF47: 56726 | AG47: 明台
A48: 10 | B48: 102.08.26 | C48: D700002 | D48: 8062958 | E48: 13242 | F48: 陳志松 | G48: 57.06.10 | H48: H120130178 | J48: 330 | K48: 桃園縣桃園市大業路1段119號4樓之2 | M48: 0926-656-677 | N48: 320i Gran Turismo | O48: A2880640 | P48: 1310 | Q48: 300 | R48: KCSW | T48: 專案 | U48: 台壽保30/60 | V48: 103.01.02 | W48: AFJ-7887 | X48: 營三課 | Y48: 林謙慶 | AA48: 己交車 | AB48: 已投保 | AC48: 20299 | AD48: 35663 | AE48: 1099 | AF48: 57061 | AG48: 富邦
A49: 46 | B49: 103.01.13 | C49: NR15695 | D49: 8060073 | E49: 13879 | F49: 邵惠美 | G49: 43.01.25 | H49: F203288513 | J49: 251 | K49: 新北市淡水區新市二路三段18號15樓 | M49: 0919-952-766 | N49: 320i Sedan ZA | O49: A2250553 | P49: 1308 | Q49: B39 | R49: KCL3 | T49: 現金 | V49: 103.01.17 | W49: AGU-0188 | X49: 營一課 | Y49: 蘇士文 | AA49: 己交車 | AB49: 已投保 | AC49: 39782 | AD49: 19064 | AE49: 1019 | AF49: 59865 | AG49: 明台
A50: 37 | B50: 103.01.04 | C50: NR24564 | D50: 8061552 | E50: 13840 | F50: 呂淑梅 | G50: 47.01.22 | H50: A210420884 | J50: 114 | K50: 台北市內湖區成功路五段450巷22弄10號10樓 | M50: 0960-520-791 | N50: 316i Sedan ZA | O50: B624J560 | P50: 1309 | Q50: A96 | R50: KCSW | T50: 現金 | V50: 103.01.28 | W50: AGE-7169 | X50: 營三課 | Y50: 簡志勳 | AA50: 己交車-調入車 | AB50: 已投保 | AC50: 37030 | AD50: 22724 | AE50: 1318 | AF50: 61072 | AG50: 明台
A51: 85 | B51: 103.01.24 | C51: D015834 | D51: 8063366 | E51: 13968 | F51: 百慶纖維股份有限公司 | I51: 22327000 | J51: 103 | K51: 台北市大同區塔城街64號7樓 | M51: 0932-380-205 | N51: 528i LCI | O51: A7030668 | P51: 1310 | Q51: A90 | R51: LCLZ | T51: 現金 | V51: 103.01.28 | W51: AGU-5585 | X51: 營三課 | Y51: 劉家任 | AA51: 己交車 | AB51: 已投保 | AC51: 17353 | AD51: 42439 | AE51: 1398 | AF51: 61190 | AG51: 富邦
A52: 64 | B52: 103.01.04 | C52: NR22208 | D52: 8058247 | E52: 13917 | F52: 劉照妏 | G52: 70.08.13 | H52: H222997066 | J52: 320 | K52: 桃園縣中壢市龍昌路190巷1號 | M52: 0928-209-182 | N52: 328i Sedan ZA | O52: B0630514 | P52: 1307 | Q52: 300 | R52: LCLZ | T52: 現金 | V52: 103.01.20 | W52: AGU-1888 | X52: 營二課 | Y52: 陳維德 | AA52: 己交車 | AB52: 已投保 | AC52: 30561 | AD52: 31122 | AE52: 1138 | AF52: 62821 | AG52: 台產
A53: 67 | B53: 103.01.04 | C53: NR24563 | D53: 8061551 | E53: 13923 | F53: 林維楨 | G53: 66.07.25 | H53: A224466674 | J53: 114 | K53: 台北市內湖區康寧路三段75巷159-1號5樓 | M53: 0911-565-739 | N53: 316i Sedan ZA | O53: B695J560 | P53: 1309 | Q53: A96 | R53: KCSW | T53: 現金 | V53: 103.01.29 | W53: AGE-8933 | X53: 營三課 | Y53: 孫茂耀 | AA53: 己交車 | AB53: 已投保 | AC53: 36112 | AD53: 26273 | AE53: 1318 | AF53: 63703 | AG53: 富邦
A54: 56 | B54: 103.01.15 | C54: NR24568 | D54: 8061557 | E54: 13906 | F54: 方文 | G54: 66.07.03 | H54: A124414249 | J54: 116 | K54: 台北市文山區羅斯福路六段407號12樓之3 | M54: 0910-042-369 | N54: 316i Sedan ZA | O54: B696J560 | P54: 1309 | Q54: B39 | R54: KCSW | T54: 現金 | V54: 103.01.28 | W54: AGU-1035 | X54: 營三課 | Y54: 林謙慶 | AA54: 己交車 | AB54: 已投保 | AC54: 40080 | AD54: 24415 | AE54: 1398 | AF54: 65893 | AG54: 明台
A55: 73 | B55: 103.01.04 | C55: J658254 | D55: 8061395 | E55: 13935 | F55: 黃治喬 | G55: 65.01.16 | H55: A121866330 | J55: 220 | K55: 新北市板橋區篤行路一段16之8號4樓 | M55: 0939-282-131 | N55: 116i 5-doors | O55: B814J582 | P55: 1309 | Q55: B44 | R55: BEL2 | T55: 現金 | U55: 星展銀行 | V55: 103.01.13 | W55: AHA-2756 | X55: 營一課 | Y55: 陳龍雲 | AA55: 己交車 | AB55: 已投保 | AC55: 43383 | AD55: 22343 | AE55: 1099 | AF55: 66825 | AG55: 華南
A56: 87 | B56: 103.01.10 | C56: D046697 | D56: 8063436 | E56: 13971 | F56: 林妙玲 | G56: 45.01.01 | H56: P202130506 | J56: 236 | K56: 新北市土城區立德路19號3樓 | M56: 0963-390-669 | N56: 520d LCI | O56: 90898687 | P56: 1310 | Q56: 475 | R56: K8SW | T56: 現金 | U56: 陽信銀行 | V56: 103.01.22 | W56: AGU-3198 | X56: 營二課 | Y56: 林陳郎 | AA56: 己交車 | AB56: 已投保 | AC56: 39048 | AD56: 29705 | AE56: 1019 | AF56: 69772 | AG56: 華南
A57: 71 | B57: 103.01.04 | C57: D046704 | D57: 8063442 | E57: 13933 | F57: 王美華 | G57: 63.06.15 | H57: F223405565 | J57: 247 | K57: 新北市蘆洲區三民路249號10樓 | M57: 0952-362-357 | N57: 520d LCI | O57: 91678687 | P57: 1310 | Q57: 475 | R57: K8SW | T57: 現金 | V57: 103.01.17 | W57: AGU-0868 | X57: 營二課 | Y57: 林陳郎 | AA57: 己交車 | AB57: 已投保 | AC57: 39048 | AD57: 30783 | AE57: 1019 | AF57: 70850 | AG57: 華南
A58: 25 | B58: 102.12.09 | C58: 0C32649 | D58: 8061243 | E58: 13696 | F58: 高子琄 | G58: 63.05.29 | H58: A221923172 | J58: 236 | K58: 新北市土城區明德路二段60號9樓-6 | M58: 0936-110-033 | N58: X5 xDrive30d | O58: 30538628 | P58: 1310 | Q58: A52 | R58: LCSW | T58: 現金 | V58: 103.01.28 | W58: AGF-0515 | X58: 營三課 | Y58: 孫茂耀 | AA58: 己交車 | AB58: 已投保 | AC58: 21888 | AD58: 48308 | AE58: 1019 | AF58: 71215 | AG58: 富邦
A59: 31 | B59: 103.01.04 | C59: NR24555 | D59: 8061550 | E59: 13814 | F59: 津禾教育科技有限公司 | I59: 24373253 | J59: 110 | K59: 台北市信義區忠孝東路五段31巷18弄23號4樓 | M59: 0932-158-340 | N59: 316i Sedan ZA | O59: B265J560 | P59: 1309 | Q59: A96 | R59: KCSW | T59: 現金 | V59: 103.01.28 | W59: AGU-2121 | X59: 營二課 | Y59: 莊朝清 | AA59: 己交車 | AB59: 已投保 | AC59: 45019 | AD59: 25361 | AE59: 1398 | AF59: 71778 | AG59: 華南
A60: 60 | B60: 103.01.15 | C60: D046972 | D60: 8064003 | E60: 13911 | F60: 王水珍 | G60: 40.03.31 | H60: H201739966 | J60: 114 | K60: 台北市內湖區民權東路六段280巷45弄41號9樓之1 | M60: 0939-858-609 | N60: 520d LCI | O60: 83848700 | P60: 1311 | Q60: 475 | R60: K8SW | T60: 現金 | V60: 103.01.24 | W60: AGU-6588 | X60: 營一課 | Y60: 凌大偉 | AA60: 己交車 | AB60: 已投保 | AC60: 42932 | AD60: 30124 | AE60: 889 | AF60: 73945 | AG60: 明台
A61: 2 | B61: 102.12.30 | C61: NR22182 | D61: 8053579 | E61: 試主299 | F61: 依德(股)公司 | I61: 07656431 | J61: 235 | K61: 新北市中和區建一路68號 | L61: 2223-5053 | N61: 328i Sedan ZA | O61: B4630458 | P61: 1304 | Q61: 300 | R61: LCLZ | T61: 現金 | V61: 103.01.07 | W61: AGD-9387 | X61: 營業部 | Y61: 陳德益 | AA61: 己交車 | AB61: 已投保 | AC61: 45824 | AD61: 27202 | AE61: 1398 | AF61: 74424 | AG61: 明台
A62: 4 | B62: 102.12.30 | C62: NR22197 | D62: 8055799 | E62: 試主300 | F62: 依德(股)公司 | I62: 07656431 | J62: 235 | K62: 新北市中和區建一路68號 | L62: 2223-5053 | N62: 328i Sedan ZA | O62: B1240472 | P62: 1305 | Q62: A96 | R62: LCLZ | T62: 現金 | V62: 103.01.15 | W62: AFJ-7217 | X62: 營業部 | Y62: 陳德益 | AA62: 己交車 | AB62: 已投保 | AC62: 45824 | AD62: 27202 | AE62: 1398 | AF62: 74424 | AG62: 明台
A63: 14 | B63: 102.11.04 | C63: 0F21808 | D63: 8063202 | E63: 13507 | F63: 張鳳英 | G63: 61.04.06 | H63: K220563466 | J63: 338 | K63: 桃園縣蘆竹鄉南祥路121號4樓之1 | M63: 0932-672-385 | N63: X3 xDrive20d | O63: 73608649 | P63: 1310 | Q63: 475 | R63: FHAT | T63: 現金 | V63: 103.01.21 | W63: AGU-2668 | X63: 營三課 | Y63: 賈勇華 | Z63: 大宗客戶-葡眾 | AA63: 己交車 | AB63: 已投保 | AC63: 44938 | AD63: 28638 | AE63: 1019 | AF63: 74595 | AG63: 華南
A64: 76 | B64: 103.01.17 | C64: J682126 | D64: 8061407 | E64: 13943 | F64: 陳淑貞 | G64: 40.08.01 | H64: P200482294 | J64: 231 | K64: 新北市新店區華城一路29號 | M64: 0937-195-211 | N64: 118i 5-doors | O64: B287J589 | P64: 1309 | Q64: 300 | R64: BEL2 | T64: 現金 | V64: 103.01.21 | W64: AGU-2159 | X64: 營二課 | Y64: 林政勳 | AA64: 己交車 | AB64: 已投保 | AC64: 47924 | AD64: 25706 | AE64: 1188 | AF64: 74818 | AG64: 明台
A65: 26 | B65: 103.01.04 | C65: NN94598 | D65: 8055913 | E65: 13700 | F65: 徐嘉鎂 | G65: 52.07.23 | H65: L220327755 | J65: 235 | K65: 新北市中和區安平路186號3樓 | M65: 0958-368-139 | N65: 318d Sedan | O65: 79238483 | P65: 1305 | Q65: 475 | R65: KCL3 | T65: 現金 | V65: 103.01.20 | W65: AAU-8168 | X65: 營三課 | Y65: 劉家任 | AA65: 己交車 | AB65: 已投保 | AC65: 43480 | AD65: 30547 | AE65: 1059 | AF65: 75086 | AG65: 富邦
A66: 34 | B66: 103.01.10 | C66: D046698 | D66: 8063437 | E66: 13833 | F66: 楊金福 | G66: 49.01.02 | H66: F122803556 | J66: 251 | K66: 新北市淡水區崁頂72之3號 | M66: 0935-041-874 | N66: 520d LCI | O66: 91178687 | P66: 1310 | Q66: 475 | R66: K8SW | T66: 現金 | V66: 103.01.16 | W66: AFJ-9718 | X66: 營一課 | Y66: 林柏霖 | AA66: 己交車 | AB66: 已投保 | AC66: 35602 | AD66: 39541 | AE66: 1099 | AF66: 76242 | AG66: 富邦
A67: 41 | B67: 103.01.04 | C67: 0G16588 | D67: 8060299 | E67: 13854 | F67: 黃耀興 | G67: 65.01.31 | H67: C120852496 | J67: 204 | K67: 基隆市安樂區麥金路14號2樓 | M67: 0955-703-696 | N67: X3 xDrive20i | O67: A4550567 | P67: 1308 | Q67: 475 | R67: FHAT | T67: 現金 | V67: 103.01.13 | W67: AFJ-7618 | X67: 營二課 | Y67: 戴子貽 | AA67: 己交車 | AB67: 已投保 | AC67: 46660 | AD67: 29087 | AE67: 1099 | AF67: 76846 | AG67: 華南
A68: 54 | B68: 103.01.20 | C68: NN94823 | D68: 8062897 | E68: 13904 | F68: 倪至寬 | G68: 40.06.21 | H68: Q100313757 | J68: 231 | K68: 新北市新店區明德路113號3樓 | M68: 0910-180-925 | N68: 318d Sedan | O68: 77738596 | P68: 1310 | Q68: 300 | R68: KCL3 | T68: 現金 | V68: 103.01.22 | W68: AGE-3305 | X68: 營一課 | Y68: 王裕明 | AA68: 己交車 | AB68: 已投保 | AC68: 49073 | AD68: 26630 | AE68: 1148 | AF68: 76851 | AG68: 華南
A69: 29 | B69: 103.01.04 | C69: D009096 | D69: 8062087 | E69: 13776 | F69: 賴玉美 | G69: 49.05.20 | H69: U220795233 | J69: 238 | K69: 新北市樹林區長壽街15之2號10樓 | M69: 0939-678-619 | N69: 520i LCI | O69: B1130614 | P69: 1309 | Q69: 300 | R69: K8SW | T69: 現金 | V69: 103.01.17 | W69: AGU-1366 | X69: 營一課 | Y69: 郭天南 | AA69: 己交車 | AB69: 已投保 | AC69: 44938 | AD69: 30904 | AE69: 1019 | AF69: 76861 | AG69: 華南
A70: 78 | B70: 103.01.16 | C70: D015482 | D70: 8062201 | E70: 13947 | F70: 黃世光 | G70: 54.08.09 | H70: P120617684 | J70: 108 | K70: 台北市萬華區 萬大路486巷37弄66號 | M70: 0911-286-103 | N70: 528i LCI | O70: A0300640 | P70: 1309 | Q70: 475 | R70: LCLZ | T70: 現金 | V70: 103.01.23 | W70: AGD-5899 | X70: 營二課 | Y70: 陳一鋐 | AA70: 己交車 | AB70: 已投保 | AC70: 50315 | AD70: 26136 | AE70: 1099 | AF70: 77550 | AG70: 華南
A71: 32 | B71: 103.01.13 | C71: D700850 | D71: 8063871 | E71: 13818 | F71: 李秀玫 | G71: 57.08.29 | H71: R221902677 | J71: 241 | K71: 新北市三重區永福街201之7號11樓 | M71: 0922-911-900 | N71: 320i Gran Turismo | O71: A4800685 | P71: 1311 | Q71: A96 | R71: KCL3 | T71: 現金 | V71: 103.01.23 | W71: AGU-3268 | X71: 營一課 | Y71: 李昀融 | AA71: 己交車 | AB71: 已投保 | AC71: 49734 | AD71: 26942 | AE71: 1019 | AF71: 77695 | AG71: 明台
A72: 8 | B72: 102.08.26 | C72: NR22235 | D72: 8062840 | E72: 13219 | F72: 陳碧珠 | G72: 51.08.12 | H72: F220989859 | J72: 116 | K72: 台北市文山區木柵路3段103巷19號 | M72: 0931-385-182 | N72: 328i Sedan ZA | O72: C0500557 | P72: 1310 | Q72: A96 | R72: LCL3 | T72: 現金 | V72: 103.01.02 | W72: AFJ-7358 | X72: 營三課 | Y72: 賈勇華 | AA72: 己交車 | AB72: 已投保 | AC72: 46413 | AD72: 30365 | AE72: 1019 | AF72: 77797 | AG72: 華南
A73: 16 | B73: 102.10.28 | C73: D700652 | D73: 8063841 | E73: 13537 | F73: 周展旭 | G73: 65.03.23 | H73: P122221079 | J73: 220 | K73: 新北市板橋區長安街138巷7弄22號 | M73: 0935-762-519 | N73: 320i Gran Turismo | O73: B1440672 | P73: 1311 | Q73: 300 | R73: KCL3 | T73: 現金 | U73: 星展銀行 | V73: 103.01.20 | W73: AGU-0585 | X73: 營二課 | Y73: 謝中堅 | AA73: 己交車 | AB73: 已投保 | AC73: 46659 | AD73: 30682 | AE73: 1398 | AF73: 78739 | AG73: 華南
A74: 58 | B74: 103.01.13 | C74: D047055 | D74: 8064008 | E74: 13909 | F74: 威盾實業(股)公司 | I74: 80460758 | J74: 220 | K74: 新北市板橋區長江路三段125號 | M74: 0932-121-265 | N74: 520d LCI | O74: 89408707 | P74: 1311 | Q74: 475 | R74: K8SW | T74: 現金 | V74: 103.01.20 | W74: AGU-2188 | X74: 營三課 | Y74: 賈勇華 | AA74: 己交車 | AB74: 已投保 | AC74: 46660 | AD74: 31859 | AE74: 1398 | AF74: 79917 | AG74: 華南
A75: 69 | B75: 103.01.14 | C75: D046974 | D75: 8064005 | E75: 13930 | F75: 李莎莉 | G75: 55.05.15 | H75: A222412347 | J75: 235 | K75: 新北市中和區圓通路369巷30弄68號 | M75: 0922-483-806 | N75: 520d LCI | O75: 84468700 | P75: 1311 | Q75: 475 | R75: K8SW | T75: 現金 | V75: 103.01.17 | W75: AGU-0599 | X75: 營二課 | Y75: 王慶儒 | AA75: 己交車 | AB75: 已投保 | AC75: 51673 | AD75: 27398 | AE75: 1019 | AF75: 80090 | AG75: 明台
A76: 61 | B76: 103.01.04 | C76: 0G22718 | D76: 8063103 | E76: 13913 | F76: 莊樹銘 | G76: 51.08.31 | H76: C120715130 | J76: 231 | K76: 新北市新店區華城三路79之1號 | M76: 0928-619-141 | N76: X3 xDrive20i | O76: A9140613 | P76: 1310 | Q76: 300 | R76: FHAT | T76: 現金 | V76: 103.01.15 | W76: AFJ-7572 | X76: 營二課 | Y76: 陳一鋐 | AA76: 己交車-調入車 | AB76: 已投保 | AC76: 49932 | AD76: 30703 | AE76: 1099 | AF76: 81734 | AG76: 華南
A77: 17 | B77: 102.11.21 | C77: D358880 | D77: 8063894 | E77: 13545 | F77: 曹桂榮 | G77: 52.09.08 | H77: P121449386 | J77: 635 | K77: 雲林縣東勢鄉仁愛路10號 | M77: 0928-228-543 | N77: 328i Gran Turismo | O77: A3860688 | P77: 1311 | Q77: B39 | R77: LCL3 | T77: 現金 | V77: 103.01.16 | W77: AGX-5858 | X77: 營一課 | Y77: 郭天南 | AA77: 己交車 | AB77: 已投保 | AC77: 51569 | AD77: 30890 | AE77: 1099 | AF77: 83558 | AG77: 華南
A78: 49 | B78: 103.01.04 | C78: F709400 | D78: 8058475 | E78: 13895 | F78: 王雨涵 | G78: 75.11.20 | H78: F226198585 | J78: 114 | K78: 台北市內湖區江南街71巷87號6樓 | M78: 0956-856-556 | N78: 428i Coupe | O78: B3490578 | P78: 1307 | Q78: 300 | R78: LCL5 | T78: 現金 | U78: 永豐銀行 | V78: 103.01.15 | W78: AGE-6189 | X78: 營一課 | Y78: 郭天南 | AA78: 己交車 | AB78: 已投保 | AC78: 52718 | AD78: 29445 | AE78: 1457 | AF78: 83620 | AG78: 華南
A79: 92 | B79: 103.01.20 | C79: D009429 | D79: 8063344 | E79: 13987 | F79: 劉聯璋 | G79: 55.08.01 | H79: C120423744 | J79: 238 | K79: 新北市樹林區大雅路333號 | M79: 0931-052-933 | N79: 520i LCI | O79: A8690667 | P79: 1310 | Q79: A90 | R79: LCLZ | T79: 現金 | V79: 103.01.21 | W79: AGU-1798 | X79: 營三課 | Y79: 鄭英彥 | AA79: 己交車 | AB79: 已投保 | AC79: 50004 | AD79: 32461 | AE79: 1398 | AF79: 83863 | AG79: 明台
A80: 66 | B80: 103.01.04 | C80: D009403 | D80: 8063330 | E80: 13919 | F80: 海寶實業有限公司 | I80: 15297944 | J80: 108 | K80: 台北市萬華區桂林路23號2樓 | M80: 0919-148-402 | N80: 520i LCI | O80: A3590662 | P80: 1310 | Q80: A52 | R80: LCLZ | T80: 現金 | V80: 103.01.21 | W80: AFJ-9110 | X80: 營一課 | Y80: 郭天南 | AA80: 己交車 | AB80: 已投保 | AC80: 48190 | AD80: 34874 | AE80: 1398 | AF80: 84462 | AG80: 華南
A81: 39 | B81: 103.01.04 | C81: D009481 | D81: 8063929 | E81: 13849 | F81: 呂依琪 | G81: 71.07.07 | H81: F225241176 | J81: 234 | K81: 新北市永和區民生路22巷11號 | M81: 0938-083-381 | N81: 520i LCI | O81: A8900678 | P81: 1311 | Q81: 475 | R81: LCLZ | T81: 現金 | U81: 新光銀行 | V81: 103.01.21 | W81: AGU-2678 | X81: 營三課 | Y81: 鄭英彥 | AA81: 己交車 | AB81: 已投保 | AC81: 48947 | AD81: 35074 | AE81: 1318 | AF81: 85339 | AG81: 明台
A82: 12 | B82: 102.08.26 | C82: 0C82833 | D82: 8063171 | E82: 13275 | F82: 威技電器股份有限公司 | I82: 89888281 | J82: 235 | K82: 新北市中和區新民街112號8樓之8 | M82: 0987-828-635 | N82: X3 xDrive28i | O82: B9020633 | P82: 1310 | Q82: A52 | R82: LUSW | T82: 現金 | V82: 103.01.17 | W82: AGU-1088 | X82: 營三課 | Y82: 郭力嘉 | AA82: 己交車 | AB82: 已投保 | AC82: 51569 | AD82: 32539 | AE82: 1398 | AF82: 85506 | AG82: 華南
A83: 7 | B83: 102.08.23 | C83: 0F21989 | D83: 8063206 | E83: 13161 | F83: 黃光武 | G83: 40.08.30 | H83: G100597470 | J83: 231 | K83: 新北市新店區明德路67巷6號 | M83: 0972-712-288 | N83: X3 xDrive20d | O83: 73538649 | P83: 1310 | Q83: A52 | R83: FHAT | T83: 現金 | V83: 103.01.20 | W83: AGX-3699 | X83: 營二課 | Y83: 謝中堅 | AA83: 己交車 | AB83: 已投保 | AC83: 51140 | AD83: 33224 | AE83: 1148 | AF83: 85512 | AG83: 富邦
A84: 95 | B84: 103.01.17 | C84: D494695 | D84: 8062065 | E84: 13997 | F84: 宏合建設開發股份有限公司 | I84: 86377905 | J84: 108 | K84: 台北市萬華區忠孝西路2段28號 | M84: 0952-593-038 | N84: 520d GT LCI | O84: 75748654 | P84: 1309 | Q84: A89 | R84: LCSW | T84: 現金 | V84: 103.01.21 | W84: AGU-0958 | X84: 營三課 | Y84: 林謙慶 | AA84: 己交車-調入車 | AB84: 已投保 | AC84: 52334 | AD84: 33184 | AE84: 1398 | AF84: 86916 | AG84: 明台
A85: 82 | B85: 103.01.14 | C85: D070083 | D85: 8059019 | E85: 13963 | F85: 湯秉康 | G85: 72.04.21 | H85: A128121227 | J85: 242 | K85: 新北市新莊區福德三街18號12樓 | M85: 0981-072-369 | N85: 520d-T LCI | O85: 89468581 | P85: 1307 | Q85: 300 | R85: K8SW | T85: 現金 | V85: 103.01.17 | W85: AGU-0788 | X85: 營二課 | Y85: 林政勳 | AA85: 己交車 | AB85: 已投保 | AC85: 51569 | AD85: 34271 | AE85: 1398 | AF85: 87238 | AG85: 華南
A86: 88 | B86: 103.01.13 | C86: D015842 | D86: 8063357 | E86: 13972 | F86: 劉昇昌 | G86: 50.11.25 | H86: F120948598 | J86: 231 | K86: 新北市新店區五峯路145巷5號 | M86: 0932-041-366 | N86: 528i LCI | O86: B8950668 | P86: 1310 | Q86: 475 | R86: LCLZ | T86: 現金 | V86: 103.01.16 | W86: AFJ-8078 | X86: 營二課 | Y86: 林陳郎 | AA86: 己交車 | AB86: 已投保 | AC86: 51579 | AD86: 35349 | AE86: 1099 | AF86: 88027 | AG86: 明台
A87: 70 | B87: 103.01.04 | C87: D700753 | D87: 8063876 | E87: 13932 | F87: 華增活業有限公司 | I87: 24304448 | J87: 106 | K87: 台北市大安區忠孝東路三段251巷4弄16號3樓 | M87: 0920-126-989 | N87: 320i Gran Turismo | O87: B5620677 | P87: 1311 | Q87: B38 | R87: KCL3 | T87: 現金 | V87: 103.01.28 | W87: AHF-5158 | X87: 營一課 | Y87: 陳龍雲 | AA87: 己交車 | AB87: 已投保 | AC87: 59168 | AD87: 27553 | AE87: 1398 | AF87: 88119 | AG87: 明台
A88: 23 | B88: 102.12.04 | C88: 0C32651 | D88: 8061244 | E88: 13667 | F88: 名軒開發股份有限公司 | I88: 04615057 | J88: 248 | K88: 新北市五股區成泰路1段189巷16號5樓 | N88: X5 xDrive30d | O88: 30548628 | P88: 1310 | Q88: A52 | R88: LCSW | T88: 現金 | V88: 103.01.03 | W88: AGD-7986 | X88: 營二課 | Y88: 陳一鋐 | AA88: 己交車 | AB88: 已投保 | AC88: 51249 | AD88: 36443 | AE88: 1398 | AF88: 89090 | AG88: 華南
A89: 27 | B89: 102.12.17 | C89: D358897 | D89: 8063892 | E89: 13754 | F89: 鄭朝強 | G89: 60.11.06 | H89: J120608716 | J89: 300 | K89: 新竹市東區民生路222巷15號 | M89: 0933-794-656 | N89: 328i Gran Turismo | O89: A6950691 | P89: 1311 | Q89: A96 | R89: LCL3 | T89: 現金 | V89: 103.01.28 | W89: AGU-9693 | X89: 營一課 | Y89: 林柏霖 | AA89: 己交車 | AB89: 已投保 | AC89: 53398 | AD89: 34980 | AE89: 1099 | AF89: 89477 | AG89: 富邦
A90: 102 | B90: 103.01.23 | C90: L972832 | D90: 8062420 | E90: 14027 | F90: 郭國勝 | G90: 56.03.20 | H90: K120651629 | J90: 368 | K90: 苗栗縣西湖鄉金獅10之8號 | M90: 0916-831-628 | N90: X6 xDrive35i | O90: 01098628 | P90: 1309 | Q90: 475 | R90: LUSW | T90: 現金 | V90: 103.01.24 | W90: AGU-3298 | X90: 營二課 | Y90: 陳一鋐 | AA90: 己交車-調入車 | AB90: 已投保 | AC90: 54836 | AD90: 35804 | AE90: 1099 | AF90: 91739 | AG90: 明台
A91: 47 | B91: 103.01.15 | C91: L970655 | D91: 8060921 | E91: 13887 | F91: 莊琪如 | G91: 61.02.20 | H91: Y220093496 | J91: 105 | K91: 台北市松山區民生東路三段113巷25弄12號4樓 | M91: 0932-284-779 | N91: X6 xDrive35i | O91: 02218592 | P91: 1308 | Q91: B38 | R91: LUSW | T91: 現金 | V91: 103.01.16 | W91: AGE-6626 | X91: 營二課 | Y91: 謝中堅 | AA91: 己交車 | AB91: 已投保 | AC91: 52282 | AD91: 40350 | AE91: 1019 | AF91: 93651 | AG91: 富邦
A92: 55 | B92: 103.01.10 | C92: L971571 | D92: 8062392 | E92: 13905 | F92: 呂學俊 | G92: 64.06.05 | H92: F123238946 | J92: 242 | K92: 新北市新莊區民安路207巷5號6樓 | M92: 0925-949-308 | N92: X6 xDrive35i | O92: 00388607 | P92: 1309 | Q92: 300 | R92: LUSW | T92: 現金 | U92: 星展銀行 | V92: 103.01.10 | W92: AGE-0311 | X92: 營一課 | Y92: 王裕明 | AA92: 己交車 | AB92: 已投保 | AC92: 55455 | AD92: 39469 | AE92: 1099 | AF92: 96023 | AG92: 明台
A93: 18 | B93: 102.11.06 | C93: L974599 | D93: 8063527 | E93: 13557 | F93: 陳榮美 | H93: S222045127 | J93: 235 | K93: 新北市中和區大仁街10巷9弄25號1樓 | M93: 0910-152-690 | N93: X6 xDrive35i | O93: 01478637 | P93: 1310 | Q93: 475 | R93: LUSW | T93: 現金 | V93: 103.01.16 | W93: AHA-5818 | X93: 營三課 | Y93: 劉家任 | AA93: 己交車 | AB93: 已投保 | AC93: 52632 | AD93: 48396 | AE93: 1318 | AF93: 102346 | AG93: 富邦
A94: 21 | B94: 102.12.10 | C94: L974606 | D94: 8063528 | E94: 13604 | F94: 吳世榮 | G94: 50.04.10 | H94: A120100226 | J94: 116 | K94: 台北市文山區興隆路3段255巷27號7樓 | M94: 0952-966-190 | N94: X6 xDrive35i | O94: 01248643 | P94: 1310 | Q94: 475 | R94: LUSW | T94: 現金 | V94: 103.01.15 | W94: AGE-1176 | X94: 營三課 | Y94: 李玄璸 | AA94: 己交車 | AB94: 已投保 | AC94: 74911 | AD94: 38181 | AE94: 1099 | AF94: 114191 | AG94: 明台
A95: 11 | B95: 102.08.12 | C95: NR16247 | D95: 8062858 | E95: 13265 | F95: 廖哲賢 | G95: 81.09.18 | H95: F128273203 | J95: 236 | K95: 新北市土城區青仁路52號5樓 | N95: 320i Sedan ZA | O95: B7490648 | P95: 1310 | Q95: 475 | R95: HAAT | T95: 現金 | V95: 103.01.28 | W95: AGF-8666 | X95: 營一課 | Y95: 張健宏 | AA95: 己交車 | AB95: 已投保 | AC95: 84034 | AD95: 34465 | AE95: 2694 | AF95: 121193 | AG95: 華南
A96: 81 | B96: 103.01.13 | C96: J680157 | D96: 8057949 | E96: 13962 | F96: 陳美燕 | G96: 75.06.09 | H96: E223925909 | J96: 804 | K96: 高雄市鼓山區美術南二路52號6樓之1 | M96: 0915-886-655 | N96: 118i 5-doors | O96: A274J546 | P96: 1307 | Q96: A61 | R96: BEL2 | T96: 現金 | U96: 聯邦銀行 | V96: 103.01.17 | W96: AFW-7569 | X96: 營二課 | Y96: 陳維德 | AA96: 己交車 | AB96: 未投保
A97: 28 | B97: 103.01.04 | C97: NR24569 | D97: 8061558 | E97: 13770 | F97: 賴逸虹 | G97: 64.02.28 | H97: N222808433 | J97: 220 | K97: 新北市板橋區新府路1-5號20樓 | M97: 0988-226-987 | N97: 316i Sedan ZA | O97: B703J560 | P97: 1309 | Q97: B39 | R97: KCSW | T97: 現金 | V97: 103.01.29 | W97: AGE-3168 | X97: 營三課 | Y97: 劉家任 | AA97: 己交車 | AB97: 未投保
A98: 22 | B98: 102.11.21 | C98: D225505 | D98: 8059004 | E98: 13666 | F98: 和運租車股份有限公司 | I98: 70364778 | J98: 104 | K98: 台北市中山區松江路121號15樓 | N98: 520i-T LCI | O98: A9960553 | P98: 1307 | Q98: 300 | R98: K8SW | S98: 和運租車股份有限公司 | T98: 租賃 | V98: 103.01.16 | W98: RAJ-7608 | X98: 營二課 | Y98: 陳一鋐 | AA98: 己交車 | AB98: 未投保
A99: 24 | B99: 103.01.13 | C99: D070188 | D99: 8059027 | E99: 13669 | F99: 協新汽車(股)公司 | I99: 23892144 | J99: 112 | K99: 台北市北投區大業路262號 | N99: 520d-T LCI | O99: 88518588 | P99: 1307 | Q99: 475 | R99: K8SW | S99: 協新汽車(股)公司 | T99: 租賃 | V99: 103.01.24 | W99: RAJ-6905 | X99: 營三課 | Y99: 鄭英彥 | AA99: 己交車 | AB99: 未投保
A100: 50 | B100: 103.01.14 | C100: D494509 | D100: 8062053 | E100: 13897 | F100: 晉利國際有限公司 | I100: 27514642 | J100: 222 | K100: 新北市深坑區北深路三段63號4樓 | L100: 2662-1058 | N100: 520d GT LCI | O100: 75978633 | P100: 1309 | Q100: 300 | R100: LCSW | S100: 財盟小客車租賃(股)公司 | T100: 租賃 | V100: 103.01.16 | W100: RAJ-7667 | X100: 營三課 | Y100: 林謙慶 | Z100: 原合約:13896 | AA100: 己交車 | AB100: 未投保
A101: 83 | B101: 103.01.10 | C101: D014891 | D101: 8060760 | E101: 13966 | F101: 中租迪和(股)公司 | I101: 05072925 | J101: 114 | K101: 台北市內湖區瑞光路362號8樓 | L101: 2277-7325 | N101: 528i LCI | O101: B1060611 | P101: 1308 | Q101: 475 | R101: LCLZ | S101: 中租迪和(股)公司 | T101: 租賃 | V101: 103.01.17 | W101: RAJ-7757 | X101: 營一課 | Y101: 花志明 | AA101: 己交車 | AB101: 未投保
A102: 33 | B102: 103.01.07 | C102: KT51059 | D102: 8063082 | E102: 13829 | F102: 中租迪和股份有限公司 | I102: 05072925 | J102: 114 | K102: 台北市內湖區瑞光路362號8樓 | M102: 0935-028-555 | N102: 428i Coupe | O102: B9710668 | P102: 1310 | Q102: B39 | R102: LCSW | S102: 中租迪和股份有限公司 | T102: 租賃 | V102: 103.01.21 | W102: RAJ-8108 | X102: 營一課 | Y102: 花志明 | AA102: 己交車 | AB102: 未投保
A103: 89 | B103: 103.01.17 | C103: F709860 | D103: 8063065 | E103: 13973 | F103: 和運租車(股)公司 | I103: 70364778 | J103: 104 | K103: 台北市中山區松江路121號15樓 | L103: 2503-8586 | N103: 428i Coupe | O103: A0170653 | P103: 1310 | Q103: B39 | R103: LCSW | S103: 和運租車(股)公司 | T103: 租賃 | V103: 103.01.24 | W103: RAJ-8765 | X103: 營一課 | Y103: 李昀融 | AA103: 己交車-調入車 | AB103: 未投保
A104: 77 | B104: 103.01.27 | C104: D358907 | D104: 8063881 | E104: 13945 | F104: 郵政總局郵政醫院 | I104: 92000371 | J104: 100 | K104: 台北市中正區福州路14號 | N104: 328i Gran Turismo | O104: A6150692 | P104: 1311 | Q104: 300 | R104: LCSW | S104: 財盟小客車租賃(股)公司 | T104: 租賃 | V104: 103.01.28 | W104: RAJ-9818 | X104: 營一課 | Y104: 陳龍雲 | Z104: 原合約:13405 | AA104: 己交車 | AB104: 未投保
A105: 84 | B105: 103.01.09 | C105: D283083 | D105: 8064104 | E105: 13967 | F105: 炬將科技股份有限公司 | I105: 80442957 | J105: 429 | K105: 台中市神岡區社口里文昌街320巷19號 | L105: 04-2525-2053 | N105: 730d Sedan | O105: 34478698 | P105: 1311 | Q105: 475 | R105: LCSW | S105: 財盟小客車租賃股份有限公司 | T105: 租賃 | V105: 103.01.16 | W105: RAK-8699 | X105: 營三課 | Y105: 黃盛緯 | Z105: 原合約013922#汎德贈乙式全險 | AA105: 己交車 | AB105: 未投保
A106: 99 | B106: 103.01.27 | C106: NR22219 | D106: 8059985 | E106: 14020 | F106: 創意家行銷(股)公司 | I106: 27749417 | J106: 114 | K106: 台北市內湖區瑞光路358巷38弄36號10樓 | N106: 328i Sedan ZA | O106: A8510544 | P106: 1308 | Q106: 475 | R106: LCL3 | S106: 財盟小客車租賃(股)公司 | T106: 租賃 | V106: 103.01.28 | W106: RAK-6686 | X106: 營三課 | Y106: 簡志勳 | AA106: 己交車-調入車 | AB106: 未投保
AC107: =SUM(AC2:AC106) -> 2575208 | AD107: =SUM(AD2:AD106) -> 2144189 | AE107: 104195 | AF107: 4823592

Sheet 新保承保率版(檔名未更新)
A1: 客戶名稱 | B1: 聯絡人 | C1: 領牌日 | D1: 表 部 門 | E1: 付款 | F1: 保險卡號 | G1: 車 號 | H1: 保險 | J1: 業務代表 | K1: 車體 | L1: 其它 | M1: 強制險 | N1: 總 計
A2: 三大聯合建築師事務所 | C2: 94.01.01 | D2: STF | F2: 03AG001382 | G2: 8869-DV | H2: 華南 | J2: 陳碧瀛 | K2: 6274 | L2: 4516 | M2: 1099 | N2: 11889
A3: 林立維 | C3: 98.11.25 | D3: 服務部 | F3: 03AG001389 | G3: 8629-S2 | H3: 華南 | J3: 許慶麟 | K3: 0 | L3: 5604 | M3: 1099 | N3: 6703
A4: 徐瑞菁 | C4: 100.01.13 | D4: 營三課 | F4: 011F1B0038415 | G4: 8399-F9 | H4: 台產 | J4: 黃盛緯 | K4: 8799 | L4: 18272 | M4: 1019 | N4: 28090
A5: 林世協 | C5: 101.01.02 | D5: 營三課 | F5: 080P18652891 | G5: 5589-J6 | H5: 明台 | J5: 劉家任 | K5: 40971 | L5: 26843 | M5: 1099 | N5: 68913
A6: 陶汶 | C6: 97.01.01 | D6: 營一課 | F6: 080P18700998 | G6: 8268-VR | H6: 明台 | J6: 王裕明 | K6: 0 | L6: 3861 | M6: 889 | N6: 4750
A7: 陳膺中 | C7: 89.01.01 | D7: 營一課 | F7: 03AG001397 | G7: 8F-1557 | H7: 華南 | J7: 王裕明 | K7: 5455 | L7: 2999 | M7: 1099 | N7: 9553
A8: 陳奇正 | C8: 93.07.01 | D8: STF | F8: 080P18701000 | G8: 3158-MS | H8: 明台 | J8: 陳碧瀛 | K8: 0 | L8: 0 | M8: 1099 | N8: 1099
A9: 陳阮玲 | C9: 86.01.31 | D9: STF | F9: 03AG001308 | G9: K6-8626 | H9: 華南 | J9: 陳碧瀛 | K9: 0 | L9: 2468 | M9: 1019 | N9: 3487
A10: 來譽企業有限公司 | C10: 101.01.02 | D10: 營三課 | F10: 011F1B0038806 | G10: 8989-P9 | H10: 台產 | J10: 黃盛緯 | K10: 39711 | L10: 27560 | M10: 1138 | N10: 68409
A11: 黃庚佳 | C11: 101.01.13 | D11: 營一課 | F11: 03AG001405 | G11: 7667-L2 | H11: 華南 | J11: 張健宏 | K11: 63255 | L11: 26989 | M11: 1099 | N11: 91343
A12: 林文章 | C12: 100.01.21 | D12: STF | F12: 001F1B0038804 | G12: 0689-ZT | H12: 台產 | J12: 陳碧瀛 | K12: 41189 | L12: 22806 | M12: 1268 | N12: 65263
A13: 頂準投資有限公司 | C13: 101.01.04 | D13: 營二課 | F13: 03AG001403 | G13: 3369-J6 | H13: 華南 | J13: 謝中堅 | K13: 57656 | L13: 35468 | M13: 1597 | N13: 94721
A14: 洪定 | C14: 101.01.06 | D14: 營二課 | F14: 03AG001404 | G14: 5957-L2 | H14: 華南 | J14: 謝中堅 | K14: 56403 | L14: 28177 | M14: 1148 | N14: 85728
A15: 儒林印刷品有限公司 | C15: 87.01.01 | D15: 營二課 | F15: 03AG001412 | G15: P7-9558 | H15: 華南 | J15: 謝中堅 | K15: 0 | L15: 2922 | M15: 1099 | N15: 4021
A16: 張榮城 | C16: 101.01.05 | D16: 營一課 | F16: 080P18700985 | G16: 6077-L2 | H16: 明台 | J16: 凌大偉 | K16: 37750 | L16: 29363 | M16: 1099 | N16: 68212
A17: 李曉雯 | C17: 94.01.28 | D17: 營三課 | F17: 080P18700986 | G17: 5519-EF | H17: 明台 | J17: 陳禮建 | K17: 17341 | L17: 4429 | M17: 1019 | N17: 22789
A18: 劉壽懷 | C18: 98.01.01 | D18: 營三課 | F18: 080P18700987 | G18: 5922-VM | H18: 明台 | J18: 陳禮建 | K18: 5742 | L18: 16037 | M18: 1019 | N18: 22798
A19: 何星潔 | C19: 95.01.01 | D19: 營三課 | F19: 080P18700988 | G19: 7218-MS | H19: 明台 | J19: 陳禮建 | K19: 0 | L19: 3086 | M19: 1019 | N19: 4105
A20: 陳曉萍 | D20: 營三課 | F20: 011F1B0039298 | G20: 8718-HJ | H20: 台產 | J20: 黃盛緯 | K20: 5036 | L20: 3130 | M20: 1019 | N20: 9185
A21: 張佩宜 | C21: 97.01.03 | D21: 營三課 | F21: 080P18737483 | G21: 5008-QX | H21: 明台 | J21: 黃盛緯 | K21: 36468 | L21: 10677 | M21: 1019 | N21: 48164
A22: 天驪企業有限公司 | C22: 100.01.04 | D22: 營三課 | F22: 080P18700978 | G22: 9655-A6 | H22: 明台 | J22: 郭力嘉 | K22: 27704 | L22: 24284 | M22: 1138 | N22: 53126
A23: 皓協有限公司 | C23: 101.01.03 | D23: 營三課 | F23: 080P18700979 | G23: 8998-R3 | H23: 明台 | J23: 郭力嘉 | K23: 29422 | L23: 29293 | M23: 1138 | N23: 59853
A24: 賴春美 | C24: 102.01.02 | D24: 營一課 | F24: 03AG003008 | G24: AAT-3336 | H24: 華南 | J24: 梁大民 | K24: 14869 | L24: 27785 | M24: 1019 | N24: 43673
A25: 金徵股份有限公司 | C25: 97.01.28 | D25: 服務部 | F25: 080P18700989 | G25: 7389-QX | H25: 明台 | J25: 林至柔 | K25: 48837 | L25: 14182 | M25: 1099 | N25: 64118
A26: 劉宸均 | C26: 102.01.29 | D26: 營二課 | F26: 080P18700977 | G26: AAQ-1388 | H26: 明台 | J26: 謝中堅 | K26: 13002 | L26: 24915 | M26: 1218 | N26: 39135
A27: 城林都市更新股份有限公司 | C27: 93.05.01 | D27: STF | F27: 080P18700956 | G27: 5957-DS | H27: 明台 | J27: 陳美杏 | K27: 0 | L27: 0 | M27: 1138 | N27: 1138
A28: 秦誼縈 | C28: 98.01.08 | D28: STF | F28: 03AG003023 | G28: 1971-VM | H28: 華南 | J28: 陳碧瀛 | K28: 17203 | L28: 5213 | M28: 1019 | N28: 23435
A29: 王淑麗 | C29: 100.01.25 | D29: STF | F29: 03AG003026 | G29: 5833-ZT | H29: 華南 | J29: 蔡燕森 | K29: 80942 | L29: 17979 | M29: 1019 | N29: 99940
A30: 漢利企業有限公司 | C30: 98.01.23 | D30: 營三課 | F30: 03AG003027 | G30: 1099-QH | H30: 華南 | J30: 陳禮建 | K30: 0 | L30: 3175 | M30: 1099 | N30: 4274
A31: 許新章 | C31: 94.12.28 | D31: 服務部 | F31: 03AG003037 | G31: 6878-ER | H31: 華南 | J31: 辜正武 | K31: 12449 | L31: 10960 | M31: 1148 | N31: 24557
A32: 林哲龍 | C32: 97.01.04 | D32: 營二課 | F32: 080P18769405 | G32: 5957-QX | H32: 明台 | J32: 王慶儒 | K32: 8389 | L32: 12566 | M32: 1148 | N32: 22103
A33: 賴怡倩 | C33: 100.12.29 | D33: 營二課 | F33: 080P18769406 | G33: 8333-R3 | H33: 明台 | J33: 王慶儒 | K33: 14416 | L33: 3971 | M33: 1059 | N33: 19446
A34: 劉有福 | C34: 97.01.21 | D34: 營二課 | F34: 080P18769407 | G34: 7727-QX | H34: 明台 | J34: 王慶儒 | K34: 0 | L34: 3450 | M34: 1148 | N34: 4598
A35: 黃振傑 | C35: 90.01.02 | D35: STF | F35: 03AG003039 | G35: 7K-3357 | H35: 華南 | J35: 蔡燕森 | K35: 17408 | L35: 10153 | M35: 1148 | N35: 28709
A36: 王財旺 | C36: 87.01.20 | D36: 營三課 | F36: 03AG003038 | G36: P7-7868 | H36: 華南 | J36: 賈勇華 | K36: 0 | L36: 5486 | M36: 1099 | N36: 6585
A37: 李澄池 | C37: 101.01.17 | D37: 營二課 | F37: 011F1B0039669 | G37: 8006-L2 | H37: 台產 | J37: 王冠賢 | K37: 0 | L37: 2213 | M37: 1148 | N37: 3361
A38: 甯珍珠 | C38: 100.01.12 | D38: STF | F38: 03AG003045 | G38: 6688-A7 | H38: 華南 | J38: 許嘉航 | K38: 73730 | L38: 26867 | M38: 1019 | N38: 101616
A39: 劉天龍 | C39: 100.01.07 | D39: 營一課 | F39: 080P18769415 | G39: 8389-ZS | H39: 明台 | J39: 凌大偉 | K39: 8758 | L39: 6443 | M39: 1148 | N39: 16349
A40: 陳穎聰 | C40: 102.01.04 | D40: 營一課 | F40: 03AG003041 | G40: AAT-6821 | H40: 華南 | J40: 張健宏 | K40: 36593 | L40: 25532 | M40: 1218 | N40: 63343
A41: 黃煥燿 | C41: 101.01.19 | D41: 營一課 | F41: 03AG003057 | G41: 8999-L8 | H41: 華南 | J41: 蘇士文 | K41: 0 | L41: 3521 | M41: 1099 | N41: 4620
A42: 依德股份有限公司 | C42: 94.05.18 | D42: 服務部 | F42: 03AG003046 | G42: 1616-J6 | H42: 華南 | J42: 陳欽榮 | K42: 8901 | L42: 6471 | M42: 1754 | N42: 17126
A43: 高維謙 | C43: 102.01.29 | D43: 營一課 | F43: 080P18769449 | G43: AAQ-2288 | H43: 明台 | J43: 凌大偉 | K43: 31401 | L43: 23255 | M43: 1019 | N43: 55675
A44: 吳宙耕 | C44: 95.01.17 | D44: 營一課 | F44: 080P18769401 | G44: 2979-MS | H44: 明台 | J44: 凌大偉 | K44: 12656 | L44: 4988 | M44: 1099 | N44: 18743
A45: 黃弟實 | C45: 100.01.18 | D45: 營一課 | F45: 03AG003042 | G45: 6018-YJ | H45: 華南 | J45: 凌大偉 | K45: 6918 | L45: 20293 | M45: 1099 | N45: 28310
A46: 昶誼工程有限公司 | C46: 101.01.05 | D46: 營一課 | F46: 5855-L2 | G46: 5855-L2 | H46: 華南 | J46: 郭天南 | K46: 26908 | L46: 24847 | M46: 1138 | N46: 52893
A47: 詹益乾 | C47: 102.01.17 | D47: STF | F47: 03AG003053 | G47: AAP-7756 | H47: 華南 | J47: 許嘉航 | K47: 45737 | L47: 23082 | M47: 1148 | N47: 69967
A48: 黃秀娟 | C48: 102.01.11 | D48: STF | F48: 03AG003055 | G48: AAT-7756 | H48: 華南 | J48: 許嘉航 | K48: 29922 | L48: 22969 | M48: 1019 | N48: 53910
A49: 黃筠茜 | C49: 102.01.17 | D49: 營一課 | F49: 05GEA00100 | G49: AAQ-0228 | H49: 富邦 | J49: 林柏霖 | K49: 53670 | L49: 35317 | M49: 1019 | N49: 90006
A50: 何柏凱 | C50: 101.01.04 | D50: 營二課 | F50: 011F1B0039932 | G50: 1123-L5 | H50: 台產 | J50: 陳維德 | K50: 14056 | L50: 21083 | M50: 1099 | N50: 36238
A51: 林燕玲 | C51: 97.01.04 | D51: 營一課 | F51: 080P18769417 | G51: 5708-QX | H51: 明台 | J51: 張哲彰 | K51: 0 | L51: 5389 | M51: 1019 | N51: 6408
A52: 許志宏 | C52: 96.01.31 | D52: 營一課 | F52: 080P18769448 | G52: 5025-QG | H52: 明台 | J52: 張哲彰 | K52: 0 | L52: 12747 | M52: 1099 | N52: 13846
A53: 陳劉淑娟 | C53: 83.10.01 | D53: 營一課 | F53: 080P18769446 | G53: HE-5769 | H53: 明台 | J53: 張哲彰 | K53: 0 | L53: 3740 | M53: 1019 | N53: 4759
A54: 鄭冬生 | C54: 98.01.23 | D54: 營三課 | F54: 080P18769444 | G54: 6306-VM | H54: 明台 | J54: 賈勇華 | K54: 7139 | L54: 15172 | M54: 1099 | N54: 23410
A55: 顏秋玲 | C55: 100.01.14 | D55: 營一課 | F55: 03AG003054 | G55: 6316-YK | H55: 華南 | J55: 張哲彰 | K55: 28766 | L55: 33452 | M55: 1019 | N55: 63237
A56: 趙凌仙 | C56: 99.01.05 | D56: 營一課 | F56: 03AG003051 | G56: 9119-YA | H56: 華南 | J56: 張哲彰 | K56: 0 | L56: 2721 | M56: 1019 | N56: 3740
A57: 林順雄 | C57: 96.01.10 | D57: 營一課 | F57: 080P18769421 | G57: 9999-RJ | H57: 明台 | J57: 張哲彰 | K57: 8177 | L57: 3567 | M57: 1099 | N57: 12843
A58: 梁玉賢 | C58: 96.01.01 | D58: 營一課 | F58: 080P18769422 | G58: 5608-RJ | H58: 明台 | J58: 張哲彰 | K58: 41585 | L58: 12788 | M58: 1019 | N58: 55392
A59: 吳德權 | C59: 101.01.10 | D59: 營一課 | F59: 011F1B0039935 | G59: 7068-L2 | H59: 台產 | J59: 張哲彰 | K59: 23527 | L59: 24597 | M59: 1099 | N59: 49223
A60: 葉千綺 | C60: 102.01.28 | D60: 營三課 | F60: 05GEA00209 | G60: AAY-3328 | H60: 富邦 | J60: 郭力嘉 | K60: 40356 | L60: 35087 | M60: 1138 | N60: 76581
A61: 陳碧華 | C61: 98.12.01 | D61: 服務部 | F61: 080P18701077 | G61: 6288-XR | H61: 明台 | J61: 黃榮源 | K61: 38184 | L61: 17274 | M61: 1019 | N61: 56477
A62: 蕭彩鳳 | C62: 101.01.20 | D62: 服務部 | F62: 011F1B0040010 | G62: 9799-J6 | H62: 台產 | J62: 李百祥 | K62: 11529 | L62: 3286 | M62: 1019 | N62: 15834
A63: 廖雨珍 | C63: 102.01.14 | D63: 營三課 | F63: 080P18769441 | G63: AAB-5877 | H63: 明台 | J63: 陳禮建 | K63: 10496 | L63: 26232 | M63: 1059 | N63: 37787
A64: 賴玉玲 | C64: 101.01.13 | D64: 營一課 | F64: 03AG003060 | G64: 7658-L2 | H64: 華南 | J64: 郭天南 | K64: 29811 | L64: 6695 | M64: 1059 | N64: 37565
A65: 台德國際有限公司 | C65: 101.01.03 | D65: 營二課 | F65: 05GEA00202 | G65: 1629-J6 | H65: 富邦 | J65: 林宗慶 | K65: 22999 | L65: 10195 | M65: 1218 | N65: 34412
A66: 許淑貞 | C66: 102.01.08 | D66: 營一課 | F66: 03AG003236 | G66: AAT-3693 | H66: 華南 | J66: 郭天南 | K66: 32021 | L66: 29218 | M66: 1019 | N66: 62258
A67: 中鼎機械有限公司 | C67: 99.01.01 | D67: 營三課 | F67: 011F1B0040009 | G67: AAD-2802 | H67: 台產 | J67: 賈勇華 | K67: 42632 | L67: 28014 | M67: 1218 | N67: 71864
A68: 台灣斯巴克環保工程有限公司 | C68: 98.02.01 | D68: 服務部 | F68: 011F1B0040435 | G68: 3000-UZ | H68: 台產 | J68: 李百祥 | K68: 30101 | L68: 12312 | M68: 1099 | N68: 43512
A69: 潘秀蓮 | C69: 101.01.06 | D69: 營二課 | F69: 080P18769430 | G69: 3399-N3 | H69: 明台 | J69: 王慶儒 | K69: 53479 | L69: 38544 | M69: 1019 | N69: 93042
A70: 張秀鳳 | C70: 100.11.01 | D70: 營二課 | F70: 05GEA00205 | G70: 2865-L2 | H70: 富邦 | J70: 林宗慶 | K70: 3329 | L70: 6610 | M70: 1019 | N70: 10958
A71: 上官鈺 | C71: 98.01.17 | D71: 營二課 | F71: 03AG003062 | G71: 1919-UZ | H71: 華南 | J71: 謝中堅 | K71: 0 | L71: 5497 | M71: 1019 | N71: 6516
A72: 李佳真 | C72: 102.01.31 | D72: 營一課 | F72: 03AG003063 | G72: AAY-2866 | H72: 華南 | J72: 郭天南 | K72: 32468 | L72: 25984 | M72: 1019 | N72: 59471
A73: 眾圓科技有限公司 | C73: 97.12.30 | D73: STF | F73: 03AG003064 | G73: 3258-VM | H73: 華南 | J73: 許嘉航 | K73: 0 | L73: 3175 | M73: 1099 | N73: 4274
A74: 林國森 | C74: 102.01.17 | D74: 營三課 | F74: 011F1B0040879 | G74: AAB-2830 | H74: 台產 | J74: 劉家任 | K74: 27009 | L74: 24967 | M74: 1099 | N74: 53075
A75: 蘇美珍 | C75: 100.11.01 | D75: 營三課 | F75: 080P18769440 | G75: 9426-J5 | H75: 明台 | J75: 劉家任 | K75: 6102 | L75: 2650 | M75: 1019 | N75: 9771
A76: 林倩如 | C76: 102.01.11 | D76: 營一課 | F76: 080P18769438 | G76: AAT-6018 | H76: 明台 | J76: 張健宏 | K76: 33416 | L76: 18215 | M76: 1138 | N76: 52769
A77: 富思特開發股份有限公司 | C77: 101.01.17 | D77: 營一課 | G77: 7999-J6 | H77: 明台 | J77: 張健宏 | K77: 40971 | L77: 27453 | M77: 0 | N77: 68424
A78: 永紘投資股份有限公司 | C78: 100.01.03 | D78: 營一課 | F78: 011F1B0040886 | G78: 8898-A7 | H78: 台產 | J78: 花志明 | K78: 16639 | L78: 18196 | M78: 1099 | N78: 35934
A79: 張志鵬 | C79: 99.01.08 | D79: 營一課 | F79: 03AG003071 | G79: 6518-YN | H79: 華南 | J79: 花志明 | K79: 0 | L79: 4242 | M79: 1099 | N79: 5341
A80: 余政達 | C80: 101.01.02 | D80: 營一課 | F80: 080P18769437 | G80: 1319-L2 | H80: 明台 | J80: 凌大偉 | K80: 0 | L80: 2503 | M80: 1099 | N80: 3602
A81: 張清木 | C81: 97.01.11 | D81: 營一課 | F81: 03AG003070 | G81: 0007-TK | H81: 華南 | J81: 凌大偉 | K81: 0 | L81: 2967 | M81: 1099 | N81: 4066
A82: 俞國昌 | C82: 93.12.01 | D82: 營三課 | F82: 080P18747308 | G82: 1288-TK | H82: 明台 | J82: 簡志勳 | K82: 116846 | L82: 16570 | M82: 1148 | N82: 134564
A83: 陳靜儀 | C83: 93.10.01 | D83: 營二課 | F83: 080P18769439 | G83: 7N-9631 | H83: 明台 | J83: 張昇文 | K83: 0 | L83: 4762 | M83: 889 | N83: 5651
A84: 曾超琦 | C84: 102.01.09 | D84: 營二課 | F84: 080P18771059 | G84: AAB-0399 | H84: 明台 | J84: 王慶儒 | K84: 39465 | L84: 34776 | M84: 1099 | N84: 75340
A85: 鑫宏益塑膠有限公司 | C85: 89.12.29 | D85: 服務部 | F85: 011F1B0041320 | G85: 7K-2788 | H85: 台產 | J85: 陳俊田 | K85: 0 | L85: 4547 | M85: 1099 | N85: 5646
A86: 林威志 | C86: 97.07.01 | D86: 營一課 | F86: 03AG003073 | G86: 8378-J6 | H86: 華南 | J86: 郭天南 | K86: 8640 | L86: 17925 | M86: 1099 | N86: 27664
A87: 林淑媛 | C87: 90.01.01 | D87: 服務部 | F87: 03AG003075 | G87: 7K-7588 | H87: 華南 | J87: 陳俊田 | K87: 0 | L87: 2402 | M87: 1019 | N87: 3421
A88: 楊昆發 | C88: 101.01.04 | D88: 營二課 | F88: 011F1B0041298 | G88: 3699-Q9 | H88: 台產 | J88: 梁志龍 | K88: 36546 | L88: 28993 | M88: 1099 | N88: 66638
A89: 張珠宜 | C89: 96.01.01 | D89: 營二課 | F89: 080P18747318 | G89: 2089-QM | H89: 明台 | J89: 王慶儒 | K89: 21897 | L89: 12888 | M89: 1019 | N89: 35804
A90: 許高榮 | C90: 101.01.04 | D90: 營二課 | F90: 080P18771062 | G90: 5500-L2 | H90: 明台 | J90: 梁志龍 | K90: 49233 | L90: 24798 | M90: 1138 | N90: 75169
A91: 許進東 | C91: 97.01.01 | D91: 營二課 | F91: 080P18771058 | G91: 8288-TJ | H91: 明台 | J91: 張昇文 | K91: 34966 | L91: 15893 | M91: 1099 | N91: 51958
A92: 鄭俊明 | C92: 96.10.01 | D92: 營一課 | F92: 05GEA00210 | G92: 9869-QT | H92: 富邦 | J92: 王裕明 | K92: 41563 | L92: 2225 | M92: 1099 | N92: 44887
A93: 黃秋梓 | C93: 100.01.01 | D93: 營一課 | F93: 05GEA00212 | G93: 1628-ZT | H93: 富邦 | J93: 王裕明 | K93: 8283 | L93: 10492 | M93: 1019 | N93: 19794
A94: 陳烱明 | C94: 101.01.12 | D94: 營一課 | F94: 03AG003077 | G94: 6728-L2 | H94: 華南 | J94: 王裕明 | K94: 12875 | L94: 14889 | M94: 1099 | N94: 28863
A95: 黃笠凱 | C95: 102.01.02 | D95: 營二課 | F95: 080P18771080 | G95: AAT-6369 | H95: 明台 | J95: 張昇文 | K95: 46122 | L95: 42728 | M95: 1218 | N95: 90068
A96: 黃清順 | C96: 99.02.09 | D96: 營三課 | F96: 080P18771057 | G96: 3325-YB | H96: 明台 | J96: 蕭敏聰 | K96: 46603 | L96: 19914 | M96: 1218 | N96: 67735
A97: 王淑娟 | C97: 101.12.26 | D97: 營一課 | F97: AAT-1637 | G97: AAT-1637 | H97: 華南 | J97: 王裕明 | K97: 26780 | L97: 15557 | M97: 1019 | N97: 43356
A98: 曾于真 | C98: 101.01.31 | D98: 營一課 | F98: 03AG003341 | G98: 5212-J6 | H98: 華南 | J98: 郭天南 | K98: 8329 | L98: 23961 | M98: 1019 | N98: 33309
A99: 劉紋妃 | C99: 101.01.05 | D99: 營二課 | F99: 03AG003079 | G99: 7918-H6 | H99: 華南 | J99: 張昇文 | K99: 23996 | L99: 23956 | M99: 1059 | N99: 49011
A100: 張瑞軍 | C100: 94.01.12 | D100: 服務部 | F100: 03AG604626 | G100: 8816-ED | H100: 華南 | J100: 李百祥 | K100: 0 | L100: 0 | M100: 1099 | N100: 1099
A101: 周志遠 | C101: 102.01.02 | D101: 營二課 | F101: 080P18771077 | G101: AAT-6565 | H101: 明台 | J101: 梁志龍 | K101: 47244 | L101: 30448 | M101: 1099 | N101: 78791
A102: 邁拓企業股份有限公司 | C102: 97.01.01 | D102: 營一課 | F102: 05GEA00211 | G102: 7029-QX | H102: 富邦 | J102: 王裕明 | K102: 5902 | L102: 9140 | M102: 0 | N102: 15042
A103: 吳宛明 | C103: 102.01.17 | D103: 營二課 | F103: 03AG003083 | G103: AAQ-9988 | H103: 華南 | J103: 林政勳 | K103: 42520 | L103: 28059 | M103: 1019 | N103: 71598
A104: 林陳雯 | C104: 102.01.16 | D104: 營二課 | F104: 03AG003081 | G104: AAP-8877 | H104: 華南 | J104: 陳一鋐 | K104: 37203 | L104: 25195 | M104: 889 | N104: 63287
A105: 陳家慧 | C105: 102.01.25 | D105: 營一課 | F105: 03AG003082 | G105: AAY-2535 | H105: 華南 | J105: 梁大民 | K105: 0 | L105: 4025 | M105: 1138 | N105: 5163
A106: 王秀萍 | C106: 101.01.10 | D106: 營二課 | F106: 080P18771074 | G106: 6818-L2 | H106: 明台 | J106: 林政勳 | K106: 26774 | L106: 24004 | M106: 1059 | N106: 51837
A107: 張朝旺 | C107: 102.01.17 | D107: 營二課 | F107: 080P18771071 | G107: AAQ-6168 | H107: 明台 | J107: 林政勳 | K107: 41644 | L107: 30867 | M107: 1099 | N107: 73610
A108: 杜易龍 | C108: 101.01.31 | D108: 營二課 | F108: 080P18771075 | G108: 9555-L7 | H108: 明台 | J108: 林政勳 | K108: 0 | L108: 0 | M108: 1099 | N108: 1099
A109: 憬德建設股份有限公司 | C109: 98.01.01 | D109: STF | F109: 03AG003084 | G109: 1413-S9 | H109: 華南 | J109: 林信宗 | K109: 52142 | L109: 19342 | M109: 1218 | N109: 72702
A110: 林玉霞 | C110: 94.12.01 | D110: 營二課 | F110: 080P18771076 | G110: 5601-MR | H110: 明台 | J110: 陳一鋐 | K110: 0 | L110: 2747 | M110: 1019 | N110: 3766
A111: 吳美專 | C111: 102.01.15 | D111: 營二課 | F111: 080P18771063 | G111: AAT-9158 | H111: 明台 | J111: 陳一鋐 | K111: 38705 | L111: 25486 | M111: 1019 | N111: 65210
A112: 黃福財 | C112: 82.12.01 | D112: STF | F112: 03AG003307 | G112: JD-4322 | H112: 華南 | J112: 蔡燕森 | K112: 0 | L112: 5610 | M112: 1148 | N112: 6758
A113: 陳瑩芝 | C113: 100.01.27 | D113: 營一課 | F113: 03AG003087 | G113: 6030-A7 | H113: 華南 | J113: 張哲彰 | K113: 21484 | L113: 17183 | M113: 1019 | N113: 39686
A114: 陳文軺 | C114: 95.01.01 | D114: 營二課 | F114: 080P18771064 | G114: 6036-MS | H114: 明台 | J114: 林陳郎 | K114: 28711 | L114: 8825 | M114: 1099 | N114: 38635
A115: 簡梅蘭 | C115: 101.01.05 | D115: 營二課 | F115: 011F1B0041763 | G115: 1995-J6 | H115: 台產 | J115: 陳維德 | K115: 27997 | L115: 21608 | M115: 1059 | N115: 50664
A116: 馬玉娟 | C116: 97.01.01 | D116: 服務部 | F116: 011F1B0041833 | G116: 0388-TK | H116: 台產 | J116: 黃榮源 | K116: 8230 | L116: 9262 | M116: 1019 | N116: 18511
A117: 王芬鐘 | C117: 89.01.01 | D117: 營二課 | F117: 03AG604627 | G117: 3210-K8 | H117: 華南 | J117: 王慶儒 | K117: 36649 | L117: 9014 | M117: 1019 | N117: 46682
A118: 林淑慧 | C118: 102.01.17 | D118: 營二課 | F118: 03AG003086 | G118: AAQ-1989 | H118: 華南 | J118: 梁志龍 | K118: 18843 | L118: 24482 | M118: 1019 | N118: 44344
A119: 趙立宜 | C119: 98.03.01 | D119: 營二課 | F119: 03AG003092 | G119: 1658-YK | H119: 華南 | J119: 梁志龍 | K119: 113136 | L119: 19967 | M119: 1926 | N119: 135029
A120: 許文襦 | C120: 99.01.01 | D120: 營二課 | F120: 080P18771068 | G120: 6600-YN | H120: 明台 | J120: 梁志龍 | K120: 55921 | L120: 26008 | M120: 1099 | N120: 83028
A121: 張湘愉 | C121: 101.11.01 | D121: STF | F121: 011F1B0041917 | G121: 7689-T3 | H121: 台產 | J121: 張湘愉 | K121: 23264 | L121: 18944 | M121: 719 | N121: 42927
A122: 陳建發 | C122: 100.01.27 | D122: 營一課 | F122: 011F1B0041970 | G122: 5168-ZT | H122: 台產 | J122: 凌大偉 | K122: 0 | L122: 2939 | M122: 1099 | N122: 4038
A123: 黃玉玲 | C123: 101.01.10 | D123: STF | F123: 03AG003097 | G123: 5056-L2 | H123: 華南 | J123: 林信宗 | K123: 20219 | L123: 6157 | M123: 1019 | N123: 27395
A124: 萬成紙品有限公司 | C124: 97.01.01 | D124: 營一課 | F124: 03AG003089 | G124: 5189-QY | H124: 華南 | J124: 凌大偉 | K124: 0 | L124: 3175 | M124: 1099 | N124: 4274
A125: 林育秀 | C125: 99.01.01 | D125: 營一課 | F125: 03AG003091 | G125: 7066-YN | H125: 華南 | J125: 凌大偉 | K125: 15269 | L125: 5497 | M125: 1019 | N125: 21785
A126: 洪森強 | C126: 102.01.22 | D126: 營二課 | F126: 080P18771070 | G126: AAY-1727 | H126: 明台 | J126: 張昇文 | K126: 0 | L126: 21814 | M126: 1099 | N126: 22913
A127: 張韻華 | C127: 100.01.11 | D127: 營三課 | F127: 080P18771069 | G127: 0319-ZS | H127: 明台 | J127: 郭力嘉 | K127: 28546 | L127: 20946 | M127: 1019 | N127: 50511
A128: 蔡東翰 | C128: 102.01.24 | D128: 營二課 | F128: 080P18804408 | G128: AAY-1313 | H128: 明台 | J128: 王慶儒 | K128: 12876 | L128: 28873 | M128: 1099 | N128: 42848
A129: 廖利利 | C129: 89.01.01 | D129: 營一課 | F129: 080P18804407 | G129: 8F-8370 | H129: 明台 | J129: 凌大偉 | K129: 0 | L129: 3109 | M129: 889 | N129: 3998
A130: 簡銘賜地政士事務所 | C130: 100.01.12 | D130: 營一課 | F130: 080P18804404 | G130: 3993-A7 | H130: 明台 | J130: 花志明 | K130: 10519 | L130: 18727 | M130: 1099 | N130: 30345
A131: 嚴文遠 | C131: 102.01.15 | D131: 營三課 | F131: 080P18771066 | G131: AAT-5781 | H131: 明台 | J131: 鄭英彥 | K131: 27695 | L131: 52690 | M131: 1099 | N131: 81484
A132: 陳淑美 | C132: 102.01.31 | D132: 營二課 | F132: 080P18804403 | G132: AAY-5887 | H132: 明台 | J132: 莊朝清 | K132: 19797 | L132: 29848 | M132: 1318 | N132: 50963
A133: 鄧皓晏 | C133: 102.01.17 | D133: 營二課 | F133: 03AG003090 | G133: AAT-9366 | H133: 華南 | J133: 林陳郎 | K133: 36593 | L133: 23245 | M133: 1099 | N133: 60937
A134: 姜家賢 | C134: 100.01.28 | D134: 營三課 | F134: 080P18747448 | G134: 3258-ZT | H134: 明台 | J134: 簡志勳 | K134: 40702 | L134: 17970 | M134: 1398 | N134: 60070
A135: 方欽永 | C135: 102.01.25 | D135: 營二課 | F135: 03AG002515 | G135: AAD-2260 | H135: 華南 | J135: 王慶儒 | K135: 37795 | L135: 27030 | M135: 1099 | N135: 65924
A136: 田君華 | C136: 96.01.01 | D136: 服務部 | F136: 080P18804402 | G136: 3268-RJ | H136: 明台 | J136: 周益弘 | K136: 18556 | L136: 15351 | M136: 1019 | N136: 34926
A137: 華登建設有限公司 | C137: 100.01.18 | D137: 營二課 | F137: 080P18804401 | G137: 5338-A7 | H137: 明台 | J137: 林陳郎 | K137: 0 | L137: 3567 | M137: 1099 | N137: 4666
A138: 利明週邊有限公司 | C138: 95.01.01 | D138: 營二課 | F138: 080P18804409 | G138: 2835-ES | H138: 明台 | J138: 王慶儒 | K138: 8436 | L138: 11069 | M138: 1099 | N138: 20604
A139: 林明宗 | C139: 102.01.31 | D139: 營二課 | F139: 05GEA00215 | G139: ABK-5555 | H139: 富邦 | J139: 王冠賢 | K139: 13610 | L139: 8159 | M139: 1099 | N139: 22868
A140: 沈綺紅 | C140: 102.01.01 | D140: 營二課 | F140: 05GEA00214 | G140: ABV-5556 | H140: 富邦 | J140: 王冠賢 | K140: 27977 | L140: 28195 | M140: 1019 | N140: 57191
A141: 蔡秀梅 | C141: 102.01.14 | D141: 營二課 | F141: 03AG003095 | G141: AAT-5263 | H141: 華南 | J141: 陳一鋐 | K141: 42511 | L141: 22969 | M141: 1138 | N141: 66618
A142: 精信精密工業(股)公司 | C142: 99.01.01 | D142: 營一課 | F142: 080P18804410 | G142: 7079-YN | H142: 明台 | J142: 凌大偉 | K142: 40787 | L142: 16290 | M142: 1099 | N142: 58176
A143: 梁妙金 | C143: 87.07.01 | D143: 營三課 | F143: 03AG003094 | G143: DH-9900 | H143: 華南 | J143: 簡志勳 | K143: 0 | L143: 2721 | M143: 1019 | N143: 3740
A144: 謝元 | C144: 97.01.01 | D144: 營三課 | F144: 080P18804411 | G144: 1111-QX | H144: 明台 | J144: 賈勇華 | K144: 0 | L144: 0 | M144: 1099 | N144: 1099
A145: 台灣偉登精密工業(股)公司 | C145: 99.01.01 | D145: 營三課 | F145: 080P18804412 | G145: 7887-YN | H145: 明台 | J145: 簡志勳 | K145: 68886 | L145: 21585 | M145: 1796 | N145: 92267
A146: 呂賴素英 | C146: 97.01.01 | D146: 營二課 | F146: 03AG002510 | G146: 9576-QY | H146: 華南 | J146: 謝中堅 | K146: 0 | L146: 5770 | M146: 889 | N146: 6659
A147: 羅麗玉 | C147: 96.01.01 | D147: 服務部 | F147: 080P18804450 | G147: 1689-RJ | H147: 明台 | J147: 黃榮源 | K147: 45005 | L147: 14136 | M147: 1019 | N147: 60160
A148: 施淑滿 | C148: 94.12.23 | D148: 服務部 | F148: 03AG002511 | G148: 5325-ER | H148: 華南 | J148: 陳勝雄 | K148: 21023 | L148: 6004 | M148: 1019 | N148: 28046
A149: 蔡乙誠 | C149: 98.01.01 | D149: 營二課 | F149: 080P18804449 | G149: 2738-VM | H149: 明台 | J149: 張昇文 | K149: 28797 | L149: 6560 | M149: 1099 | N149: 36456
A150: 張瓊蓉 | C150: 101.01.18 | D150: 營二課 | F150: 03AG002512 | G150: 4455-L2 | H150: 華南 | J150: 謝中堅 | K150: 7622 | L150: 3381 | M150: 1019 | N150: 12022
A151: 鄧三貴 | C151: 100.01.18 | D151: 營三課 | F151: 03AG001613 | G151: 6539-YJ | H151: 華南 | J151: 簡志勳 | K151: 0 | L151: 0 | M151: 1099 | N151: 1099
A152: 泉洪企業有限公司 | C152: 97.01.01 | D152: 營三課 | F152: 03AG003093 | G152: 6666-QY | H152: 華南 | J152: 黃盛緯 | K152: 7217 | L152: 10127 | M152: 1099 | N152: 18443
A153: 陳威達 | C153: 102.01.09 | D153: 營三課 | F153: 080P18804413 | G153: AAB-0667 | H153: 明台 | J153: 林謙慶 | K153: 9033 | L153: 5059 | M153: 1218 | N153: 15310
A154: 哈伯實業有限公司 | C154: 101.01.06 | D154: 營一課 | F154: 03AG003098 | G154: 1299-M8 | H154: 華南 | J154: 郭天南 | K154: 10455 | L154: 29660 | M154: 1138 | N154: 41253
A155: 曾淑華 | C155: 102.01.18 | D155: 營二課 | F155: 03AG002501 | G155: AAT-9585 | H155: 華南 | J155: 戴子貽 | K155: 39884 | L155: 37208 | M155: 1138 | N155: 78230
A156: 蕭惠文 | C156: 99.12.01 | D156: 服務部 | F156: 011F1B0042140 | G156: 0918-A7 | H156: 台產 | J156: 李技霖 | K156: 6332 | L156: 6306 | M156: 1019 | N156: 13657
A157: 祐丞營造有限公司 | C157: 101.01.18 | D157: 營二課 | F157: 03AG002504 | G157: 8238-L2 | H157: 華南 | J157: 張昇文 | K157: 11899 | L157: 4459 | M157: 1138 | N157: 17496
A158: 張月香 | C158: 102.01.21 | D158: 營三課 | F158: 03AG002503 | G158: AAT-7153 | H158: 華南 | J158: 賈勇華 | K158: 32021 | L158: 27613 | M158: 1138 | N158: 60772
A159: 呂緯盛 | C159: 100.12.28 | D159: 營三課 | F159: 03AG002502 | G159: ABB-1959 | H159: 華南 | J159: 黃盛緯 | K159: 0 | L159: 6602 | M159: 1099 | N159: 7701
A160: 林嘉玲 | C160: 95.01.01 | D160: 營三課 | F160: 080P18804417 | G160: 7678-MS | H160: 明台 | J160: 黃盛緯 | K160: 0 | L160: 7953 | M160: 1019 | N160: 8972
A161: 洪孟涵 | C161: 88.01.01 | D161: 營三課 | F161: 080P18804416 | G161: DG-5577 | H161: 明台 | J161: 郭力嘉 | K161: 12795 | L161: 4193 | M161: 1138 | N161: 18126
A162: 陳君寧 | C162: 89.01.20 | D162: 營二課 | F162: 03AG002507 | G162: 8F-7686 | H162: 華南 | J162: 林陳郎 | K162: 0 | L162: 2341 | M162: 1019 | N162: 3360
A163: 黃婷芳 | C163: 101.01.10 | D163: 營二課 | F163: 03AG002505 | G163: 1926-J6 | H163: 華南 | J163: 張昇文 | K163: 8016 | L163: 17861 | M163: 1059 | N163: 26936
A164: 吳仁豪 | C164: 101.01.12 | D164: 營二課 | F164: 03AG002506 | G164: 7367-L2 | H164: 華南 | J164: 林陳郎 | K164: 0 | L164: 3767 | M164: 1099 | N164: 4866
A165: 千凡實業有限公司 | C165: 96.01.01 | D165: STF | F165: 080P18804414 | G165: 3996-RJ | H165: 明台 | J165: 謝宛倫 | K165: 24195 | L165: 12697 | M165: 1099 | N165: 37991
A166: 曾淑慧 | C166: 102.01.23 | D166: 營一課 | F166: 080P18804415 | G166: AAQ-5898 | H166: 明台 | J166: 林柏霖 | K166: 21394 | L166: 31103 | M166: 1019 | N166: 53516
A167: 鍾素媛 | C167: 102.01.31 | D167: 營二課 | F167: 080P18804418 | G167: AAY-2658 | H167: 明台 | J167: 莊朝清 | K167: 44918 | L167: 22489 | M167: 1019 | N167: 68426
A168: 唐偉豪 | C168: 96.01.01 | D168: 營一課 | F168: 05GEA00217 | G168: 2767-RJ | H168: 富邦 | J168: 花志明 | K168: 7692 | L168: 5033 | M168: 1099 | N168: 13824
A169: 吳美珠 | C169: 101.01.01 | D169: 營二課 | F169: 05GEA00216 | G169: 6319-H6 | H169: 富邦 | J169: 張昇文 | K169: 18161 | L169: 7930 | M169: 1019 | N169: 27110
A170: 達立科技股份有限公司 | C170: 99.12.01 | D170: 營二課 | F170: 080P18804419 | G170: 9958-A6 | H170: 明台 | J170: 陳維德 | K170: 7139 | L170: 17448 | M170: 1099 | N170: 25686
A171: 呂文琴 | C171: 95.01.01 | D171: 服務部 | F171: 03AG002514 | G171: 3700-ES | H171: 華南 | J171: 陳勝雄 | K171: 0 | L171: 4718 | M171: 1019 | N171: 5737
A172: 吳枷妮 | C172: 101.01.19 | D172: 營一課 | F172: 03AG002516 | G172: 1958-L8 | H172: 華南 | J172: 王裕明 | K172: 24782 | L172: 25112 | M172: 1059 | N172: 50953
A173: 林味鈴 | C173: 102.01.25 | D173: 營三課 | F173: 080P18804421 | G173: AAY-0925 | H173: 明台 | J173: 簡志勳 | K173: 5289 | L173: 32320 | M173: 1019 | N173: 38628
A174: 林秀鑾 | C174: 96.01.01 | D174: 營二課 | F174: 080P18804420 | G174: 6566-RJ | H174: 明台 | J174: 謝中堅 | K174: 0 | L174: 5605 | M174: 1019 | N174: 6624
A175: 許家福 | C175: 101.01.01 | D175: 服務部 | F175: 03AG002522 | G175: 5588-Q3 | H175: 華南 | J175: 許慶麟 | K175: 11481 | L175: 16703 | M175: 1398 | N175: 29582
A176: 陳建民 | C176: 99.11.01 | D176: 營三課 | F176: 03AG002519 | G176: 0596-ZS | H176: 華南 | J176: 黃盛緯 | K176: 13590 | L176: 18365 | M176: 1099 | N176: 33054
A177: 啟運興業(股)公司 | C177: 97.01.01 | D177: STF | F177: 03AG002517 | G177: 0588-QY | H177: 華南 | J177: 許嘉航 | K177: 49293 | L177: 10128 | M177: 1099 | N177: 60520
A178: 高幼華 | C178: 102.01.31 | D178: 營三課 | F178: 080P18804422 | G178: AAY-1832 | H178: 明台 | J178: 林謙慶 | K178: 48495 | L178: 22109 | M178: 1059 | N178: 71663
A179: 榮大貿易股份有限公司 | C179: 100.01.11 | D179: 營一課 | F179: 080P18804426 | G179: 2255-A7 | H179: 明台 | J179: 梁大民 | K179: 27005 | L179: 24964 | M179: 1099 | N179: 53068
A180: 陳曉華 | C180: 102.01.14 | D180: 營三課 | F180: 080P18804424 | G180: AAB-5979 | H180: 明台 | J180: 林謙慶 | K180: 36163 | L180: 35639 | M180: 1138 | N180: 72940
A181: 林敬堯 | C181: 100.01.21 | D181: STF | F181: 011F1B0042595 | G181: 5668-YK | H181: 台產 | J181: 蔡青勳 | K181: 35492 | L181: 23751 | M181: 1099 | N181: 60342
A182: 洪子鈞 | C182: 103.01.01 | D182: 營二課 | G182: AGE-3378 | H182: 富邦 | J182: 梁志龍 | K182: 43105 | L182: 39012 | M182: 0 | N182: 82117
A183: 陳進成 | C183: 97.01.01 | D183: 營一課 | F183: 03AG002520 | G183: 8558-YK | H183: 華南 | J183: 花志明 | K183: 8254 | L183: 16859 | M183: 1099 | N183: 26212
A184: 江之馼 | C184: 100.01.14 | D184: 營三課 | F184: 080P18804427 | G184: 5838-YJ | H184: 明台 | J184: 陳禮建 | K184: 0 | L184: 3971 | M184: 1099 | N184: 5070
A185: 顏錫亮 | C185: 98.01.01 | D185: 營二課 | F185: 080P18804428 | G185: 5388-VF | H185: 明台 | J185: 張昇文 | K185: 9106 | L185: 3567 | M185: 1099 | N185: 13772
A186: 陳亭安 | C186: 92.01.01 | D186: STF | F186: 080P18804429 | G186: 1568-FG | H186: 明台 | J186: 吳美玲 | K186: 16646 | L186: 7640 | M186: 1318 | N186: 25604
A187: 良盟塑膠股份有限公司 | C187: 94.01.01 | D187: 營一課 | F187: 03AG002521 | G187: 6598-KD | H187: 華南 | J187: 蘇士文 | K187: 0 | L187: 4994 | M187: 1099 | N187: 6093
A188: 潘芳中 | C188: 99.01.01 | D188: 營三課 | F188: 011F14B0042584 | G188: 6958-YN | H188: 台產 | J188: 蕭敏聰 | K188: 60853 | L188: 27057 | M188: 1148 | N188: 89058
A189: 葡瑛企業社 | C189: 102.01.18 | D189: 營三課 | F189: 03AG0002523 | G189: AAT-9139 | H189: 華南 | J189: 賈勇華 | K189: 36595 | L189: 23399 | M189: 1218 | N189: 61212
A190: 高長壽 | C190: 101.01.19 | D190: 營三課 | F190: 03AG002525 | G190: 8955-J6 | H190: 華南 | J190: 郭力嘉 | K190: 78368 | L190: 24817 | M190: 1099 | N190: 104284
A191: 游仁德 | C191: 95.01.01 | D191: 營一課 | F191: 080P18804430 | G191: 8122-DA | H191: 明台 | J191: 梁大民 | K191: 0 | L191: 10879 | M191: 1099 | N191: 11978
A192: 林麗琴 | C192: 101.11.12 | D192: 營一課 | G192: ABB-5055 | H192: 明台 | J192: 陳龍雲 | K192: 0 | L192: 13829 | M192: 0 | N192: 13829
A193: 鄭建大 | C193: 102.01.25 | D193: 營二課 | F193: 080P18804446 | G193: AAY-3788 | H193: 明台 | J193: 林陳郎 | K193: 13559 | L193: 7340 | M193: 1148 | N193: 22047
A194: 蔡協霖 | C194: 102.01.23 | D194: 服務部 | F194: 03AG002529 | G194: AAD-1567 | H194: 華南 | J194: 洪嘉榮 | K194: 42533 | L194: 22435 | M194: 1218 | N194: 66186
A195: 世隆興業有限公司 | C195: 101.03.00 | D195: 營二課 | F195: 05GEA00219 | G195: 0253-L3 | H195: 富邦 | J195: 張昇文 | K195: 33721 | L195: 19726 | M195: 1138 | N195: 54585
A196: 王秀菱 | C196: 101.01.31 | D196: 營一課 | F196: 011F1B0042963 | G196: 9970-J6 | H196: 台產 | J196: 張哲彰 | K196: 39432 | L196: 23632 | M196: 1158 | N196: 64222
A197: 張安瑜 | C197: 88.01.01 | D197: 服務部 | F197: 080P18804444 | G197: ZX-4759 | H197: 明台 | J197: 陳俊田 | K197: 4887 | L197: 3745 | M197: 1019 | N197: 9651
A198: 林真伊 | C198: 100.06.01 | D198: 營三課 | F198: 080P18804440 | G198: 6589-ZV | H198: 明台 | J198: 黃盛緯 | K198: 0 | L198: 0 | M198: 1019 | N198: 1019
A199: 陳豐源 | C199: 102.01.24 | D199: 營二課 | F199: 011F1B0043468 | G199: AAY-0606 | H199: 台產 | J199: 陳維德 | K199: 43238 | L199: 30587 | M199: 1099 | N199: 74924
A200: 馮錦輝 | C200: 102.01.11 | D200: 營三課 | F200: 011F1B0043261 | G200: AAT-8527 | H200: 台產 | J200: 黃盛緯 | K200: 38583 | L200: 24626 | M200: 1687 | N200: 64896
... 26 more rows

Sheet 依德+鎔德
A1: 2014年1-3月各保險公司承保金額及占比分析
M2: 2014-04-12
A3: 台灣產物 | B3: 依德 | D3: % | F3: 鎔德 | H3: % | J3: 總計 | L3: %
B4: 件數 | C4: 金額 | D4: 件數 | E4: 金額 | F4: 件數 | G4: 金額 | H4: 件數 | I4: 金額 | J4: 件數 | K4: 金額 | L4: 件數 | M4: 金額
A5: 車體 | B5: ='[2]2014-12'!J5 -> 11 | C5: ='[2]2014-12'!K5 -> 769830 | F5: 2 | G5: 129736 | J5: =B5+F5 -> 13 | K5: 899566
A6: 其他 | B6: ='[2]2014-12'!J6 -> 1 | C6: ='[2]2014-12'!K6 -> 17093 | F6: 0 | G6: 0 | J6: 1 | K6: 17093
A7: 單強制 | B7: ='[2]2014-12'!J7 -> 7 | C7: ='[2]2014-12'!K7 -> 8978 | F7: 0 | G7: 0 | J7: 7 | K7: 8978
A8: 新保 | B8: ='[2]2014-12'!J8 -> 19 | C8: ='[2]2014-12'!K8 -> 795901 | D8: ='[2]2014-12'!N8 -> 0.09947643979 | E8: ='[2]2014-12'!O8 -> 0.08379034228 | F8: 2 | G8: 129736 | H8: 0.01428571429 | I8: 0.01756181105 | J8: 21 | K8: 925637 | L8: =J8/$J$72 -> 0.06344410876 | M8: =K8/$K$72 -> 0.05481646368
A9: 車體 | B9: ='[2]2014-12'!J9 -> 66 | C9: ='[2]2014-12'!K9 -> 3333833 | F9: 5 | G9: 262778 | J9: 71 | K9: 3596611
A10: 其他 | B10: ='[2]2014-12'!J10 -> 11 | C10: ='[2]2014-12'!K10 -> 74999 | F10: 0 | G10: 0 | J10: 11 | K10: 74999
A11: 單強制 | B11: ='[2]2014-12'!J11 -> 0 | C11: ='[2]2014-12'!K11 -> 0 | F11: 0 | G11: 0 | J11: 0 | K11: 0
A12: 續保 | B12: ='[2]2014-12'!J12 -> 77 | C12: ='[2]2014-12'!K12 -> 3408832 | D12: ='[2]2014-12'!N12 -> 0.137745975 | E12: ='[2]2014-12'!O12 -> 0.1586106862 | F12: 5 | G12: 262778 | H12: 0.04424778761 | I12: 0.05384592056 | J12: 82 | K12: 3671610 | L12: =J12/$J$76 -> 0.1220238095 | M12: =K12/$K$76 -> 0.1392237874
A13: 車體 | B13: ='[2]2014-12'!J13 -> 77 | C13: ='[2]2014-12'!K13 -> 4103663 | F13: 7 | G13: 392514 | J13: 84 | K13: 4496177
A14: 其他 | B14: ='[2]2014-12'!J14 -> 12 | C14: ='[2]2014-12'!K14 -> 92092 | F14: 0 | G14: 0 | J14: 12 | K14: 92092
A15: 單強制 | B15: ='[2]2014-12'!J15 -> 7 | C15: ='[2]2014-12'!K15 -> 8978 | F15: 0 | G15: 0 | J15: 7 | K15: 8978
A16: 總計 | B16: ='[2]2014-12'!J16 -> 96 | C16: ='[2]2014-12'!K16 -> 4204733 | D16: ='[2]2014-12'!N16 -> 0.128 | E16: ='[2]2014-12'!O16 -> 0.1356779608 | F16: 7 | G16: 392514 | H16: 0.02766798419 | I16: 0.03199604942 | J16: 103 | K16: 4597247 | L16: =J16/J80 -> 0.1026919242 | M16: =K16/K80 -> 0.106274788
A19: 明台產物 | B19: 依德 | D19: % | F19: 鎔德 | H19: % | J19: 總計 | L19: %
B20: 件數 | C20: 金額 | D20: 件數 | E20: 金額 | F20: 件數 | G20: 金額 | J20: 件數 | K20: 金額 | L20: 件數 | M20: 金額
A21: 車體 | B21: ='[2]2014-12'!J21 -> 52 | C21: ='[2]2014-12'!K21 -> 3491860 | F21: 52 | G21: 3848270 | J21: =B21+F21 -> 104 | K21: 7340130
A22: 其他 | B22: ='[2]2014-12'!J22 -> 3 | C22: ='[2]2014-12'!K22 -> 39872 | F22: 2 | G22: 44090 | J22: 5 | K22: 83962
A23: 單強制 | B23: ='[2]2014-12'!J23 -> 9 | C23: ='[2]2014-12'!K23 -> 11333 | F23: 4 | G23: 5601 | J23: 13 | K23: 16934
A24: 新保 | B24: ='[2]2014-12'!J24 -> 64 | C24: ='[2]2014-12'!K24 -> 3543065 | D24: ='[2]2014-12'!N24 -> 0.335078534 | E24: ='[2]2014-12'!O24 -> 0.373004468 | F24: 58 | G24: 3897961 | H24: 0.4142857143 | I24: 0.5276504174 | J24: 122 | K24: 7441026 | L24: =J24/$J$72 -> 0.3685800604 | M24: =K24/$K$72 -> 0.4406594934
A25: 車體 | B25: ='[2]2014-12'!J25 -> 170 | C25: ='[2]2014-12'!K25 -> 8661641 | F25: 46 | G25: 2427281 | J25: 216 | K25: 11088922
A26: 其他 | B26: ='[2]2014-12'!J26 -> 53 | C26: ='[2]2014-12'!K26 -> 463369 | F26: 9 | G26: 77725 | J26: 62 | K26: 541094
A27: 單強制 | B27: ='[2]2014-12'!J27 -> 12 | C27: ='[2]2014-12'!K27 -> 13313 | F27: 5 | G27: 5454 | J27: 17 | K27: 18767
A28: 續保 | B28: ='[2]2014-12'!J28 -> 235 | C28: ='[2]2014-12'!K28 -> 9138323 | D28: ='[2]2014-12'!N28 -> 0.4203935599 | E28: ='[2]2014-12'!O28 -> 0.4252000924 | F28: 60 | G28: 2510460 | H28: 0.5309734513 | I28: 0.5144191285 | J28: 295 | K28: 11648783 | L28: =J28/$J$76 -> 0.4389880952 | M28: =K28/$K$76 -> 0.4417102274
A29: 車體 | B29: ='[2]2014-12'!J29 -> 222 | C29: ='[2]2014-12'!K29 -> 12153501 | F29: 98 | G29: 6275551 | J29: 320 | K29: 18429052
A30: 其他 | B30: ='[2]2014-12'!J30 -> 56 | C30: ='[2]2014-12'!K30 -> 503241 | F30: 11 | G30: 121815 | J30: 67 | K30: 625056
A31: 單強制 | B31: ='[2]2014-12'!J31 -> 21 | C31: ='[2]2014-12'!K31 -> 24646 | F31: 9 | G31: 11055 | J31: 30 | K31: 35701
A32: 總計 | B32: ='[2]2014-12'!J32 -> 299 | C32: ='[2]2014-12'!K32 -> 12681388 | D32: ='[2]2014-12'!N32 -> 0.3986666667 | E32: ='[2]2014-12'!O32 -> 0.4092019312 | F32: 118 | G32: 6408421 | H32: 0.4664031621 | I32: 0.5223868576 | J32: 417 | K32: 19089809 | L32: =J32/$J$80 -> 0.4157527418 | M32: =K32/$K$80 -> 0.4413000659
A35: 華南產物 | B35: 依德 | D35: % | F35: 鎔德 | H35: % | J35: 總計 | L35: %
B36: 件數 | C36: 金額 | D36: 件數 | E36: 金額 | F36: 件數 | G36: 金額 | J36: 件數 | K36: 金額 | L36: 件數 | M36: 金額
A37: 車體 | B37: ='[2]2014-12'!J37 -> 45 | C37: ='[2]2014-12'!K37 -> 3281011 | F37: 36 | G37: 2342968 | J37: =B37+F37 -> 81 | K37: 5623979
A38: 其他 | B38: ='[2]2014-12'!J38 -> 4 | C38: ='[2]2014-12'!K38 -> 48619 | F38: 0 | G38: 0 | J38: 4 | K38: 48619
A39: 單強制 | B39: ='[2]2014-12'!J39 -> 20 | C39: ='[2]2014-12'!K39 -> 25915 | F39: 11 | G39: 13762 | J39: 31 | K39: 39677
A40: 新保 | B40: ='[2]2014-12'!J40 -> 69 | C40: ='[2]2014-12'!K40 -> 3355545 | D40: ='[2]2014-12'!N40 -> 0.3612565445 | E40: ='[2]2014-12'!O40 -> 0.3532628607 | F40: 47 | G40: 2356730 | H40: 0.3357142857 | I40: 0.3190205259 | J40: 116 | K40: 5712275 | L40: =J40/$J$72 -> 0.3504531722 | M40: =K40/$K$72 -> 0.3382824099
A41: 車體 | B41: ='[2]2014-12'!J41 -> 147 | C41: ='[2]2014-12'!K41 -> 6959058 | F41: 30 | G41: 1576287 | J41: 177 | K41: 8535345
A42: 其他 | B42: ='[2]2014-12'!J42 -> 51 | C42: ='[2]2014-12'!K42 -> 327090 | F42: 4 | G42: 49206 | J42: 55 | K42: 376296
A43: 單強制 | B43: ='[2]2014-12'!J43 -> 6 | C43: ='[2]2014-12'!K43 -> 6514 | F43: 0 | G43: 0 | J43: 6 | K43: 6514
A44: 續保 | B44: ='[2]2014-12'!J44 -> 204 | C44: ='[2]2014-12'!K44 -> 7292662 | D44: ='[2]2014-12'!N44 -> 0.3649373882 | E44: ='[2]2014-12'!O44 -> 0.3393227134 | F44: 34 | G44: 1625493 | H44: 0.3008849558 | I44: 0.3330802691 | J44: 238 | K44: 8918155 | L44: =J44/$J$76 -> 0.3541666667 | M44: =K44/$K$76 -> 0.3381675384
A45: 車體 | B45: ='[2]2014-12'!J45 -> 192 | C45: ='[2]2014-12'!K45 -> 10240069 | F45: 66 | G45: 3919255 | J45: 258 | K45: 14159324
A46: 其他 | B46: ='[2]2014-12'!J46 -> 55 | C46: ='[2]2014-12'!K46 -> 375709 | F46: 4 | G46: 49206 | J46: 59 | K46: 424915
A47: 單強制 | B47: ='[2]2014-12'!J47 -> 26 | C47: ='[2]2014-12'!K47 -> 32429 | F47: 11 | G47: 13762 | J47: 37 | K47: 46191
A48: 總計 | B48: ='[2]2014-12'!J48 -> 273 | C48: ='[2]2014-12'!K48 -> 10648207 | D48: ='[2]2014-12'!N48 -> 0.364 | E48: ='[2]2014-12'!O48 -> 0.3435954226 | F48: 81 | G48: 3982223 | H48: 0.3201581028 | I48: 0.3246136544 | J48: 354 | K48: 14630430 | L48: =J48/$J$80 -> 0.3529411765 | M48: =K48/$K$80 -> 0.3382123793
A51: 富邦產物 | B51: 依德 | D51: % | F51: 鎔德 | H51: % | J51: 總計 | L51: %
B52: 件數 | C52: 金額 | D52: 件數 | E52: 金額 | F52: 件數 | G52: 金額 | J52: 件數 | K52: 金額 | L52: 件數 | M52: 金額
A53: 車體 | B53: ='[2]2014-12'!J53 -> 28 | C53: ='[2]2014-12'!K53 -> 1789509 | F53: 15 | G53: 983713 | J53: =B53+F53 -> 43 | K53: 2773222
A54: 其他 | B54: ='[2]2014-12'!J54 -> 0 | C54: ='[2]2014-12'!K54 -> 0 | F54: 0 | G54: 0 | J54: 0 | K54: 0
A55: 單強制 | B55: ='[2]2014-12'!J55 -> 11 | C55: ='[2]2014-12'!K55 -> 14700 | F55: 18 | G55: 19253 | J55: 29 | K55: 33953
A56: 新保 | B56: ='[2]2014-12'!J56 -> 39 | C56: ='[2]2014-12'!K56 -> 1804209 | D56: ='[2]2014-12'!N56 -> 0.2041884817 | E56: ='[2]2014-12'!O56 -> 0.1899423291 | F56: 33 | G56: 1002966 | H56: 0.2357142857 | I56: 0.1357672456 | J56: 72 | K56: 2807175 | L56: =J56/$J$72 -> 0.2175226586 | M56: =K56/$K$72 -> 0.166241633
A57: 車體 | B57: ='[2]2014-12'!J57 -> 36 | C57: ='[2]2014-12'!K57 -> 1620597 | F57: 10 | G57: 461968 | J57: 46 | K57: 2082565
A58: 其他 | B58: ='[2]2014-12'!J58 -> 5 | C58: ='[2]2014-12'!K58 -> 29286 | F58: 3 | G58: 18386 | J58: 8 | K58: 47672
A59: 單強制 | B59: ='[2]2014-12'!J59 -> 2 | C59: ='[2]2014-12'!K59 -> 2118 | F59: 1 | G59: 1099 | J59: 3 | K59: 3217
A60: 續保 | B60: ='[2]2014-12'!J60 -> 43 | C60: ='[2]2014-12'!K60 -> 1652001 | D60: ='[2]2014-12'!N60 -> 0.07692307692 | E60: ='[2]2014-12'!O60 -> 0.07686650799 | F60: 14 | G60: 481453 | H60: 0.1238938053 | I60: 0.09865468187 | J60: 57 | K60: 2133454 | L60: =J60/$J$76 -> 0.08482142857 | M60: =K60/$K$76 -> 0.08089844677
A61: 車體 | B61: ='[2]2014-12'!J61 -> 64 | C61: ='[2]2014-12'!K61 -> 3410106 | F61: 25 | G61: 1445681 | J61: 89 | K61: 4855787
A62: 其他 | B62: ='[2]2014-12'!J62 -> 5 | C62: ='[2]2014-12'!K62 -> 29286 | F62: 3 | G62: 18386 | J62: 8 | K62: 47672
A63: 單強制 | B63: ='[2]2014-12'!J63 -> 13 | C63: ='[2]2014-12'!K63 -> 16818 | F63: 19 | G63: 20352 | J63: 32 | K63: 37170
A64: 總計 | B64: ='[2]2014-12'!J64 -> 82 | C64: ='[2]2014-12'!K64 -> 3456210 | D64: ='[2]2014-12'!N64 -> 0.1093333333 | E64: ='[2]2014-12'!O64 -> 0.1115246854 | F64: 47 | G64: 1484419 | H64: 0.185770751 | I64: 0.1210034386 | J64: 129 | K64: 4940629 | L64: =J64/$J$80 -> 0.1286141575 | M64: =K64/$K$80 -> 0.1142127668
A67: 保險公司 | B67: 依德 | D67: % | F67: 鎔德 | H67: % | J67: 總計 | L67: %
B68: 件數 | C68: 金額 | D68: 件數 | E68: 金額 | F68: 件數 | G68: 金額 | J68: 件數 | K68: 金額 | L68: 件數 | M68: 金額
A69: 車 體 | B69: ='[2]2014-12'!J69 -> 136 | C69: ='[2]2014-12'!K69 -> 9332210 | F69: 105 | G69: 7304687 | J69: =B69+F69 -> 241 | K69: 16636897
A70: 其 他 | B70: ='[2]2014-12'!J70 -> 8 | C70: ='[2]2014-12'!K70 -> 105584 | F70: 2 | G70: 44090 | J70: 10 | K70: 149674
A71: 單強制 | B71: ='[2]2014-12'!J71 -> 47 | C71: ='[2]2014-12'!K71 -> 60926 | F71: 33 | G71: 38616 | J71: 80 | K71: 99542
A72: 新 保 | B72: ='[2]2014-12'!J72 -> 191 | C72: ='[2]2014-12'!K72 -> 9498720 | D72: ='[2]2014-12'!N72 -> 0.2546666667 | E72: ='[2]2014-12'!O72 -> 0.3065038755 | F72: 140 | G72: 7387393 | H72: 0.5533596838 | I72: 0.6021884354 | J72: 331 | K72: 16886113 | L72: =H72/H80 -> 0.5533596838 | M72: =I72/I80 -> 0.6021884354
A73: 車 體 | B73: ='[2]2014-12'!J73 -> 419 | C73: ='[2]2014-12'!K73 -> 20575129 | F73: 91 | G73: 4728314 | J73: 510 | K73: 25303443
A74: 其 他 | B74: ='[2]2014-12'!J74 -> 120 | C74: ='[2]2014-12'!K74 -> 894744 | F74: 16 | G74: 145317 | J74: 136 | K74: 1040061
A75: 單強制 | B75: ='[2]2014-12'!J75 -> 20 | C75: ='[2]2014-12'!K75 -> 21945 | F75: 6 | G75: 6553 | J75: 26 | K75: 28498
A76: 續 保 | B76: ='[2]2014-12'!J76 -> 559 | C76: ='[2]2014-12'!K76 -> 21491818 | D76: ='[2]2014-12'!N76 -> 0.7453333333 | E76: ='[2]2014-12'!O76 -> 0.6934961245 | F76: 113 | G76: 4880184 | H76: 0.4466403162 | I76: 0.3978115646 | J76: 672 | K76: 26372002 | L76: =H76/H80 -> 0.4466403162 | M76: =I76/I80 -> 0.3978115646
A77: 車體 | B77: ='[2]2014-12'!J77 -> 555 | C77: ='[2]2014-12'!K77 -> 29907339 | F77: 196 | G77: 12033001 | J77: 751 | K77: 41940340
A78: 其他 | B78: ='[2]2014-12'!J78 -> 128 | C78: ='[2]2014-12'!K78 -> 1000328 | F78: 18 | G78: 189407 | J78: 146 | K78: 1189735
A79: 單強制 | B79: ='[2]2014-12'!J79 -> 67 | C79: ='[2]2014-12'!K79 -> 82871 | F79: 39 | G79: 45169 | J79: 106 | K79: 128040
A80: 總 計 | B80: ='[2]2014-12'!J80 -> 750 | C80: ='[2]2014-12'!K80 -> 30990538 | D80: ='[2]2014-12'!N80 -> 1 | E80: ='[2]2014-12'!O80 -> 1 | F80: 253 | G80: 12267577 | H80: 1 | I80: 1 | J80: 1003 | K80: 43258115 | L80: =J80/$J$80 -> 1 | M80: =K80/$K$80 -> 1
